Workbook

Sheet pt3_ann_RPKM_edgeR
A1: Supplementary Data 1: Nshort transcriptome. Phaeodactylum tricornutum (Phatr3) accessions (column A) coordinates (B-F) and annotations (G-AI). Subcellular localization targeting predictions based on HECTAR Gschloessl et al. 2008 (AJ - AO). Highly nitrate sensitive (HNS), nitrate sensitive (NS), nitrate-specific response type (NO3- RT), response type (RT), and proteome cluster (PC) identification (AP-AT). Calculations used for HNS determination, AR = Ammonia Repression, NIRA = Nitrate induction relative to ammonia, NIRN = Nitrate induction relative to nitrate (AU - AY). RPKM data (averages and per replicate, AZ - CS). EdgeR calculated differential expression data (CT - EO). Additional description of sample IDs and corresponding libraries can be found in Supplementary Table 3. | AP1: 61 | AQ1: =COUNTIF(AQ3:AQ12180,AQ2) -> 172 | AR1: =COUNTIF(AR3:AR12180,AR2) -> 160 | AU1: 0.362186616 | AV1: 0.2175019608 | AW1: 0.187796263
A2: id | B2: Chr | C2: Start | D2: End | E2: Strand | F2: Length | G2: kegg_hit | H2: kegg_desc | I2: kegg_pathway | J2: KO | K2: KO_desc | L2: KO_pathway | M2: EC | N2: uniprot | O2: KOG_id | P2: KOG_desc | Q2: KOG_class | R2: KOG_group | S2: organelle | T2: organelle_id | U2: organelle_species | V2: organelle_evalue | W2: best_hit | X2: best_hit_percent_identity | Y2: best_hit_annotation | Z2: best_hit_GOS_core_cluster | AA2: best_hit_species | AB2: best_hit_taxon_id | AC2: PFams | AD2: PFams_desc | AE2: TIGRFams | AF2: TIGRFams_desc | AG2: transporter_family | AH2: transporter_substrate | AI2: transporter_evidence | AJ2: transmembrane_domains | AK2: predicted_targeting_category | AL2: signal_peptide_score | AM2: type_II_signal_anchor_score | AN2: chloroplast_score | AO2: mitochondrion_score | AP2: HNS | AQ2: NS | AR2: NO3- RT | AS2: RT | AT2: PC | AU2: AR | AV2: NIRA | AW2: NIRN | AX2: N+ induced | AY2: RPKM >5 | AZ2: Average RPKM | BA2: Pre_1_AVG | BB2: Pre_2_AVG | BC2: Pre_3_AVG | BD2: N-_4_AVG | BE2: N-_5_AVG | BF2: N-_6_AVG | BG2: NH4+_4_AVG | BH2: NH4+_5_AVG | BI2: NH4+_6_AVG | BJ2: NO2-_4_AVG | BK2: NO2-_5_AVG | BL2: NO2-_6_AVG | BM2: NO3-_4_AVG | BN2: NO3-_5_AVG | BO2: NO3-_6_AVG | BP2: Pre_1_A | BQ2: Pre_1_B | BR2: Pre_2_A | BS2: Pre_2_B | BT2: Pre_3_A | BU2: Pre_3_B | BV2: N-_4_A | BW2: N-_4_B | BX2: N-_5_A | BY2: N-_5_B | BZ2: N-_6_A | CA2: N-_6_B | CB2: NH4+_4_A | CC2: NH4+_4_B | CD2: NH4+_5_A | CE2: NH4+_5_B | CF2: NH4+_6_A | CG2: NH4+_6_B | CH2: NO2-_4_A | CI2: NO2-_4_B | CJ2: NO2-_5_A | CK2: NO2-_5_B | CL2: NO2-_6_A | CM2: NO2-_6_B | CN2: NO3-_4_A | CO2: NO3-_4_B | CP2: NO3-_5_A | CQ2: NO3-_5_B | CR2: NO3-_6_A | CS2: NO3-_6_B | CT2: N-_4_vs_Pre_1.log2fc | CU2: N-_4_vs_Pre_1.fdr | CV2: N-_4_vs_Pre_2.log2fc | CW2: N-_4_vs_Pre_2.fdr | CX2: N-_5_vs_Pre_1.log2fc | CY2: N-_5_vs_Pre_1.fdr | CZ2: N-_5_vs_Pre_2.log2fc | DA2: N-_5_vs_Pre_2.fdr | DB2: N-_6_vs_Pre_1.log2fc | DC2: N-_6_vs_Pre_1.fdr | DD2: N-_6_vs_Pre_2.log2fc | DE2: N-_6_vs_Pre_2.fdr | DF2: NH4+_4_vs_Pre_1.log2fc | DG2: NH4+_4_vs_Pre_1.fdr | DH2: NH4+_4_vs_Pre_2.log2fc | DI2: NH4+_4_vs_Pre_2.fdr | DJ2: NH4+_5_vs_Pre_1.log2fc | DK2: NH4+_5_vs_Pre_1.fdr | DL2: NH4+_5_vs_Pre_2.log2fc | DM2: NH4+_5_vs_Pre_2.fdr | DN2: NH4+_6_vs_Pre_1.log2fc | DO2: NH4+_6_vs_Pre_1.fdr | DP2: NH4+_6_vs_Pre_2.log2fc | DQ2: NH4+_6_vs_Pre_2.fdr | DR2: NO2-_4_vs_Pre_1.log2fc | DS2: NO2-_4_vs_Pre_1.fdr | DT2: NO2-_4_vs_Pre_2.log2fc | DU2: NO2-_4_vs_Pre_2.fdr | DV2: NO2-_5_vs_Pre_1.log2fc | DW2: NO2-_5_vs_Pre_1.fdr | DX2: NO2-_5_vs_Pre_2.log2fc | DY2: NO2-_5_vs_Pre_2.fdr | DZ2: NO2-_6_vs_Pre_1.log2fc | EA2: NO2-_6_vs_Pre_1.fdr | EB2: NO2-_6_vs_Pre_2.log2fc | EC2: NO2-_6_vs_Pre_2.fdr | ED2: NO3-_4_vs_Pre_1.log2fc | EE2: NO3-_4_vs_Pre_1.fdr | EF2: NO3-_4_vs_Pre_2.log2fc | EG2: NO3-_4_vs_Pre_2.fdr | EH2: NO3-_5_vs_Pre_1.log2fc | EI2: NO3-_5_vs_Pre_1.fdr | EJ2: NO3-_5_vs_Pre_2.log2fc | EK2: NO3-_5_vs_Pre_2.fdr | EL2: NO3-_6_vs_Pre_1.log2fc | EM2: NO3-_6_vs_Pre_1.fdr | EN2: NO3-_6_vs_Pre_2.log2fc | EO2: NO3-_6_vs_Pre_2.fdr
A3: Phatr3_J12902 | B3: chr_9;chr_9 | C3: 732974;733471 | D3: 733348;734937 | E3: +;+ | F3: 1842 | O3: KOG0560 | P3: Sulfite reductase (ferredoxin) | Q3: Inorganic ion transport and metabolism | R3: METABOLISM | W3: Phatr12902-9Phatr2 | X3: 97 | Y3: Predicted protein | Z3: CAM_CRCL_32346370 | AA3: Phaeodactylum tricornutum | AB3: 2850 | AC3: _GAP_||PF03460||PF01077||PF03460||PF01077 | AD3: _GAP_||Nitrite/Sulfite reductase ferredoxin-like half domain||Nitrite and sulphite reductase 4Fe-4S domain||Nitrite/Sulfite reductase ferredoxin-like half domain||Nitrite and sulphite reductase 4Fe-4S domain | AJ3: 0 | AK3: chloroplast | AL3: 0.6289 | AM3: 0.0584 | AN3: 0.9515 | AO3: 0 | AP3: HNS | AQ3: NS | AR3: NO3- RT | AS3: 137 | AT3: 57 | AU3: =(BC3-BG3)/AVERAGE(BC3,BG3) -> 1.994156795 | AV3: =(BM3-BG3)/(AVERAGE(BG3,BM3)) -> 1.987067465 | AW3: =(BM3-BJ3)/AVERAGE(BM3,BJ3) -> 1.953656958 | AX3: =IF(BC3>BB3,1,0) -> 1 | AY3: =IF(AZ3>5,1,0) -> 1 | AZ3: =AVERAGE(BA3:BO3) -> 424.8006667 | BA3: =AVERAGE(BP3:BQ3) -> 979.87 | BB3: =AVERAGE(BR3:BS3) -> 101.24 | BC3: =AVERAGE(BT3:BU3) -> 2539.41 | BD3: =AVERAGE(BV3:BW3) -> 5.89 | BE3: =AVERAGE(BX3:BY3) -> 32.32 | BF3: =AVERAGE(BZ3:CA3) -> 409.34 | BG3: =AVERAGE(CB3:CC3) -> 3.715 | BH3: =AVERAGE(CD3:CE3) -> 1.795 | BI3: =AVERAGE(CF3:CG3) -> 146.325 | BJ3: =AVERAGE(CH3:CI3) -> 13.425 | BK3: =AVERAGE(CJ3:CK3) -> 25.74 | BL3: =AVERAGE(CL3:CM3) -> 333.33 | BM3: =AVERAGE(CN3:CO3) -> 1145.325 | BN3: =AVERAGE(CP3:CQ3) -> 479.385 | BO3: =AVERAGE(CR3:CS3) -> 154.9 | BP3: 917.83 | BQ3: 1041.91 | BR3: 106.84 | BS3: 95.64 | BT3: 1929.13 | BU3: 3149.69 | BV3: 7.23 | BW3: 4.55 | BX3: 26.53 | BY3: 38.11 | BZ3: 422.47 | CA3: 396.21 | CB3: 4.12 | CC3: 3.31 | CD3: 1.45 | CE3: 2.14 | CF3: 151.14 | CG3: 141.51 | CH3: 13.83 | CI3: 13.02 | CJ3: 26.96 | CK3: 24.52 | CL3: 261.51 | CM3: 405.15 | CN3: 1071.91 | CO3: 1218.74 | CP3: 462.55 | CQ3: 496.22 | CR3: 171.76 | CS3: 138.04 | CT3: 7.4234 | CU3: 0 | CV3: 3.8663 | CW3: 0 | CX3: 4.9726 | CY3: 0 | CZ3: 1.4312 | DA3: 0 | DB3: 1.2223 | DC3: 0 | DD3: -2.3402 | DE3: 0 | DF3: 7.8254 | DG3: 0 | DH3: 4.2414 | DI3: 0 | DJ3: 8.9028 | DK3: 0 | DL3: 5.3192 | DM3: 0 | DN3: 2.839 | DO3: 0 | DP3: -0.7429 | DQ3: 1.96e-06 | DR3: 5.9275 | DS3: 0 | DT3: 2.3678 | DU3: 0 | DV3: 5.2055 | DW3: 0 | DX3: 1.6245 | DY3: 0 | DZ3: 1.5817 | EA3: 0 | EB3: -1.9971 | EC3: 0 | ED3: -0.4188 | EE3: 0.00633911 | EF3: -3.9759 | EG3: 0 | EH3: 0.9551 | EI3: 1.7e-07 | EJ3: -2.6078 | EK3: 0 | EL3: 2.6949 | EM3: 0 | EN3: -0.8883 | EO3: 4.1e-07
A4: Phatr3_EG02286 | B4: chr_10 | C4: 280353 | D4: 283784 | E4: + | F4: 3432 | G4: pti:PHATRDRAFT_13154 | H4: hypothetical protein | N4: B7G155 | O4: KOG1336 | P4: Monodehydroascorbate/ferredoxin reductase | Q4: General function prediction only | R4: POORLY CHARACTERIZED | W4: Phatr13154-10Phatr2 | X4: 96 | Y4: Predicted protein Fragment | Z4: CAM_CRCL_31814898 | AA4: Phaeodactylum tricornutum | AB4: 2850 | AC4: _GAP_||PF07992||_GAP_||PF04324||_GAP_||PF03460||PF01077||_GAP_||PF13806||_GAP_ | AD4: _GAP_||Pyridine nucleotide-disulphide oxidoreductase||_GAP_||BFD-like [2Fe-2S] binding domain||_GAP_||Nitrite/Sulfite reductase ferredoxin-like half domain||Nitrite and sulphite reductase 4Fe-4S domain||_GAP_||PF13806||_GAP_ | AE4: _GAP_||TIGR02374||_GAP_||TIGR02378||_GAP_ | AF4: _GAP_||nitrite reductase [NAD(P)H], large subunit||_GAP_||nitrite reductase [NAD(P)H], small subunit||_GAP_ | AJ4: 0 | AK4: chloroplast | AL4: 0.6455 | AM4: 0.059 | AN4: 0.9671 | AO4: 0 | AP4: HNS | AQ4: NS | AR4: NO3- RT | AS4: 137 | AT4: 57 | AU4: 1.982402531 | AV4: 1.987151809 | AW4: 1.941796385 | AX4: 1 | AY4: 1 | AZ4: =AVERAGE(BA4:BO4) -> 375.961 | BA4: 1253.46 | BB4: 9.54 | BC4: 1107.765 | BD4: 10.925 | BE4: 97.12 | BF4: 441.135 | BG4: 4.895 | BH4: 1.305 | BI4: 76.14 | BJ4: 22.43 | BK4: 61.155 | BL4: 283.215 | BM4: 1519.055 | BN4: 653.9 | BO4: 97.375 | BP4: 1331.81 | BQ4: 1175.11 | BR4: 10.59 | BS4: 8.49 | BT4: 640.42 | BU4: 1575.11 | BV4: 12.97 | BW4: 8.88 | BX4: 100.44 | BY4: 93.8 | BZ4: 451.43 | CA4: 430.84 | CB4: 6.36 | CC4: 3.43 | CD4: 1.15 | CE4: 1.46 | CF4: 69.69 | CG4: 82.59 | CH4: 24.1 | CI4: 20.76 | CJ4: 64.24 | CK4: 58.07 | CL4: 205.56 | CM4: 360.87 | CN4: 1499.27 | CO4: 1538.84 | CP4: 639.25 | CQ4: 668.55 | CR4: 98.67 | CS4: 96.08 | CT4: 6.8867 | CU4: 0 | CV4: -0.419 | CW4: 0.0810659 | CX4: 3.7368 | CY4: 0 | CZ4: -3.5453 | DA4: 0 | DB4: 1.4681 | DC4: 0 | DD4: -5.8394 | DE4: 0 | DF4: 7.7814 | DG4: 0 | DH4: 0.4327 | DI4: 0.26977929 | DJ4: 9.7384 | DK4: 0 | DL4: 2.4129 | DM4: 0 | DN4: 4.1335 | DO4: 0 | DP4: -3.1922 | DQ4: 0 | DR4: 5.5405 | DS4: 0 | DT4: -1.7623 | DU4: 0 | DV4: 4.3095 | DW4: 0 | DX4: -3.0188 | DY4: 0 | DZ4: 2.169 | EA4: 0 | EB4: -5.1597 | EC4: 0 | ED4: -0.4717 | EE4: 0.00043712 | EF4: -7.7728 | EG4: 0 | EH4: 0.8594 | EI4: 1.28e-06 | EJ4: -6.4508 | EK4: 0 | EL4: 3.7147 | EM4: 0 | EN4: -3.6103 | EO4: 0
A5: Phatr3_J13076 | B5: chr_10;chr_10 | C5: 303677;304024 | D5: 303946;304701 | E5: -;- | F5: 948 | W5: Phatr13076-10Phatr2 | X5: 94 | Y5: Predicted protein | Z5: CAM_CRCL_31588352 | AA5: Phaeodactylum tricornutum | AB5: 2850 | AC5: _GAP_||PF01226 | AD5: _GAP_||Formate/nitrite transporter | AG5: FNT | AI5: 3 | AJ5: 6 | AK5: chloroplast | AL5: 0.8401 | AM5: 0.0464 | AN5: 0.5375 | AO5: 0 | AP5: HNS | AQ5: NS | AR5: NO3- RT | AS5: 77 | AT5: 66 | AU5: 1.989254715 | AV5: 1.982115031 | AW5: 1.892508689 | AX5: 1 | AY5: 1 | AZ5: 303.613 | BA5: 751.13 | BB5: 38.56 | BC5: 1549.995 | BD5: 3.6 | BE5: 26.46 | BF5: 191.715 | BG5: 4.175 | BH5: 1.75 | BI5: 82.205 | BJ5: 25.67 | BK5: 28.055 | BL5: 195.415 | BM5: 929.57 | BN5: 639.125 | BO5: 86.77 | BP5: 706.96 | BQ5: 795.3 | BR5: 49.44 | BS5: 27.68 | BT5: 1363.27 | BU5: 1736.72 | BV5: 4.4 | BW5: 2.8 | BX5: 21.98 | BY5: 30.94 | BZ5: 202.66 | CA5: 180.77 | CB5: 4.8 | CC5: 3.55 | CD5: 1.74 | CE5: 1.76 | CF5: 78.73 | CG5: 85.68 | CH5: 29.2 | CI5: 22.14 | CJ5: 22.59 | CK5: 33.52 | CL5: 150.71 | CM5: 240.12 | CN5: 873.94 | CO5: 985.2 | CP5: 505.66 | CQ5: 772.59 | CR5: 100.55 | CS5: 72.99 | CT5: 7.7453 | CU5: 0 | CV5: 3.2007 | CW5: 0 | CX5: 4.8817 | CY5: 0 | CZ5: 0.3506 | DA5: 0.2814187 | DB5: 1.9331 | DC5: 0 | DD5: -2.6151 | DE5: 0 | DF5: 7.2837 | DG5: 0 | DH5: 2.6954 | DI5: 0 | DJ5: 8.5969 | DK5: 0 | DL5: 4.0226 | DM5: 0 | DN5: 3.2874 | DO5: 0 | DP5: -1.2784 | DQ5: 8e-08 | DR5: 4.5953 | DS5: 0 | DT5: 0.0573 | DU5: 0.93632054 | DV5: 4.7022 | DW5: 0 | DX5: 0.1347 | DY5: 0.76559266 | DZ5: 1.9664 | EA5: 0 | EB5: -2.5984 | EC5: 0 | ED5: -0.5013 | EE5: 0.00083319 | EF5: -5.0429 | EG5: 0 | EH5: 0.1589 | EI5: 0.55593728 | EJ5: -4.3927 | EK5: 0 | EL5: 3.1508 | EM5: 0 | EN5: -1.4198 | EO5: 7e-08
A6: Phatr3_J26029 | B6: chr_4;chr_4 | C6: 356119;357597 | D6: 357507;357644 | E6: -;- | F6: 1437 | G6: pti:PHATRDRAFT_26029 | H6: hypothetical protein | N6: B7FTV6 | W6: Phatr26029-4Phatr2 | X6: 93 | Y6: Predicted protein | Z6: CAM_CRCL_32368787 | AA6: Phaeodactylum tricornutum | AB6: 2850 | AC6: _GAP_||PF07690||_GAP_ | AD6: _GAP_||Major Facilitator Superfamily||_GAP_ | AE6: _GAP_||TIGR00886||_GAP_ | AF6: _GAP_||nitrite transporter||_GAP_ | AG6: MFS | AI6: 3 | AJ6: 11 | AK6: signal anchor | AL6: 0.1006 | AM6: 0.5871 | AN6: 0 | AO6: 0 | AP6: HNS | AQ6: NS | AR6: NO3- RT | AS6: 137 | AT6: 57 | AU6: 1.993283027 | AV6: 1.985735003 | AW6: 1.873893838 | AX6: 1 | AY6: 1 | AZ6: 1436.016 | BA6: 3460.24 | BB6: 175 | BC6: 8406.32 | BD6: 43.82 | BE6: 293.145 | BF6: 1454.155 | BG6: 14.14 | BH6: 7.765 | BI6: 354.575 | BJ6: 128.61 | BK6: 252 | BL6: 875.385 | BM6: 3950.81 | BN6: 1695.87 | BO6: 428.405 | BP6: 3386.4 | BQ6: 3534.08 | BR6: 182 | BS6: 168 | BT6: 6962.64 | BU6: 9850 | BV6: 50.21 | BW6: 37.43 | BX6: 223.76 | BY6: 362.53 | BZ6: 1593.52 | CA6: 1314.79 | CB6: 23.01 | CC6: 5.27 | CD6: 9.19 | CE6: 6.34 | CF6: 338.72 | CG6: 370.43 | CH6: 138.04 | CI6: 119.18 | CJ6: 236.2 | CK6: 267.8 | CL6: 672.28 | CM6: 1078.49 | CN6: 3530.14 | CO6: 4371.48 | CP6: 1308.61 | CQ6: 2083.13 | CR6: 511.67 | CS6: 345.14 | CT6: 6.3508 | CU6: 0 | CV6: 1.7621 | CW6: 0 | CX6: 3.6069 | CY6: 0 | CZ6: -0.9655 | DA6: 1.82e-05 | DB6: 1.2133 | DC6: 0 | DD6: -3.3803 | DE6: 0 | DF6: 7.6943 | DG6: 0 | DH6: 3.0767 | DI6: 0 | DJ6: 8.6805 | DK6: 0 | DL6: 4.0552 | DM6: 0 | DN6: 3.3809 | DO6: 0 | DP6: -1.2322 | DQ6: 0 | DR6: 4.4905 | DS6: 0 | DT6: -0.1015 | DU6: 0.59119144 | DV6: 3.737 | DW6: 0 | DX6: -0.8753 | DY6: 1.038e-05 | DZ6: 2.0083 | EA6: 0 | EB6: -2.6014 | EC6: 0 | ED6: -0.3877 | EE6: 0.01644194 | EF6: -4.9761 | EG6: 0 | EH6: 0.9539 | EI6: 3.197e-05 | EJ6: -3.6403 | EK6: 0 | EL6: 3.0481 | EM6: 0 | EN6: -1.5676 | EO6: 0
A7: Phatr3_EG02484 | B7: chr_19 | C7: 525748 | D7: 527067 | E7: - | F7: 1320 | G7: pti:PHATRDRAFT_48868 | H7: hypothetical protein | N7: B7G8N4 | W7: Phatr48868-19Phatr2 | X7: 84 | Y7: Predicted protein | AA7: Phaeodactylum tricornutum | AB7: 2850 | AJ7: 0 | AK7: other localisation | AL7: 0.0586 | AM7: 0.0231 | AN7: 0 | AO7: 0.094 | AP7: HNS | AQ7: NS | AR7: NO3- RT | AS7: 145 | AU7: 1.968758384 | AV7: 1.959064099 | AW7: 1.91804863 | AX7: 1 | AY7: 1 | AZ7: 25.49333333 | BA7: 4.715 | BB7: 1.28 | BC7: 166.415 | BD7: 2.06 | BE7: 4.79 | BF7: 2.135 | BG7: 1.31 | BH7: 0.415 | BI7: 1.65 | BJ7: 2.65 | BK7: 2.465 | BL7: 3.9 | BM7: 126.695 | BN7: 57.91 | BO7: 4.01 | BP7: 3.71 | BQ7: 5.72 | BR7: 1.9 | BS7: 0.66 | BT7: 87.61 | BU7: 245.22 | BV7: 2.11 | BW7: 2.01 | BX7: 3.98 | BY7: 5.6 | BZ7: 2.4 | CA7: 1.87 | CB7: 2.3 | CC7: 0.32 | CD7: 0.48 | CE7: 0.35 | CF7: 2.16 | CG7: 1.14 | CH7: 3.66 | CI7: 1.64 | CJ7: 2.35 | CK7: 2.58 | CL7: 3.4 | CM7: 4.4 | CN7: 115.84 | CO7: 137.55 | CP7: 55.55 | CQ7: 60.27 | CR7: 4.51 | CS7: 3.51 | CT7: 1.2096 | CU7: 0.00075207 | CV7: -0.737 | CW7: 0.09269948 | CX7: 0.0039 | CY7: 1 | CZ7: -1.9327 | DA7: 3.05e-06 | DB7: 1.0832 | DC7: 0.00151067 | DD7: -0.8874 | DE7: 0.03780505 | DF7: 1.7024 | DG7: 0.02048959 | DH7: -0.4194 | DI7: 0.6717345 | DJ7: 3.3646 | DK7: 0 | DL7: 1.3681 | DM7: 0.02195795 | DN7: 1.552 | DO7: 7.046e-05 | DP7: -0.4557 | DQ7: 0.3936857 | DR7: 0.5085 | DS7: 0.26610968 | DT7: -1.4972 | DU7: 0.00628901 | DV7: 0.8616 | DW7: 0.02643595 | DX7: -1.1184 | DY7: 0.01237696 | DZ7: 0.2547 | EA7: 0.50221498 | EB7: -1.7291 | EC7: 9.085e-05 | ED7: -4.9957 | EE7: 0 | EF7: -6.8473 | EG7: 0 | EH7: -3.7412 | EI7: 0 | EJ7: -5.6142 | EK7: 0 | EL7: 0.2477 | EM7: 0.53367918 | EN7: -1.7405 | EO7: 3.101e-05
A8: Phatr3_J54983 | B8: chr_20;chr_20 | C8: 363436;363670 | D8: 363556;366254 | E8: +;+ | F8: 2706 | G8: tps:THAPSDRAFT_25299 | H8: hypothetical protein | N8: B8CEC4 | O8: KOG0535 | P8: Sulfite oxidase, molybdopterin-binding component | Q8: Energy production and conversion | R8: METABOLISM | W8: e_gw1.1029.20.1-Psemu1_scaffold_1029 | X8: 73 | Z8: CAM_CRCL_5194 | AA8: Pseudo-nitzschia multiseries | AB8: 37319 | AC8: _GAP_||PF00174||PF03404||_GAP_||PF00173||_GAP_||PF00970||PF00175 | AD8: _GAP_||Oxidoreductase molybdopterin binding domain||Mo-co oxidoreductase dimerisation domain||_GAP_||Cytochrome b5-like Heme/Steroid binding domain||_GAP_||Oxidoreductase FAD-binding domain||Oxidoreductase NAD-binding domain | AJ8: 0 | AK8: other localisation | AL8: 0.051 | AM8: 0.0214 | AN8: 0 | AO8: 0.0945 | AP8: HNS | AQ8: NS | AR8: NO3- RT | AS8: 137 | AT8: 57 | AU8: 1.988850663 | AV8: 1.987190473 | AW8: 1.86897821 | AX8: 1 | AY8: 1 | AZ8: 903.6576667 | BA8: 1394.92 | BB8: 89.395 | BC8: 3382.675 | BD8: 17.475 | BE8: 265.94 | BF8: 1473.01 | BG8: 9.455 | BH8: 3.31 | BI8: 585.915 | BJ8: 99.665 | BK8: 191.915 | BL8: 1453.555 | BM8: 2943.035 | BN8: 1013.275 | BO8: 631.325 | BP8: 1382.25 | BQ8: 1407.59 | BR8: 105.65 | BS8: 73.14 | BT8: 2415.96 | BU8: 4349.39 | BV8: 19.65 | BW8: 15.3 | BX8: 220.31 | BY8: 311.57 | BZ8: 1476.67 | CA8: 1469.35 | CB8: 13 | CC8: 5.91 | CD8: 3.11 | CE8: 3.51 | CF8: 562.51 | CG8: 609.32 | CH8: 101.7 | CI8: 97.63 | CJ8: 192.13 | CK8: 191.7 | CL8: 1150.9 | CM8: 1756.21 | CN8: 2908.38 | CO8: 2977.69 | CP8: 995.46 | CQ8: 1031.09 | CR8: 629.6 | CS8: 633.05 | CT8: 6.3664 | CU8: 0 | CV8: 2.1273 | CW8: 0 | CX8: 2.4372 | CY8: 0 | CZ8: -1.7858 | DA8: 0 | DB8: -0.1162 | DC8: 0.40455016 | DD8: -4.3651 | DE8: 0 | DF8: 6.9747 | DG8: 0 | DH8: 2.6999 | DI8: 0 | DJ8: 8.5661 | DK8: 0 | DL8: 4.3008 | DM8: 0 | DN8: 1.3453 | DO8: 0 | DP8: -2.9197 | DQ8: 0 | DR8: 3.5501 | DS8: 0 | DT8: -0.6938 | DU8: 0.0004269 | DV8: 2.8169 | DW8: 0 | DX8: -1.4468 | DY8: 0 | DZ8: -0.0337 | EA8: 0.9443614 | EB8: -4.2953 | EC8: 0 | ED8: -1.2698 | EE8: 0 | EF8: -5.5096 | EG8: 0 | EH8: 0.3834 | EI8: 0.03566924 | EJ8: -3.8617 | EK8: 0 | EL8: 1.1734 | EM8: 0 | EN8: -3.0908 | EO8: 0
A9: Phatr3_EG01952 | B9: chr_20;chr_20 | C9: 564516;565620 | D9: 565526;566315 | E9: -;- | F9: 1707 | G9: pti:PHATRDRAFT_49093 | H9: hypothetical protein | N9: B7G9G8 | W9: Phatr49093-20Phatr2 | X9: 83 | Y9: Predicted protein | Z9: CAM_CRCL_4011800 | AA9: Phaeodactylum tricornutum | AB9: 2850 | AC9: _GAP_||PF00654||_GAP_ | AD9: _GAP_||Voltage gated chloride channel||_GAP_ | AG9: ClC | AI9: 2 | AJ9: 10 | AK9: other localisation | AL9: 0.1031 | AM9: 0.0304 | AN9: 0 | AO9: 0.1922 | AP9: HNS | AQ9: NS | AR9: NO3- RT | AS9: 137 | AT9: 57 | AU9: 1.984778428 | AV9: 1.984538814 | AW9: 1.838099146 | AX9: 1 | AY9: 1 | AZ9: 143.14 | BA9: 332.165 | BB9: 2.585 | BC9: 486.92 | BD9: 3.4 | BE9: 42.03 | BF9: 221.49 | BG9: 1.86 | BH9: 0.425 | BI9: 45.385 | BJ9: 20.22 | BK9: 46.51 | BL9: 203.35 | BM9: 479.345 | BN9: 197.29 | BO9: 64.125 | BP9: 322.87 | BQ9: 341.46 | BR9: 2.45 | BS9: 2.72 | BT9: 304.15 | BU9: 669.69 | BV9: 2.91 | BW9: 3.89 | BX9: 34.14 | BY9: 49.92 | BZ9: 226.17 | CA9: 216.81 | CB9: 2.49 | CC9: 1.23 | CD9: 0.55 | CE9: 0.3 | CF9: 44.2 | CG9: 46.57 | CH9: 21.96 | CI9: 18.48 | CJ9: 42.17 | CK9: 50.85 | CL9: 126.8 | CM9: 279.9 | CN9: 441.9 | CO9: 516.79 | CP9: 184.71 | CQ9: 209.87 | CR9: 63.75 | CS9: 64.5 | CT9: 6.6604 | CU9: 0 | CV9: -0.6331 | CW9: 0.05366348 | CX9: 3.0315 | CY9: 0 | CZ9: -4.2495 | DA9: 0 | DB9: 0.5471 | DC9: 1.587e-05 | DD9: -6.7673 | DE9: 0 | DF9: 7.3134 | DG9: 0 | DH9: -0.0285 | DI9: 1 | DJ9: 9.5574 | DK9: 0 | DL9: 2.2162 | DM9: 4e-08 | DN9: 2.9665 | DO9: 0 | DP9: -4.3606 | DQ9: 0 | DR9: 3.7696 | DS9: 0 | DT9: -3.5281 | DU9: 0 | DV9: 2.7943 | DW9: 0 | DX9: -4.5272 | DY9: 0 | DZ9: 0.7311 | EA9: 0.01173781 | EB9: -6.5846 | EC9: 0 | ED9: -0.7243 | EE9: 1e-06 | EF9: -8.0231 | EG9: 0 | EH9: 0.675 | EI9: 0.00018596 | EJ9: -6.6276 | EK9: 0 | EL9: 2.402 | EM9: 0 | EN9: -4.923 | EO9: 0
A10: Phatr3_J37957 | B10: chr_14 | C10: 510720 | D10: 511304 | E10: + | F10: 585 | G10: pti:PHATRDRAFT_37957 | H10: hypothetical protein | N10: B7G4I8 | W10: Phatr37957-14Phatr2 | X10: 92 | Y10: Predicted protein | Z10: CAM_CRCL_4055382 | AA10: Phaeodactylum tricornutum | AB10: 2850 | AC10: PF01152||_GAP_ | AD10: Bacterial-like globin||_GAP_ | AJ10: 0 | AK10: other localisation | AL10: Nitrate Assimilation Gene | AM10: 0.0222 | AN10: 0 | AO10: 0.0901 | AP10: HNS | AQ10: NS | AR10: NO3- RT | AS10: 137 | AT10: 26 | AU10: 1.98399314 | AV10: 1.970453004 | AW10: 1.642373116 | AX10: 1 | AY10: 1 | AZ10: 57.18 | BA10: 159.86 | BB10: 24.56 | BC10: 243.915 | BD10: 2.865 | BE10: 11.695 | BF10: 65.505 | BG10: 0.98 | BH10: 0.675 | BI10: 25.81 | BJ10: 12.93 | BK10: 12.185 | BL10: 48.955 | BM10: 131.69 | BN10: 86.685 | BO10: 29.39 | BP10: 171.15 | BQ10: 148.57 | BR10: 25.33 | BS10: 23.79 | BT10: 264.29 | BU10: 223.54 | BV10: 1.36 | BW10: 4.37 | BX10: 10.56 | BY10: 12.83 | BZ10: 67.16 | CA10: 63.85 | CB10: 0.52 | CC10: 1.44 | CD10: 0.4 | CE10: 0.95 | CF10: 21.28 | CG10: 30.34 | CH10: 11.92 | CI10: 13.94 | CJ10: 11.47 | CK10: 12.9 | CL10: 42.16 | CM10: 55.75 | CN10: 135.07 | CO10: 128.31 | CP10: 80.71 | CQ10: 92.66 | CR10: 28.76 | CS10: 30.02 | CT10: 5.855 | CU10: 0 | CV10: 2.88 | CW10: 0 | CX10: 3.8307 | CY10: 0 | CZ10: 0.8687 | DA10: 0.00084839 | DB10: 1.2528 | DC10: 0 | DD10: -1.7312 | DE10: 0 | DF10: 6.9746 | DG10: 0 | DH10: 3.9812 | DI10: 0 | DJ10: 7.5818 | DK10: 0 | DL10: 4.5882 | DM10: 0 | DN10: 2.7369 | DO10: 0 | DP10: -0.2719 | DQ10: 0.35444974 | DR10: 3.3874 | DS10: 0 | DT10: 0.4009 | DU10: 0.15610615 | DV10: 3.6675 | DW10: 0 | DX10: 0.6681 | DY10: 0.01866437 | DZ10: 1.7208 | EA10: 0 | EB10: -1.2724 | EC10: 6e-08 | ED10: 0.0897 | EE10: 0.60317388 | EF10: -2.8813 | EG10: 0 | EH10: 0.809 | EI10: 3.26e-06 | EJ10: -2.1708 | EK10: 0 | EL10: 2.4689 | EM10: 0 | EN10: -0.5295 | EO10: 0.02625038
A11: Phatr3_J40435 | B11: chr_23 | C11: 385922 | D11: 386299 | E11: + | F11: 378 | G11: pti:PHATRDRAFT_40435 | H11: hypothetical protein | N11: B7GBF2 | W11: Phatr40435-23Phatr2 | X11: 100 | Y11: Predicted protein | AA11: Phaeodactylum tricornutum | AB11: 2850 | AJ11: 0 | AK11: signal peptide | AL11: 0.5413 | AM11: 0.0595 | AN11: 0.4551 | AO11: 0 | AP11: HNS | AQ11: NS | AR11: NO3- RT | AS11: 77 | AT11: 57 | AU11: 1.988963271 | AV11: 1.976516022 | AW11: 1.578365036 | AX11: 1 | AY11: 1 | AZ11: 280.4073333 | BA11: 477.61 | BB11: 29.53 | BC11: 1763.76 | BD11: 16.185 | BE11: 21.7 | BF11: 42.425 | BG11: 4.88 | BH11: 9.7 | BI11: 21.785 | BJ11: 97.365 | BK11: 67.615 | BL11: 39.595 | BM11: 826.325 | BN11: 763.255 | BO11: 24.38 | BP11: 450.09 | BQ11: 505.13 | BR11: 27.99 | BS11: 31.07 | BT11: 1671 | BU11: 1856.52 | BV11: 21.82 | BW11: 10.55 | BX11: 16.83 | BY11: 26.57 | BZ11: 43.07 | CA11: 41.78 | CB11: 6.42 | CC11: 3.34 | CD11: 9.36 | CE11: 10.04 | CF11: 23.08 | CG11: 20.49 | CH11: 99.55 | CI11: 95.18 | CJ11: 45.05 | CK11: 90.18 | CL11: 35.86 | CM11: 43.33 | CN11: 800.93 | CO11: 851.72 | CP11: 529.52 | CQ11: 996.99 | CR11: 25.73 | CS11: 23.03 | CT11: 4.9235 | CU11: 0 | CV11: 0.618 | CW11: 0.11299199 | CX11: 4.5256 | CY11: 0 | CZ11: 0.2276 | DA11: 0.53205263 | DB11: 3.4542 | DC11: 0 | DD11: -0.8611 | DE11: 0.00020828 | DF11: 6.4444 | DG11: 0 | DH11: 2.104 | DI11: 1.418e-05 | DJ11: 5.467 | DK11: 0 | DL11: 1.132 | DM11: 5.51e-06 | DN11: 4.54 | DO11: 0 | DP11: 0.2104 | DQ11: 0.46883479 | DR11: 2.0329 | DS11: 0 | DT11: -2.2782 | DU11: 0 | DV11: 2.7834 | DW11: 0 | DX11: -1.5441 | DY11: 1.77e-06 | DZ11: 3.6002 | EA11: 0 | EB11: -0.7185 | EC11: 0.0089626 | ED11: -0.9847 | EE11: 0 | EF11: -5.2933 | EG11: 0 | EH11: -0.749 | EI11: 0.0052121 | EJ11: -5.06 | EK11: 0 | EL11: 4.3281 | EM11: 0 | EN11: -0.0056 | EO11: 1
A12: Phatr3_J45621 | B12: chr_7 | C12: 742342 | D12: 743622 | E12: + | F12: 1281 | G12: pti:PHATRDRAFT_45621 | H12: hypothetical protein; K05916 nitric oxide dioxygenase [EC:1.14.12.17] | J12: K05916 | K12: nitric oxide dioxygenase [EC:1.14.12.17] | L12: Salmonella infection | M12: 1.14.12.17 | N12: B7FYB0 | O12: KOG3378 | P12: Globins and related hemoproteins | Q12: Energy production and conversion | R12: METABOLISM | W12: Phatr45621-7Phatr2 | X12: 100 | Y12: Predicted protein | Z12: CAM_CRCL_32373751 | AA12: Phaeodactylum tricornutum | AB12: 2850 | AC12: PF11563||PF00970||_GAP_ | AD12: Protoglobin||Oxidoreductase FAD-binding domain||_GAP_ | AJ12: 0 | AK12: other localisation | AL12: 0.0732 | AM12: 0.0255 | AN12: 0 | AO12: 0.1083 | AP12: HNS | AQ12: NS | AR12: NO3- RT | AS12: 77 | AT12: 71 | AU12: 1.941885626 | AV12: 1.985839108 | AW12: 1.448194969 | AX12: 1 | AY12: 1 | AZ12: 9.512 | BA12: 8.265 | BB12: 0.645 | BC12: 15.94 | BD12: 0.32 | BE12: 1.405 | BF12: 1.47 | BG12: 0.235 | BH12: 0.33 | BI12: 0.455 | BJ12: 10.585 | BK12: 3.35 | BL12: 0.315 | BM12: 66.145 | BN12: 33.14 | BO12: 0.08 | BP12: 7.69 | BQ12: 8.84 | BR12: 0.16 | BS12: 1.13 | BT12: 9.5 | BU12: 22.38 | BV12: 0 | BW12: 0.64 | BX12: 1.73 | BY12: 1.08 | BZ12: 1.94 | CA12: 1 | CB12: 0.47 | CC12: 0 | CD12: 0.37 | CE12: 0.29 | CF12: 0.56 | CG12: 0.35 | CH12: 10.78 | CI12: 10.39 | CJ12: 2.52 | CK12: 4.18 | CL12: 0.48 | CM12: 0.15 | CN12: 69.46 | CO12: 62.83 | CP12: 33.86 | CQ12: 32.42 | CR12: 0 | CS12: 0.16 | CT12: 4.7164 | CU12: 0 | CV12: 0.6099 | CW12: 0.63941311 | CX12: 2.5601 | CY12: 0 | CZ12: -1.7504 | DA12: 0.02046867 | DB12: 2.4695 | DC12: 0 | DD12: -1.8072 | DE12: 0.02261997 | DF12: 5.0827 | DG12: 0 | DH12: 0.8839 | DI12: 0.65774899 | DJ12: 4.5128 | DK12: 0 | DL12: 0.1628 | DM12: 0.7476991 | DN12: 4.1986 | DO12: 0 | DP12: -0.0937 | DQ12: 1 | DR12: -0.628 | DS12: 0.01181543 | DT12: -5.0416 | DU12: 0 | DV12: 1.2477 | DW12: 0.00014109 | DX12: -3.086 | DY12: 2.09e-06 | DZ12: 4.931 | EA12: 0 | EB12: 0.6162 | EC12: 0.62038453 | ED12: -3.2086 | EE12: 0 | EF12: -7.6847 | EG12: 0 | EH12: -2.0953 | EI12: 0 | EJ12: -6.5468 | EK12: 0 | EL12: 6.2994 | EM12: 0 | EN12: 2.1098 | EO12: 0.03297907
A13: Phatr3_J43348 | B13: chr_2 | C13: 189070 | D13: 190191 | E13: - | F13: 1122 | G13: pti:PHATRDRAFT_43348 | H13: hypothetical protein | N13: B7FRY4 | W13: Phatr43348-2Phatr2 | X13: 100 | Y13: Predicted protein | AA13: Phaeodactylum tricornutum | AB13: 2850 | AJ13: 1 | AK13: other localisation | AL13: 0.0586 | AM13: 0.0227 | AN13: 0 | AO13: 0.153 | AP13: HNS | AQ13: NS | AR13: NO3- RT | AS13: 139 | AT13: 57 | AU13: 1.838842681 | AV13: 1.748236993 | AW13: 1.575223114 | AX13: 1 | AY13: 1 | AZ13: 90.675 | BA13: 123.195 | BB13: 58.745 | BC13: 270.005 | BD13: 26.56 | BE13: 61.125 | BF13: 179.065 | BG13: 11.335 | BH13: 10.015 | BI13: 81.005 | BJ13: 20.05 | BK13: 27.805 | BL13: 144.045 | BM13: 168.755 | BN13: 97.08 | BO13: 81.34 | BP13: 134.51 | BQ13: 111.88 | BR13: 58.95 | BS13: 58.54 | BT13: 151.33 | BU13: 388.68 | BV13: 22.5 | BW13: 30.62 | BX13: 51.86 | BY13: 70.39 | BZ13: 185.5 | CA13: 172.63 | CB13: 12.17 | CC13: 10.5 | CD13: 10.3 | CE13: 9.73 | CF13: 78.43 | CG13: 83.58 | CH13: 20.43 | CI13: 19.67 | CJ13: 22.08 | CK13: 33.53 | CL13: 124.98 | CM13: 163.11 | CN13: 155.36 | CO13: 182.15 | CP13: 83.36 | CQ13: 110.8 | CR13: 79.57 | CS13: 83.11 | CT13: 2.2678 | CU13: 0 | CV13: 0.9187 | CW13: 1.3e-07 | CX13: 1.0596 | CY13: 0 | CZ13: -0.2749 | DA13: 0.15627515 | DB13: -0.5753 | DC13: 2.519e-05 | DD13: -1.9342 | DE13: 0 | DF13: 3.2149 | DG13: 0 | DH13: 1.8352 | DI13: 0 | DJ13: 3.4826 | DK13: 0 | DL13: 2.0991 | DM13: 0 | DN13: 0.7002 | DO13: 4.3e-07 | DP13: -0.6763 | DQ13: 4.47e-06 | DR13: 2.3588 | DS13: 0 | DT13: 1.0034 | DU13: 0 | DV13: 2.1064 | DW13: 0 | DX13: 0.7315 | DY13: 0.00073264 | DZ13: -0.2019 | EA13: 0.27313217 | EB13: -1.5744 | EC13: 0 | ED13: -0.6489 | EE13: 2.794e-05 | EF13: -2 | EG13: 0 | EH13: 0.269 | EI13: 0.21304817 | EJ13: -1.0871 | EK13: 4e-08 | EL13: 0.6275 | EM13: 1.111e-05 | EN13: -0.748 | EO13: 9.9e-07
A14: Phatr3_J51092 | B14: chr_15;chr_15 | C14: 372220;372593 | D14: 372480;373582 | E14: +;+ | F14: 1251 | G14: pti:PHATRDRAFT_51092 | H14: hypothetical protein; K01915 glutamine synthetase [EC:6.3.1.2] | I14: pti01100||pti00330||pti00910||pti00250 | J14: K01915 | K14: glutamine synthetase [EC:6.3.1.2] | L14: Alanine, aspartate and glutamate metabolism || Arginine and proline metabolism || Glyoxylate and dicarboxylate metabolism || Nitrogen metabolism || Two-component system || Glutamatergic synapse || GABAergic synapse | M14: 6.3.1.2 | N14: B7G5A1 | O14: KOG0683 | P14: Glutamine synthetase | Q14: Amino acid transport and metabolism | R14: METABOLISM | W14: Phatr51092-15Phatr2 | X14: 100 | Y14: Glutamine synthetase (EC 6.3.1.2) | Z14: CAM_CRCL_32404011 | AA14: Phaeodactylum tricornutum | AB14: 2850 | AC14: _GAP_||PF03951||PF00120 | AD14: _GAP_||Glutamine synthetase, beta-Grasp domain||Glutamine synthetase, catalytic domain | AJ14: 0 | AK14: chloroplast | AL14: 0.6454 | AM14: 0.0618 | AN14: 0.9531 | AO14: 0 | AP14: HNS | AQ14: NS | AR14: NO3- RT | AS14: 137 | AT14: 66 | AU14: 1.934008953 | AV14: 1.863197969 | AW14: 1.310797164 | AX14: 1 | AY14: 1 | AZ14: 1150.083667 | BA14: 2844.195 | BB14: 374.92 | BC14: 6782.615 | BD14: 440.1 | BE14: 158.895 | BF14: 143.905 | BG14: 113.775 | BH14: 16.135 | BI14: 196.175 | BJ14: 668.83 | BK14: 547.24 | BL14: 282.145 | BM14: 3212.93 | BN14: 1241.215 | BO14: 228.18 | BP14: 2693.33 | BQ14: 2995.06 | BR14: 404.34 | BS14: 345.5 | BT14: 6012.57 | BU14: 7552.66 | BV14: 442.38 | BW14: 437.82 | BX14: 141.97 | BY14: 175.82 | BZ14: 147.45 | CA14: 140.36 | CB14: 75.66 | CC14: 151.89 | CD14: 15.4 | CE14: 16.87 | CF14: 214.46 | CG14: 177.89 | CH14: 686.84 | CI14: 650.82 | CJ14: 416 | CK14: 678.48 | CL14: 197.87 | CM14: 366.42 | CN14: 3159.36 | CO14: 3266.5 | CP14: 1037.84 | CQ14: 1444.59 | CR14: 225.31 | CS14: 231.05 | CT14: 2.7438 | CU14: 0 | CV14: -0.4606 | CW14: 0.00776227 | CX14: 4.2106 | CY14: 0 | CZ14: 1.0212 | DA14: 2e-08 | DB14: 4.268 | DC14: 0 | DD14: 1.0559 | DE14: 0 | DF14: 4.4146 | DG14: 0 | DH14: 1.1813 | DI14: 6.666e-05 | DJ14: 7.315 | DK14: 0 | DL14: 4.0798 | DM14: 0 | DN14: 3.9537 | DO14: 0 | DP14: 0.7224 | DQ14: 2.482e-05 | DR14: 1.8328 | DS14: 0 | DT14: -1.3775 | DU14: 0 | DV14: 2.3424 | DW14: 0 | DX14: -0.8875 | DY14: 0.0004098 | DZ14: 3.358 | EA14: 0 | EB14: 0.1312 | EC14: 0.6956639 | ED14: -0.3678 | EE14: 0.00937351 | EF14: -3.5734 | EG14: 0 | EH14: 1.1213 | EI14: 6e-08 | EJ14: -2.09 | EK14: 0 | EL14: 3.6699 | EM14: 0 | EN14: 0.4398 | EO14: 0.01219945
A15: Phatr3_EG02531 | B15: chr_10 | C15: 646299 | D15: 647687 | E15: + | F15: 1389 | G15: pti:PHATRDRAFT_46540 | H15: hypothetical protein | N15: B7G1K4 | W15: Phatr46540-10Phatr2 | X15: 97 | Y15: Predicted protein | AA15: Phaeodactylum tricornutum | AB15: 2850 | AJ15: 3 | AK15: other localisation | AL15: 0.0575 | AM15: 0.0224 | AN15: 0 | AO15: 0.1045 | AP15: HNS | AQ15: NS | AR15: NO3- RT | AS15: 137 | AT15: 27 | AU15: 1.8651081 | AV15: 1.869345223 | AW15: 1.360278442 | AX15: 1 | AY15: 1 | AZ15: 60.71066667 | BA15: 125.985 | BB15: 58.065 | BC15: 93.41 | BD15: 21.54 | BE15: 52.73 | BF15: 125.44 | BG15: 3.26 | BH15: 5.825 | BI15: 61.72 | BJ15: 18.38 | BK15: 18.015 | BL15: 110.77 | BM15: 96.545 | BN15: 54.595 | BO15: 64.38 | BP15: 123.29 | BQ15: 128.68 | BR15: 54.44 | BS15: 61.69 | BT15: 67.23 | BU15: 119.59 | BV15: 19.82 | BW15: 23.26 | BX15: 50.26 | BY15: 55.2 | BZ15: 129.02 | CA15: 121.86 | CB15: 3.49 | CC15: 3.03 | CD15: 5.95 | CE15: 5.7 | CF15: 59.28 | CG15: 64.16 | CH15: 17.25 | CI15: 19.51 | CJ15: 15.7 | CK15: 20.33 | CL15: 93.47 | CM15: 128.07 | CN15: 99.43 | CO15: 93.66 | CP15: 51.43 | CQ15: 57.76 | CR15: 63.77 | CS15: 64.99 | CT15: 2.5994 | CU15: 0 | CV15: 1.1938 | CW15: 0 | CX15: 1.3049 | CY15: 0 | CZ15: -0.0861 | DA15: 0.66017168 | DB15: -0.0318 | DC15: 0.88884081 | DD15: -1.4441 | DE15: 0 | DF15: 5.0484 | DG15: 0 | DH15: 3.6154 | DI15: 0 | DJ15: 4.2961 | DK15: 0 | DL15: 2.8573 | DM15: 0 | DN15: 1.1237 | DO15: 0 | DP15: -0.3086 | DQ15: 0.05159463 | DR15: 2.5276 | DS15: 0 | DT15: 1.1148 | DU15: 0 | DV15: 2.7624 | DW15: 0 | DX15: 1.3322 | DY15: 0 | DZ15: 0.2084 | EA15: 0.25958493 | EB15: -1.219 | EC15: 0 | ED15: 0.1921 | EE15: 0.1794016 | EF15: -1.2146 | EG15: 0 | EH15: 1.1304 | EI15: 0 | EJ15: -0.2816 | EK15: 0.14112775 | EL15: 0.9965 | EM15: 0 | EN15: -0.4351 | EO15: 0.00605079
A16: Phatr3_J21961 | B16: chr_15 | C16: 188146 | D16: 190680 | E16: + | F16: 2535 | G16: pti:PHATRDRAFT_21961 | H16: hypothetical protein | N16: B7G527 | O16: KOG0192 | P16: Tyrosine kinase specific for activated (GTP-bound) p21cdc42Hs | Q16: Signal transduction mechanisms | R16: CELLULAR PROCESSES AND SIGNALING | W16: Phatr21961-15Phatr2 | X16: 95 | Y16: Predicted protein Fragment | Z16: CAM_CRCL_32378064 | AA16: Phaeodactylum tricornutum | AB16: 2850 | AC16: PF08376||_GAP_||PF00069||_GAP_ | AD16: Nitrate and nitrite sensing||_GAP_||Protein kinase domain||_GAP_ | AJ16: 0 | AK16: other localisation | AL16: 0.1034 | AM16: 0.0307 | AN16: 0 | AO16: 0.1765 | AP16: HNS | AQ16: NS | AR16: NO3- RT | AS16: 139 | AU16: 1.776951673 | AV16: 1.807134457 | AW16: 1.261468198 | AX16: 1 | AY16: 1 | AZ16: 30.05033333 | BA16: 28.27 | BB16: 11.58 | BC16: 52.07 | BD16: 18.775 | BE16: 33.02 | BF16: 38.785 | BG16: 3.075 | BH16: 7.945 | BI16: 31.465 | BJ16: 13.745 | BK16: 22.275 | BL16: 44.235 | BM16: 60.7 | BN16: 54.7 | BO16: 30.115 | BP16: 30.54 | BQ16: 26 | BR16: 10.06 | BS16: 13.1 | BT16: 35.59 | BU16: 68.55 | BV16: 18.43 | BW16: 19.12 | BX16: 34.52 | BY16: 31.52 | BZ16: 36.94 | CA16: 40.63 | CB16: 3.83 | CC16: 2.32 | CD16: 8.66 | CE16: 7.23 | CF16: 28.46 | CG16: 34.47 | CH16: 15.33 | CI16: 12.16 | CJ16: 22.7 | CK16: 21.85 | CL16: 36.66 | CM16: 51.81 | CN16: 61.09 | CO16: 60.31 | CP16: 52.81 | CQ16: 56.59 | CR16: 27.34 | CS16: 32.89 | CT16: 0.6446 | CU16: 3.29e-06 | CV16: -0.9517 | CW16: 4e-08 | CX16: -0.174 | CY16: 0.23698147 | CZ16: -1.7548 | DA16: 0 | DB16: -0.4908 | DC16: 0.00027976 | DD16: -2.0958 | DE16: 0 | DF16: 2.9989 | DG16: 0 | DH16: 1.3791 | DI16: 0.00010174 | DJ16: 1.699 | DK16: 0 | DL16: 0.071 | DM16: 0.78880725 | DN16: -0.0573 | DO16: 0.77978352 | DP16: -1.677 | DQ16: 0 | DR16: 0.773 | DS16: 2.54e-06 | DT16: -0.8198 | DU16: 7.073e-05 | DV16: 0.3002 | DW16: 0.1054781 | DX16: -1.3157 | DY16: 0 | DZ16: -0.6233 | EA16: 0.00071162 | EB16: -2.2335 | EC16: 0 | ED16: -1.2918 | EE16: 0 | EF16: -2.8886 | EG16: 0 | EH16: -1.0285 | EI16: 0 | EJ16: -2.6252 | EK16: 0 | EL16: -0.0651 | EM16: 0.76636313 | EN16: -1.682 | EO16: 0
A17: Phatr3_J15625 | B17: chr_20 | C17: 360706 | D17: 362157 | E17: + | F17: 1452 | G17: pti:PHATRDRAFT_15625 | H17: hypothetical protein; K03639 molybdenum cofactor biosynthesis protein | I17: pti01100||pti04122||pti00790 | J17: K03639 | K17: molybdenum cofactor biosynthesis protein | L17: Folate biosynthesis || Sulfur relay system | N17: B7G995 | O17: KOG2876 | P17: Molybdenum cofactor biosynthesis pathway protein | Q17: Coenzyme transport and metabolism | R17: METABOLISM | W17: Phatr15625-20Phatr2 | X17: 100 | Y17: Predicted protein Fragment | Z17: CAM_CRCL_31545327 | AA17: Phaeodactylum tricornutum | AB17: 2850 | AC17: _GAP_||PF04055||PF06463 | AD17: _GAP_||Radical SAM superfamily||Molybdenum Cofactor Synthesis C | AE17: _GAP_||TIGR02666 | AF17: _GAP_||molybdenum cofactor biosynthesis protein A | AJ17: 0 | AK17: other localisation | AL17: 0.4272 | AM17: 0.0625 | AN17: 0 | AO17: 0.4464 | AP17: HNS | AQ17: NS | AR17: NO3- RT | AS17: 136 | AT17: 90 | AU17: 1.769134905 | AV17: 1.710141148 | AW17: 1.358196625 | AX17: 1 | AY17: 1 | AZ17: 101.0106667 | BA17: 166.105 | BB17: 123.445 | BC17: 181.465 | BD17: 45.33 | BE17: 90.335 | BF17: 135.255 | BG17: 11.115 | BH17: 25.935 | BI17: 145.05 | BJ17: 27.19 | BK17: 46.36 | BL17: 172.37 | BM17: 142.27 | BN17: 71.7 | BO17: 131.235 | BP17: 163.37 | BQ17: 168.84 | BR17: 120.57 | BS17: 126.32 | BT17: 140.07 | BU17: 222.86 | BV17: 45.66 | BW17: 45 | BX17: 82.62 | BY17: 98.05 | BZ17: 138.39 | CA17: 132.12 | CB17: 12.95 | CC17: 9.28 | CD17: 26.43 | CE17: 25.44 | CF17: 142.33 | CG17: 147.77 | CH17: 27.29 | CI17: 27.09 | CJ17: 44.51 | CK17: 48.21 | CL17: 154.26 | CM17: 190.48 | CN17: 149.28 | CO17: 135.26 | CP17: 73.94 | CQ17: 69.46 | CR17: 124.12 | CS17: 138.35 | CT17: 1.9236 | CU17: 0 | CV17: 1.2108 | CW17: 0 | CX17: 0.9266 | CY17: 0 | CZ17: 0.2288 | DA17: 0.19285754 | DB17: 0.2585 | DC17: 0.04906473 | DD17: -0.4604 | DE17: 0.001055 | DF17: 3.6817 | DG17: 0 | DH17: 2.9403 | DI17: 0 | DJ17: 2.5371 | DK17: 0 | DL17: 1.7915 | DM17: 0 | DN17: 0.2894 | DO17: 0.03208437 | DP17: -0.4494 | DQ17: 0.00298769 | DR17: 2.352 | DS17: 0 | DT17: 1.6342 | DU17: 0 | DV17: 1.7971 | DW17: 0 | DX17: 1.0592 | DY17: 0 | DZ17: -0.0287 | EA17: 0.94017738 | EB17: -0.7639 | EC17: 3.85e-06 | ED17: 0.0325 | EE17: 0.89275236 | EF17: -0.6809 | EG17: 8.09e-06 | EH17: 1.1324 | EI17: 0 | EJ17: 0.4132 | EK17: 0.03640359 | EL17: 0.3671 | EM17: 0.01155193 | EN17: -0.3708 | EO17: 0.02565396
A18: Phatr3_EG00939 | B18: chr_13 | C18: 797165 | D18: 798280 | E18: - | F18: 1116 | AJ18: 0 | AK18: mitochondrion | AL18: 0.0798 | AM18: 0.0265 | AN18: 0 | AO18: 0.6499 | AP18: HNS | AQ18: NS | AR18: NO3- RT | AS18: 137 | AU18: 1.770907248 | AV18: 1.779242979 | AW18: 1.204140787 | AX18: 1 | AY18: 1 | AZ18: 10.88533333 | BA18: 15.115 | BB18: 14.215 | BC18: 18.6 | BD18: 12.065 | BE18: 11.57 | BF18: 15.405 | BG18: 1.13 | BH18: 2.74 | BI18: 10.005 | BJ18: 4.805 | BK18: 6.83 | BL18: 11.795 | BM18: 19.345 | BN18: 9.365 | BO18: 10.295 | BP18: 14.34 | BQ18: 15.89 | BR18: 12.06 | BS18: 16.37 | BT18: 12.92 | BU18: 24.28 | BV18: 11.58 | BW18: 12.55 | BX18: 11.24 | BY18: 11.9 | BZ18: 15.97 | CA18: 14.84 | CB18: 0 | CC18: 2.26 | CD18: 3.66 | CE18: 1.82 | CF18: 8.82 | CG18: 11.19 | CH18: 3.59 | CI18: 6.02 | CJ18: 8.21 | CK18: 5.45 | CL18: 11.05 | CM18: 12.54 | CN18: 18.35 | CO18: 20.34 | CP18: 10.27 | CQ18: 8.46 | CR18: 10.76 | CS18: 9.83 | CT18: 0.3688 | CU18: 0.10224104 | CV18: -0.022 | CW18: 1 | CX18: 0.4273 | CY18: 0.04816489 | CZ18: 0.0505 | DA18: 0.90690307 | DB18: -0.0716 | DC18: 0.8294597 | DD18: -0.4694 | DE18: 0.06463901 | DF18: 3.3249 | DG18: 0 | DH18: 2.9422 | DI18: 1.31e-06 | DJ18: 2.3615 | DK18: 0 | DL18: 1.9345 | DM18: 4e-08 | DN18: 0.6903 | DO18: 0.00375834 | DP18: 0.2735 | DQ18: 0.35980192 | DR18: 1.4344 | DS18: 1.6e-06 | DT18: 1.0365 | DU18: 0.00175415 | DV18: 1.0951 | DW18: 0.00021707 | DX18: 0.6823 | DY18: 0.03831948 | DZ18: 0.3705 | EA18: 0.13890791 | EB18: -0.0395 | EC18: 1 | ED18: -0.5541 | EE18: 0.01114998 | EF18: -0.9468 | EG18: 7.692e-05 | EH18: 0.5941 | EI18: 0.02252691 | EJ18: 0.2007 | EK18: 0.52701144 | EL18: 0.5809 | EM18: 0.01073908 | EN18: 0.1648 | EO18: 0.59506433
A19: Phatr3_J44704 | B19: chr_4 | C19: 1327891 | D19: 1329093 | E19: + | F19: 1203 | G19: pti:PHATRDRAFT_44704 | H19: hypothetical protein; K14662 protein N-terminal asparagine amidohydrolase [EC:3.5.1.-] | J19: K14662 | K19: protein N-terminal asparagine amidohydrolase [EC:3.5.1.-] | N19: B7FUZ6 | W19: Phatr44704-4Phatr2 | X19: 97 | Y19: Predicted protein | Z19: CAM_CRCL_6213282 | AA19: Phaeodactylum tricornutum | AB19: 2850 | AC19: _GAP_||PF14736 | AD19: _GAP_||PF14736 | AJ19: 0 | AK19: other localisation | AL19: 0.0623 | AM19: 0.0234 | AN19: 0 | AO19: 0.0996 | AP19: HNS | AQ19: NS | AR19: NO3- RT | AS19: 139 | AU19: 1.781711232 | AV19: 1.646789124 | AW19: 1.281510301 | AX19: 1 | AY19: 1 | AZ19: 99.21066667 | BA19: 130.455 | BB19: 88.9 | BC19: 263.59 | BD19: 36.51 | BE19: 84.92 | BF19: 202.945 | BG19: 15.215 | BH19: 12.815 | BI19: 86.49 | BJ19: 34.395 | BK19: 39.09 | BL19: 137.1 | BM19: 157.09 | BN19: 110.745 | BO19: 87.9 | BP19: 118.08 | BQ19: 142.83 | BR19: 85.24 | BS19: 92.56 | BT19: 245.87 | BU19: 281.31 | BV19: 32.39 | BW19: 40.63 | BX19: 62.63 | BY19: 107.21 | BZ19: 198.4 | CA19: 207.49 | CB19: 13.11 | CC19: 17.32 | CD19: 11.05 | CE19: 14.58 | CF19: 87.4 | CG19: 85.58 | CH19: 37.19 | CI19: 31.6 | CJ19: 33.35 | CK19: 44.83 | CL19: 125.79 | CM19: 148.41 | CN19: 161.23 | CO19: 152.95 | CP19: 103.8 | CQ19: 117.69 | CR19: 92.35 | CS19: 83.45 | CT19: 1.8895 | CU19: 0 | CV19: 1.0512 | CW19: 0 | CX19: 0.6669 | CY19: 0.00374242 | CZ19: -0.1583 | DA19: 0.56205686 | DB19: -0.6771 | DC19: 1.67e-06 | DD19: -1.5218 | DE19: 0 | DF19: 2.8507 | DG19: 0 | DH19: 1.9834 | DI19: 0 | DJ19: 3.19 | DK19: 0 | DL19: 2.3188 | DM19: 0 | DN19: 0.6861 | DO19: 2.58e-06 | DP19: -0.179 | DQ19: 0.25887073 | DR19: 1.6575 | DS19: 0 | DT19: 0.8131 | DU19: 1.3e-07 | DV19: 1.6973 | DW19: 0 | DX19: 0.8327 | DY19: 1.137e-05 | DZ19: -0.0472 | EA19: 0.86580961 | EB19: -0.909 | EC19: 2e-08 | ED19: -0.4601 | EE19: 0.0023405 | EF19: -1.2998 | EG19: 0 | EH19: 0.1601 | EI19: 0.46717499 | EJ19: -0.6859 | EK19: 0.00030124 | EL19: 0.6002 | EM19: 9.895e-05 | EN19: -0.265 | EO19: 0.10389467
A20: Phatr3_J44510 | B20: chr_4;chr_4;chr_4;chr_4 | C20: 770677;771182;771446;771710 | D20: 770972;771264;771627;772468 | E20: +;+;+;+ | F20: 1320 | G20: pti:PHATRDRAFT_44510 | H20: hypothetical protein | N20: B7FUC9 | W20: Phatr44510-4Phatr2 | X20: 92 | Y20: Predicted protein | Z20: CAM_CRCL_27048841 | AA20: Phaeodactylum tricornutum | AB20: 2850 | AJ20: 0 | AK20: signal peptide | AL20: 0.6593 | AM20: 0.0585 | AN20: 0.1947 | AO20: 0 | AP20: HNS | AQ20: NS | AR20: NO3- RT | AS20: 77 | AT20: 57 | AU20: 1.689126256 | AV20: 1.590919838 | AW20: 1.259563004 | AX20: 1 | AY20: 1 | AZ20: 867.5823333 | BA20: 1615.07 | BB20: 404.105 | BC20: 3156.73 | BD20: 362.845 | BE20: 441.26 | BF20: 432.23 | BG20: 266.01 | BH20: 357.895 | BI20: 301.09 | BJ20: 530.425 | BK20: 493.545 | BL20: 412.4 | BM20: 2335.045 | BN20: 1623.7 | BO20: 281.385 | BP20: 1560.38 | BQ20: 1669.76 | BR20: 397.29 | BS20: 410.92 | BT20: 2015.2 | BU20: 4298.26 | BV20: 326.79 | BW20: 398.9 | BX20: 431.17 | BY20: 451.35 | BZ20: 437.26 | CA20: 427.2 | CB20: 311.87 | CC20: 220.15 | CD20: 373.16 | CE20: 342.63 | CF20: 306.6 | CG20: 295.58 | CH20: 513.37 | CI20: 547.48 | CJ20: 522.08 | CK20: 465.01 | CL20: 345.32 | CM20: 479.48 | CN20: 2189.8 | CO20: 2480.29 | CP20: 1552.06 | CQ20: 1695.34 | CR20: 287.41 | CS20: 275.36 | CT20: 2.2079 | CU20: 0 | CV20: -0.0756 | CW20: 0.72427076 | CX20: 1.9205 | CY20: 0 | CZ20: -0.3485 | DA20: 0.02919467 | DB20: 1.8644 | DC20: 0 | DD20: -0.4252 | DE20: 0.00246657 | DF20: 2.357 | DG20: 0 | DH20: 0.0447 | DI20: 0.95183147 | DJ20: 2.0312 | DK20: 0 | DL20: -0.286 | DM20: 0.07445332 | DN20: 2.5183 | DO20: 0 | DP20: 0.2081 | DQ20: 0.19937086 | DR20: 1.3522 | DS20: 0 | DT20: -0.9379 | DU20: 0 | DV20: 1.6641 | DW20: 0 | DX20: -0.6451 | DY20: 0.00154812 | DZ20: 1.9953 | EA20: 0 | EB20: -0.311 | EC20: 0.11638168 | ED20: -0.7261 | EE20: 4.4e-07 | EF20: -3.0111 | EG20: 0 | EH20: -0.0846 | EI20: 0.71934194 | EJ20: -2.3751 | EK20: 0 | EL20: 2.5517 | EM20: 0 | EN20: 0.2415 | EO20: 0.15405445
A21: Phatr3_J48446 | B21: chr_17 | C21: 488293 | D21: 489669 | E21: - | F21: 1377 | G21: pti:PHATRDRAFT_48446 | H21: hypothetical protein; K14410 acid phosphatase [EC:3.1.3.2] | I21: pti00740 | J21: K14410 | K21: acid phosphatase [EC:3.1.3.2] | L21: Riboflavin metabolism | M21: 3.1.3.2 | N21: B7G758 | O21: KOG3720 | P21: Lysosomal & prostatic acid phosphatases | Q21: Lipid transport and metabolism | R21: METABOLISM | W21: Phatr48446-17Phatr2 | X21: 100 | Y21: Predicted protein | Z21: CAM_CRCL_4002740 | AA21: Phaeodactylum tricornutum | AB21: 2850 | AC21: PF00328||_GAP_ | AD21: Histidine acid phosphatase||_GAP_ | AJ21: 1 | AK21: other localisation | AL21: 0.0719 | AM21: 0.0261 | AN21: 0 | AO21: 0.2079 | AP21: HNS | AQ21: NS | AR21: NO3- RT | AS21: 139 | AT21: 57 | AU21: 1.573114177 | AV21: 1.554247885 | AW21: 1.389687829 | AX21: 1 | AY21: 1 | AZ21: 28.524 | BA21: 18.88 | BB21: 17.68 | BC21: 76.085 | BD21: 14.23 | BE21: 23.14 | BF21: 31.445 | BG21: 9.09 | BH21: 11.38 | BI21: 21.46 | BJ21: 13.05 | BK21: 16.755 | BL21: 39.23 | BM21: 72.48 | BN21: 41.035 | BO21: 21.92 | BP21: 17.3 | BQ21: 20.46 | BR21: 16.62 | BS21: 18.74 | BT21: 47.72 | BU21: 104.45 | BV21: 15.09 | BW21: 13.37 | BX21: 23.64 | BY21: 22.64 | BZ21: 28.48 | CA21: 34.41 | CB21: 9.47 | CC21: 8.71 | CD21: 12.11 | CE21: 10.65 | CF21: 20.86 | CG21: 22.06 | CH21: 13.04 | CI21: 13.06 | CJ21: 15.74 | CK21: 17.77 | CL21: 31.67 | CM21: 46.79 | CN21: 68.26 | CO21: 76.7 | CP21: 41.24 | CQ21: 40.83 | CR21: 22.21 | CS21: 21.63 | CT21: 0.4495 | CU21: 0.02639796 | CV21: 0.0713 | CW21: 0.8098111 | CX21: -0.2559 | CY21: 0.18220649 | CZ21: -0.6171 | DA21: 0.00057197 | DB21: -0.785 | DC21: 5.29e-06 | DD21: -1.1714 | DE21: 0 | DF21: 0.818 | DG21: 0.00602888 | DH21: 0.41 | DI21: 0.20468949 | DJ21: 0.5845 | DK21: 0.00249416 | DL21: 0.1738 | DM21: 0.43115656 | DN21: -0.0986 | DO21: 0.68193325 | DP21: -0.5026 | DQ21: 0.00760019 | DR21: 0.2675 | DS21: 0.20867684 | DT21: -0.1164 | DU21: 0.66170097 | DV21: 0.122 | DW21: 0.63828472 | DX21: -0.2815 | DY21: 0.23803432 | DZ21: -1.0414 | EA21: 2.23e-06 | EB21: -1.4431 | EC21: 0 | ED21: -2.144 | EE21: 0 | EF21: -2.522 | EG21: 0 | EH21: -1.2063 | EI21: 0 | EJ21: -1.5907 | EK21: 0 | EL21: -0.1942 | EM21: 0.36167393 | EN21: -0.5976 | EO21: 0.00203076
A22: Phatr3_J39656 | B22: chr_20 | C22: 362426 | D22: 362788 | E22: - | F22: 363 | G22: pti:PHATRDRAFT_39656 | H22: hypothetical protein | N22: B7G996 | W22: Phatr39656-20Phatr2 | X22: 100 | Y22: Predicted protein | AA22: Phaeodactylum tricornutum | AB22: 2850 | AJ22: 2 | AK22: chloroplast | AL22: 0.8482 | AM22: 0.0719 | AN22: 0.9103 | AO22: 0 | AP22: HNS | AQ22: NS | AR22: NO3- RT | AS22: 77 | AU22: 1.758867267 | AV22: 1.40880942 | AW22: 1.169603212 | AX22: 1 | AY22: 1 | AZ22: 135.9413333 | BA22: 219.055 | BB22: 115.355 | BC22: 528.29 | BD22: 52.02 | BE22: 73.9 | BF22: 92.07 | BG22: 33.89 | BH22: 70.45 | BI22: 93.915 | BJ22: 51.195 | BK22: 101.025 | BL22: 144.78 | BM22: 195.41 | BN22: 176 | BO22: 91.765 | BP22: 225.01 | BQ22: 213.1 | BR22: 125.66 | BS22: 105.05 | BT22: 579.76 | BU22: 476.82 | BV22: 45.45 | BW22: 58.59 | BX22: 63.51 | BY22: 84.29 | BZ22: 98.4 | CA22: 85.74 | CB22: 22.56 | CC22: 45.22 | CD22: 69.76 | CE22: 71.14 | CF22: 99.78 | CG22: 88.05 | CH22: 52.5 | CI22: 49.89 | CJ22: 121.9 | CK22: 80.15 | CL22: 135.87 | CM22: 153.69 | CN22: 213.31 | CO22: 177.51 | CP22: 197.48 | CQ22: 154.52 | CR22: 83.03 | CS22: 100.5 | CT22: 2.1272 | CU22: 0 | CV22: 0.9331 | CW22: 5.07e-06 | CX22: 1.6209 | CY22: 0 | CZ22: 0.4387 | DA22: 0.04415013 | DB22: 1.216 | DC22: 0 | DD22: 0.012 | DE22: 1 | DF22: 2.4215 | DG22: 0 | DH22: 1.2013 | DI22: 0.00016395 | DJ22: 1.4931 | DK22: 0 | DL22: 0.2676 | DM22: 0.15885233 | DN22: 1.3137 | DO22: 0 | DP22: 0.0936 | DQ22: 0.72227296 | DR22: 1.8342 | DS22: 0 | DT22: 0.6355 | DU22: 0.00144002 | DV22: 1.0666 | DW22: 1.16e-06 | DX22: -0.1578 | DY22: 0.59960099 | DZ22: 0.6196 | EA22: 3.266e-05 | EB22: -0.5966 | EC22: 0.00158122 | ED22: -0.0255 | EE22: 0.95199381 | EF22: -1.2193 | EG22: 0 | EH22: 0.231 | EI22: 0.25057894 | EJ22: -0.9709 | EK22: 4.81e-06 | EL22: 1.2754 | EM22: 0 | EN22: 0.0576 | EO22: 0.86941284
A23: Phatr3_J46671 | B23: chr_11 | C23: 142262 | D23: 142681 | E23: - | F23: 420 | G23: pti:PHATR_46671 | H23: hypothetical protein | N23: B5Y3E6 | W23: Phatr46671-11Phatr2 | X23: 84 | Y23: Predicted protein | AA23: Phaeodactylum tricornutum | AB23: 2850 | AJ23: 0 | AK23: other localisation | AL23: 0.0838 | AM23: 0.0278 | AN23: 0 | AO23: 0.1074 | AP23: HNS | AQ23: NS | AR23: NO3- RT | AS23: 137 | AU23: 1.596932206 | AV23: 1.478827362 | AW23: 1.15837897 | AX23: 1 | AY23: 1 | AZ23: 106.8486667 | BA23: 169.4 | BB23: 162.045 | BC23: 240.945 | BD23: 74.78 | BE23: 75.925 | BF23: 102.645 | BG23: 27 | BH23: 35.665 | BI23: 120.235 | BJ23: 48.025 | BK23: 68.25 | BL23: 111.765 | BM23: 180.225 | BN23: 83.905 | BO23: 101.92 | BP23: 168.69 | BQ23: 170.11 | BR23: 176.68 | BS23: 147.41 | BT23: 243.23 | BU23: 238.66 | BV23: 64.84 | BW23: 84.72 | BX23: 70.48 | BY23: 81.37 | BZ23: 102.03 | CA23: 103.26 | CB23: 27.45 | CC23: 26.55 | CD23: 36.51 | CE23: 34.82 | CF23: 124.26 | CG23: 116.21 | CH23: 36.66 | CI23: 59.39 | CJ23: 56.21 | CK23: 80.29 | CL23: 116.46 | CM23: 107.07 | CN23: 174.61 | CO23: 185.84 | CP23: 65.08 | CQ23: 102.73 | CR23: 114.94 | CS23: 88.9 | CT23: 1.2321 | CU23: 0 | CV23: 0.8975 | CW23: 1.32e-06 | CX23: 1.2075 | CY23: 0 | CZ23: 0.8867 | DA23: 1.31e-06 | DB23: 0.6837 | DC23: 1.1e-07 | DD23: 0.3403 | DE23: 0.03649641 | DF23: 2.4151 | DG23: 0 | DH23: 2.0462 | DI23: 0 | DJ23: 2.1068 | DK23: 0 | DL23: 1.7384 | DM23: 0 | DN23: 0.5867 | DO23: 1.414e-05 | DP23: 0.2257 | DQ23: 0.23054955 | DR23: 1.5882 | DS23: 0 | DT23: 1.238 | DU23: 5e-08 | DV23: 1.269 | DW23: 0 | DX23: 0.9063 | DY23: 4.069e-05 | DZ23: 0.6296 | EA23: 2.429e-05 | EB23: 0.2696 | EC23: 0.18171816 | ED23: -0.2829 | EE23: 0.05414062 | EF23: -0.6195 | EG23: 0.00024953 | EH23: 0.9478 | EI23: 2.018e-05 | EJ23: 0.6002 | EK23: 0.01620111 | EL23: 0.77 | EM23: 1.46e-06 | EN23: 0.4047 | EO23: 0.04692746
A24: Phatr3_J39769 | B24: chr_20;chr_20 | C24: 664166;664234 | D24: 664202;665063 | E24: +;+ | F24: 867 | G24: pti:PHATRDRAFT_39769 | H24: hypothetical protein | N24: B7G9K3 | W24: Phatr39769-20Phatr2 | X24: 100 | Y24: Predicted protein | AA24: Phaeodactylum tricornutum | AB24: 2850 | AJ24: 0 | AK24: other localisation | AL24: 0.0881 | AM24: 0.033 | AN24: 0 | AO24: 0.2448 | AP24: HNS | AQ24: NS | AR24: NO3- RT | AS24: 139 | AU24: 1.515770609 | AV24: 1.398921083 | AW24: 1.247396387 | AX24: 1 | AY24: 1 | AZ24: 46.85866667 | BA24: 68.37 | BB24: 70.955 | BC24: 98.09 | BD24: 36.535 | BE24: 33.08 | BF24: 72.29 | BG24: 13.51 | BH24: 5.145 | BI24: 40.31 | BJ24: 17.705 | BK24: 11.875 | BL24: 26.115 | BM24: 76.395 | BN24: 112.56 | BO24: 19.945 | BP24: 55.93 | BQ24: 80.81 | BR24: 82.21 | BS24: 59.7 | BT24: 139.45 | BU24: 56.73 | BV24: 34.39 | BW24: 38.68 | BX24: 43.39 | BY24: 22.77 | BZ24: 90.7 | CA24: 53.88 | CB24: 16.1 | CC24: 10.92 | CD24: 3.99 | CE24: 6.3 | CF24: 47.31 | CG24: 33.31 | CH24: 11.07 | CI24: 24.34 | CJ24: 10.27 | CK24: 13.48 | CL24: 29.5 | CM24: 22.73 | CN24: 51.53 | CO24: 101.26 | CP24: 154.51 | CQ24: 70.61 | CR24: 20.62 | CS24: 19.27 | CT24: 0.951 | CU24: 9.7e-07 | CV24: 0.7437 | CW24: 0.00023409 | CX24: 1.0935 | CY24: 4.398e-05 | CZ24: 0.8913 | DA24: 0.00132526 | DB24: -0.119 | DC24: 0.70808072 | DD24: -0.3422 | DE24: 0.17426558 | DF24: 2.1186 | DG24: 0 | DH24: 1.8705 | DI24: 0 | DJ24: 3.5521 | DK24: 0 | DL24: 3.3089 | DM24: 0 | DN24: 0.8514 | DO24: 7.431e-05 | DP24: 0.6112 | DQ24: 0.00766643 | DR24: 1.7222 | DS24: 2e-08 | DT24: 1.494 | DU24: 1.31e-06 | DV24: 2.4783 | DW24: 0 | DX24: 2.24 | DY24: 0 | DZ24: 1.4234 | EA24: 0 | EB24: 1.1863 | EC24: 2.3e-07 | ED24: -0.3633 | EE24: 0.2632051 | EF24: -0.5849 | EG24: 0.05509511 | EH24: -0.8033 | EI24: 0.01641164 | EJ24: -1.031 | EK24: 0.00173265 | EL24: 1.8047 | EM24: 0 | EN24: 1.5687 | EO24: 0
A25: Phatr3_J49280 | B25: chr_21 | C25: 460444 | D25: 461409 | E25: + | F25: 966 | G25: pti:PHATRDRAFT_49280 | H25: hypothetical protein | N25: B7GA31 | O25: KOG0800 | P25: FOG: Predicted E3 ubiquitin ligase | Q25: Posttranslational modification, protein turnover, chaperones | R25: CELLULAR PROCESSES AND SIGNALING | W25: Phatr49280-21Phatr2 | X25: 90 | Y25: Predicted protein | Z25: CAM_CRCL_27023096 | AA25: Phaeodactylum tricornutum | AB25: 2850 | AC25: _GAP_||PF13639 | AD25: _GAP_||PF13639 | AJ25: 2 | AK25: signal anchor | AL25: 0.1169 | AM25: 0.5635 | AN25: 0 | AO25: 0 | AP25: HNS | AQ25: NS | AR25: NO3- RT | AS25: 136 | AU25: 1.496591 | AV25: 1.40225725 | AW25: 1.204629048 | AX25: 1 | AY25: 1 | AZ25: 53.84466667 | BA25: 83.395 | BB25: 86.05 | BC25: 108.98 | BD25: 29.395 | BE25: 37.695 | BF25: 63.505 | BG25: 15.69 | BH25: 15.125 | BI25: 57.355 | BJ25: 22.165 | BK25: 23.53 | BL25: 72.115 | BM25: 89.305 | BN25: 48.985 | BO25: 54.38 | BP25: 87.88 | BQ25: 78.91 | BR25: 86.85 | BS25: 85.25 | BT25: 93.05 | BU25: 124.91 | BV25: 27.57 | BW25: 31.22 | BX25: 36.66 | BY25: 38.73 | BZ25: 63.16 | CA25: 63.85 | CB25: 18.53 | CC25: 12.85 | CD25: 14.49 | CE25: 15.76 | CF25: 57.88 | CG25: 56.83 | CH25: 20.87 | CI25: 23.46 | CJ25: 23.37 | CK25: 23.69 | CL25: 65.51 | CM25: 78.72 | CN25: 98.27 | CO25: 80.34 | CP25: 45.49 | CQ25: 52.48 | CR25: 49.43 | CS25: 59.33 | CT25: 1.5573 | CU25: 0 | CV25: 1.3208 | CW25: 0 | CX25: 1.1961 | CY25: 0 | CZ25: 0.9746 | DA25: 0 | DB25: 0.3574 | DC25: 0.00673577 | DD25: 0.1116 | DE25: 0.49259395 | DF25: 2.1917 | DG25: 0 | DH25: 1.9247 | DI25: 0 | DJ25: 2.3155 | DK25: 0 | DL25: 2.0472 | DM25: 0 | DN25: 0.6356 | DO25: 2.08e-06 | DP25: 0.3721 | DQ25: 0.01538493 | DR25: 1.6638 | DS25: 0 | DT25: 1.4201 | DU25: 0 | DV25: 1.7812 | DW25: 0 | DX25: 1.5192 | DY25: 0 | DZ25: 0.2321 | EA25: 0.15956903 | EB25: -0.0269 | EC25: 0.97142801 | ED25: -0.2876 | EE25: 0.05423295 | EF25: -0.5251 | EG25: 0.00086012 | EH25: 0.694 | EI25: 7.731e-05 | EJ25: 0.4505 | EK25: 0.01775204 | EL25: 0.6405 | EM25: 3.604e-05 | EN25: 0.3793 | EO25: 0.02800823
A26: Phatr3_J50071 | B26: chr_26 | C26: 303688 | D26: 305193 | E26: + | F26: 1506 | G26: pti:PHATRDRAFT_50071 | H26: hypothetical protein | N26: B7GCU0 | O26: KOG1305 | P26: Amino acid transporter protein | Q26: Amino acid transport and metabolism | R26: METABOLISM | W26: Phatr50071-26Phatr2 | X26: 88 | Y26: Predicted protein | Z26: CAM_CRCL_4000408 | AA26: Phaeodactylum tricornutum | AB26: 2850 | AC26: _GAP_||PF01490 | AD26: _GAP_||Transmembrane amino acid transporter protein | AG26: AAAP | AI26: 2 | AJ26: 11 | AK26: signal peptide | AL26: 0.5684 | AM26: 0.1447 | AN26: 0.4492 | AO26: 0 | AP26: HNS | AQ26: NS | AR26: NO3- RT | AS26: 77 | AT26: 57 | AU26: 1.791682205 | AV26: 1.055918877 | AW26: 1.212668984 | AX26: 1 | AY26: 1 | AZ26: 37.23133333 | BA26: 30.095 | BB26: 11.55 | BC26: 292.315 | BD26: 7.135 | BE26: 6.93 | BF26: 19.44 | BG26: 16.06 | BH26: 10.49 | BI26: 14.65 | BJ26: 12.74 | BK26: 9.805 | BL26: 21.585 | BM26: 51.985 | BN26: 36.835 | BO26: 16.855 | BP26: 27.37 | BQ26: 32.82 | BR26: 10.68 | BS26: 12.42 | BT26: 152.55 | BU26: 432.08 | BV26: 6.67 | BW26: 7.6 | BX26: 5.27 | BY26: 8.59 | BZ26: 17.87 | CA26: 21.01 | CB26: 17.73 | CC26: 14.39 | CD26: 9.92 | CE26: 11.06 | CF26: 14.97 | CG26: 14.33 | CH26: 13.85 | CI26: 11.63 | CJ26: 6.68 | CK26: 12.93 | CL26: 20.3 | CM26: 22.87 | CN26: 54.2 | CO26: 49.77 | CP26: 23.53 | CQ26: 50.14 | CR26: 16.64 | CS26: 17.07 | CT26: 2.1224 | CU26: 0 | CV26: 0.4517 | CW26: 0.06310859 | CX26: 2.176 | CY26: 0 | CZ26: 0.5164 | DA26: 0.08360448 | DB26: 0.584 | DC26: 0.00043392 | DD26: -1.0964 | DE26: 3e-08 | DF26: 0.673 | DG26: 0.00981556 | DH26: -1.0286 | DI26: 0.00034919 | DJ26: 1.3661 | DK26: 0 | DL26: -0.337 | DM26: 0.12106384 | DN26: 1.1259 | DO26: 0 | DP26: -0.5728 | DQ26: 0.00637127 | DR26: 0.9671 | DS26: 2.5e-07 | DT26: -0.7077 | DU26: 0.00216356 | DV26: 1.5761 | DW26: 0 | DX26: -0.1185 | DY26: 0.81427796 | DZ26: 0.4964 | EA26: 0.00717211 | EB26: -1.1981 | EC26: 1e-08 | ED26: -0.9863 | EE26: 0 | EF26: -2.6608 | EG26: 0 | EH26: -0.3596 | EI26: 0.27486088 | EJ26: -2.0382 | EK26: 0 | EL26: 0.8579 | EM26: 7.2e-07 | EN26: -0.8393 | EO26: 5.693e-05
A27: Phatr3_J44835 | B27: chr_5 | C27: 368402 | D27: 369754 | E27: + | F27: 1353 | G27: pti:PHATRDRAFT_44835 | H27: hypothetical protein | N27: B7FVT7 | O27: KOG1571 | P27: Predicted E3 ubiquitin ligase | Q27: Posttranslational modification, protein turnover, chaperones | R27: CELLULAR PROCESSES AND SIGNALING | W27: Phatr44835-5Phatr2 | X27: 96 | Y27: Predicted protein | Z27: CAM_CRCL_4003865 | AA27: Phaeodactylum tricornutum | AB27: 2850 | AC27: _GAP_||PF13920 | AD27: _GAP_||PF13920 | AJ27: 0 | AK27: other localisation | AL27: 0.0639 | AM27: 0.0237 | AN27: 0 | AO27: 0.1253 | AP27: HNS | AQ27: NS | AR27: NO3- RT | AS27: 139 | AU27: 1.620146439 | AV27: 1.363568773 | AW27: 1.053661829 | AX27: 1 | AY27: 1 | AZ27: 6.79 | BA27: 10.135 | BB27: 5.35 | BC27: 20.395 | BD27: 2.605 | BE27: 4.57 | BF27: 9.415 | BG27: 2.14 | BH27: 1.8 | BI27: 5.755 | BJ27: 3.505 | BK27: 2.435 | BL27: 9.505 | BM27: 11.31 | BN27: 8.145 | BO27: 4.785 | BP27: 12.65 | BQ27: 7.62 | BR27: 4.06 | BS27: 6.64 | BT27: 15.68 | BU27: 25.11 | BV27: 2.57 | BW27: 2.64 | BX27: 3.34 | BY27: 5.8 | BZ27: 8.3 | CA27: 10.53 | CB27: 1.79 | CC27: 2.49 | CD27: 1.51 | CE27: 2.09 | CF27: 5.51 | CG27: 6 | CH27: 4.44 | CI27: 2.57 | CJ27: 1.72 | CK27: 3.15 | CL27: 7.53 | CM27: 11.48 | CN27: 12.31 | CO27: 10.31 | CP27: 5.93 | CQ27: 10.36 | CR27: 4.4 | CS27: 5.17 | CT27: 2.0197 | CU27: 0 | CV27: 0.7487 | CW27: 0.02968528 | CX27: 1.2152 | CY27: 0.00056096 | CZ27: -0.0267 | DA27: 1 | DB27: 0.0825 | DC27: 0.88326941 | DD27: -1.1976 | DE27: 0.00016897 | DF27: 1.9869 | DG27: 1.145e-05 | DH27: 0.7118 | DI27: 0.15072696 | DJ27: 2.3361 | DK27: 0 | DL27: 1.0353 | DM27: 0.0019058 | DN27: 0.9285 | DO27: 0.00143467 | DP27: -0.3725 | DQ27: 0.32822072 | DR27: 1.2455 | DS27: 0.00059757 | DT27: -0.0083 | DU27: 1 | DV27: 2.0198 | DW27: 1.3e-07 | DX27: 0.7409 | DY27: 0.07481938 | DZ27: 0.1146 | EA27: 0.81562768 | EB27: -1.1645 | EC27: 0.00167262 | ED27: -0.333 | EE27: 0.25558364 | EF27: -1.6093 | EG27: 9e-08 | EH27: 0.2648 | EI27: 0.57293809 | EJ27: -0.9947 | EK27: 0.01101953 | EL27: 1.1139 | EM27: 0.00029113 | EN27: -0.1783 | EO27: 0.75843184
A28: Phatr3_J50373 | B28: chr_29 | C28: 128236 | D28: 129288 | E28: - | F28: 1053 | G28: pti:PHATRDRAFT_50373 | H28: hypothetical protein | N28: B7GDX2 | W28: Phatr50373-29Phatr2 | X28: 100 | Y28: Predicted protein | Z28: CAM_CRCL_14083375 | AA28: Phaeodactylum tricornutum | AB28: 2850 | AC28: _GAP_||PF13679||_GAP_ | AD28: _GAP_||PF13679||_GAP_ | AJ28: 0 | AK28: signal peptide | AL28: 0.6645 | AM28: 0.0627 | AN28: 0.1115 | AO28: 0 | AP28: HNS | AQ28: NS | AR28: NO3- RT | AS28: 139 | AT28: 1 | AU28: 1.553180764 | AV28: 1.38750691 | AW28: 0.9927354862 | AX28: 1 | AY28: 1 | AZ28: 30.70333333 | BA28: 33.54 | BB28: 16.955 | BC28: 88.11 | BD28: 18.44 | BE28: 19.23 | BF28: 33.76 | BG28: 11.08 | BH28: 12.93 | BI28: 25.98 | BJ28: 20.625 | BK28: 14.09 | BL28: 35.765 | BM28: 61.28 | BN28: 38.02 | BO28: 30.745 | BP28: 35.9 | BQ28: 31.18 | BR28: 16.56 | BS28: 17.35 | BT28: 50.54 | BU28: 125.68 | BV28: 17.65 | BW28: 19.23 | BX28: 18.39 | BY28: 20.07 | BZ28: 37.82 | CA28: 29.7 | CB28: 10.37 | CC28: 11.79 | CD28: 11.8 | CE28: 14.06 | CF28: 22.53 | CG28: 29.43 | CH28: 22.23 | CI28: 19.02 | CJ28: 13.84 | CK28: 14.34 | CL28: 33.58 | CM28: 37.95 | CN28: 63.37 | CO28: 59.19 | CP28: 36.99 | CQ28: 39.05 | CR28: 36.11 | CS28: 25.38 | CT28: 0.9183 | CU28: 1.2e-07 | CV28: -0.3529 | CW28: 0.1096621 | CX28: 0.8565 | CY28: 5.5e-07 | CZ28: -0.3997 | DA28: 0.06114294 | DB28: -0.0398 | DC28: 0.88446731 | DD28: -1.3214 | DE28: 0 | DF28: 1.3554 | DG28: 4.8e-07 | DH28: 0.0586 | DI28: 0.95022294 | DJ28: 1.2259 | DK28: 0 | DL28: -0.0753 | DM28: 0.82028325 | DN28: 0.4701 | DO28: 0.0142018 | DP28: -0.828 | DQ28: 0.00011487 | DR28: 0.4372 | DS28: 0.01868732 | DT28: -0.8376 | DU28: 8.546e-05 | DV28: 1.209 | DW28: 1e-08 | DX28: -0.0864 | DY28: 0.81019207 | DZ28: -0.0675 | EA28: 0.79264532 | EB28: -1.3608 | EC28: 0 | ED28: -1.0561 | EE28: 0 | EF28: -2.3295 | EG28: 0 | EH28: -0.2549 | EI28: 0.20093007 | EJ28: -1.5319 | EK28: 0 | EL28: 0.1687 | EM28: 0.47487061 | EN28: -1.1306 | EO28: 4.6e-07
A29: Phatr3_J16036 | B29: chr_22;chr_22 | C29: 561765;562646 | D29: 562577;563155 | E29: +;+ | F29: 1323 | G29: pti:PHATRDRAFT_16036 | H29: hypothetical protein | N29: B7GAY7 | O29: KOG0192 | P29: Tyrosine kinase specific for activated (GTP-bound) p21cdc42Hs | Q29: Signal transduction mechanisms | R29: CELLULAR PROCESSES AND SIGNALING | W29: Phatr16036-22Phatr2 | X29: 100 | Y29: Predicted protein Fragment | Z29: CAM_CRCL_32961650 | AA29: Phaeodactylum tricornutum | AB29: 2850 | AC29: _GAP_||PF07714||_GAP_ | AD29: _GAP_||Protein tyrosine kinase||_GAP_ | AJ29: 0 | AK29: other localisation | AL29: 0.0585 | AM29: 0.0233 | AN29: 0 | AO29: 0.1049 | AP29: HNS | AQ29: NS | AR29: NO3- RT | AS29: 139 | AT29: 72 | AU29: 1.383292383 | AV29: 1.329797886 | AW29: 1.202482434 | AX29: 1 | AY29: 1 | AZ29: 47.65066667 | BA29: 41.3 | BB29: 37.525 | BC29: 123.93 | BD29: 25.86 | BE29: 35.835 | BF29: 49.5 | BG29: 22.59 | BH29: 19.015 | BI29: 34.275 | BJ29: 27.95 | BK29: 35.2 | BL29: 50.63 | BM29: 112.235 | BN29: 65.34 | BO29: 33.575 | BP29: 41.62 | BQ29: 40.98 | BR29: 34.28 | BS29: 40.77 | BT29: 99.96 | BU29: 147.9 | BV29: 26.22 | BW29: 25.5 | BX29: 31.09 | BY29: 40.58 | BZ29: 50.08 | CA29: 48.92 | CB29: 23.39 | CC29: 21.79 | CD29: 18.96 | CE29: 19.07 | CF29: 32.28 | CG29: 36.27 | CH29: 26.62 | CI29: 29.28 | CJ29: 31.2 | CK29: 39.2 | CL29: 46.52 | CM29: 54.74 | CN29: 123.88 | CO29: 100.59 | CP29: 61.79 | CQ29: 68.89 | CR29: 33.91 | CS29: 33.24 | CT29: 0.7246 | CU29: 3.9e-07 | CV29: 0.2928 | CW29: 0.09010903 | CX29: 0.2545 | CY29: 0.14865768 | CZ29: -0.1612 | DA29: 0.4522433 | DB29: -0.2991 | DC29: 0.02412071 | DD29: -0.7387 | DE29: 7.6e-07 | DF29: 0.6352 | DG29: 0.00475108 | DH29: 0.1782 | DI29: 0.53574956 | DJ29: 0.9751 | DK29: 0 | DL29: 0.5109 | DM29: 0.00149082 | DN29: 0.3646 | DO29: 0.01479668 | DP29: -0.0931 | DQ29: 0.68379652 | DR29: 0.3109 | DS29: 0.04013394 | DT29: -0.1269 | DU29: 0.51997693 | DV29: 0.1876 | DW29: 0.35249609 | DX29: -0.2671 | DY29: 0.20340493 | DZ29: -0.2724 | EA29: 0.1060919 | EB29: -0.7247 | EC29: 5.076e-05 | ED29: -1.6322 | EE29: 0 | EF29: -2.0635 | EG29: 0 | EH29: -0.7385 | EI29: 1.106e-05 | EJ29: -1.175 | EK29: 0 | EL29: 0.3273 | EM29: 0.03020182 | EN29: -0.1295 | EO29: 0.53359396
A30: Phatr3_J44838 | B30: chr_5 | C30: 392246 | D30: 393466 | E30: + | F30: 1221 | G30: pti:PHATRDRAFT_44838 | H30: hypothetical protein | N30: B7FVU2 | O30: KOG1571 | P30: Predicted E3 ubiquitin ligase | Q30: Posttranslational modification, protein turnover, chaperones | R30: CELLULAR PROCESSES AND SIGNALING | W30: Phatr44838-5Phatr2 | X30: 96 | Y30: Predicted protein | Z30: CAM_CRCL_4003865 | AA30: Phaeodactylum tricornutum | AB30: 2850 | AC30: _GAP_||PF13920 | AD30: _GAP_||PF13920 | AJ30: 0 | AK30: other localisation | AL30: 0.0809 | AM30: 0.0278 | AN30: 0 | AO30: 0.1335 | AP30: HNS | AQ30: NS | AR30: NO3- RT | AS30: 139 | AU30: 1.518404716 | AV30: 1.204968944 | AW30: 1.125694094 | AX30: 1 | AY30: 1 | AZ30: 22.413 | BA30: 24.535 | BB30: 18.4 | BC30: 70.135 | BD30: 6.32 | BE30: 14.69 | BF30: 40.69 | BG30: 9.6 | BH30: 4.685 | BI30: 18.53 | BJ30: 10.825 | BK30: 10.175 | BL30: 30.235 | BM30: 38.7 | BN30: 20.985 | BO30: 17.69 | BP30: 26.72 | BQ30: 22.35 | BR30: 15.31 | BS30: 21.49 | BT30: 44.75 | BU30: 95.52 | BV30: 6.19 | BW30: 6.45 | BX30: 12.08 | BY30: 17.3 | BZ30: 34.27 | CA30: 47.11 | CB30: 6.96 | CC30: 12.24 | CD30: 2.96 | CE30: 6.41 | CF30: 17.72 | CG30: 19.34 | CH30: 11.93 | CI30: 9.72 | CJ30: 8.98 | CK30: 11.37 | CL30: 26.12 | CM30: 34.35 | CN30: 40.86 | CO30: 36.54 | CP30: 21.65 | CQ30: 20.32 | CR30: 17.08 | CS30: 18.3 | CT30: 2.0121 | CU30: 0 | CV30: 1.2855 | CW30: 5.9e-07 | CX30: 0.7971 | CY30: 0.00021453 | CZ30: 0.086 | DA30: 0.81836515 | DB30: -0.7639 | DC30: 2.716e-05 | DD30: -1.4998 | DE30: 0 | DF30: 1.0949 | DG30: 0.00033925 | DH30: 0.358 | DI30: 0.33804555 | DJ30: 2.213 | DK30: 0 | DL30: 1.4751 | DM30: 9.58e-06 | DN30: 0.5077 | DO30: 0.00488225 | DP30: -0.2504 | DQ30: 0.32689543 | DR30: 0.9113 | DS30: 1.222e-05 | DT30: 0.1855 | DU30: 0.49924292 | DV30: 1.2295 | DW30: 7e-08 | DX30: 0.4819 | DY30: 0.08157601 | DZ30: -0.2795 | EA30: 0.19989226 | EB30: -1.0261 | EC30: 1.426e-05 | ED30: -0.8417 | EE30: 1.9e-07 | EF30: -1.5772 | EG30: 0 | EH30: 0.148 | EI30: 0.56177504 | EJ30: -0.5838 | EK30: 0.01756454 | EL30: 0.5022 | EM30: 0.00791508 | EN30: -0.2513 | EO30: 0.34399442
A31: Phatr3_J50408 | B31: chr_29 | C31: 277746 | D31: 278921 | E31: - | F31: 1176 | G31: pti:PHATRDRAFT_50408 | H31: hypothetical protein | N31: B7GE12 | O31: KOG0758 | P31: Mitochondrial carnitine-acylcarnitine carrier protein | Q31: Energy production and conversion | R31: METABOLISM | W31: Phatr50408-29Phatr2 | X31: 88 | Y31: Predicted protein | Z31: CAM_CRCL_32099228 | AA31: Phaeodactylum tricornutum | AB31: 2850 | AC31: _GAP_||PF00153 | AD31: _GAP_||Mitochondrial carrier protein | AJ31: 0 | AK31: other localisation | AL31: 0.0674 | AM31: 0.0272 | AN31: 0 | AO31: 0.1666 | AP31: HNS | AQ31: NS | AR31: NO3- RT | AS31: 77 | AU31: 1.244100228 | AV31: 1.314833168 | AW31: 1.150887109 | AX31: 1 | AY31: 1 | AZ31: 19.61833333 | BA31: 24.77 | BB31: 14.83 | BC31: 44.505 | BD31: 6.355 | BE31: 11.685 | BF31: 13.66 | BG31: 10.37 | BH31: 11.675 | BI31: 18.09 | BJ31: 13.52 | BK31: 15.715 | BL31: 14.88 | BM31: 50.17 | BN31: 31.775 | BO31: 12.275 | BP31: 26.97 | BQ31: 22.57 | BR31: 15.36 | BS31: 14.3 | BT31: 34.16 | BU31: 54.85 | BV31: 5.32 | BW31: 7.39 | BX31: 10.9 | BY31: 12.47 | BZ31: 13.5 | CA31: 13.82 | CB31: 11.61 | CC31: 9.13 | CD31: 12.37 | CE31: 10.98 | CF31: 16.48 | CG31: 19.7 | CH31: 12.15 | CI31: 14.89 | CJ31: 13.93 | CK31: 17.5 | CL31: 13.26 | CM31: 16.5 | CN31: 56.19 | CO31: 44.15 | CP31: 25.26 | CQ31: 38.29 | CR31: 7.82 | CS31: 16.73 | CT31: 2.0188 | CU31: 0 | CV31: 1.0028 | CW31: 0.00013908 | CX31: 1.1411 | CY31: 0 | CZ31: 0.1397 | DA31: 0.64445451 | DB31: 0.8267 | DC31: 4.59e-06 | DD31: -0.2017 | DE31: 0.40491201 | DF31: 1.0338 | DG31: 0.00052292 | DH31: -0.0153 | DI31: 1 | DJ31: 0.9538 | DK31: 2.3e-07 | DL31: -0.0969 | DM31: 0.68823457 | DN31: 0.5569 | DO31: 0.00368426 | DP31: -0.4874 | DQ31: 0.02772494 | DR31: 0.6344 | DS31: 0.00198615 | DT31: -0.3912 | DU31: 0.10053332 | DV31: 0.6173 | DW31: 0.00546297 | DX31: -0.4243 | DY31: 0.09518503 | DZ31: 0.753 | EA31: 0.00037707 | EB31: -0.2846 | EC31: 0.30719852 | ED31: -1.2018 | EE31: 0 | EF31: -2.2176 | EG31: 0 | EH31: -0.4243 | EI31: 0.08181153 | EJ31: -1.448 | EK31: 1e-08 | EL31: 1.0201 | EM31: 0.00104003 | EN31: -0.0182 | EO31: 1
A32: Phatr3_J46511 | B32: chr_10 | C32: 564843 | D32: 565478 | E32: + | F32: 636 | G32: pti:PHATRDRAFT_46511 | H32: hypothetical protein | N32: B7G1H0 | W32: Phatr46511-10Phatr2 | X32: 100 | Y32: Predicted protein | AA32: Phaeodactylum tricornutum | AB32: 2850 | AJ32: 0 | AK32: other localisation | AL32: 0.0662 | AM32: 0.0243 | AN32: 0 | AO32: 0.1243 | AP32: HNS | AQ32: NS | AR32: NO3- RT | AS32: 139 | AU32: 1.223754789 | AV32: 1.388838612 | AW32: 1.080340005 | AX32: 1 | AY32: 1 | AZ32: 18.10066667 | BA32: 26.685 | BB32: 18.83 | BC32: 21.035 | BD32: 10.335 | BE32: 14.925 | BF32: 41.045 | BG32: 5.065 | BH32: 5.465 | BI32: 15.51 | BJ32: 8.385 | BK32: 11.935 | BL32: 14.93 | BM32: 28.085 | BN32: 37.485 | BO32: 11.795 | BP32: 19.55 | BQ32: 33.82 | BR32: 23.3 | BS32: 14.36 | BT32: 23.7 | BU32: 18.37 | BV32: 8.13 | BW32: 12.54 | BX32: 16.96 | BY32: 12.89 | BZ32: 48.76 | CA32: 33.33 | CB32: 7.15 | CC32: 2.98 | CD32: 4.82 | CE32: 6.11 | CF32: 15.88 | CG32: 15.14 | CH32: 5.64 | CI32: 11.13 | CJ32: 9.13 | CK32: 14.74 | CL32: 17.14 | CM32: 12.72 | CN32: 26.05 | CO32: 30.12 | CP32: 45.93 | CQ32: 29.04 | CR32: 10.06 | CS32: 13.53 | CT32: 1.4137 | CU32: 5.118e-05 | CV32: 0.675 | CW32: 0.07171376 | CX32: 0.8709 | CY32: 0.00571705 | CZ32: 0.153 | DA32: 0.75710513 | DB32: -0.6718 | DC32: 0.02038159 | DD32: -1.4084 | DE32: 1.8e-07 | DF32: 2.205 | DG32: 1.512e-05 | DH32: 1.4169 | DI32: 0.01022588 | DJ32: 2.1176 | DK32: 0 | DL32: 1.3507 | DM32: 4.583e-05 | DN32: 0.8632 | DO32: 0.00402248 | DP32: 0.1052 | DQ32: 0.86121441 | DR32: 1.4438 | DS32: 0.00034008 | DT32: 0.6843 | DU32: 0.12274321 | DV32: 1.1105 | DW32: 0.00244893 | DX32: 0.3418 | DY32: 0.43886617 | DZ32: 0.8683 | EA32: 0.01156317 | EB32: 0.1029 | EC32: 0.91884302 | ED32: -0.2793 | EE32: 0.41992892 | EF32: -1.0117 | EG32: 0.00056693 | EH32: -0.5884 | EI32: 0.09118466 | EJ32: -1.3344 | EK32: 4.137e-05 | EL32: 1.1835 | EM32: 0.00038841 | EN32: 0.419 | EO32: 0.28298814
A33: Phatr3_J49287 | B33: chr_21;chr_21;chr_21;chr_21;chr_21;chr_21;chr_21;chr_21 | C33: 471510;471752;472618;473201;473888;474223;474715;475367 | D33: 471599;472462;473022;473835;474033;474475;475005;476360 | E33: +;+;+;+;+;+;+;+ | F33: 3525 | G33: pti:PHATRDRAFT_49287 | H33: hypothetical protein | N33: B7GA38 | W33: Phatr49287-21Phatr2 | X33: 96 | Y33: Predicted protein | Z33: CAM_CRCL_27048841 | AA33: Phaeodactylum tricornutum | AB33: 2850 | AJ33: 0 | AK33: signal peptide | AL33: 0.7393 | AM33: 0.0579 | AN33: 0.0658 | AO33: 0 | AP33: HNS | AQ33: NS | AR33: NO3- RT | AS33: 77 | AT33: 9 | AU33: 1.171778303 | AV33: 1.136714656 | AW33: 0.8678592359 | AX33: 1 | AY33: 1 | AZ33: 175.349 | BA33: 209.185 | BB33: 56.525 | BC33: 406.17 | BD33: 154.39 | BE33: 124.5 | BF33: 162.02 | BG33: 106.06 | BH33: 122.18 | BI33: 104.595 | BJ33: 152.13 | BK33: 126.725 | BL33: 127.235 | BM33: 385.365 | BN33: 290.295 | BO33: 102.86 | BP33: 220.65 | BQ33: 197.72 | BR33: 66.41 | BS33: 46.64 | BT33: 269.74 | BU33: 542.6 | BV33: 146.79 | BW33: 161.99 | BX33: 121.62 | BY33: 127.38 | BZ33: 170.9 | CA33: 153.14 | CB33: 102.76 | CC33: 109.36 | CD33: 122.18 | CE33: 122.18 | CF33: 100.83 | CG33: 108.36 | CH33: 147.76 | CI33: 156.5 | CJ33: 122.97 | CK33: 130.48 | CL33: 122.66 | CM33: 131.81 | CN33: 389.57 | CO33: 381.16 | CP33: 266.36 | CQ33: 314.23 | CR33: 105.41 | CS33: 100.31 | CT33: 0.4892 | CU33: 0.00018674 | CV33: -1.6706 | CW33: 0 | CX33: 0.7953 | CY33: 0 | CZ33: -1.3491 | DA33: 0 | DB33: 0.3306 | DC33: 0.01409047 | DD33: -1.8408 | DE33: 0 | DF33: 0.7402 | DG33: 0.00015102 | DH33: -1.4513 | DI33: 0 | DJ33: 0.6317 | DK33: 2.1e-07 | DL33: -1.5614 | DM33: 0 | DN33: 1.093 | DO33: 0 | DP33: -1.0945 | DQ33: 2e-08 | DR33: 0.2039 | DS33: 0.09102114 | DT33: -1.9634 | DU33: 0 | DV33: 0.6783 | DW33: 8.6e-05 | DX33: -1.508 | DY33: 0 | DZ33: 0.7432 | EA33: 3e-08 | EB33: -1.4406 | EC33: 0 | ED33: -1.0744 | EE33: 0 | EF33: -3.2364 | EG33: 0 | EH33: -0.551 | EI33: 0.00296604 | EJ33: -2.7186 | EK33: 0 | EL33: 1.0532 | EM33: 0 | EN33: -1.1337 | EO33: 1e-08
A34: Phatr3_J30145 | B34: chr_21;chr_21;chr_21 | C34: 100371;101784;102256 | D34: 101598;101926;102300 | E34: -;-;- | F34: 1416 | G34: pti:PHATRDRAFT_30145 | H34: hypothetical protein; K01647 citrate synthase [EC:2.3.3.1] | I34: pti01100||pti00630||pti00020||pti01110 | J34: K01647 | K34: citrate synthase [EC:2.3.3.1] | L34: Citrate cycle (TCA cycle) || Glyoxylate and dicarboxylate metabolism | M34: 2.3.3.1 | N34: B7G9P5 | O34: KOG2617 | P34: Citrate synthase | Q34: Energy production and conversion | R34: METABOLISM | W34: Phatr30145-21Phatr2 | X34: 97 | Y34: Citrate synthase | Z34: CAM_CRCL_14097882 | AA34: Phaeodactylum tricornutum | AB34: 2850 | AC34: _GAP_||PF00285 | AD34: _GAP_||Citrate synthase | AE34: _GAP_||TIGR01793 | AF34: _GAP_||citrate (Si)-synthase, eukaryotic | AJ34: 0 | AK34: mitochondrion | AL34: 0.1351 | AM34: 0.0365 | AN34: 0 | AO34: 0.8123 | AP34: HNS | AQ34: NS | AR34: NO3- RT | AS34: 137 | AT34: 47 | AU34: 1.439597484 | AV34: 0.936834673 | AW34: 0.7215441528 | AX34: 1 | AY34: 1 | AZ34: 249.9286667 | BA34: 369.055 | BB34: 270.59 | BC34: 600.73 | BD34: 230.615 | BE34: 268.65 | BF34: 280.695 | BG34: 97.875 | BH34: 131.32 | BI34: 242.125 | BJ34: 127.005 | BK34: 167.31 | BL34: 231.82 | BM34: 270.365 | BN34: 245.01 | BO34: 215.765 | BP34: 369.73 | BQ34: 368.38 | BR34: 261.33 | BS34: 279.85 | BT34: 483.65 | BU34: 717.81 | BV34: 237.39 | BW34: 223.84 | BX34: 267.65 | BY34: 269.65 | BZ34: 279.53 | CA34: 281.86 | CB34: 87.41 | CC34: 108.34 | CD34: 130.69 | CE34: 131.95 | CF34: 235.05 | CG34: 249.2 | CH34: 128.58 | CI34: 125.43 | CJ34: 136.02 | CK34: 198.6 | CL34: 216.41 | CM34: 247.23 | CN34: 271.06 | CO34: 269.67 | CP34: 196.83 | CQ34: 293.19 | CR34: 227.58 | CS34: 203.95 | CT34: 0.7282 | CU34: 2e-08 | CV34: -0.0055 | CW34: 1 | CX34: 0.5059 | CY34: 7.882e-05 | CZ34: -0.212 | DA34: 0.1997661 | DB34: 0.357 | DC34: 0.00463184 | DD34: -0.3818 | DE34: 0.00727635 | DF34: 1.6769 | DG34: 0 | DH34: 0.9166 | DI34: 2.289e-05 | DJ34: 1.3473 | DK34: 0 | DL34: 0.5814 | DM34: 9.014e-05 | DN34: 0.7019 | DO34: 5e-08 | DP34: -0.0571 | DQ34: 0.79493062 | DR34: 1.2818 | DS34: 0 | DT34: 0.5432 | DU34: 0.0001431 | DV34: 1.1025 | DW34: 3e-08 | DX34: 0.3444 | DY34: 0.13691359 | DZ34: 0.6967 | EA34: 4e-07 | EB34: -0.059 | EC34: 0.80087099 | ED34: 0.2566 | EE34: 0.05784409 | EF34: -0.4772 | EG34: 0.00248803 | EH34: 0.5159 | EI34: 0.01844216 | EJ34: -0.2237 | EK34: 0.38534217 | EL34: 0.8052 | EM34: 0 | EN34: 0.0456 | EO34: 0.86122931
A35: Phatr3_J49236 | B35: chr_21;chr_21 | C35: 321484;321736 | D35: 321625;322784 | E35: +;+ | F35: 1191 | G35: pti:PHATRDRAFT_49236 | H35: hypothetical protein | N35: B7G9X9 | W35: Phatr49236-21Phatr2 | X35: 100 | Y35: Predicted protein | AA35: Phaeodactylum tricornutum | AB35: 2850 | AJ35: 0 | AK35: other localisation | AL35: 0.0676 | AM35: 0.0246 | AN35: 0 | AO35: 0.0927 | AP35: HNS | AQ35: NS | AR35: NO3- RT | AS35: 77 | AU35: 1.187038752 | AV35: 0.9053746577 | AW35: 0.8760561946 | AX35: 1 | AY35: 1 | AZ35: 173 | BA35: 198.625 | BB35: 235.63 | BC35: 417.275 | BD35: 126.085 | BE35: 145.325 | BF35: 187.115 | BG35: 106.44 | BH35: 89.89 | BI35: 80.1 | BJ35: 110.405 | BK35: 157.1 | BL35: 113.005 | BM35: 282.515 | BN35: 266.865 | BO35: 78.625 | BP35: 195.53 | BQ35: 201.72 | BR35: 223.28 | BS35: 247.98 | BT35: 307.07 | BU35: 527.48 | BV35: 136.19 | BW35: 115.98 | BX35: 145.33 | BY35: 145.32 | BZ35: 197.52 | CA35: 176.71 | CB35: 120.48 | CC35: 92.4 | CD35: 83.8 | CE35: 95.98 | CF35: 84.3 | CG35: 75.9 | CH35: 108.64 | CI35: 112.17 | CJ35: 132.15 | CK35: 182.05 | CL35: 104.82 | CM35: 121.19 | CN35: 271.94 | CO35: 293.09 | CP35: 233.61 | CQ35: 300.12 | CR35: 76.21 | CS35: 81.04 | CT35: 0.7042 | CU35: 5.8e-07 | CV35: 0.6632 | CW35: 6.404e-05 | CX35: 0.4985 | CY35: 0.00014996 | CZ35: 0.4737 | DA35: 0.00219595 | DB35: 0.0484 | DC35: 0.79264804 | DD35: 0.0037 | DE35: 1 | DF35: 0.6589 | DG35: 0.0033077 | DH35: 0.5908 | DI35: 0.01421738 | DJ35: 0.999 | DK35: 0 | DL35: 0.9272 | DM35: 0 | DN35: 1.4036 | DO35: 0 | DP35: 1.3377 | DQ35: 0 | DR35: 0.5913 | DS35: 5.1e-07 | DT35: 0.5458 | DU35: 0.00011729 | DV35: 0.2987 | DW35: 0.14156178 | DX35: 0.2337 | DY35: 0.30976765 | DZ35: 0.8378 | EA35: 0 | EB35: 0.7758 | EC35: 8.9e-07 | ED35: -0.7022 | EE35: 3.1e-07 | EF35: -0.7428 | EG35: 4.23e-06 | EH35: -0.5019 | EI35: 0.00926148 | EJ35: -0.5484 | EK35: 0.01012204 | EL35: 1.3642 | EM35: 0 | EN35: 1.2992 | EO35: 0
A36: Phatr3_J55004 | B36: chr_21 | C36: 29533 | D36: 30714 | E36: + | F36: 1182 | G36: pti:PHATRDRAFT_55004 | H36: glucoamylase | N36: B7G9L6 | W36: Phatr55004-21Phatr2 | X36: 71 | Y36: Glucoamylase | AA36: Phaeodactylum tricornutum | AB36: 2850 | AJ36: 0 | AK36: other localisation | AL36: 0.0856 | AM36: 0.0284 | AN36: 0 | AO36: 0.103 | AP36: HNS | AQ36: NS | AR36: NO3- RT | AS36: 67 | AU36: 1.20662131 | AV36: 0.8537595294 | AW36: 0.8955552065 | AX36: 1 | AY36: 1 | AZ36: 48.93266667 | BA36: 26.375 | BB36: 28.68 | BC36: 149.645 | BD36: 40.365 | BE36: 32.035 | BF36: 37.865 | BG36: 37.025 | BH36: 26.615 | BI36: 32.285 | BJ36: 35.16 | BK36: 43.72 | BL36: 35.24 | BM36: 92.18 | BN36: 72.565 | BO36: 44.235 | BP36: 25.83 | BQ36: 26.92 | BR36: 29.02 | BS36: 28.34 | BT36: 162.33 | BU36: 136.96 | BV36: 35.23 | BW36: 45.5 | BX36: 27.54 | BY36: 36.53 | BZ36: 33.86 | CA36: 41.87 | CB36: 22.07 | CC36: 51.98 | CD36: 24.29 | CE36: 28.94 | CF36: 35.56 | CG36: 29.01 | CH36: 39.37 | CI36: 30.95 | CJ36: 45.73 | CK36: 41.71 | CL36: 44.49 | CM36: 25.99 | CN36: 91.26 | CO36: 93.1 | CP36: 66.88 | CQ36: 78.25 | CR36: 48.92 | CS36: 39.55 | CT36: -0.5634 | CU36: 0.00092132 | CV36: -0.7166 | CW36: 4.149e-05 | CX36: -0.2323 | CY36: 0.23768455 | CZ36: -0.3726 | DA36: 0.05982709 | DB36: -0.5647 | DC36: 0.00055653 | DD36: -0.7291 | DE36: 1.859e-05 | DF36: -0.7262 | DG36: 0.03465235 | DH36: -0.9148 | DI36: 0.00708132 | DJ36: -0.1643 | DK36: 0.37273535 | DL36: -0.3495 | DM36: 0.04300707 | DN36: -0.2033 | DO36: 0.28042887 | DP36: -0.3846 | DQ36: 0.04015788 | DR36: -0.6839 | DS36: 0.00018628 | DT36: -0.8445 | DU36: 6.18e-06 | DV36: -0.7771 | DW36: 2.67e-05 | DX36: -0.9581 | DY36: 5.3e-07 | DZ36: -0.3794 | EA36: 0.13686932 | EB36: -0.5634 | EC36: 0.02941065 | ED36: -2.0014 | EE36: 0 | EF36: -2.1551 | EG36: 0 | EH36: -1.5375 | EI36: 0 | EJ36: -1.6997 | EK36: 0 | EL36: -0.7134 | EM36: 1.922e-05 | EN36: -0.8956 | EO36: 5.8e-07
A37: Phatr3_J48137 | B37: chr_16 | C37: 304734 | D37: 305885 | E37: + | F37: 1152 | G37: pti:PHATRDRAFT_48137 | H37: hypothetical protein | N37: B7G640 | W37: Phatr48137-16Phatr2 | X37: 94 | Y37: Predicted protein | AA37: Phaeodactylum tricornutum | AB37: 2850 | AJ37: 0 | AK37: other localisation | AL37: 0.0785 | AM37: 0.027 | AN37: 0 | AO37: 0.1232 | AP37: HNS | AQ37: NS | AR37: NO3- RT | AS37: 139 | AU37: 1.431312299 | AV37: 0.8112172959 | AW37: 0.7062815776 | AX37: 1 | AY37: 1 | AZ37: 36.816 | BA37: 33.015 | BB37: 48.88 | BC37: 114.46 | BD37: 22.605 | BE37: 31.475 | BF37: 34.845 | BG37: 18.97 | BH37: 23.925 | BI37: 23.52 | BJ37: 21.445 | BK37: 26.13 | BL37: 31.345 | BM37: 44.86 | BN37: 44.81 | BO37: 31.955 | BP37: 35.24 | BQ37: 30.79 | BR37: 39.23 | BS37: 58.53 | BT37: 122.65 | BU37: 106.27 | BV37: 20.71 | BW37: 24.5 | BX37: 30.98 | BY37: 31.97 | BZ37: 34.86 | CA37: 34.83 | CB37: 26.07 | CC37: 11.87 | CD37: 23.62 | CE37: 24.23 | CF37: 24.58 | CG37: 22.46 | CH37: 22.59 | CI37: 20.3 | CJ37: 21.72 | CK37: 30.54 | CL37: 28.57 | CM37: 34.12 | CN37: 45.32 | CO37: 44.4 | CP37: 41.63 | CQ37: 47.99 | CR37: 32.55 | CS37: 31.36 | CT37: 0.6026 | CU37: 0.00037727 | CV37: 0.8614 | CW37: 1.663e-05 | CX37: 0.1218 | CY37: 0.50520388 | CZ37: 0.3938 | DA37: 0.04750758 | DB37: -0.1102 | DC37: 0.51089906 | DD37: 0.1438 | DE37: 0.50682391 | DF37: 0.5693 | DG37: 0.13217377 | DH37: 0.8112 | DI37: 0.03089982 | DJ37: 0.3251 | DK37: 0.03941294 | DL37: 0.5499 | DM37: 0.00359557 | DN37: 0.5855 | DO37: 0.00028288 | DP37: 0.8196 | DQ37: 4.507e-05 | DR37: 0.3612 | DS37: 0.04228709 | DT37: 0.6185 | DU37: 0.00275443 | DV37: 0.2978 | DW37: 0.18467414 | DX37: 0.5371 | DY37: 0.02697191 | DZ37: 0.097 | EA37: 0.67283564 | EB37: 0.3384 | EC37: 0.13573941 | ED37: -0.6299 | EE37: 3.728e-05 | EF37: -0.372 | EG37: 0.06816683 | EH37: -0.5125 | EI37: 0.00595833 | EJ37: -0.2574 | EK37: 0.2867418 | EL37: 0.0807 | EM37: 0.71280354 | EN37: 0.314 | EO37: 0.13855377
A38: Phatr3_EG01504 | B38: chr_2 | C38: 642344 | D38: 642658 | E38: - | F38: 315 | W38: contig_1731_1_262-PseuNitz454 | X38: 39 | AA38: Pseudo-nitzschia granii | AB38: 476440 | AJ38: 0 | AK38: other localisation | AL38: 0.1167 | AM38: 0.0336 | AN38: 0 | AO38: 0.2214 | AP38: HNS | AQ38: NS | AR38: NO3- RT | AS38: 137 | AU38: 1.26897019 | AV38: 0.8435155413 | AW38: 0.7431821119 | AX38: 1 | AY38: 1 | AZ38: 18.588 | BA38: 12.375 | BB38: 21.66 | BC38: 48.25 | BD38: 17.44 | BE38: 12.855 | BF38: 19.27 | BG38: 10.79 | BH38: 7.79 | BI38: 18.875 | BJ38: 12.155 | BK38: 15.605 | BL38: 19.405 | BM38: 26.53 | BN38: 18.75 | BO38: 17.07 | BP38: 9.98 | BQ38: 14.77 | BR38: 22.61 | BS38: 20.71 | BT38: 40.71 | BU38: 55.79 | BV38: 17.35 | BW38: 17.53 | BX38: 12.88 | BY38: 12.83 | BZ38: 19.43 | CA38: 19.11 | CB38: 11.56 | CC38: 10.02 | CD38: 5.74 | CE38: 9.84 | CF38: 20.08 | CG38: 17.67 | CH38: 14.03 | CI38: 10.28 | CJ38: 18.84 | CK38: 12.37 | CL38: 14.23 | CM38: 24.58 | CN38: 26 | CO38: 27.06 | CP38: 14.81 | CQ38: 22.69 | CR38: 16.41 | CS38: 17.73 | CT38: -0.4864 | CU38: 0.20526229 | CV38: 0.101 | CW38: 0.83861618 | CX38: -0.0517 | CY38: 1 | CZ38: 0.5548 | DA38: 0.07948457 | DB38: -0.7191 | DC38: 0.02600935 | DD38: -0.1441 | DE38: 0.66952111 | DF38: -0.0538 | DG38: 1 | DH38: 0.4839 | DI38: 0.37570089 | DJ38: 0.4518 | DK38: 0.23372878 | DL38: 0.9881 | DM38: 0.00187901 | DN38: -0.5613 | DO38: 0.10957368 | DP38: -0.0032 | DQ38: 1 | DR38: -0.2916 | DS38: 0.59771047 | DT38: 0.272 | DU38: 0.46900791 | DV38: -0.4092 | DW38: 0.3969464 | DX38: 0.1355 | DY38: 0.84416093 | DZ38: -0.676 | EA38: 0.13206894 | EB38: -0.1393 | EC38: 0.82359779 | ED38: -1.3292 | EE38: 5.591e-05 | EF38: -0.7473 | EG38: 0.00820012 | EH38: -0.6824 | EI38: 0.09609876 | EJ38: -0.1152 | EK38: 0.79453959 | EL38: -0.4813 | EM38: 0.20796703 | EN38: 0.0754 | EO38: 0.91125754
A39: Phatr3_J36913 | B39: chr_11;chr_11;chr_11 | C39: 645070;645828;646079 | D39: 645743;645950;646355 | E39: -;-;- | F39: 1074 | G39: pti:PHATR_36913 | H39: hypothetical protein; K00145 N-acetyl-gamma-glutamyl-phosphate/N-acetyl-gamma-aminoadipyl-phosphate reductase [EC:1.2.1.38 1.2.1.-] | I39: pti01100||pti00330||pti00300||pti01110 | J39: K00145 | K39: N-acetyl-gamma-glutamyl-phosphate reductase [EC:1.2.1.38] | L39: Arginine and proline metabolism | M39: 1.2.1.38 | N39: B5Y408 | O39: KOG4354 | P39: N-acetyl-gamma-glutamyl-phosphate reductase | Q39: Amino acid transport and metabolism | R39: METABOLISM | W39: Phatr36913-11Phatr2 | X39: 100 | Y39: Predicted protein | Z39: CAM_CRCL_32863797 | AA39: Phaeodactylum tricornutum | AB39: 2850 | AC39: _GAP_||PF01118||_GAP_ | AD39: _GAP_||Semialdehyde dehydrogenase, NAD binding domain||_GAP_ | AE39: _GAP_||TIGR01851 | AF39: _GAP_||N-acetyl-gamma-glutamyl-phosphate reductase | AJ39: 0 | AK39: chloroplast | AL39: 0.847 | AM39: 0.0462 | AN39: 0.8235 | AO39: 0 | AP39: HNS | AQ39: NS | AR39: NO3- RT | AS39: 77 | AT39: 32 | AU39: 1.485436187 | AV39: 0.8226142141 | AW39: 0.5062825203 | AX39: 1 | AY39: 1 | AZ39: 462.3613333 | BA39: 734.37 | BB39: 114.69 | BC39: 2337.425 | BD39: 102.56 | BE39: 113.155 | BF39: 137.495 | BG39: 345.08 | BH39: 159.99 | BI39: 95.48 | BJ39: 493.05 | BK39: 380.93 | BL39: 121.93 | BM39: 827.28 | BN39: 879.5 | BO39: 92.485 | BP39: 726.22 | BQ39: 742.52 | BR39: 104.64 | BS39: 124.74 | BT39: 1916.78 | BU39: 2758.07 | BV39: 104.3 | BW39: 100.82 | BX39: 109.13 | BY39: 117.18 | BZ39: 139.24 | CA39: 135.75 | CB39: 300.26 | CC39: 389.9 | CD39: 148.21 | CE39: 171.77 | CF39: 99.51 | CG39: 91.45 | CH39: 492.1 | CI39: 494 | CJ39: 288.04 | CK39: 473.82 | CL39: 95.83 | CM39: 148.03 | CN39: 841.43 | CO39: 813.13 | CP39: 737.32 | CQ39: 1021.68 | CR39: 101.24 | CS39: 83.73 | CT39: 2.8904 | CU39: 0 | CV39: -0.0797 | CW39: 0.68596075 | CX39: 2.7465 | CY39: 0 | CZ39: -0.2079 | DA39: 0.22057763 | DB39: 2.3795 | DC39: 0 | DD39: -0.5948 | DE39: 5.486e-05 | DF39: 0.8543 | DG39: 2.821e-05 | DH39: -2.1404 | DI39: 0 | DJ39: 2.0548 | DK39: 0 | DL39: -0.9464 | DM39: 0 | DN39: 3.0372 | DO39: 0 | DP39: 0.0417 | DQ39: 0.86281 | DR39: 0.319 | DS39: 0.00563553 | DT39: -2.656 | DU39: 0 | DV39: 0.9107 | DW39: 4.653e-05 | DX39: -2.0819 | DY39: 0 | DZ39: 2.6122 | EA39: 0 | EB39: -0.3771 | EC39: 0.09717577 | ED39: -0.3635 | EE39: 0.00554304 | EF39: -3.3329 | EG39: 0 | EH39: -0.336 | EI39: 0.11748109 | EJ39: -3.3101 | EK39: 0 | EL39: 3.0228 | EM39: 0 | EN39: 0.0268 | EO39: 0.95357228
A40: Phatr3_J7736 | B40: chr_3 | C40: 547786 | D40: 548712 | E40: + | F40: 927 | G40: pti:PHATR_7736 | H40: hypothetical protein | N40: B5Y4W7 | O40: KOG2989 | P40: Uncharacterized conserved protein | Q40: Function unknown | R40: POORLY CHARACTERIZED | W40: contig_4375_33_1028-ChaeIllumina | X40: 60 | Z40: CAM_CRCL_24931 | AA40: Chaetoceros sp. RS-19 | AB40: 49237 | AC40: PF04502 | AD40: Family of unknown function (DUF572) | AJ40: 0 | AK40: other localisation | AL40: 0.0649 | AM40: 0.024 | AN40: 0 | AO40: 0.0959 | AP40: HNS | AQ40: NS | AR40: NO3- RT | AS40: 77 | AT40: 83 | AU40: 1.153430792 | AV40: 0.8584620849 | AW40: 0.631893063 | AX40: 1 | AY40: 1 | AZ40: 73.085 | BA40: 108.44 | BB40: 87.21 | BC40: 119.72 | BD40: 44.37 | BE40: 51.445 | BF40: 79.48 | BG40: 32.14 | BH40: 41.795 | BI40: 91.33 | BJ40: 41.835 | BK40: 48.6 | BL40: 75.25 | BM40: 80.48 | BN40: 120.805 | BO40: 73.375 | BP40: 105.75 | BQ40: 111.13 | BR40: 85.42 | BS40: 89 | BT40: 144.02 | BU40: 95.42 | BV40: 47.93 | BW40: 40.81 | BX40: 52.32 | BY40: 50.57 | BZ40: 85.7 | CA40: 73.26 | CB40: 29.78 | CC40: 34.5 | CD40: 44.2 | CE40: 39.39 | CF40: 96.58 | CG40: 86.08 | CH40: 41.11 | CI40: 42.56 | CJ40: 44.67 | CK40: 52.53 | CL40: 76.18 | CM40: 74.32 | CN40: 85.24 | CO40: 75.72 | CP40: 157.39 | CQ40: 84.22 | CR40: 72.87 | CS40: 73.88 | CT40: 1.3365 | CU40: 0 | CV40: 0.7386 | CW40: 3.95e-06 | CX40: 1.1217 | CY40: 0 | CZ40: 0.5403 | DA40: 0.00036698 | DB40: 0.4106 | DC40: 0.00262468 | DD40: -0.1936 | DE40: 0.21757241 | DF40: 1.5115 | DG40: 0 | DH40: 0.8857 | DI40: 4.842e-05 | DJ40: 1.2346 | DK40: 0 | DL40: 0.604 | DM40: 4.288e-05 | DN40: 0.3398 | DO40: 0.01315616 | DP40: -0.2838 | DQ40: 0.0718431 | DR40: 1.1168 | DS40: 0 | DT40: 0.514 | DU40: 0.00057495 | DV40: 1.1138 | DW40: 0 | DX40: 0.491 | DY40: 0.00740141 | DZ40: 0.5537 | EA40: 6.433e-05 | EB40: -0.0668 | EC40: 0.76247503 | ED40: 0.2379 | EE40: 0.09981017 | EF40: -0.36 | EG40: 0.01907615 | EH40: -0.2407 | EI40: 0.42704491 | EJ40: -0.8459 | EK40: 0.00189279 | EL40: 0.5905 | EM40: 1.931e-05 | EN40: -0.0322 | EO40: 0.92060915
A41: Phatr3_J40691 | B41: chr_25;chr_25 | C41: 157500;158767 | D41: 158762;159438 | E41: -;- | F41: 1935 | G41: pti:PHATRDRAFT_26029 | H41: hypothetical protein | N41: B7FTV6 | W41: estExt_Genewise1Plus.C_6270003-Psemu1_scaffold_627 | X41: 45 | Z41: CAM_CRCL_5943 | AA41: Pseudo-nitzschia multiseries | AB41: 37319 | AC41: _GAP_||PF07690||_GAP_ | AD41: _GAP_||Major Facilitator Superfamily||_GAP_ | AG41: MFS | AI41: 3 | AJ41: 10 | AK41: other localisation | AL41: 0.0674 | AM41: 0.025 | AN41: 0 | AO41: 0.1668 | AP41: HNS | AQ41: NS | AR41: NO3- RT | AS41: 139 | AU41: 0.9680256528 | AV41: 0.9720751962 | AW41: 0.6897918731 | AX41: 1 | AY41: 1 | AZ41: 26.57633333 | BA41: 34.57 | BB41: 12.915 | BC41: 40.495 | BD41: 17.715 | BE41: 20.445 | BF41: 35.82 | BG41: 14.08 | BH41: 12.61 | BI41: 23.86 | BJ41: 19.83 | BK41: 22.385 | BL41: 32.71 | BM41: 40.71 | BN41: 45.62 | BO41: 24.88 | BP41: 40.08 | BQ41: 29.06 | BR41: 12.64 | BS41: 13.19 | BT41: 29.54 | BU41: 51.45 | BV41: 13.92 | BW41: 21.51 | BX41: 18.63 | BY41: 22.26 | BZ41: 36.12 | CA41: 35.52 | CB41: 12.07 | CC41: 16.09 | CD41: 13.62 | CE41: 11.6 | CF41: 23.2 | CG41: 24.52 | CH41: 19.77 | CI41: 19.89 | CJ41: 24.07 | CK41: 20.7 | CL41: 29.97 | CM41: 35.45 | CN41: 44.97 | CO41: 36.45 | CP41: 41.49 | CQ41: 49.75 | CR41: 21.78 | CS41: 27.98 | CT41: 1.0216 | CU41: 8e-07 | CV41: -0.6825 | CW41: 0.0018854 | CX41: 0.8103 | CY41: 4.13e-06 | CZ41: -0.8808 | DA41: 1.04e-06 | DB41: -0.0828 | DC41: 0.66161611 | DD41: -1.8029 | DE41: 0 | DF41: 1.0512 | DG41: 1.471e-05 | DH41: -0.6813 | DI41: 0.01205426 | DJ41: 1.3203 | DK41: 0 | DL41: -0.4202 | DM41: 0.02422655 | DN41: 0.6336 | DO41: 0.00016034 | DP41: -1.1011 | DQ41: 0 | DR41: 0.5491 | DS41: 0.00131431 | DT41: -1.1652 | DU41: 0 | DV41: 0.5825 | DW41: 0.00520135 | DX41: -1.1487 | DY41: 3e-08 | DZ41: 0.1057 | EA41: 0.6455046 | EB41: -1.6246 | EC41: 0 | ED41: -0.4218 | EE41: 0.01415197 | EF41: -2.1304 | EG41: 0 | EH41: -0.4736 | EI41: 0.01819919 | EJ41: -2.1854 | EK41: 0 | EL41: 0.4991 | EM41: 0.01018314 | EN41: -1.2323 | EO41: 0
A42: Phatr3_J36843 | B42: chr_11 | C42: 491180 | D42: 492379 | E42: + | F42: 1200 | G42: pti:PHATR_36843 | H42: hypothetical protein | N42: B5Y3U1 | W42: Phatr36843-11Phatr2 | X42: 85 | Y42: Predicted protein | AA42: Phaeodactylum tricornutum | AB42: 2850 | AJ42: 0 | AK42: other localisation | AL42: 0.0546 | AM42: 0.0219 | AN42: 0 | AO42: 0.0865 | AP42: HNS | AQ42: NS | AR42: NO3- RT | AS42: 139 | AU42: 1.023248199 | AV42: 1.009233426 | AW42: 0.5248930567 | AX42: 1 | AY42: 1 | AZ42: 168.424 | BA42: 239.335 | BB42: 155.12 | BC42: 230.825 | BD42: 89.92 | BE42: 139.77 | BF42: 388.005 | BG42: 74.575 | BH42: 64.92 | BI42: 134.5 | BJ42: 132.33 | BK42: 92.345 | BL42: 157.87 | BM42: 226.505 | BN42: 290.55 | BO42: 109.79 | BP42: 222.6 | BQ42: 256.07 | BR42: 174.91 | BS42: 135.33 | BT42: 256.54 | BU42: 205.11 | BV42: 89.78 | BW42: 90.06 | BX42: 144.55 | BY42: 134.99 | BZ42: 436.42 | CA42: 339.59 | CB42: 73.57 | CC42: 75.58 | CD42: 65.28 | CE42: 64.56 | CF42: 141.4 | CG42: 127.6 | CH42: 133.54 | CI42: 131.12 | CJ42: 94.6 | CK42: 90.09 | CL42: 176.3 | CM42: 139.44 | CN42: 199.48 | CO42: 253.53 | CP42: 374.58 | CQ42: 206.52 | CR42: 95.5 | CS42: 124.08 | CT42: 1.463 | CU42: 0 | CV42: 0.5622 | CW42: 0.00229516 | CX42: 0.8245 | CY42: 0 | CZ42: -0.061 | DA42: 0.81701624 | DB42: -0.7345 | DC42: 2.56e-06 | DD42: -1.6448 | DE42: 0 | DF42: 1.4443 | DG42: 0 | DH42: 0.5116 | DI42: 0.03244801 | DJ42: 1.7393 | DK42: 0 | DL42: 0.8057 | DM42: 4.38e-06 | DN42: 0.9259 | DO42: 0 | DP42: -0.0022 | DQ42: 1 | DR42: 0.5981 | DS42: 3.6e-06 | DT42: -0.3087 | DU42: 0.08432308 | DV42: 1.3289 | DW42: 0 | DX42: 0.4012 | DY42: 0.07535674 | DZ42: 0.6316 | EA42: 6.736e-05 | EB42: -0.2952 | EC42: 0.15812751 | ED42: -0.1166 | EE42: 0.5737872 | EF42: -1.0208 | EG42: 6.7e-07 | EH42: -0.3609 | EI42: 0.20706832 | EJ42: -1.2715 | EK42: 1.231e-05 | EL42: 1.1497 | EM42: 0 | EN42: 0.2232 | EO42: 0.33017538
A43: Phatr3_EG01412 | B43: chr_6 | C43: 555515 | D43: 556669 | E43: - | F43: 1155 | G43: tps:THAPSDRAFT_24452 | H43: hypothetical protein; K13094 RNA-binding protein 5/10 | J43: K13094 | K43: RNA-binding protein 5/10 | N43: B8CA61 | O43: KOG0154 | P43: RNA-binding protein RBM5 and related proteins, contain G-patch and RRM domains | Q43: General function prediction only | R43: POORLY CHARACTERIZED | W43: contig_8742_1982_3867-NitzIllumina | X43: 33 | AB43: -25000 | AC43: _GAP_||PF01585 | AD43: _GAP_||G-patch domain | AJ43: 0 | AK43: other localisation | AL43: 0.0544 | AM43: 0.0218 | AN43: 0 | AO43: 0.0832 | AP43: HNS | AQ43: NS | AR43: NO3- RT | AS43: 137 | AU43: 1.026218745 | AV43: 0.7916375056 | AW43: 0.7282835546 | AX43: 1 | AY43: 1 | AZ43: 310.8066667 | BA43: 489.595 | BB43: 436.94 | BC43: 523.15 | BD43: 214.865 | BE43: 180.425 | BF43: 466.475 | BG43: 168.34 | BH43: 166.715 | BI43: 315.125 | BJ43: 181.28 | BK43: 160.425 | BL43: 384.76 | BM43: 388.91 | BN43: 254.08 | BO43: 331.015 | BP43: 468.22 | BQ43: 510.97 | BR43: 470.42 | BS43: 403.46 | BT43: 445.85 | BU43: 600.45 | BV43: 214.53 | BW43: 215.2 | BX43: 175.01 | BY43: 185.84 | BZ43: 451.67 | CA43: 481.28 | CB43: 135 | CC43: 201.68 | CD43: 161.04 | CE43: 172.39 | CF43: 308.79 | CG43: 321.46 | CH43: 171.2 | CI43: 191.36 | CJ43: 162.96 | CK43: 157.89 | CL43: 412.48 | CM43: 357.04 | CN43: 405.23 | CO43: 372.59 | CP43: 253.78 | CQ43: 254.38 | CR43: 344.24 | CS43: 317.79 | CT43: 1.2393 | CU43: 0 | CV43: 0.7947 | CW43: 1.96e-06 | CX43: 1.4888 | CY43: 0 | CZ43: 1.0594 | DA43: 0 | DB43: 0.0321 | DC43: 0.88471628 | DD43: -0.4208 | DE43: 0.00601945 | DF43: 1.3066 | DG43: 0 | DH43: 0.8327 | DI43: 0.00070745 | DJ43: 1.4112 | DK43: 0 | DL43: 0.9344 | DM43: 1e-08 | DN43: 0.7302 | DO43: 4e-08 | DP43: 0.2591 | DQ43: 0.13878068 | DR43: 1.1803 | DS43: 0 | DT43: 0.729 | DU43: 4e-06 | DV43: 1.5649 | DW43: 0 | DX43: 1.0947 | DY43: 1e-07 | DZ43: 0.3772 | EA43: 0.00925115 | EB43: -0.0916 | EC43: 0.67480526 | ED43: 0.142 | EE43: 0.34120307 | EF43: -0.3039 | EG43: 0.0840325 | EH43: 0.8688 | EI43: 9.4e-07 | EJ43: 0.4173 | EK43: 0.05163908 | EL43: 0.5957 | EM43: 1.801e-05 | EN43: 0.1245 | EO43: 0.54746093
A44: Phatr3_J50624 | B44: chr_33 | C44: 6033 | D44: 7844 | E44: - | F44: 1812 | G44: pti:PHATRDRAFT_50624 | H44: hypothetical protein; K14404 cleavage and polyadenylation specificity factor subunit 4 | I44: pti03015 | J44: K14404 | K44: cleavage and polyadenylation specificity factor subunit 4 | L44: mRNA surveillance pathway || Influenza A | N44: B7GER0 | O44: KOG1040 | P44: Polyadenylation factor I complex, subunit, Yth1 (CPSF subunit) | Q44: RNA processing and modification | R44: INFORMATION STORAGE AND PROCESSING | W44: Phatr50624-33Phatr2 | X44: 98 | Y44: Putative uncharacterized protein | Z44: CAM_CRCL_31669487 | AA44: Phaeodactylum tricornutum | AB44: 2850 | AC44: _GAP_||PF00642||_GAP_||PF04146||_GAP_||PF10539||_GAP_ | AD44: _GAP_||Zinc finger C-x8-C-x5-C-x3-H type (and similar)||_GAP_||YT521-B-like family||_GAP_||Development and cell death domain||_GAP_ | AJ44: 0 | AK44: other localisation | AL44: 0.077 | AM44: 0.0261 | AN44: 0 | AO44: 0.0879 | AP44: HNS | AQ44: NS | AR44: NO3- RT | AS44: 139 | AT44: 85 | AU44: 0.8914728682 | AV44: 0.8799459824 | AW44: 0.5796540462 | AX44: 1 | AY44: 1 | AZ44: 42.67266667 | BA44: 57.555 | BB44: 49.235 | BC44: 54.085 | BD44: 38.685 | BE44: 39.67 | BF44: 50.955 | BG44: 20.735 | BH44: 25.875 | BI44: 49.165 | BJ44: 29.355 | BK44: 26.835 | BL44: 52.51 | BM44: 53.315 | BN44: 44.03 | BO44: 48.085 | BP44: 55.06 | BQ44: 60.05 | BR44: 47.98 | BS44: 50.49 | BT44: 50.3 | BU44: 57.87 | BV44: 35.11 | BW44: 42.26 | BX44: 38.88 | BY44: 40.46 | BZ44: 49.64 | CA44: 52.27 | CB44: 22.77 | CC44: 18.7 | CD44: 24.52 | CE44: 27.23 | CF44: 48.65 | CG44: 49.68 | CH44: 28.46 | CI44: 30.25 | CJ44: 27.13 | CK44: 26.54 | CL44: 51.74 | CM44: 53.28 | CN44: 53.11 | CO44: 53.52 | CP44: 46.02 | CQ44: 42.04 | CR44: 50.29 | CS44: 45.88 | CT44: 0.624 | CU44: 5.9e-06 | CV44: 0.1164 | CW44: 0.51570835 | CX44: 0.5833 | CY44: 1.597e-05 | CZ44: 0.0904 | DA44: 0.62703755 | DB44: 0.1354 | DC44: 0.3435162 | DD44: -0.38 | DE44: 0.00686995 | DF44: 1.2397 | DG44: 1e-08 | DH44: 0.7012 | DI44: 0.00216479 | DJ44: 1.0054 | DK44: 0 | DL44: 0.4654 | DM44: 0.00095686 | DN44: 0.3198 | DO44: 0.01980048 | DP44: -0.2148 | DQ44: 0.17150102 | DR44: 0.7151 | DS44: 6e-08 | DT44: 0.201 | DU44: 0.19240707 | DV44: 1.0549 | DW44: 0 | DX44: 0.5208 | DY44: 0.00346334 | DZ44: 0.157 | EA44: 0.30444198 | EB44: -0.3743 | EC44: 0.01718422 | ED44: -0.0834 | EE44: 0.6372292 | EF44: -0.5927 | EG44: 6.741e-05 | EH44: 0.305 | EI44: 0.09467879 | EJ44: -0.2105 | EK44: 0.28652185 | EL44: 0.2892 | EM44: 0.04766903 | EN44: -0.2456 | EO44: 0.13752742
A45: Phatr3_J47892 | B45: chr_15 | C45: 369985 | D45: 371643 | E45: + | F45: 1659 | G45: pti:PHATRDRAFT_47892 | H45: hypothetical protein | N45: B7G5A0 | W45: Phatr47892-15Phatr2 | X45: 97 | Y45: Predicted protein | Z45: CAM_CRCL_4010381 | AA45: Phaeodactylum tricornutum | AB45: 2850 | AC45: _GAP_||PF13489||_GAP_ | AD45: _GAP_||PF13489||_GAP_ | AJ45: 1 | AK45: other localisation | AL45: 0.058 | AM45: 0.023 | AN45: 0 | AO45: 0.2096 | AP45: HNS | AQ45: NS | AR45: NO3- RT | AS45: 77 | AT45: 72 | AU45: 1.125325555 | AV45: 0.5879582913 | AW45: 0.5753974895 | AX45: 1 | AY45: 1 | AZ45: 12.47033333 | BA45: 8.365 | BB45: 10.725 | BC45: 37.5 | BD45: 8.72 | BE45: 8.95 | BF45: 7.615 | BG45: 10.495 | BH45: 5.415 | BI45: 12.465 | BJ45: 10.64 | BK45: 8.545 | BL45: 11.575 | BM45: 19.235 | BN45: 16.865 | BO45: 9.945 | BP45: 9.98 | BQ45: 6.75 | BR45: 10.35 | BS45: 11.1 | BT45: 34.29 | BU45: 40.71 | BV45: 8.57 | BW45: 8.87 | BX45: 8.78 | BY45: 9.12 | BZ45: 6.61 | CA45: 8.62 | CB45: 4.75 | CC45: 16.24 | CD45: 5.17 | CE45: 5.66 | CF45: 11.87 | CG45: 13.06 | CH45: 10.65 | CI45: 10.63 | CJ45: 6.38 | CK45: 10.71 | CL45: 11.3 | CM45: 11.85 | CN45: 21.65 | CO45: 16.82 | CP45: 15.69 | CQ45: 18.04 | CR45: 8.82 | CS45: 11.07 | CT45: 0.0072 | CU45: 1 | CV45: 0.0631 | CW45: 0.8705614 | CX45: -0.0319 | CY45: 0.94766862 | CZ45: 0.0395 | DA45: 0.95545058 | DB45: 0.1085 | DC45: 0.79017054 | DD45: 0.1557 | DE45: 0.58554883 | DF45: -0.5658 | DG45: 0.28144921 | DH45: -0.5245 | DI45: 0.2955442 | DJ45: 0.4961 | DK45: 0.0536383 | DL45: 0.5192 | DM45: 0.01663687 | DN45: -0.4612 | DO45: 0.04474621 | DP45: -0.4332 | DQ45: 0.04414519 | DR45: -0.5876 | DS45: 0.01465813 | DT45: -0.5384 | DU45: 0.01399433 | DV45: -0.0611 | DW45: 0.9334554 | DX45: -0.0232 | DY45: 1 | DZ45: -0.4284 | EA45: 0.09434461 | EB45: -0.3947 | EC45: 0.10729613 | ED45: -1.373 | EE45: 0 | EF45: -1.3201 | EG45: 0 | EH45: -1.0696 | EI45: 7.93e-06 | EJ45: -1.0186 | EK45: 4.25e-06 | EL45: -0.2158 | EM45: 0.4596757 | EN45: -0.183 | EO45: 0.53187588
A46: Phatr3_J49238 | B46: chr_21 | C46: 325464 | D46: 326186 | E46: - | F46: 723 | G46: pti:PHATRDRAFT_49238 | H46: hypothetical protein | N46: B7G9Y1 | W46: Phatr49238-21Phatr2 | X46: 93 | Y46: Predicted protein | Z46: CAM_CRCL_14291968 | AA46: Phaeodactylum tricornutum | AB46: 2850 | AJ46: 1 | AK46: signal peptide | AL46: 0.8164 | AM46: 0.0809 | AN46: 0.0423 | AO46: 0 | AP46: HNS | AQ46: NS | AR46: NO3- RT | AS46: 77 | AT46: 46 | AU46: 0.9454667113 | AV46: 0.8065126846 | AW46: 0.4968839481 | AX46: 1 | AY46: 1 | AZ46: 14.65133333 | BA46: 27.57 | BB46: 17.445 | BC46: 22.01 | BD46: 13.76 | BE46: 15 | BF46: 9.465 | BG46: 7.88 | BH46: 13.63 | BI46: 7 | BJ46: 11.155 | BK46: 18.96 | BL46: 8.885 | BM46: 18.53 | BN46: 21.925 | BO46: 6.555 | BP46: 27.83 | BQ46: 27.31 | BR46: 18.25 | BS46: 16.64 | BT46: 19.71 | BU46: 24.31 | BV46: 16.77 | BW46: 10.75 | BX46: 13.39 | BY46: 16.61 | BZ46: 8.75 | CA46: 10.18 | CB46: 9.65 | CC46: 6.11 | CD46: 13.05 | CE46: 14.21 | CF46: 5.57 | CG46: 8.43 | CH46: 10.7 | CI46: 11.61 | CJ46: 18.56 | CK46: 19.36 | CL46: 7.61 | CM46: 10.16 | CN46: 20.98 | CO46: 16.08 | CP46: 21.84 | CQ46: 22.01 | CR46: 5.94 | CS46: 7.17 | CT46: 1.0471 | CU46: 5.423e-05 | CV46: 0.1143 | CW46: 0.81681014 | CX46: 0.9315 | CY46: 1.486e-05 | CZ46: 0.0192 | DA46: 1 | DB46: 1.4987 | DC46: 0 | DD46: 0.5599 | DE46: 0.03644357 | DF46: 1.6006 | DG46: 8.97e-06 | DH46: 0.634 | DI46: 0.15543613 | DJ46: 0.8671 | DK46: 8.42e-06 | DL46: -0.0891 | DM46: 0.76037977 | DN46: 2.0899 | DO46: 0 | DP46: 1.1288 | DQ46: 0.00021832 | DR46: 1.0532 | DS46: 3.57e-06 | DT46: 0.1189 | DU46: 0.76720358 | DV46: 0.4951 | DW46: 0.03598487 | DX46: -0.4577 | DY46: 0.0881182 | DZ46: 1.6323 | EA46: 0 | EB46: 0.6829 | EC46: 0.02636701 | ED46: 0.3795 | EE46: 0.10465753 | EF46: -0.5487 | EG46: 0.03420142 | EH46: 0.251 | EI46: 0.31795132 | EJ46: -0.6829 | EK46: 0.00682956 | EL46: 2.0799 | EM46: 0 | EN46: 1.129 | EO46: 7.966e-05
A47: Phatr3_J45283 | B47: chr_6 | C47: 714882 | D47: 716618 | E47: + | F47: 1737 | G47: pti:PHATRDRAFT_45283 | H47: hypothetical protein | N47: B7FX47 | W47: Phatr45283-6Phatr2 | X47: 98 | Y47: Predicted protein | Z47: CAM_CRCL_26945552 | AA47: Phaeodactylum tricornutum | AB47: 2850 | AC47: _GAP_||PF13358||_GAP_ | AD47: _GAP_||PF13358||_GAP_ | AJ47: 0 | AK47: other localisation | AL47: 0.0526 | AM47: 0.0216 | AN47: 0 | AO47: 0.0877 | AP47: HNS | AQ47: NS | AR47: NO3- RT | AS47: 139 | AU47: 0.7233585783 | AV47: 0.7469710272 | AW47: 0.729239358 | AX47: 1 | AY47: 1 | AZ47: 46.129 | BA47: 42.125 | BB47: 56.95 | BC47: 57.085 | BD47: 40.325 | BE47: 49.16 | BF47: 49.68 | BG47: 26.76 | BH47: 28 | BI47: 49.955 | BJ47: 27.315 | BK47: 33.56 | BL47: 55.405 | BM47: 58.665 | BN47: 68.09 | BO47: 48.86 | BP47: 43.48 | BQ47: 40.77 | BR47: 57.22 | BS47: 56.68 | BT47: 53.13 | BU47: 61.04 | BV47: 42.57 | BW47: 38.08 | BX47: 50.86 | BY47: 47.46 | BZ47: 49.69 | CA47: 49.67 | CB47: 26.02 | CC47: 27.5 | CD47: 29.7 | CE47: 26.3 | CF47: 52.37 | CG47: 47.54 | CH47: 25.84 | CI47: 28.79 | CJ47: 34.39 | CK47: 32.73 | CL47: 51.57 | CM47: 59.24 | CN47: 61.3 | CO47: 56.03 | CP47: 65.77 | CQ47: 70.41 | CR47: 46.56 | CS47: 51.16 | CT47: 0.1129 | CU47: 0.48210354 | CV47: 0.265 | CW47: 0.10206096 | CX47: -0.1747 | CY47: 0.21274878 | CZ47: -0.0061 | DA47: 1 | DB47: -0.2743 | DC47: 0.03459145 | DD47: -0.1299 | DE47: 0.39887224 | DF47: 0.4159 | DG47: 0.04450216 | DH47: 0.54 | DI47: 0.01026499 | DJ47: 0.4501 | DK47: 0.00086731 | DL47: 0.5691 | DM47: 0.00011662 | DN47: -0.1516 | DO47: 0.30313771 | DP47: -0.0253 | DQ47: 0.9492795 | DR47: 0.3744 | DS47: 0.00722155 | DT47: 0.5205 | DU47: 0.00045395 | DV47: 0.283 | DW47: 0.11546014 | DX47: 0.4104 | DY47: 0.02406809 | DZ47: -0.3712 | EA47: 0.0132616 | EB47: -0.241 | EC47: 0.16237427 | ED47: -0.6681 | EE47: 5.2e-07 | EF47: -0.5162 | EG47: 0.0005164 | EH47: -0.7697 | EI47: 3.92e-06 | EJ47: -0.6236 | EK47: 0.0007781 | EL47: -0.187 | EM47: 0.22809244 | EN47: -0.0593 | EO47: 0.79057546
A48: Phatr3_J44836 | B48: chr_5;chr_5;chr_5;chr_5;chr_5;chr_5 | C48: 369885;370051;370373;371042;371564;371817 | D48: 369932;370187;370976;371479;371734;373412 | E48: -;-;-;-;-;- | F48: 2994 | G48: pti:PHATRDRAFT_44839 | H48: hypothetical protein | N48: B7FVU3 | W48: Phatr44839-5Phatr2 | X48: 98 | Y48: Predicted protein | AA48: Phaeodactylum tricornutum | AB48: 2850 | AC48: _GAP_||PF01363||_GAP_ | AD48: _GAP_||FYVE zinc finger||_GAP_ | AJ48: 0 | AK48: other localisation | AL48: 0.0651 | AM48: 0.0237 | AN48: 0 | AO48: 0.1 | AP48: HNS | AQ48: NS | AR48: NO3- RT | AS48: 137 | AU48: 0.8625393494 | AV48: 0.9149149149 | AW48: 0.3996703749 | AX48: 1 | AY48: 1 | AZ48: 5.419 | BA48: 7.9 | BB48: 3.89 | BC48: 6.82 | BD48: 5.13 | BE48: 5.295 | BF48: 7.395 | BG48: 2.71 | BH48: 4.035 | BI48: 5.75 | BJ48: 4.855 | BK48: 3.875 | BL48: 6.325 | BM48: 7.28 | BN48: 4.255 | BO48: 5.77 | BP48: 8.45 | BQ48: 7.35 | BR48: 4.2 | BS48: 3.58 | BT48: 6.39 | BU48: 7.25 | BV48: 4.45 | BW48: 5.81 | BX48: 5.08 | BY48: 5.51 | BZ48: 7.64 | CA48: 7.15 | CB48: 2.33 | CC48: 3.09 | CD48: 4.33 | CE48: 3.74 | CF48: 5.57 | CG48: 5.93 | CH48: 5.14 | CI48: 4.57 | CJ48: 4.05 | CK48: 3.7 | CL48: 5.79 | CM48: 6.86 | CN48: 9.05 | CO48: 5.51 | CP48: 4.73 | CQ48: 3.78 | CR48: 5.56 | CS48: 5.98 | CT48: 0.6811 | CU48: 0.00110386 | CV48: -0.6041 | CW48: 0.0198753 | CX48: 0.6315 | CY48: 0.00098235 | CZ48: -0.6372 | DA48: 0.00667215 | DB48: 0.0656 | DC48: 0.80942875 | DD48: -1.2312 | DE48: 1e-08 | DF48: 1.2905 | DG48: 2.277e-05 | DH48: -0.0261 | DI48: 1 | DJ48: 0.8377 | DK48: 1.783e-05 | DL48: -0.4824 | DM48: 0.04144943 | DN48: 0.5595 | DO48: 0.00343456 | DP48: -0.7536 | DQ48: 0.00117185 | DR48: 0.44 | DS48: 0.0376142 | DT48: -0.8501 | DU48: 0.00067826 | DV48: 0.9858 | DW48: 2.592e-05 | DX48: -0.3265 | DY48: 0.26066543 | DZ48: 0.3416 | EA48: 0.12298365 | EB48: -0.9663 | EC48: 0.00020404 | ED48: -0.0682 | EE48: 0.88177299 | EF48: -1.3564 | EG48: 9.2e-07 | EH48: 0.8023 | EI48: 0.00068689 | EJ48: -0.4889 | EK48: 0.09060659 | EL48: 0.4812 | EM48: 0.01750012 | EN48: -0.8289 | EO48: 0.00071705
A49: Phatr3_J31822 | B49: chr_1 | C49: 1021676 | D49: 1022599 | E49: + | F49: 924 | G49: pti:PHATRDRAFT_31822 | H49: hypothetical protein | N49: B7FPF8 | W49: Phatr31822-1Phatr2 | X49: 95 | Y49: Predicted protein | Z49: CAM_CRCL_2340 | AA49: Phaeodactylum tricornutum | AB49: 2850 | AC49: PF05368||_GAP_ | AD49: NmrA-like family||_GAP_ | AJ49: 0 | AK49: other localisation | AL49: 0.3708 | AM49: 0.0578 | AN49: 0 | AO49: 0.2923 | AP49: HNS | AQ49: NS | AR49: NO3- RT | AS49: 77 | AU49: 0.7556803676 | AV49: 0.7139841689 | AW49: 0.6849386583 | AX49: 1 | AY49: 1 | AZ49: 15.38566667 | BA49: 30.85 | BB49: 16.875 | BC49: 26.985 | BD49: 11.96 | BE49: 5.745 | BF49: 17.965 | BG49: 12.185 | BH49: 6.01 | BI49: 5.18 | BJ49: 12.595 | BK49: 12.525 | BL49: 6.43 | BM49: 25.715 | BN49: 35.665 | BO49: 4.1 | BP49: 25.63 | BQ49: 36.07 | BR49: 19.16 | BS49: 14.59 | BT49: 31.55 | BU49: 22.42 | BV49: 11.19 | BW49: 12.73 | BX49: 5.99 | BY49: 5.5 | BZ49: 23.01 | CA49: 12.92 | CB49: 11.16 | CC49: 13.21 | CD49: 5.11 | CE49: 6.91 | CF49: 6.29 | CG49: 4.07 | CH49: 10.91 | CI49: 14.28 | CJ49: 9.77 | CK49: 15.28 | CL49: 6.84 | CM49: 6.02 | CN49: 19.44 | CO49: 31.99 | CP49: 46.67 | CQ49: 24.66 | CR49: 4.17 | CS49: 4.03 | CT49: 1.41 | CU49: 0 | CV49: 0.2936 | CW49: 0.3449125 | CX49: 2.4609 | CY49: 0 | CZ49: 1.3589 | DA49: 1.47e-06 | DB49: 0.7429 | DC49: 0.00938081 | DD49: -0.3947 | DE49: 0.22248432 | DF49: 1.0911 | DG49: 0.00050967 | DH49: -0.0659 | DI49: 0.95269548 | DJ49: 2.1908 | DK49: 0 | DL49: 1.0403 | DM49: 0.00015187 | DN49: 2.643 | DO49: 0 | DP49: 1.4916 | DQ49: 1.54e-06 | DR49: 1.0443 | DS49: 2.677e-05 | DT49: -0.0856 | DU49: 0.80632107 | DV49: 1.2526 | DW49: 8.47e-06 | DX49: 0.1014 | DY49: 0.85495722 | DZ49: 2.2931 | EA49: 0 | EB49: 1.1442 | EC49: 0.00020392 | ED49: 0.0615 | EE49: 0.91907481 | EF49: -1.0688 | EG49: 0.00029842 | EH49: -0.3022 | EI49: 0.40134864 | EJ49: -1.4397 | EK49: 5.08e-06 | EL49: 2.9321 | EM49: 0 | EN49: 1.7842 | EO49: 0
A50: Phatr3_J45965 | B50: chr_8;chr_8 | C50: 790877;791499 | D50: 791410;792521 | E50: +;+ | F50: 1557 | G50: pti:PHATRDRAFT_45965 | H50: hypothetical protein | N50: B7FZB2 | W50: Phatr45965-8Phatr2 | X50: 86 | Y50: Predicted protein | Z50: CAM_CRCL_1166 | AA50: Phaeodactylum tricornutum | AB50: 2850 | AC50: _GAP_||PF00892 | AD50: _GAP_||EamA-like transporter family | AG50: DMT | AI50: 2 | AJ50: 6 | AK50: other localisation | AL50: 0.2237 | AM50: 0.1027 | AN50: 0 | AO50: 0.2365 | AP50: HNS | AQ50: NS | AR50: NO3- RT | AS50: 137 | AT50: 19 | AU50: 1.206617547 | AV50: 0.4851989298 | AW50: 0.388124067 | AX50: 1 | AY50: 1 | AZ50: 29.65933333 | BA50: 46.855 | BB50: 35.43 | BC50: 88.675 | BD50: 27.86 | BE50: 18.705 | BF50: 21.895 | BG50: 21.94 | BH50: 18.115 | BI50: 21.31 | BJ50: 24.295 | BK50: 18.465 | BL50: 20.41 | BM50: 35.995 | BN50: 23.65 | BO50: 21.29 | BP50: 45.32 | BQ50: 48.39 | BR50: 38.55 | BS50: 32.31 | BT50: 108.24 | BU50: 69.11 | BV50: 23.87 | BW50: 31.85 | BX50: 18.06 | BY50: 19.35 | BZ50: 20.26 | CA50: 23.53 | CB50: 16.17 | CC50: 27.71 | CD50: 19.14 | CE50: 17.09 | CF50: 20.35 | CG50: 22.27 | CH50: 22.79 | CI50: 25.8 | CJ50: 17.07 | CK50: 19.86 | CL50: 21.53 | CM50: 19.29 | CN50: 37.36 | CO50: 34.63 | CP50: 19.76 | CQ50: 27.54 | CR50: 19.41 | CS50: 23.17 | CT50: 0.8019 | CU50: 3.1e-07 | CV50: 0.1301 | CW50: 0.58213659 | CX50: 1.3716 | CY50: 0 | CZ50: 0.7153 | DA50: 8.388e-05 | DB50: 1.0547 | DC50: 0 | DD50: 0.3737 | DE50: 0.03386586 | DF50: 0.8478 | DG50: 0.00064206 | DH50: 0.1424 | DI50: 0.6763755 | DJ50: 1.23 | DK50: 0 | DL50: 0.524 | DM50: 0.0033068 | DN50: 1.231 | DO50: 0 | DP50: 0.5316 | DQ50: 0.00365035 | DR50: 0.6948 | DS50: 1.25e-06 | DT50: 0.0155 | DU50: 1 | DV50: 1.2983 | DW50: 0 | DX50: 0.5988 | DY50: 0.00444885 | DZ50: 1.2299 | EA50: 0 | EB50: 0.5316 | EC50: 0.00788917 | ED50: 0.1868 | EE50: 0.2216156 | EF50: -0.4855 | EG50: 0.00442034 | EH50: 0.9177 | EI50: 5.11e-06 | EJ50: 0.233 | EK50: 0.36782689 | EL50: 1.157 | EM50: 0 | EN50: 0.4602 | EO50: 0.02032189
A51: Phatr3_J47107 | B51: chr_12 | C51: 458505 | D51: 459533 | E51: + | F51: 1029 | AP51: HNS | AQ51: NS | AR51: NO3- RT | AS51: 77 | AU51: 0.8489758282 | AV51: 0.5712884238 | AW51: 0.6479205253 | AX51: 1 | AY51: 1 | AZ51: 33.62133333 | BA51: 51.825 | BB51: 41.085 | BC51: 54.07 | BD51: 31.215 | BE51: 34.86 | BF51: 22.335 | BG51: 21.845 | BH51: 24.115 | BI51: 35.21 | BJ51: 20.075 | BK51: 26.7 | BL51: 30.705 | BM51: 39.315 | BN51: 39.565 | BO51: 31.4 | BP51: 53.17 | BQ51: 50.48 | BR51: 37.36 | BS51: 44.81 | BT51: 54.81 | BU51: 53.33 | BV51: 33.81 | BW51: 28.62 | BX51: 32.8 | BY51: 36.92 | BZ51: 21.57 | CA51: 23.1 | CB51: 14.45 | CC51: 29.24 | CD51: 23.85 | CE51: 24.38 | CF51: 37.53 | CG51: 32.89 | CH51: 20.8 | CI51: 19.35 | CJ51: 25.83 | CK51: 27.57 | CL51: 29.91 | CM51: 31.5 | CN51: 45.49 | CO51: 33.14 | CP51: 42.31 | CQ51: 36.82 | CR51: 32.19 | CS51: 30.61 | CT51: 0.7805 | CU51: 5.8e-07 | CV51: 0.1498 | CW51: 0.47523573 | CX51: 0.6227 | CY51: 2.234e-05 | CZ51: 0.0068 | DA51: 1 | DB51: 1.1756 | DC51: 0 | DD51: 0.5384 | DE51: 0.00244822 | DF51: 0.9939 | DG51: 0.00045345 | DH51: 0.3452 | DI51: 0.29672747 | DJ51: 0.9605 | DK51: 0 | DL51: 0.297 | DM51: 0.07847173 | DN51: 0.6499 | DO51: 6.53e-06 | DP51: -0.0062 | DQ51: 1 | DR51: 1.1048 | DS51: 0 | DT51: 0.4711 | DU51: 0.01207341 | DV51: 0.913 | DW51: 3.2e-07 | DX51: 0.2594 | DY51: 0.23128317 | DZ51: 0.7794 | EA51: 1e-06 | EB51: 0.128 | EC51: 0.5679004 | ED51: 0.2085 | EE51: 0.26022419 | EF51: -0.4202 | EG51: 0.03327992 | EH51: 0.3057 | EI51: 0.11265702 | EJ51: -0.3281 | EK51: 0.12665884 | EL51: 0.754 | EM51: 5.7e-07 | EN51: 0.0979 | EO51: 0.65645604
A52: Phatr3_J38623 | B52: chr_16 | C52: 549957 | D52: 550823 | E52: - | F52: 867 | G52: pti:PHATRDRAFT_38623 | H52: hypothetical protein | N52: B7G6D7 | W52: Phatr38623-16Phatr2 | X52: 96 | Y52: Predicted protein | AA52: Phaeodactylum tricornutum | AB52: 2850 | AC52: _GAP_||PF04755 | AD52: _GAP_||PAP_fibrillin | AJ52: 0 | AK52: signal peptide | AL52: 0.7884 | AM52: 0.0884 | AN52: 0.2838 | AO52: 0 | AP52: HNS | AQ52: NS | AR52: NO3- RT | AS52: 77 | AU52: 1.139154161 | AV52: 0.4787849566 | AW52: 0.4333215004 | AX52: 1 | AY52: 1 | AZ52: 20.46266667 | BA52: 29.655 | BB52: 33.42 | BC52: 57.525 | BD52: 10.195 | BE52: 10.83 | BF52: 14.865 | BG52: 15.775 | BH52: 12.46 | BI52: 14.29 | BJ52: 16.55 | BK52: 14.925 | BL52: 12.745 | BM52: 25.705 | BN52: 24.775 | BO52: 13.225 | BP52: 26.67 | BQ52: 32.64 | BR52: 29.05 | BS52: 37.79 | BT52: 50.51 | BU52: 64.54 | BV52: 12.84 | BW52: 7.55 | BX52: 10.74 | BY52: 10.92 | BZ52: 15.67 | CA52: 14.06 | CB52: 15.05 | CC52: 16.5 | CD52: 11.25 | CE52: 13.67 | CF52: 13.83 | CG52: 14.75 | CH52: 16.64 | CI52: 16.46 | CJ52: 13.84 | CK52: 16.01 | CL52: 13.52 | CM52: 11.97 | CN52: 25.87 | CO52: 25.54 | CP52: 22.65 | CQ52: 26.9 | CR52: 11.82 | CS52: 14.63 | CT52: 1.5801 | CU52: 1e-08 | CV52: 1.4584 | CW52: 3e-07 | CX52: 1.4926 | CY52: 0 | CZ52: 1.3874 | DA52: 0 | DB52: 0.9518 | DC52: 2.45e-06 | DD52: 0.8268 | DE52: 0.00013697 | DF52: 0.6655 | DG52: 0.0236557 | DH52: 0.5184 | DI52: 0.08882585 | DJ52: 1.0906 | DK52: 1.1e-07 | DL52: 0.9384 | DM52: 7.72e-06 | DN52: 1.1416 | DO52: 2e-08 | DP52: 0.9951 | DQ52: 4.1e-06 | DR52: 0.5743 | DS52: 0.00711901 | DT52: 0.4486 | DU52: 0.04230433 | DV52: 0.9398 | DW52: 6.615e-05 | DX52: 0.7949 | DY52: 0.00109479 | DZ52: 1.2473 | EA52: 6e-08 | EB52: 1.104 | EC52: 5.75e-06 | ED52: 0.0063 | EE52: 1 | EF52: -0.1153 | EG52: 0.67017173 | EH52: 0.1814 | EI52: 0.49629161 | EJ52: 0.0544 | EK52: 0.89037811 | EL52: 1.1745 | EM52: 2.1e-07 | EN52: 1.0304 | EO52: 1.192e-05
A53: Phatr3_J44839 | B53: chr_5;chr_5;chr_5;chr_5;chr_5;chr_5 | C53: 393597;393763;394085;394754;395276;395529 | D53: 393644;393899;394688;395191;395446;397124 | E53: -;-;-;-;-;- | F53: 2994 | G53: pti:PHATRDRAFT_44839 | H53: hypothetical protein | N53: B7FVU3 | W53: Phatr44839-5Phatr2 | X53: 98 | Y53: Predicted protein | AA53: Phaeodactylum tricornutum | AB53: 2850 | AC53: _GAP_||PF01363||_GAP_ | AD53: _GAP_||FYVE zinc finger||_GAP_ | AJ53: 0 | AK53: other localisation | AL53: 0.0651 | AM53: 0.0237 | AN53: 0 | AO53: 0.1 | AP53: HNS | AQ53: NS | AR53: NO3- RT | AS53: 137 | AU53: 0.6491295938 | AV53: 0.6891891892 | AW53: 0.5686626031 | AX53: 1 | AY53: 1 | AZ53: 6.318666667 | BA53: 9.395 | BB53: 3.735 | BC53: 8.56 | BD53: 5.69 | BE53: 6.54 | BF53: 8.105 | BG53: 4.365 | BH53: 4.715 | BI53: 6.575 | BJ53: 4.99 | BK53: 4.605 | BL53: 7.81 | BM53: 8.955 | BN53: 4.515 | BO53: 6.225 | BP53: 8.96 | BQ53: 9.83 | BR53: 4.23 | BS53: 3.24 | BT53: 6.99 | BU53: 10.13 | BV53: 5.78 | BW53: 5.6 | BX53: 6.41 | BY53: 6.67 | BZ53: 8.99 | CA53: 7.22 | CB53: 4.86 | CC53: 3.87 | CD53: 4.62 | CE53: 4.81 | CF53: 6.49 | CG53: 6.66 | CH53: 5.49 | CI53: 4.49 | CJ53: 3.19 | CK53: 6.02 | CL53: 6.6 | CM53: 9.02 | CN53: 9.85 | CO53: 8.06 | CP53: 5.25 | CQ53: 3.78 | CR53: 5.74 | CS53: 6.71 | CT53: 0.7683 | CU53: 3.443e-05 | CV53: -0.8034 | CW53: 0.00133162 | CX53: 0.566 | CY53: 0.00167392 | CZ53: -0.9868 | DA53: 2.369e-05 | DB53: 0.1748 | DC53: 0.39562344 | DD53: -1.4089 | DE53: 0 | DF53: 0.8782 | DG53: 0.00294082 | DH53: -0.7429 | DI53: 0.03811484 | DJ53: 0.844 | DK53: 1.77e-06 | DL53: -0.7574 | DM53: 0.00116503 | DN53: 0.6047 | DO53: 0.00066511 | DP53: -0.9932 | DQ53: 2.217e-05 | DR53: 0.6377 | DS53: 0.00200001 | DT53: -0.9409 | DU53: 0.00046207 | DV53: 0.9873 | DW53: 0.00041729 | DX53: -0.6242 | DY53: 0.08234637 | DZ53: 0.2766 | EA53: 0.23242169 | EB53: -1.3217 | EC53: 1.31e-06 | ED53: -0.1275 | EE53: 0.60269789 | EF53: -1.6983 | EG53: 0 | EH53: 0.957 | EI53: 6.192e-05 | EJ53: -0.6268 | EK53: 0.04263821 | EL53: 0.6108 | EM53: 0.00197801 | EN53: -0.9869 | EO53: 0.00013271
A54: Phatr3_J16615 | B54: chr_27 | C54: 56229 | D54: 57632 | E54: - | F54: 1404 | G54: pti:PHATRDRAFT_16615 | H54: hypothetical protein | N54: B7GCY9 | O54: KOG0776 | P54: Geranylgeranyl pyrophosphate synthase/Polyprenyl synthetase | Q54: Coenzyme transport and metabolism | R54: METABOLISM | W54: Phatr16615-27Phatr2 | X54: 89 | Y54: Predicted protein Fragment | Z54: CAM_CRCL_27199785 | AA54: Phaeodactylum tricornutum | AB54: 2850 | AC54: _GAP_||PF00348||_GAP_ | AD54: _GAP_||Polyprenyl synthetase||_GAP_ | AJ54: 0 | AK54: other localisation | AL54: 0.0729 | AM54: 0.0255 | AN54: 0 | AO54: 0.3575 | AP54: HNS | AQ54: NS | AR54: NO3- RT | AS54: 137 | AT54: 11 | AU54: 0.7849129594 | AV54: 0.6114058355 | AW54: 0.4669033201 | AX54: 1 | AY54: 1 | AZ54: 20.108 | BA54: 33.92 | BB54: 19.655 | BC54: 35.995 | BD54: 20.68 | BE54: 11.805 | BF54: 14.72 | BG54: 15.705 | BH54: 16.935 | BI54: 17.27 | BJ54: 18.355 | BK54: 15.64 | BL54: 14 | BM54: 29.535 | BN54: 23.915 | BO54: 13.49 | BP54: 35.23 | BQ54: 32.61 | BR54: 20.93 | BS54: 18.38 | BT54: 37.59 | BU54: 34.4 | BV54: 20.53 | BW54: 20.83 | BX54: 13.99 | BY54: 9.62 | BZ54: 14.42 | CA54: 15.02 | CB54: 16.42 | CC54: 14.99 | CD54: 17.03 | CE54: 16.84 | CF54: 17.77 | CG54: 16.77 | CH54: 19.28 | CI54: 17.43 | CJ54: 16.63 | CK54: 14.65 | CL54: 13.36 | CM54: 14.64 | CN54: 29.5 | CO54: 29.57 | CP54: 26.99 | CQ54: 20.84 | CR54: 9.67 | CS54: 17.31 | CT54: 0.7662 | CU54: 2.9e-07 | CV54: -0.2901 | CW54: 0.13869122 | CX54: 1.562 | CY54: 0 | CZ54: 0.5216 | DA54: 0.02896199 | DB54: 1.1671 | DC54: 0 | DD54: 0.0992 | DE54: 0.70149666 | DF54: 0.8784 | DG54: 0.00020172 | DH54: -0.2136 | DI54: 0.48479676 | DJ54: 0.8612 | DK54: 0 | DL54: -0.2278 | DM54: 0.22471695 | DN54: 1.0683 | DO54: 0 | DP54: -0.0154 | DQ54: 0.9952346 | DR54: 0.623 | DS54: 0.00011437 | DT54: -0.4385 | DU54: 0.02729226 | DV54: 1.072 | DW54: 2e-08 | DX54: -0.0131 | DY54: 1 | DZ54: 1.298 | EA54: 0 | EB54: 0.2178 | EC54: 0.38674845 | ED54: 0.0096 | EE54: 1 | EF54: -1.048 | EG54: 0 | EH54: 0.4166 | EI54: 0.04274048 | EJ54: -0.6477 | EK54: 0.00519251 | EL54: 1.3392 | EM54: 3e-08 | EN54: 0.2564 | EO54: 0.42106656
A55: Phatr3_J43490 | B55: chr_2;chr_2 | C55: 599190;599905 | D55: 599860;601129 | E55: -;- | F55: 1896 | G55: pti:PHATRDRAFT_43490 | H55: hypothetical protein | N55: B7FSE2 | O55: KOG1285 | P55: Beta, beta-carotene 15,15'-dioxygenase and related enzymes | Q55: Secondary metabolites biosynthesis, transport and catabolism | R55: METABOLISM | W55: Phatr43490-2Phatr2 | X55: 95 | Y55: Predicted protein | Z55: CAM_CRCL_32363047 | AA55: Phaeodactylum tricornutum | AB55: 2850 | AC55: _GAP_||PF03055||_GAP_ | AD55: _GAP_||Retinal pigment epithelial membrane protein||_GAP_ | AJ55: 0 | AK55: signal peptide | AL55: 0.5394 | AM55: 0.0675 | AN55: 0.0462 | AO55: 0 | AP55: HNS | AQ55: NS | AR55: NO3- RT | AS55: 137 | AT55: 93 | AU55: 0.9014881768 | AV55: 0.7101200686 | AW55: 0.220855662 | AX55: 1 | AY55: 1 | AZ55: 26.94766667 | BA55: 38.845 | BB55: 25.885 | BC55: 39.725 | BD55: 21.145 | BE55: 18.17 | BF55: 24.84 | BG55: 15.04 | BH55: 21.105 | BI55: 30.385 | BJ55: 25.315 | BK55: 27.495 | BL55: 28.615 | BM55: 31.6 | BN55: 27.96 | BO55: 28.09 | BP55: 38.55 | BQ55: 39.14 | BR55: 26.3 | BS55: 25.47 | BT55: 32.9 | BU55: 46.55 | BV55: 20.5 | BW55: 21.79 | BX55: 18.92 | BY55: 17.42 | BZ55: 23.31 | CA55: 26.37 | CB55: 10.88 | CC55: 19.2 | CD55: 19.7 | CE55: 22.51 | CF55: 26.42 | CG55: 34.35 | CH55: 26.15 | CI55: 24.48 | CJ55: 27.83 | CK55: 27.16 | CL55: 29.35 | CM55: 27.88 | CN55: 30.97 | CO55: 32.23 | CP55: 25.55 | CQ55: 30.37 | CR55: 26.48 | CS55: 29.7 | CT55: 0.9273 | CU55: 0 | CV55: 0.0653 | CW55: 0.78323508 | CX55: 1.1411 | CY55: 0 | CZ55: 0.2948 | DA55: 0.08772698 | DB55: 0.6041 | DC55: 6.05e-06 | DD55: -0.2679 | DE55: 0.09701057 | DF55: 1.1189 | DG55: 7.21e-06 | DH55: 0.2264 | DI55: 0.46394408 | DJ55: 0.7315 | DK55: 3e-08 | DL55: -0.1622 | DM55: 0.32809366 | DN55: 0.4495 | DO55: 0.00639004 | DP55: -0.4413 | DQ55: 0.01654653 | DR55: 0.3557 | DS55: 0.01087431 | DT55: -0.5121 | DU55: 0.00119856 | DV55: 0.4527 | DW55: 0.00851817 | DX55: -0.4367 | DY55: 0.0189581 | DZ55: 0.469 | EA55: 0.0014816 | EB55: -0.4181 | EC55: 0.01540916 | ED55: 0.1044 | EE55: 0.53994128 | EF55: -0.7599 | EG55: 1.73e-06 | EH55: 0.4003 | EI55: 0.02861035 | EJ55: -0.4713 | EK55: 0.01452741 | EL55: 0.4912 | EM55: 0.00085048 | EN55: -0.3967 | EO55: 0.02183463
A56: Phatr3_J8683 | B56: chr_1 | C56: 241098 | D56: 242192 | E56: + | F56: 1095 | G56: pti:PHATRDRAFT_8683 | H56: hypothetical protein | N56: B7FRI4 | O56: KOG1635 | P56: Peptide methionine sulfoxide reductase | Q56: Posttranslational modification, protein turnover, chaperones | R56: CELLULAR PROCESSES AND SIGNALING | W56: Phatr8683-1Phatr2 | X56: 100 | Y56: Predicted protein Fragment | Z56: CAM_CRCL_34027373 | AA56: Phaeodactylum tricornutum | AB56: 2850 | AC56: _GAP_||PF00254||_GAP_||PF01625 | AD56: _GAP_||FKBP-type peptidyl-prolyl cis-trans isomerase||_GAP_||Peptide methionine sulfoxide reductase | AE56: _GAP_||TIGR00401 | AF56: _GAP_||peptide-methionine (S)-S-oxide reductase | AJ56: 0 | AK56: other localisation | AL56: 0.0815 | AM56: 0.0266 | AN56: 0 | AO56: 0.1271 | AP56: HNS | AQ56: NS | AR56: NO3- RT | AS56: 139 | AU56: 0.6565678425 | AV56: 0.5517659684 | AW56: 0.4809253799 | AX56: 1 | AY56: 1 | AZ56: 48.44933333 | BA56: 39.805 | BB56: 22.67 | BC56: 76.725 | BD56: 37.215 | BE56: 28.39 | BF56: 127.47 | BG56: 38.8 | BH56: 15.74 | BI56: 43.94 | BJ56: 41.86 | BK56: 24.795 | BL56: 43.79 | BM56: 68.365 | BN56: 91.09 | BO56: 26.085 | BP56: 34.01 | BQ56: 45.6 | BR56: 24.15 | BS56: 21.19 | BT56: 79.03 | BU56: 74.42 | BV56: 41.84 | BW56: 32.59 | BX56: 35.37 | BY56: 21.41 | BZ56: 155.67 | CA56: 99.27 | CB56: 26.87 | CC56: 50.73 | CD56: 15.8 | CE56: 15.68 | CF56: 51.2 | CG56: 36.68 | CH56: 35.75 | CI56: 47.97 | CJ56: 21.91 | CK56: 27.68 | CL56: 54.72 | CM56: 32.86 | CN56: 60.09 | CO56: 76.64 | CP56: 100.66 | CQ56: 81.52 | CR56: 20.32 | CS56: 31.85 | CT56: 0.139 | CU56: 0.55586561 | CV56: -0.937 | CW56: 3.42e-06 | CX56: 0.5304 | CY56: 0.02594774 | CZ56: -0.5351 | DA56: 0.03303615 | DB56: -1.7208 | DC56: 0 | DD56: -2.8062 | DE56: 0 | DF56: -0.2041 | DG56: 0.59936732 | DH56: -1.3186 | DI56: 1.263e-05 | DJ56: 1.1885 | DK56: 0 | DL56: 0.0838 | DM56: 0.77601337 | DN56: -0.055 | DO56: 0.89577056 | DP56: -1.1588 | DQ56: 1e-08 | DR56: -0.3247 | DS56: 0.12050222 | DT56: -1.4062 | DU56: 0 | DV56: 0.6354 | DW56: 0.00440695 | DX56: -0.4674 | DY56: 0.04284101 | DZ56: -0.1027 | EA56: 0.76126981 | EB56: -1.2101 | EC56: 1.48e-06 | ED56: -0.9811 | EE56: 8.9e-07 | EF56: -2.0577 | EG56: 0 | EH56: -1.2804 | EI56: 0 | EJ56: -2.3638 | EK56: 0 | EL56: 0.6237 | EM56: 0.01028213 | EN56: -0.4818 | EO56: 0.06491999
A57: Phatr3_J49215 | B57: chr_21 | C57: 247513 | D57: 249462 | E57: - | F57: 1950 | G57: pti:PHATRDRAFT_49215 | H57: hypothetical protein | N57: B7G9V1 | O57: KOG2353 | P57: L-type voltage-dependent Ca2+ channel, alpha2/delta subunit | Q57: Inorganic ion transport and metabolism | R57: METABOLISM | W57: Phatr49215-21Phatr2 | X57: 100 | Y57: Predicted protein Fragment | Z57: CAM_CRCL_14057221 | AA57: Phaeodactylum tricornutum | AB57: 2850 | AC57: _GAP_||PF13519||_GAP_ | AD57: _GAP_||PF13519||_GAP_ | AJ57: 1 | AK57: signal peptide | AL57: 0.7381 | AM57: 0.0583 | AN57: 0.0508 | AO57: 0 | AP57: HNS | AQ57: NS | AR57: NO3- RT | AS57: 77 | AT57: 30 | AU57: 0.6854683509 | AV57: 0.5270339149 | AW57: 0.4158326774 | AX57: 1 | AY57: 1 | AZ57: 66.65733333 | BA57: 109.335 | BB57: 60.255 | BC57: 95.935 | BD57: 39.84 | BE57: 43.025 | BF57: 67.71 | BG57: 46.96 | BH57: 41.71 | BI57: 46.635 | BJ57: 52.83 | BK57: 81.55 | BL57: 54.785 | BM57: 80.565 | BN57: 128.255 | BO57: 50.47 | BP57: 113.01 | BQ57: 105.66 | BR57: 55.3 | BS57: 65.21 | BT57: 76.48 | BU57: 115.39 | BV57: 35.37 | BW57: 44.31 | BX57: 45.49 | BY57: 40.56 | BZ57: 64.37 | CA57: 71.05 | CB57: 45.58 | CC57: 48.34 | CD57: 39.32 | CE57: 44.1 | CF57: 45.6 | CG57: 47.67 | CH57: 53.75 | CI57: 51.91 | CJ57: 76.01 | CK57: 87.09 | CL57: 58.69 | CM57: 50.88 | CN57: 81.47 | CO57: 79.66 | CP57: 120.98 | CQ57: 135.53 | CR57: 45.69 | CS57: 55.25 | CT57: 1.5094 | CU57: 0 | CV57: 0.3604 | CW57: 0.02454393 | CX57: 1.3925 | CY57: 0 | CZ57: 0.2583 | DA57: 0.10613829 | DB57: 0.6532 | DC57: 3.8e-07 | DD57: -0.5024 | DE57: 0.00082094 | DF57: 0.9799 | DG57: 4e-07 | DH57: -0.1955 | DI57: 0.40705578 | DJ57: 1.2453 | DK57: 0 | DL57: 0.0633 | DM57: 0.72434575 | DN57: 1.3236 | DO57: 0 | DP57: 0.1478 | DQ57: 0.37847415 | DR57: 0.7913 | DS57: 0 | DT57: -0.3638 | DU57: 0.01447424 | DV57: 0.3798 | DW57: 0.03287141 | DX57: -0.7935 | DY57: 4.058e-05 | DZ57: 1.0276 | EA57: 0 | EB57: -0.1456 | EC57: 0.43894065 | ED57: 0.2485 | EE57: 0.07088926 | EF57: -0.9014 | EG57: 1e-08 | EH57: -0.3078 | EI57: 0.0960036 | EJ57: -1.4623 | EK57: 0 | EL57: 1.1397 | EM57: 0 | EN57: -0.0337 | EO57: 0.93675155
A58: Phatr3_J37532 | B58: chr_13 | C58: 359674 | D58: 360687 | E58: - | F58: 1014 | G58: pti:PHATRDRAFT_37532 | H58: hypothetical protein | N58: B7G316 | W58: Phatr37532-13Phatr2 | X58: 96 | Y58: Predicted protein | Z58: CAM_CRCL_5132 | AA58: Phaeodactylum tricornutum | AB58: 2850 | AC58: _GAP_||PF03364||_GAP_ | AD58: _GAP_||Polyketide cyclase / dehydrase and lipid transport||_GAP_ | AJ58: 1 | AK58: signal peptide | AL58: 0.447 | AM58: 0.1878 | AN58: 0.3163 | AO58: 0 | AP58: HNS | AQ58: NS | AR58: NO3- RT | AS58: 77 | AU58: 0.713800905 | AV58: 0.3843694494 | AW58: 0.4644758583 | AX58: 1 | AY58: 1 | AZ58: 29.349 | BA58: 41.235 | BB58: 41.715 | BC58: 47.98 | BD58: 27.685 | BE58: 24 | BF58: 22.685 | BG58: 22.74 | BH58: 20.925 | BI58: 27.64 | BJ58: 20.91 | BK58: 21.84 | BL58: 29.41 | BM58: 33.56 | BN58: 33.92 | BO58: 23.99 | BP58: 41.41 | BQ58: 41.06 | BR58: 43.54 | BS58: 39.89 | BT58: 46 | BU58: 49.96 | BV58: 27.64 | BW58: 27.73 | BX58: 21.92 | BY58: 26.08 | BZ58: 21.83 | CA58: 23.54 | CB58: 22.44 | CC58: 23.04 | CD58: 21.72 | CE58: 20.13 | CF58: 28.43 | CG58: 26.85 | CH58: 20.77 | CI58: 21.05 | CJ58: 23.03 | CK58: 20.65 | CL58: 27.34 | CM58: 31.48 | CN58: 32.95 | CO58: 34.17 | CP58: 34.46 | CQ58: 33.38 | CR58: 24.71 | CS58: 23.27 | CT58: 0.6241 | CU58: 5.401e-05 | CV58: 0.3683 | CW58: 0.04447339 | CX58: 0.8318 | CY58: 3.7e-07 | CZ58: 0.5898 | DA58: 0.00178805 | DB58: 0.8219 | DC58: 7e-08 | DD58: 0.5557 | DE58: 0.00125473 | DF58: 0.6206 | DG58: 0.00950203 | DH58: 0.3314 | DI58: 0.22803336 | DJ58: 0.8385 | DK58: 4e-08 | DL58: 0.5488 | DM58: 0.00173462 | DN58: 0.6693 | DO58: 1.144e-05 | DP58: 0.3862 | DQ58: 0.03489858 | DR58: 0.7215 | DS58: 1.186e-05 | DT58: 0.4589 | DU58: 0.01399646 | DV58: 0.8709 | DW58: 7.03e-06 | DX58: 0.5866 | DY58: 0.00740504 | DZ58: 0.5066 | EA58: 0.00408814 | EB58: 0.2267 | EC58: 0.29982006 | ED58: 0.1046 | EE58: 0.60195828 | EF58: -0.1534 | EG58: 0.42832831 | EH58: 0.2007 | EI58: 0.32082526 | EJ58: -0.0637 | EK58: 0.83249973 | EL58: 0.8115 | EM58: 5.2e-07 | EN58: 0.5283 | EO58: 0.00559245
A59: Phatr3_J11337 | B59: chr_5 | C59: 411022 | D59: 413724 | E59: - | F59: 2703 | G59: pti:PHATRDRAFT_11337 | H59: hypothetical protein | N59: B7FVU9 | O59: KOG1488 | P59: Translational repressor Pumilio/PUF3 and related RNA-binding proteins (Puf superfamily) | Q59: Translation, ribosomal structure and biogenesis | R59: INFORMATION STORAGE AND PROCESSING | W59: contig_39415_219_2939-NitzIllumina | X59: 59 | Z59: CAM_CRCL_4011754 | AB59: -25000 | AC59: _GAP_||PF00806||_GAP_ | AD59: _GAP_||Pumilio-family RNA binding repeat||_GAP_ | AJ59: 0 | AK59: other localisation | AL59: 0.0661 | AM59: 0.024 | AN59: 0 | AO59: 0.1318 | AP59: HNS | AQ59: NS | AR59: NO3- RT | AS59: 138 | AU59: 0.6224017338 | AV59: 0.5695581015 | AW59: 0.3350065068 | AX59: 1 | AY59: 1 | AZ59: 25.58766667 | BA59: 22.965 | BB59: 27.87 | BC59: 33.275 | BD59: 19.01 | BE59: 21.705 | BF59: 32.155 | BG59: 17.48 | BH59: 19.555 | BI59: 23.865 | BJ59: 22.39 | BK59: 29.58 | BL59: 29.65 | BM59: 31.4 | BN59: 33.58 | BO59: 19.335 | BP59: 22.9 | BQ59: 23.03 | BR59: 30.05 | BS59: 25.69 | BT59: 33.39 | BU59: 33.16 | BV59: 16.91 | BW59: 21.11 | BX59: 21.8 | BY59: 21.61 | BZ59: 31.63 | CA59: 32.68 | CB59: 20.09 | CC59: 14.87 | CD59: 18.27 | CE59: 20.84 | CF59: 20.74 | CG59: 26.99 | CH59: 21.66 | CI59: 23.12 | CJ59: 29.3 | CK59: 29.86 | CL59: 27.6 | CM59: 31.7 | CN59: 30.44 | CO59: 32.36 | CP59: 32.39 | CQ59: 34.77 | CR59: 17.89 | CS59: 20.78 | CT59: 0.3248 | CU59: 0.03293901 | CV59: 0.3322 | CW59: 0.06806694 | CX59: 0.128 | CY59: 0.39615103 | CZ59: 0.1511 | DA59: 0.43827372 | DB59: -0.5245 | DC59: 3.376e-05 | DD59: -0.5261 | DE59: 0.00031397 | DF59: 0.159 | DG59: 0.60520199 | DH59: 0.1308 | DI59: 0.70287183 | DJ59: 0.0846 | DK59: 0.58581043 | DL59: 0.0609 | DM59: 0.79037871 | DN59: 0.0396 | DO59: 0.9016975 | DP59: 0.0179 | DQ59: 1 | DR59: -0.2183 | DS59: 0.12365776 | DT59: -0.2175 | DU59: 0.1897231 | DV59: -0.4104 | DW59: 0.01528802 | DX59: -0.4304 | DY59: 0.02199201 | DZ59: -0.346 | EA59: 0.02747634 | EB59: -0.3623 | EC59: 0.04684764 | ED59: -0.6447 | EE59: 4.25e-06 | EF59: -0.6397 | EG59: 0.00011397 | EH59: -0.6257 | EI59: 0.00020061 | EJ59: -0.6275 | EK59: 0.00093261 | EL59: 0.2712 | EM59: 0.08866616 | EN59: 0.2529 | EO59: 0.19309262
A60: Phatr3_J15229 | B60: chr_18;chr_18 | C60: 130714;132564 | D60: 132473;133809 | E60: +;+ | F60: 3006 | G60: tps:THAPSDRAFT_267933 | H60: vascular plant like serine/threonine protein kinase | N60: B8BSZ6 | O60: KOG0583 | P60: Serine/threonine protein kinase | Q60: Signal transduction mechanisms | R60: CELLULAR PROCESSES AND SIGNALING | W60: contig_144_443_1518-NitzIllumina | X60: 55 | Z60: CAM_CRCL_4018811 | AB60: -25000 | AC60: _GAP_||PF00069 | AD60: _GAP_||Protein kinase domain | AJ60: 0 | AK60: other localisation | AL60: 0.0522 | AM60: 0.0216 | AN60: 0 | AO60: 0.1279 | AP60: HNS | AQ60: NS | AR60: NO3- RT | AS60: 137 | AT60: 100 | AU60: 0.362674193 | AV60: 0.558583741 | AW60: 0.5142682741 | AX60: 1 | AY60: 1 | AZ60: 33.163 | BA60: 56.99 | BB60: 18.87 | BC60: 33.485 | BD60: 28.845 | BE60: 29.735 | BF60: 40.225 | BG60: 23.205 | BH60: 27.685 | BI60: 34.56 | BJ60: 24.34 | BK60: 30.715 | BL60: 40.085 | BM60: 41.19 | BN60: 36.785 | BO60: 30.73 | BP60: 64.94 | BQ60: 49.04 | BR60: 20.47 | BS60: 17.27 | BT60: 28.1 | BU60: 38.87 | BV60: 28.34 | BW60: 29.35 | BX60: 30.74 | BY60: 28.73 | BZ60: 40.35 | CA60: 40.1 | CB60: 26.74 | CC60: 19.67 | CD60: 28.67 | CE60: 26.7 | CF60: 32.87 | CG60: 36.25 | CH60: 22.19 | CI60: 26.49 | CJ60: 29.48 | CK60: 31.95 | CL60: 38.58 | CM60: 41.59 | CN60: 48.02 | CO60: 34.36 | CP60: 36.56 | CQ60: 37.01 | CR60: 28.83 | CS60: 32.63 | CT60: 1.0336 | CU60: 0 | CV60: -0.8308 | CW60: 1.4e-07 | CX60: 0.9859 | CY60: 0 | CZ60: -0.8626 | DA60: 9e-08 | DB60: 0.4663 | DC60: 0.00215241 | DD60: -1.4085 | DE60: 0 | DF60: 1.0556 | DG60: 8.62e-06 | DH60: -0.8423 | DI60: 0.00052688 | DJ60: 0.8992 | DK60: 0 | DL60: -0.9984 | DM60: 0 | DN60: 0.8158 | DO60: 1.3e-07 | DP60: -1.0759 | DQ60: 0 | DR60: 0.9772 | DS60: 0 | DT60: -0.8955 | DU60: 5e-08 | DV60: 0.8472 | DW60: 6.67e-06 | DX60: -1.0442 | DY60: 1e-08 | DZ60: 0.5334 | EA60: 0.00079845 | EB60: -1.3552 | EC60: 0 | ED60: 0.2805 | EE60: 0.13372037 | EF60: -1.587 | EG60: 0 | EH60: 0.5522 | EI60: 0.00417519 | EJ60: -1.3204 | EK60: 0 | EL60: 0.9174 | EM60: 2e-08 | EN60: -0.9734 | EO60: 1e-08
A61: Phatr3_J47900 | B61: chr_15 | C61: 387667 | D61: 388257 | E61: - | F61: 591 | G61: pti:PHATRDRAFT_47900 | H61: hypothetical protein | N61: B7G5A9 | W61: Phatr47900-15Phatr2 | X61: 92 | Y61: Predicted protein | AA61: Phaeodactylum tricornutum | AB61: 2850 | AJ61: 0 | AK61: other localisation | AL61: 0.0929 | AM61: 0.0297 | AN61: 0 | AO61: 0.1428 | AP61: HNS | AQ61: NS | AR61: NO3- RT | AS61: 139 | AU61: 0.4827492897 | AV61: 0.3534939329 | AW61: 0.3059012115 | AX61: 1 | AY61: 1 | AZ61: 282.6146667 | BA61: 437.155 | BB61: 268.215 | BC61: 321.125 | BD61: 215.105 | BE61: 300.95 | BF61: 368.325 | BG61: 196.245 | BH61: 185.135 | BI61: 298.85 | BJ61: 206.085 | BK61: 232.705 | BL61: 340.14 | BM61: 280.51 | BN61: 320.845 | BO61: 267.83 | BP61: 380.33 | BQ61: 493.98 | BR61: 279.57 | BS61: 256.86 | BT61: 302.87 | BU61: 339.38 | BV61: 206.52 | BW61: 223.69 | BX61: 286.78 | BY61: 315.12 | BZ61: 366.52 | CA61: 370.13 | CB61: 181.71 | CC61: 210.78 | CD61: 183.11 | CE61: 187.16 | CF61: 319.91 | CG61: 277.79 | CH61: 207.83 | CI61: 204.34 | CJ61: 213.48 | CK61: 251.93 | CL61: 340.72 | CM61: 339.56 | CN61: 286.77 | CO61: 274.25 | CP61: 305.17 | CQ61: 336.52 | CR61: 274.26 | CS61: 261.4 | CT61: 1.0754 | CU61: 0 | CV61: 0.0905 | CW61: 0.65406754 | CX61: 0.5878 | CY61: 0.00038012 | CZ61: -0.3828 | DA61: 0.02094667 | DB61: 0.2091 | DC61: 0.20282487 | DD61: -0.7829 | DE61: 2e-08 | DF61: 0.9189 | DG61: 2.32e-05 | DH61: -0.097 | DI61: 0.73714151 | DJ61: 1.0969 | DK61: 0 | DL61: 0.0791 | DM61: 0.68179598 | DN61: 0.6442 | DO61: 7.279e-05 | DP61: -0.3682 | DQ61: 0.02455001 | DR61: 0.8288 | DS61: 4e-08 | DT61: -0.1622 | DU61: 0.3137536 | DV61: 0.8686 | DW61: 1.009e-05 | DX61: -0.1431 | DY61: 0.53471487 | DZ61: 0.3904 | EA61: 0.01778157 | EB61: -0.6183 | EC61: 9.185e-05 | ED61: 0.4497 | EE61: 0.00615364 | EF61: -0.537 | EG61: 0.00071721 | EH61: 0.3708 | EI61: 0.07445639 | EJ61: -0.6227 | EK61: 0.00177479 | EL61: 0.7378 | EM61: 5.92e-06 | EN61: -0.2739 | EO61: 0.10896406
A62: Phatr3_J45758 | B62: chr_8 | C62: 161903 | D62: 163831 | E62: - | F62: 1929 | G62: pti:PHATRDRAFT_45758 | H62: nadph-cytochrome P450 reductase; K00327 NADPH-ferrihemoprotein reductase [EC:1.6.2.4] | J62: K00327 | K62: NADPH-ferrihemoprotein reductase [EC:1.6.2.4] | M62: 1.6.2.4 | N62: B7FZQ1 | O62: KOG1158 | P62: NADP/FAD dependent oxidoreductase | Q62: Energy production and conversion | R62: METABOLISM | W62: Phatr45758-8Phatr2 | X62: 90 | Y62: Nadph-cytochrome P450 reductase | Z62: CAM_CRCL_31750299 | AA62: Phaeodactylum tricornutum | AB62: 2850 | AC62: PF00258||_GAP_||PF00667||_GAP_||PF00175||_GAP_ | AD62: Flavodoxin||_GAP_||FAD binding domain||_GAP_||Oxidoreductase NAD-binding domain ||_GAP_ | AJ62: 0 | AK62: other localisation | AL62: 0.0629 | AM62: 0.0235 | AN62: 0 | AO62: 0.0884 | AP62: HNS | AQ62: NS | AR62: NO3- RT | AS62: 77 | AU62: 0.640814348 | AV62: 1.792188542 | AW62: 1.102595198 | AX62: 1 | AY62: 1 | AZ62: 14.07066667 | BA62: 35.13 | BB62: 6.42 | BC62: 6.81 | BD62: 5.75 | BE62: 11.075 | BF62: 8.675 | BG62: 3.505 | BH62: 3.405 | BI62: 3.955 | BJ62: 18.5 | BK62: 7.675 | BL62: 4.395 | BM62: 63.96 | BN62: 28.69 | BO62: 3.115 | BP62: 37.27 | BQ62: 32.99 | BR62: 6.38 | BS62: 6.46 | BT62: 4.2 | BU62: 9.42 | BV62: 5.46 | BW62: 6.04 | BX62: 10.9 | BY62: 11.25 | BZ62: 7.88 | CA62: 9.47 | CB62: 4.72 | CC62: 2.29 | CD62: 3.55 | CE62: 3.26 | CF62: 3.62 | CG62: 4.29 | CH62: 18.22 | CI62: 18.78 | CJ62: 9.23 | CK62: 6.12 | CL62: 4.7 | CM62: 4.09 | CN62: 72.42 | CO62: 55.5 | CP62: 36.69 | CQ62: 20.69 | CR62: 2.73 | CS62: 3.5 | CT62: 2.663 | CU62: 0 | CV62: -0.0685 | CW62: 0.87219103 | CX62: 1.7162 | CY62: 0 | CZ62: -1.0001 | DA62: 1.73e-06 | DB62: 1.9768 | DC62: 0 | DD62: -0.765 | DE62: 0.0011329 | DF62: 3.1394 | DG62: 0 | DH62: 0.3562 | DI62: 0.50624162 | DJ62: 3.2338 | DK62: 0 | DL62: 0.4665 | DM62: 0.05570848 | DN62: 3.2568 | DO62: 0 | DP62: 0.4926 | DQ62: 0.07054494 | DR62: 0.6719 | DS62: 2.64e-06 | DT62: -2.066 | DU62: 0 | DV62: 2.1475 | DW62: 0 | DX62: -0.6117 | DY62: 0.05031992 | DZ62: 3.0404 | EA62: 0 | EB62: 0.2792 | EC62: 0.3888666 | ED62: -1.0513 | EE62: 0 | EF62: -3.783 | EG62: 0 | EH62: 0.2035 | EI62: 0.48077392 | EJ62: -2.5335 | EK62: 0 | EL62: 3.4977 | EM62: 0 | EN62: 0.7505 | EO62: 0.00884043
A63: Phatr3_J50103 | B63: chr_27 | C63: 47017 | D63: 48702 | E63: - | F63: 1686 | G63: pti:PHATRDRAFT_50103 | H63: hypothetical protein | N63: B7GCY5 | O63: KOG4249 | P63: Uncharacterized conserved protein | Q63: Function unknown | R63: POORLY CHARACTERIZED | W63: Phatr50103-27Phatr2 | X63: 92 | Y63: Predicted protein | Z63: CAM_CRCL_5159057 | AA63: Phaeodactylum tricornutum | AB63: 2850 | AC63: _GAP_||PF04884||_GAP_ | AD63: _GAP_||Protein of unknown function, DUF647||_GAP_ | AJ63: 0 | AK63: other localisation | AL63: 0.0642 | AM63: 0.0256 | AN63: 0 | AO63: 0.3552 | AP63: HNS | AQ63: NS | AR63: NO3- RT | AS63: 77 | AT63: 57 | AU63: 0.4680591925 | AV63: 0.2792256652 | AW63: 0.5489596083 | AX63: 1 | AY63: 1 | AZ63: 31.759 | BA63: 52.77 | BB63: 31.375 | BC63: 50.66 | BD63: 16.015 | BE63: 22.89 | BF63: 33.42 | BG63: 31.445 | BH63: 22.26 | BI63: 23.395 | BJ63: 23.71 | BK63: 29.985 | BL63: 30.66 | BM63: 41.65 | BN63: 41.59 | BO63: 24.56 | BP63: 51.68 | BQ63: 53.86 | BR63: 29.38 | BS63: 33.37 | BT63: 47.17 | BU63: 54.15 | BV63: 14.5 | BW63: 17.53 | BX63: 24.07 | BY63: 21.71 | BZ63: 30.68 | CA63: 36.16 | CB63: 29.69 | CC63: 33.2 | CD63: 22.39 | CE63: 22.13 | CF63: 22.75 | CG63: 24.04 | CH63: 22.24 | CI63: 25.18 | CJ63: 28.92 | CK63: 31.05 | CL63: 33.79 | CM63: 27.53 | CN63: 41.01 | CO63: 42.29 | CP63: 47.27 | CQ63: 35.91 | CR63: 26.76 | CS63: 22.36 | CT63: 1.7712 | CU63: 0 | CV63: 0.7331 | CW63: 1.412e-05 | CX63: 1.2497 | CY63: 0 | CZ63: 0.2267 | DA63: 0.18308172 | DB63: 0.6178 | DC63: 5.78e-06 | DD63: -0.4284 | DE63: 0.00820771 | DF63: 0.5066 | DG63: 0.01210058 | DH63: -0.5592 | DI63: 0.01066961 | DJ63: 1.1011 | DK63: 0 | DL63: 0.0292 | DM63: 0.91835295 | DN63: 1.2673 | DO63: 0 | DP63: 0.2018 | DQ63: 0.25771829 | DR63: 0.9026 | DS63: 0 | DT63: -0.1431 | DU63: 0.43581709 | DV63: 0.7705 | DW63: 3.35e-06 | DX63: -0.2931 | DY63: 0.12735417 | DZ63: 0.8174 | EA63: 1.4e-07 | EB63: -0.2459 | EC63: 0.2126618 | ED63: 0.1478 | EE63: 0.34050587 | EF63: -0.8921 | EG63: 1e-08 | EH63: 0.2584 | EI63: 0.2091648 | EJ63: -0.7857 | EK63: 0.00011803 | EL63: 1.138 | EM63: 0 | EN63: 0.072 | EO63: 0.7705723
A64: Phatr3_J47780 | B64: chr_15;chr_15 | C64: 10844;11444 | D64: 11106;13331 | E64: -;- | F64: 2151 | G64: pti:PHATRDRAFT_47780 | H64: hypothetical protein | N64: B7G4W1 | W64: Phatr47780-15Phatr2 | X64: 98 | Y64: Predicted protein | Z64: CAM_CRCL_4076318 | AA64: Phaeodactylum tricornutum | AB64: 2850 | AC64: _GAP_||PF14305||_GAP_ | AD64: _GAP_||PF14305||_GAP_ | AJ64: 4 | AK64: mitochondrion | AL64: 0.3474 | AM64: 0.2372 | AN64: 0 | AO64: 0.5636 | AQ64: NS | AS64: 190 | AU64: 1.989665418 | AV64: 1.98053528 | AW64: 1.754877209 | AX64: 1 | AY64: 1 | AZ64: 12.098 | BA64: 3.52 | BB64: 2.815 | BC64: 38.605 | BD64: 3.325 | BE64: 11.73 | BF64: 18.91 | BG64: 0.1 | BH64: 0.94 | BI64: 19.05 | BJ64: 1.335 | BK64: 2.44 | BL64: 23.03 | BM64: 20.45 | BN64: 15.565 | BO64: 19.655 | BP64: 3.41 | BQ64: 3.63 | BR64: 2.12 | BS64: 3.51 | BT64: 34.4 | BU64: 42.81 | BV64: 3.28 | BW64: 3.37 | BX64: 12.3 | BY64: 11.16 | BZ64: 16.89 | CA64: 20.93 | CB64: 0 | CC64: 0.2 | CD64: 0.8 | CE64: 1.08 | CF64: 15.58 | CG64: 22.52 | CH64: 1.28 | CI64: 1.39 | CJ64: 3.18 | CK64: 1.7 | CL64: 17.91 | CM64: 28.15 | CN64: 19.69 | CO64: 21.21 | CP64: 13.77 | CQ64: 17.36 | CR64: 19.19 | CS64: 20.12 | CT64: 0.1226 | CU64: 0.74061648 | CV64: -0.5402 | CW64: 0.13439672 | CX64: -1.7 | CY64: 0 | CZ64: -2.3587 | DA64: 0 | DB64: -2.4733 | DC64: 0 | DD64: -3.1618 | DE64: 0 | DF64: 4.6234 | DG64: 0 | DH64: 3.9799 | DI64: 2.9e-07 | DJ64: 1.7171 | DK64: 0 | DL64: 1.0338 | DM64: 0.00259879 | DN64: -2.3473 | DO64: 0 | DP64: -3.0442 | DQ64: 0 | DR64: 1.1346 | DS64: 0.00029642 | DT64: 0.4726 | DU64: 0.22990608 | DV64: 0.4776 | DW64: 0.24012105 | DX64: -0.194 | DY64: 0.78400698 | DZ64: -2.6976 | EA64: 0 | EB64: -3.3835 | EC64: 0 | ED64: -2.7394 | EE64: 0 | EF64: -3.4225 | EG64: 0 | EH64: -2.223 | EI64: 0 | EJ64: -2.8989 | EK64: 0 | EL64: -2.4631 | EM64: 0 | EN64: -3.1704 | EO64: 0
A65: Phatr3_EG02608 | B65: chr_2;chr_2 | C65: 680094;681143 | D65: 681056;681616 | E65: -;- | F65: 1437 | G65: pti:PHATRDRAFT_54101 | H65: hypothetical protein | N65: B7FSH2 | W65: Phatr54101-2Phatr2 | X65: 97 | Y65: Predicted protein | Z65: CAM_CRCL_32368787 | AA65: Phaeodactylum tricornutum | AB65: 2850 | AC65: _GAP_||PF07690||_GAP_ | AD65: _GAP_||Major Facilitator Superfamily||_GAP_ | AG65: MFS | AI65: 3 | AJ65: 9 | AK65: other localisation | AL65: 0.1219 | AM65: 0.2509 | AN65: 0 | AO65: 0.203 | AQ65: NS | AS65: 190 | AU65: 1.959904535 | AV65: 1.903835146 | AW65: 1.807928532 | AX65: 1 | AY65: 1 | AZ65: 7.345 | BA65: 4.58 | BB65: 1.785 | BC65: 20.74 | BD65: 2.335 | BE65: 8.97 | BF65: 23.53 | BG65: 0.21 | BH65: 0.51 | BI65: 8.125 | BJ65: 0.43 | BK65: 1.67 | BL65: 19.975 | BM65: 8.525 | BN65: 3.15 | BO65: 5.64 | BP65: 3.65 | BQ65: 5.51 | BR65: 0.95 | BS65: 2.62 | BT65: 5.34 | BU65: 36.14 | BV65: 3.32 | BW65: 1.35 | BX65: 8.86 | BY65: 9.08 | BZ65: 30.66 | CA65: 16.4 | CB65: 0.42 | CC65: 0 | CD65: 0.44 | CE65: 0.58 | CF65: 8.24 | CG65: 8.01 | CH65: 0.19 | CI65: 0.67 | CJ65: 1.98 | CK65: 1.36 | CL65: 8.86 | CM65: 31.09 | CN65: 6.8 | CO65: 10.25 | CP65: 3.02 | CQ65: 3.28 | CR65: 6.52 | CS65: 4.76 | CT65: 0.9969 | CU65: 0.0318489 | CV65: -0.7313 | CW65: 0.31194673 | CX65: -0.9549 | CY65: 0.00072818 | CZ65: -2.7256 | DA65: 0 | DB65: -2.4192 | DC65: 0 | DD65: -4.2003 | DE65: 0 | DF65: 4.3826 | DG65: 6e-08 | DH65: 2.6463 | DI65: 0.02481796 | DJ65: 2.9509 | DK65: 0 | DL65: 1.1783 | DM65: 0.02669385 | DN65: -0.7652 | DO65: 0.00887239 | DP65: -2.5693 | DQ65: 0 | DR65: 3.2916 | DS65: 0 | DT65: 1.5341 | DU65: 0.04022747 | DV65: 1.3908 | DW65: 0.00075371 | DX65: -0.377 | DY65: 0.62772589 | DZ65: -2.1182 | EA65: 1.52e-05 | EB65: -3.8663 | EC65: 0 | ED65: -1.1101 | EE65: 0.00214046 | EF65: -2.8638 | EG65: 0 | EH65: 0.4401 | EI65: 0.24972821 | EJ65: -1.3233 | EK65: 0.00889508 | EL65: -0.2828 | EM65: 0.46658328 | EN65: -2.0704 | EO65: 1.16e-05
A66: Phatr3_J29042 | B66: chr_15 | C66: 27169 | D66: 28395 | E66: - | F66: 1227 | G66: pti:PHATRDRAFT_29042 | H66: hypothetical protein | J66: K15272 | K66: solute carrier family 35 (UDP-sugar transporter), member A1/2/3 | N66: B7G4W7 | O66: KOG2234 | P66: Predicted UDP-galactose transporter | Q66: Carbohydrate transport and metabolism | R66: METABOLISM | W66: Phatr29042-15Phatr2 | X66: 92 | Y66: Predicted protein | Z66: CAM_CRCL_27069837 | AA66: Phaeodactylum tricornutum | AB66: 2850 | AC66: _GAP_||PF04142 | AD66: _GAP_||Nucleotide-sugar transporter | AG66: DMT | AI66: 2 | AJ66: 3 | AK66: other localisation | AL66: 0.1409 | AM66: 0.2272 | AN66: 0 | AO66: 0.2217 | AQ66: NS | AS66: 190 | AU66: 1.930051282 | AV66: 1.855047821 | AW66: 1.550553 | AX66: 1 | AY66: 1 | AZ66: 40.93266667 | BA66: 13.775 | BB66: 28.905 | BC66: 95.795 | BD66: 21.495 | BE66: 50.975 | BF66: 67.42 | BG66: 1.705 | BH66: 3.39 | BI66: 76.38 | BJ66: 5.74 | BK66: 10.675 | BL66: 85.35 | BM66: 45.345 | BN66: 39.835 | BO66: 67.205 | BP66: 11.05 | BQ66: 16.5 | BR66: 24.84 | BS66: 32.97 | BT66: 83.97 | BU66: 107.62 | BV66: 20.82 | BW66: 22.17 | BX66: 52.83 | BY66: 49.12 | BZ66: 55.43 | CA66: 79.41 | CB66: 0.49 | CC66: 2.92 | CD66: 3.46 | CE66: 3.32 | CF66: 67.44 | CG66: 85.32 | CH66: 6.3 | CI66: 5.18 | CJ66: 9.25 | CK66: 12.1 | CL66: 69.85 | CM66: 100.85 | CN66: 49.91 | CO66: 40.78 | CP66: 40.55 | CQ66: 39.12 | CR66: 64.12 | CS66: 70.29 | CT66: -0.6085 | CU66: 0.01089935 | CV66: 0.1753 | CW66: 0.40499055 | CX66: -1.8643 | CY66: 0 | CZ66: -1.0606 | DA66: 0 | DB66: -2.3489 | DC66: 0 | DD66: -1.5672 | DE66: 0 | DF66: 2.6688 | DG66: 1.2e-07 | DH66: 3.4034 | DI66: 0 | DJ66: 1.8681 | DK66: 0 | DL66: 2.6187 | DM66: 0 | DN66: -2.3979 | DO66: 0 | DP66: -1.6354 | DQ66: 0 | DR66: 0.98 | DS66: 0.00105403 | DT66: 1.7513 | DU66: 0 | DV66: 0.3133 | DW66: 0.31761676 | DX66: 1.0693 | DY66: 1.053e-05 | DZ66: -2.6242 | EA66: 0 | EB66: -1.8612 | EC66: 0 | ED66: -1.9286 | EE66: 0 | EF66: -1.1431 | EG66: 0 | EH66: -1.6277 | EI66: 0 | EJ66: -0.8493 | EK66: 3.128e-05 | EL66: -2.282 | EM66: 0 | EN66: -1.5193 | EO66: 0
A67: Phatr3_J38085 | B67: chr_15;chr_15;chr_15;chr_15;chr_15;chr_15 | C67: 28878;29634;30001;30384;30771;31036 | D67: 29525;29912;30303;30619;30953;31246 | E67: +;+;+;+;+;+ | F67: 1860 | G67: pti:PHATRDRAFT_38085 | H67: hypothetical protein; K03147 thiamine biosynthesis protein ThiC | I67: pti01100||pti00730 | J67: K03147 | K67: thiamine biosynthesis protein ThiC | L67: Thiamine metabolism | N67: B7G4W8 | W67: Phatr38085-15Phatr2 | X67: 97 | Y67: Predicted protein | Z67: CAM_CRCL_32561711 | AA67: Phaeodactylum tricornutum | AB67: 2850 | AC67: _GAP_||PF13667||PF01964||_GAP_ | AD67: _GAP_||PF13667||ThiC family||_GAP_ | AE67: _GAP_||TIGR00190||_GAP_ | AF67: _GAP_||thiamine biosynthesis protein ThiC||_GAP_ | AJ67: 0 | AK67: other localisation | AL67: 0.0999 | AM67: 0.0302 | AN67: 0 | AO67: 0.2589 | AQ67: NS | AS67: 190 | AT67: 57 | AU67: =(BC67-BG67)/AVERAGE(BC67,BG67) -> 1.926539258 | AV67: =(BM67-BG67)/(AVERAGE(BG67,BM67)) -> 1.702011326 | AW67: =(BM67-BJ67)/AVERAGE(BM67,BJ67) -> 1.614834589 | AX67: =IF(BC67>BB67,1,0) -> 1 | AY67: =IF(AZ67>5,1,0) -> 1 | AZ67: =AVERAGE(BA67:BO67) -> 81.47766667 | BA67: =AVERAGE(BP67:BQ67) -> 39.925 | BB67: =AVERAGE(BR67:BS67) -> 36.25 | BC67: =AVERAGE(BT67:BU67) -> 203.915 | BD67: =AVERAGE(BV67:BW67) -> 34.34 | BE67: =AVERAGE(BX67:BY67) -> 146.77 | BF67: =AVERAGE(BZ67:CA67) -> 133.82 | BG67: =AVERAGE(CB67:CC67) -> 3.815 | BH67: =AVERAGE(CD67:CE67) -> 5.605 | BI67: =AVERAGE(CF67:CG67) -> 186.795 | BJ67: =AVERAGE(CH67:CI67) -> 5.05 | BK67: =AVERAGE(CJ67:CK67) -> 15.6 | BL67: =AVERAGE(CL67:CM67) -> 139.99 | BM67: =AVERAGE(CN67:CO67) -> 47.395 | BN67: =AVERAGE(CP67:CQ67) -> 98.33 | BO67: =AVERAGE(CR67:CS67) -> 124.565 | BP67: 37.04 | BQ67: 42.81 | BR67: 33.45 | BS67: 39.05 | BT67: 274.29 | BU67: 133.54 | BV67: 35.7 | BW67: 32.98 | BX67: 149.28 | BY67: 144.26 | BZ67: 125.5 | CA67: 142.14 | CB67: 4.24 | CC67: 3.39 | CD67: 5.96 | CE67: 5.25 | CF67: 161.88 | CG67: 211.71 | CH67: 5.2 | CI67: 4.9 | CJ67: 19.35 | CK67: 11.85 | CL67: 122.4 | CM67: 157.58 | CN67: 47.23 | CO67: 47.56 | CP67: 108.8 | CQ67: 87.86 | CR67: 125.82 | CS67: 123.31 | CT67: 0.2632 | CU67: 0.08157041 | CV67: -0.1643 | CW67: 0.3519586 | CX67: -1.8336 | CY67: 0 | CZ67: -2.2452 | DA67: 0 | DB67: -1.7868 | DC67: 0 | DD67: -2.22 | DE67: 0 | DF67: 3.167 | DG67: 0 | DH67: 2.7116 | DI67: 0 | DJ67: 2.6949 | DK67: 0 | DL67: 2.2347 | DM67: 0 | DN67: -2.1354 | DO67: 0 | DP67: -2.588 | DQ67: 0 | DR67: 2.714 | DS67: 0 | DT67: 2.2822 | DU67: 0 | DV67: 1.3046 | DW67: 7e-08 | DX67: 0.852 | DY67: 0.00065378 | DZ67: -1.7874 | EA67: 0 | EB67: -2.2369 | EC67: 0 | ED67: -0.443 | EE67: 0.00320403 | EF67: -0.8709 | EG67: 1e-08 | EH67: -1.3823 | EI67: 0 | EJ67: -1.8159 | EK67: 0 | EL67: -1.6152 | EM67: 0 | EN67: -2.0682 | EO67: 0
A68: Phatr3_J43503 | B68: chr_2 | C68: 653568 | D68: 654584 | E68: - | F68: 1017 | G68: pti:PHATRDRAFT_43503 | H68: hypothetical protein | N68: B7FSG0 | W68: Phatr43503-2Phatr2 | X68: 100 | Y68: Predicted protein | Z68: CAM_CRCL_34134174 | AA68: Phaeodactylum tricornutum | AB68: 2850 | AJ68: 1 | AK68: chloroplast | AL68: 0.6992 | AM68: 0.1079 | AN68: 0.5606 | AO68: 0 | AQ68: NS | AS68: 188 | AU68: 1.861009393 | AV68: 1.781886321 | AW68: 1.531731218 | AX68: 1 | AY68: 1 | AZ68: 50.85133333 | BA68: 80.895 | BB68: 58.46 | BC68: 121.255 | BD68: 13.375 | BE68: 32.41 | BF68: 87.135 | BG68: 4.365 | BH68: 4.32 | BI68: 73.195 | BJ68: 10.035 | BK68: 13.47 | BL68: 89.81 | BM68: 75.685 | BN68: 36.36 | BO68: 62 | BP68: 81.27 | BQ68: 80.52 | BR68: 54.48 | BS68: 62.44 | BT68: 103.79 | BU68: 138.72 | BV68: 10.16 | BW68: 16.59 | BX68: 30.19 | BY68: 34.63 | BZ68: 87.31 | CA68: 86.96 | CB68: 4.18 | CC68: 4.55 | CD68: 3.09 | CE68: 5.55 | CF68: 76.95 | CG68: 69.44 | CH68: 9.57 | CI68: 10.5 | CJ68: 10.78 | CK68: 16.16 | CL68: 94.89 | CM68: 84.73 | CN68: 83.55 | CO68: 67.82 | CP68: 36.13 | CQ68: 36.59 | CR68: 54.28 | CS68: 69.72 | CT68: 2.6509 | CU68: 0 | CV68: 1.8951 | CW68: 0 | CX68: 1.3696 | CY68: 0 | CZ68: 0.6259 | DA68: 0.00018429 | DB68: -0.1453 | DC68: 0.28824024 | DD68: -0.9118 | DE68: 0 | DF68: 3.9664 | DG68: 0 | DH68: 3.1835 | DI68: 0 | DJ68: 4.0231 | DK68: 0 | DL68: 3.2451 | DM68: 0 | DN68: 0.237 | DO68: 0.08868138 | DP68: -0.5479 | DQ68: 0.00041256 | DR68: 2.7605 | DS68: 0 | DT68: 1.9962 | DU68: 0 | DV68: 2.5414 | DW68: 0 | DX68: 1.7604 | DY68: 0 | DZ68: -0.1208 | EA68: 0.45592791 | EB68: -0.903 | EC68: 2e-08 | ED68: -0.0947 | EE68: 0.59386607 | EF68: -0.8533 | EG68: 7e-08 | EH68: 1.0747 | EI68: 0 | EJ68: 0.3109 | EK68: 0.11247984 | EL68: 0.4056 | EM68: 0.0145085 | EN68: -0.376 | EO68: 0.04848552
A69: Phatr3_J12925 | B69: chr_9;chr_9 | C69: 760920;761637 | D69: 761552;762071 | E69: +;+ | F69: 1068 | G69: pti:PHATRDRAFT_12925 | H69: hypothetical protein; K00589 uroporphyrin-III C-methyltransferase [EC:2.1.1.107] | I69: pti01100||pti00860||pti01110 | J69: K00589 | K69: uroporphyrin-III C-methyltransferase [EC:2.1.1.107] | L69: Porphyrin and chlorophyll metabolism | M69: 2.1.1.107 | N69: B7G0M8 | O69: KOG1527 | P69: Uroporphyrin III methyltransferase | Q69: Coenzyme transport and metabolism | R69: METABOLISM | W69: Phatr12925-9Phatr2 | X69: 100 | Y69: Predicted protein Fragment | Z69: CAM_CRCL_31750578 | AA69: Phaeodactylum tricornutum | AB69: 2850 | AC69: _GAP_||PF00590||_GAP_ | AD69: _GAP_||Tetrapyrrole (Corrin/Porphyrin) Methylases||_GAP_ | AE69: _GAP_||TIGR01469 | AF69: _GAP_||uroporphyrinogen-III C-methyltransferase | AJ69: 0 | AK69: signal peptide | AL69: 0.6202 | AM69: 0.0636 | AN69: 0.0478 | AO69: 0 | AQ69: NS | AS69: 3 | AT69: 57 | AU69: 1.801596845 | AV69: 1.633946887 | AW69: 1.582143086 | AX69: 1 | AY69: 1 | AZ69: 315.304 | BA69: 1072.865 | BB69: 160.46 | BC69: 944.54 | BD69: 79.805 | BE69: 206.995 | BF69: 392.065 | BG69: 49.295 | BH69: 69.77 | BI69: 221.405 | BJ69: 57.085 | BK69: 127.39 | BL69: 364.745 | BM69: 489.37 | BN69: 278.415 | BO69: 215.355 | BP69: 1011.09 | BQ69: 1134.64 | BR69: 165.2 | BS69: 155.72 | BT69: 693.13 | BU69: 1195.95 | BV69: 69.43 | BW69: 90.18 | BX69: 184.26 | BY69: 229.73 | BZ69: 399.15 | CA69: 384.98 | CB69: 49.14 | CC69: 49.45 | CD69: 74.45 | CE69: 65.09 | CF69: 226.42 | CG69: 216.39 | CH69: 54.43 | CI69: 59.74 | CJ69: 129.85 | CK69: 124.93 | CL69: 311.35 | CM69: 418.14 | CN69: 496.19 | CO69: 482.55 | CP69: 294.99 | CQ69: 261.84 | CR69: 222.07 | CS69: 208.64 | CT69: 3.8035 | CU69: 0 | CV69: 0.7813 | CW69: 1.7e-06 | CX69: 2.4224 | CY69: 0 | CZ69: -0.5861 | DA69: 0.00084472 | DB69: 1.4151 | DC69: 0 | DD69: -1.6147 | DE69: 0 | DF69: 4.2066 | DG69: 0 | DH69: 1.1543 | DI69: 2e-08 | DJ69: 3.8022 | DK69: 0 | DL69: 0.7458 | DM69: 1.39e-06 | DN69: 2.372 | DO69: 0 | DP69: -0.6775 | DQ69: 7.56e-06 | DR69: 3.9804 | DS69: 0 | DT69: 0.9513 | DU69: 0 | DV69: 3.0296 | DW69: 0 | DX69: -0.0192 | DY69: 1 | DZ69: 1.5826 | EA69: 0 | EB69: -1.4636 | EC69: 0 | ED69: 0.9418 | EE69: 0 | EF69: -2.0826 | EG69: 0 | EH69: 1.868 | EI69: 0 | EJ69: -1.1623 | EK69: 1e-08 | EL69: 2.348 | EM69: 0 | EN69: -0.7015 | EO69: 1.169e-05
A70: Phatr3_J46465 | B70: chr_10;chr_10 | C70: 421401;422360 | D70: 422188;422606 | E70: -;- | F70: 1035 | G70: pti:PHATRDRAFT_46465 | H70: hypothetical protein | N70: B7G1B7 | O70: KOG0800 | P70: FOG: Predicted E3 ubiquitin ligase | Q70: Posttranslational modification, protein turnover, chaperones | R70: CELLULAR PROCESSES AND SIGNALING | W70: Phatr46465-10Phatr2 | X70: 99 | Y70: Predicted protein | Z70: CAM_CRCL_4012757 | AA70: Phaeodactylum tricornutum | AB70: 2850 | AC70: _GAP_||PF13639||_GAP_ | AD70: _GAP_||PF13639||_GAP_ | AJ70: 0 | AK70: signal peptide | AL70: 0.7105 | AM70: 0.0582 | AN70: 0.0152 | AO70: 0 | AQ70: NS | AS70: 188 | AU70: 1.813804962 | AV70: 1.682446586 | AW70: 1.274200307 | AX70: 1 | AY70: 1 | AZ70: 91.337 | BA70: 96.035 | BB70: 108.51 | BC70: 155.26 | BD70: 34.475 | BE70: 60.645 | BF70: 181.95 | BG70: 7.58 | BH70: 17.305 | BI70: 128.58 | BJ70: 19.485 | BK70: 37.885 | BL70: 195.925 | BM70: 87.9 | BN70: 100.595 | BO70: 137.925 | BP70: 96.67 | BQ70: 95.4 | BR70: 108.03 | BS70: 108.99 | BT70: 128.3 | BU70: 182.22 | BV70: 30.92 | BW70: 38.03 | BX70: 50.34 | BY70: 70.95 | BZ70: 170.29 | CA70: 193.61 | CB70: 7.03 | CC70: 8.13 | CD70: 20.21 | CE70: 14.4 | CF70: 138.36 | CG70: 118.8 | CH70: 18.81 | CI70: 20.16 | CJ70: 40.01 | CK70: 35.76 | CL70: 192.49 | CM70: 199.36 | CN70: 93.43 | CO70: 82.37 | CP70: 118.99 | CQ70: 82.2 | CR70: 118.18 | CS70: 157.67 | CT70: 1.5301 | CU70: 0 | CV70: 1.4246 | CW70: 0 | CX70: 0.7121 | CY70: 3.038e-05 | CZ70: 0.6202 | DA70: 0.00101708 | DB70: -0.9603 | DC70: 0 | DD70: -1.0744 | DE70: 0 | DF70: 3.4142 | DG70: 0 | DH70: 3.2801 | DI70: 0 | DJ70: 2.3441 | DK70: 0 | DL70: 2.2019 | DM70: 0 | DN70: -0.3275 | DO70: 0.01893223 | DP70: -0.4603 | DQ70: 0.00293634 | DR70: 2.0478 | DS70: 0 | DT70: 1.9357 | DU70: 0 | DV70: 1.2958 | DW70: 0 | DX70: 1.1639 | DY70: 0 | DZ70: -1.0022 | EA70: 0 | EB70: -1.1316 | EC70: 0 | ED70: -0.0635 | EE70: 0.72835839 | EF70: -0.1703 | EG70: 0.29369523 | EH70: -0.1511 | EI70: 0.54983423 | EJ70: -0.2641 | EK70: 0.27278043 | EL70: -0.4982 | EM70: 0.00341277 | EN70: -0.629 | EO70: 0.00064737
A71: Phatr3_EG00664 | B71: chr_14 | C71: 681189 | D71: 681458 | E71: - | F71: 270 | G71: bco:Bcell_2940 | H71: molybdopterin converting factor, subunit 1; K03636 molybdopterin synthase sulfur carrier subunit | I71: bco04122||bco01100||bco00790 | J71: K03636 | K71: molybdopterin synthase sulfur carrier subunit | L71: Folate biosynthesis || Sulfur relay system | N71: E6TXX8 | O71: KOG3474 | P71: Molybdopterin converting factor, small subunit | Q71: Energy production and conversion | R71: METABOLISM | W71: contig_8724_1_479-NitzIllumina | X71: 61 | Z71: CAM_CRCL_7039 | AB71: -25000 | AC71: PF02597 | AD71: ThiS family | AJ71: 0 | AK71: other localisation | AL71: 0.0989 | AM71: 0.0302 | AN71: 0 | AO71: 0.1008 | AQ71: NS | AS71: 3 | AT71: 15 | AU71: 1.747876375 | AV71: 1.529983844 | AW71: 1.440231964 | AX71: 1 | AY71: 1 | AZ71: 172.5906667 | BA71: 393.265 | BB71: 245.125 | BC71: 546 | BD71: 66.59 | BE71: 65.21 | BF71: 226.495 | BG71: 36.73 | BH71: 19.145 | BI71: 182.14 | BJ71: 44.885 | BK71: 33.4 | BL71: 170.905 | BM71: 275.855 | BN71: 135.675 | BO71: 147.44 | BP71: 391.01 | BQ71: 395.52 | BR71: 243.23 | BS71: 247.02 | BT71: 424.04 | BU71: 667.96 | BV71: 56.69 | BW71: 76.49 | BX71: 57.72 | BY71: 72.7 | BZ71: 231.96 | CA71: 221.03 | CB71: 33.71 | CC71: 39.75 | CD71: 15.15 | CE71: 23.14 | CF71: 196.88 | CG71: 167.4 | CH71: 40.91 | CI71: 48.86 | CJ71: 25.32 | CK71: 41.48 | CL71: 172.86 | CM71: 168.95 | CN71: 267.14 | CO71: 284.57 | CP71: 104.56 | CQ71: 166.79 | CR71: 166.47 | CS71: 128.41 | CT71: 2.6145 | CU71: 0 | CV71: 1.6516 | CW71: 0 | CX71: 2.6466 | CY71: 0 | CZ71: 1.6967 | DA71: 0 | DB71: 0.7581 | DC71: 0 | DD71: -0.2135 | DE71: 0.15337432 | DF71: 3.1718 | DG71: 0 | DH71: 2.1802 | DI71: 0 | DJ71: 4.1706 | DK71: 0 | DL71: 3.1836 | DM71: 0 | DN71: 1.2016 | DO71: 0 | DP71: 0.2116 | DQ71: 0.22402783 | DR71: 2.8895 | DS71: 0 | DT71: 1.9173 | DU71: 0 | DV71: 3.5104 | DW71: 0 | DX71: 2.5221 | DY71: 0 | DZ71: 1.2295 | EA71: 0 | EB71: 0.2424 | EC71: 0.18078173 | ED71: 0.3184 | EE71: 0.0273797 | EF71: -0.6464 | EG71: 2.516e-05 | EH71: 1.4698 | EI71: 0 | EJ71: 0.4972 | EK71: 0.03954566 | EL71: 1.4533 | EM71: 0 | EN71: 0.4609 | EO71: 0.01318741
A72: Phatr3_J46237 | B72: chr_9 | C72: 686754 | D72: 687362 | E72: + | F72: 609 | G72: pti:PHATRDRAFT_46237 | H72: hypothetical protein | N72: B7G0J4 | W72: Phatr46237-9Phatr2 | X72: 100 | Y72: Predicted protein | Z72: CAM_CRCL_34063230 | AA72: Phaeodactylum tricornutum | AB72: 2850 | AC72: PF00042||_GAP_ | AD72: Globin||_GAP_ | AJ72: 0 | AK72: other localisation | AL72: 0.0613 | AM72: 0.0232 | AN72: 0 | AO72: 0.1043 | AQ72: NS | AS72: 188 | AU72: 1.778975221 | AV72: 1.518337808 | AW72: 1.296469662 | AX72: 1 | AY72: 1 | AZ72: 185.032 | BA72: 277.835 | BB72: 238.75 | BC72: 440.945 | BD72: 56.435 | BE72: 118.42 | BF72: 481.65 | BG72: 25.79 | BH72: 29.68 | BI72: 222.13 | BJ72: 40.205 | BK72: 56.78 | BL72: 342.41 | BM72: 188.385 | BN72: 101.91 | BO72: 154.155 | BP72: 268.58 | BQ72: 287.09 | BR72: 237.51 | BS72: 239.99 | BT72: 455.01 | BU72: 426.88 | BV72: 56.8 | BW72: 56.07 | BX72: 111.14 | BY72: 125.7 | BZ72: 512.87 | CA72: 450.43 | CB72: 31.88 | CC72: 19.7 | CD72: 30.48 | CE72: 28.88 | CF72: 223.83 | CG72: 220.43 | CH72: 35.71 | CI72: 44.7 | CJ72: 57.19 | CK72: 56.37 | CL72: 297.02 | CM72: 387.8 | CN72: 192.25 | CO72: 184.52 | CP72: 113.27 | CQ72: 90.55 | CR72: 166.6 | CS72: 141.71 | CT72: 2.3488 | CU72: 0 | CV72: 1.8478 | CW72: 0 | CX72: 1.2786 | CY72: 0 | CZ72: 0.7923 | DA72: 2.1e-07 | DB72: -0.8319 | DC72: 0 | DD72: -1.3396 | DE72: 0 | DF72: 3.2154 | DG72: 0 | DH72: 2.6827 | DI72: 0 | DJ72: 3.0863 | DK72: 0 | DL72: 2.5525 | DM72: 0 | DN72: 0.4163 | DO72: 0.00187853 | DP72: -0.1112 | DQ72: 0.52767909 | DR72: 2.5468 | DS72: 0 | DT72: 2.0377 | DU72: 0 | DV72: 2.2454 | DW72: 0 | DX72: 1.7185 | DY72: 0 | DZ72: -0.2776 | EA72: 0.10700215 | EB72: -0.8019 | EC72: 5.2e-06 | ED72: 0.3683 | EE72: 0.00769032 | EF72: -0.1339 | EG72: 0.43904669 | EH72: 1.3628 | EI72: 0 | EJ72: 0.8545 | EK72: 1.007e-05 | EL72: 0.8823 | EM72: 0 | EN72: 0.3539 | EO72: 0.03215228
A73: Phatr3_J45260 | B73: chr_6 | C73: 642052 | D73: 643836 | E73: + | F73: 1785 | G73: pti:PHATRDRAFT_45260 | H73: hypothetical protein; K14997 solute carrier family 38 (sodium-coupled neutral amino acid transporter), member 11 | J73: K14997 | K73: solute carrier family 38 (sodium-coupled neutral amino acid transporter), member 11 | N73: B7FX17 | O73: KOG1305 | P73: Amino acid transporter protein | Q73: Amino acid transport and metabolism | R73: METABOLISM | W73: Phatr45260-6Phatr2 | X73: 96 | Y73: Predicted protein | Z73: CAM_CRCL_31528183 | AA73: Phaeodactylum tricornutum | AB73: 2850 | AC73: _GAP_||PF01490||_GAP_ | AD73: _GAP_||Transmembrane amino acid transporter protein||_GAP_ | AG73: AAAP | AI73: 2 | AJ73: 10 | AK73: other localisation | AL73: 0.1242 | AM73: 0.1299 | AN73: 0 | AO73: 0.2063 | AQ73: NS | AS73: 184 | AT73: 99 | AU73: 1.573251659 | AV73: 1.653112033 | AW73: 1.162356322 | AX73: 1 | AY73: 1 | AZ73: 8.287666667 | BA73: 6.41 | BB73: 7.795 | BC73: 8.75 | BD73: 9.115 | BE73: 11.5 | BF73: 12.03 | BG73: 1.045 | BH73: 5.47 | BI73: 12.225 | BJ73: 2.915 | BK73: 4.78 | BL73: 13.89 | BM73: 11.005 | BN73: 6.96 | BO73: 10.425 | BP73: 7.32 | BQ73: 5.5 | BR73: 7.22 | BS73: 8.37 | BT73: 3.25 | BU73: 14.25 | BV73: 9.52 | BW73: 8.71 | BX73: 11.62 | BY73: 11.38 | BZ73: 11.23 | CA73: 12.83 | CB73: 0.68 | CC73: 1.41 | CD73: 5.99 | CE73: 4.95 | CF73: 11.43 | CG73: 13.02 | CH73: 2.94 | CI73: 2.89 | CJ73: 5.2 | CK73: 4.36 | CL73: 12.9 | CM73: 14.88 | CN73: 11.84 | CO73: 10.17 | CP73: 5.91 | CQ73: 8.01 | CR73: 9.57 | CS73: 11.28 | CT73: -0.4427 | CU73: 0.06545996 | CV73: -0.4724 | CW73: 0.05188304 | CX73: -0.778 | CY73: 0.00021753 | CZ73: -0.7955 | DA73: 0.00016956 | DB73: -0.9293 | DC73: 1.25e-05 | DD73: -0.9716 | DE73: 7.84e-06 | DF73: 2.3134 | DG73: 5.4e-07 | DH73: 2.2696 | DI73: 3e-07 | DJ73: 0.1078 | DK73: 0.79477635 | DL73: 0.0478 | DM73: 0.93658908 | DN73: -0.8185 | DO73: 0.00015623 | DP73: -0.8758 | DQ73: 6.948e-05 | DR73: 0.8875 | DS73: 0.002024 | DT73: 0.8566 | DU73: 0.00141846 | DV73: 0.3878 | DW73: 0.23460247 | DX73: 0.3394 | DY73: 0.25980825 | DZ73: -1.0796 | EA73: 2.84e-06 | EB73: -1.1305 | EC73: 1.19e-06 | ED73: -0.9555 | EE73: 3.345e-05 | EF73: -0.9855 | EG73: 1.641e-05 | EH73: -0.1732 | EI73: 0.60349434 | EJ73: -0.2006 | EK73: 0.53954075 | EL73: -0.6654 | EM73: 0.00566331 | EN73: -0.7176 | EO73: 0.00339763
A74: Phatr3_J8706 | B74: chr_1;chr_1;chr_1 | C74: 2309090;2309439;2310961 | D74: 2309281;2310805;2311381 | E74: +;+;+ | F74: 1980 | G74: pti:PHATRDRAFT_8706 | H74: hypothetical protein | N74: B7FQZ7 | O74: KOG0234 | P74: Fructose-6-phosphate 2-kinase/fructose-2,6-biphosphatase | Q74: Carbohydrate transport and metabolism | R74: METABOLISM | W74: estExt_fgenesh2_pg.C_10985-Fracy_scaffold_1 | X74: 55 | Z74: CAM_CRCL_5736 | AA74: Fragilariopsis cylindrus | AB74: 186039 | AC74: _GAP_||PF01591||PF00300||_GAP_ | AD74: _GAP_||6-phosphofructo-2-kinase||Phosphoglycerate mutase family||_GAP_ | AJ74: 0 | AK74: other localisation | AL74: 0.1153 | AM74: 0.0317 | AN74: 0 | AO74: 0.1069 | AQ74: NS | AS74: 188 | AT74: 26 | AU74: 1.646685899 | AV74: 1.398350315 | AW74: 1.264697314 | AX74: 1 | AY74: 1 | AZ74: 59.704 | BA74: 54.755 | BB74: 38.475 | BC74: 127.985 | BD74: 23.985 | BE74: 41.4 | BF74: 105.065 | BG74: 12.4 | BH74: 27.685 | BI74: 87.78 | BJ74: 15.775 | BK74: 34.95 | BL74: 109.57 | BM74: 70.04 | BN74: 60.095 | BO74: 85.6 | BP74: 57.48 | BQ74: 52.03 | BR74: 37.19 | BS74: 39.76 | BT74: 66.51 | BU74: 189.46 | BV74: 23.39 | BW74: 24.58 | BX74: 39.82 | BY74: 42.98 | BZ74: 108.28 | CA74: 101.85 | CB74: 13.64 | CC74: 11.16 | CD74: 29.19 | CE74: 26.18 | CF74: 83.38 | CG74: 92.18 | CH74: 16.53 | CI74: 15.02 | CJ74: 32.58 | CK74: 37.32 | CL74: 102.27 | CM74: 116.87 | CN74: 67.22 | CO74: 72.86 | CP74: 50.59 | CQ74: 69.6 | CR74: 84.03 | CS74: 87.17 | CT74: 1.2428 | CU74: 0 | CV74: 0.447 | CW74: 0.00264175 | CX74: 0.4525 | CY74: 0.00077909 | CZ74: -0.3276 | DA74: 0.03498731 | DB74: -0.9763 | DC74: 0 | DD74: -1.7796 | DE74: 0 | DF74: 1.9138 | DG74: 0 | DH74: 1.09 | DI74: 4.29e-06 | DJ74: 0.8442 | DK74: 0 | DL74: 0.0149 | DM74: 1 | DN74: -0.5861 | DO74: 1.632e-05 | DP74: -1.4077 | DQ74: 0 | DR74: 1.5316 | DS74: 0 | DT74: 0.7317 | DU74: 2.56e-06 | DV74: 0.6049 | DW74: 0.00030992 | DX74: -0.2151 | DY74: 0.26216395 | DZ74: -0.9747 | EA74: 0 | EB74: -1.7926 | EC74: 0 | ED74: -0.5479 | EE74: 9.695e-05 | EF74: -1.3441 | EG74: 0 | EH74: -0.2081 | EI74: 0.33841722 | EJ74: -1.0089 | EK74: 6.9e-07 | EL74: -0.6155 | EM74: 8.68e-06 | EN74: -1.4365 | EO74: 0
A75: Phatr3_J5286 | B75: chr_20;chr_20 | C75: 370347;371792 | D75: 371710;372212 | E75: +;+ | F75: 1785 | G75: pti:PHATRDRAFT_5286 | H75: hypothetical protein | N75: B7G9A0 | O75: KOG0032 | P75: Ca2+/calmodulin-dependent protein kinase, EF-Hand protein superfamily | Q75: Signal transduction mechanisms | R75: CELLULAR PROCESSES AND SIGNALING | W75: contig_15275_1_1927-NitzIllumina | X75: 57 | Z75: CAM_CRCL_4009306 | AB75: -25000 | AC75: PF00069||_GAP_ | AD75: Protein kinase domain||_GAP_ | AJ75: 0 | AK75: other localisation | AL75: 0.3837 | AM75: 0.0589 | AN75: 0 | AO75: 0.1275 | AQ75: NS | AS75: 188 | AT75: 32 | AU75: 1.527919757 | AV75: 1.598076105 | AW75: 0.9691389691 | AX75: 1 | AY75: 1 | AZ75: 93.93966667 | BA75: 107.34 | BB75: 47.84 | BC75: 114.75 | BD75: 35.195 | BE75: 84.57 | BF75: 231.22 | BG75: 15.355 | BH75: 23.975 | BI75: 113.795 | BJ75: 47.725 | BK75: 60.775 | BL75: 169.785 | BM75: 137.46 | BN75: 109.335 | BO75: 109.975 | BP75: 104.12 | BQ75: 110.56 | BR75: 48.32 | BS75: 47.36 | BT75: 99.97 | BU75: 129.53 | BV75: 30.01 | BW75: 40.38 | BX75: 84.15 | BY75: 84.99 | BZ75: 234.03 | CA75: 228.41 | CB75: 17.51 | CC75: 13.2 | CD75: 24.59 | CE75: 23.36 | CF75: 108.06 | CG75: 119.53 | CH75: 45.6 | CI75: 49.85 | CJ75: 57.17 | CK75: 64.38 | CL75: 153.57 | CM75: 186 | CN75: 137.23 | CO75: 137.69 | CP75: 112.09 | CQ75: 106.58 | CR75: 117.36 | CS75: 102.59 | CT75: 1.6623 | CU75: 0 | CV75: 0.2166 | CW75: 0.23600165 | CX75: 0.3915 | CY75: 0.00381928 | CZ75: -1.0393 | DA75: 0 | DB75: -1.1454 | DC75: 0 | DD75: -2.5992 | DE75: 0 | DF75: 2.5773 | DG75: 0 | DH75: 1.099 | DI75: 5.66e-06 | DJ75: 2.0205 | DK75: 0 | DL75: 0.5418 | DM75: 0.00017199 | DN75: 0.0094 | DO75: 1 | DP75: -1.4634 | DQ75: 0 | DR75: 0.9154 | DS75: 0 | DT75: -0.5369 | DU75: 0.00016515 | DV75: 0.7774 | DW75: 6.93e-06 | DX75: -0.695 | DY75: 8.494e-05 | DZ75: -0.6364 | EA75: 2.069e-05 | EB75: -2.1061 | EC75: 0 | ED75: -0.5496 | EE75: 4.53e-05 | EF75: -1.9972 | EG75: 0 | EH75: -0.1055 | EI75: 0.62696439 | EJ75: -1.5596 | EK75: 0 | EL75: -0.0038 | EM75: 1 | EN75: -1.4773 | EO75: 0
A76: Phatr3_EG01376 | B76: chr_6;chr_6 | C76: 557839;558107 | D76: 557969;558320 | E76: +;+ | F76: 345 | AJ76: 0 | AK76: mitochondrion | AL76: 0.1285 | AM76: 0.034 | AN76: 0 | AO76: 0.7641 | AQ76: NS | AS76: 141 | AU76: 1.249334721 | AV76: 1.235507508 | AW76: 1.310679116 | AX76: 1 | AY76: 1 | AZ76: 824.4906667 | BA76: 572.755 | BB76: 510.555 | BC76: 1659.09 | BD76: 211.09 | BE76: 309.195 | BF76: 1808.67 | BG76: 383.285 | BH76: 434.665 | BI76: 871.365 | BJ76: 337.75 | BK76: 454.235 | BL76: 1141.515 | BM76: 1622.15 | BN76: 1062.25 | BO76: 988.79 | BP76: 521.7 | BQ76: 623.81 | BR76: 459.64 | BS76: 561.47 | BT76: 910.73 | BU76: 2407.45 | BV76: 200.8 | BW76: 221.38 | BX76: 284.39 | BY76: 334 | BZ76: 1746.5 | CA76: 1870.84 | CB76: 485.39 | CC76: 281.18 | CD76: 404.63 | CE76: 464.7 | CF76: 918.73 | CG76: 824 | CH76: 325.8 | CI76: 349.7 | CJ76: 372.81 | CK76: 535.66 | CL76: 1288.44 | CM76: 994.59 | CN76: 1613.46 | CO76: 1630.84 | CP76: 816.41 | CQ76: 1308.09 | CR76: 1089.74 | CS76: 887.84 | CT76: 1.4913 | CU76: 0 | CV76: 1.0351 | CW76: 0 | CX76: 0.9378 | CY76: 0 | CZ76: 0.4964 | DA76: 0.00350182 | DB76: -1.6977 | DC76: 0 | DD76: -2.1574 | DE76: 0 | DF76: 0.3343 | DG76: 0.28359639 | DH76: -0.149 | DI76: 0.68459135 | DJ76: 0.2539 | DK76: 0.08869114 | DL76: -0.2342 | DM76: 0.16274089 | DN76: -0.511 | DO76: 0.00055619 | DP76: -0.9928 | DQ76: 0 | DR76: 0.507 | DS76: 0.00021718 | DT76: 0.0454 | DU76: 0.83944474 | DV76: 0.2961 | DW76: 0.18369614 | DX76: -0.1847 | DY76: 0.46380858 | DZ76: -0.9648 | EA76: 0 | EB76: -1.4444 | EC76: 0 | ED76: -1.6946 | EE76: 0 | EF76: -2.1509 | EG76: 0 | EH76: -0.9646 | EI76: 4.409e-05 | EJ76: -1.427 | EK76: 1e-08 | EL76: -0.7556 | EM76: 2.23e-06 | EN76: -1.2384 | EO76: 0
A77: Phatr3_J43479 | B77: chr_2 | C77: 568769 | D77: 569728 | E77: - | F77: 960 | G77: pti:PHATRDRAFT_43479 | H77: hypothetical protein | N77: B7FSD2 | O77: KOG3528 | P77: FOG: PDZ domain | Q77: Function unknown | R77: POORLY CHARACTERIZED | W77: Phatr43479-2Phatr2 | X77: 100 | Y77: Predicted protein Fragment | AA77: Phaeodactylum tricornutum | AB77: 2850 | AC77: _GAP_||PF00595||_GAP_ | AD77: _GAP_||PDZ domain (Also known as DHR or GLGF)||_GAP_ | AJ77: 1 | AK77: other localisation | AL77: 0.0659 | AM77: 0.0241 | AN77: 0 | AO77: 0.107 | AQ77: NS | AS77: 3 | AT77: 26 | AU77: 1.599321416 | AV77: 1.172301901 | AW77: 0.9896333445 | AX77: 1 | AY77: 1 | AZ77: 114.3093333 | BA77: 231.715 | BB77: 141.675 | BC77: 286.425 | BD77: 52.045 | BE77: 77.83 | BF77: 169.25 | BG77: 31.885 | BH77: 33.155 | BI77: 125.14 | BJ77: 41.3 | BK77: 53.73 | BL77: 127.275 | BM77: 122.205 | BN77: 116.935 | BO77: 104.075 | BP77: 219.73 | BQ77: 243.7 | BR77: 152.25 | BS77: 131.1 | BT77: 285.28 | BU77: 287.57 | BV77: 46.9 | BW77: 57.19 | BX77: 71.95 | BY77: 83.71 | BZ77: 170.98 | CA77: 167.52 | CB77: 32.86 | CC77: 30.91 | CD77: 32.61 | CE77: 33.7 | CF77: 124.78 | CG77: 125.5 | CH77: 40.13 | CI77: 42.47 | CJ77: 57.11 | CK77: 50.35 | CL77: 120.69 | CM77: 133.86 | CN77: 119.05 | CO77: 125.36 | CP77: 105.36 | CQ77: 128.51 | CR77: 102.58 | CS77: 105.57 | CT77: 2.2069 | CU77: 0 | CV77: 1.2214 | CW77: 0 | CX77: 1.6228 | CY77: 0 | CZ77: 0.6511 | DA77: 0.00013342 | DB77: 0.4148 | DC77: 0.00167955 | DD77: -0.5795 | DE77: 7.074e-05 | DF77: 2.6264 | DG77: 0 | DH77: 1.6085 | DI77: 0 | DJ77: 2.6603 | DK77: 0 | DL77: 1.6426 | DM77: 0 | DN77: 0.9827 | DO77: 0 | DP77: -0.0301 | DQ77: 0.92635367 | DR77: 2.2332 | DS77: 0 | DT77: 1.241 | DU77: 0 | DV77: 2.0624 | DW77: 0 | DX77: 1.0493 | DY77: 6e-08 | DZ77: 0.8892 | EA77: 0 | EB77: -0.1202 | EC77: 0.55561307 | ED77: 0.7301 | EE77: 2.4e-07 | EF77: -0.2582 | EG77: 0.14523226 | EH77: 0.9119 | EI77: 8.9e-07 | EJ77: -0.0834 | EK77: 0.759976 | EL77: 1.1829 | EM77: 0 | EN77: 0.1708 | EO77: 0.36353695
A78: Phatr3_J45757 | B78: chr_8;chr_8;chr_8 | C78: 157771;158019;158266 | D78: 157906;158177;159563 | E78: +;+;+ | F78: 1593 | G78: pti:PHATRDRAFT_45757 | H78: hypothetical protein | N78: B7FZQ0 | W78: Phatr45757-8Phatr2 | X78: 92 | Y78: Predicted protein | Z78: CAM_CRCL_25761695 | AA78: Phaeodactylum tricornutum | AB78: 2850 | AC78: PF09423||_GAP_ | AD78: PhoD-like phosphatase||_GAP_ | AJ78: 1 | AK78: other localisation | AL78: 0.06 | AM78: 0.0229 | AN78: 0 | AO78: 0.0963 | AQ78: NS | AS78: 190 | AU78: 1.565415716 | AV78: 1.269177127 | AW78: 0.8956145769 | AX78: 1 | AY78: 1 | AZ78: 13.782 | BA78: 5.155 | BB78: 7.92 | BC78: 21.495 | BD78: 6.67 | BE78: 12.72 | BF78: 22.365 | BG78: 2.62 | BH78: 6.38 | BI78: 29.01 | BJ78: 4.47 | BK78: 4.57 | BL78: 32.51 | BM78: 11.72 | BN78: 11.725 | BO78: 27.4 | BP78: 4.78 | BQ78: 5.53 | BR78: 8.74 | BS78: 7.1 | BT78: 36.33 | BU78: 6.66 | BV78: 6.86 | BW78: 6.48 | BX78: 11.81 | BY78: 13.63 | BZ78: 20.99 | CA78: 23.74 | CB78: 2.86 | CC78: 2.38 | CD78: 6.66 | CE78: 6.1 | CF78: 28.28 | CG78: 29.74 | CH78: 4.2 | CI78: 4.74 | CJ78: 4.86 | CK78: 4.28 | CL78: 34.61 | CM78: 30.41 | CN78: 13.85 | CO78: 9.59 | CP78: 10.58 | CQ78: 12.87 | CR78: 27.06 | CS78: 27.74 | CT78: -0.3367 | CU78: 0.23132025 | CV78: 0.0405 | CW78: 1 | CX78: -1.2674 | CY78: 2e-08 | CZ78: -0.8706 | DA78: 0.00015879 | DB78: -2.1728 | DC78: 0 | DD78: -1.7979 | DE78: 0 | DF78: 0.7474 | DG78: 0.09889567 | DH78: 1.0801 | DI78: 0.01051095 | DJ78: -0.4616 | DK78: 0.0575106 | DL78: -0.1151 | DM78: 0.65523913 | DN78: -2.4161 | DO78: 0 | DP78: -2.052 | DQ78: 0 | DR78: -0.0563 | DS78: 0.95954583 | DT78: 0.3099 | DU78: 0.34488797 | DV78: 0.1175 | DW78: 0.78962284 | DX78: 0.4632 | DY78: 0.15146685 | DZ78: -2.6417 | EA78: 0 | EB78: -2.2807 | EC78: 0 | ED78: -1.3854 | EE78: 2e-07 | EF78: -1.0151 | EG78: 0.00012712 | EH78: -1.2672 | EI78: 1.33e-06 | EJ78: -0.9019 | EK78: 0.00060919 | EL78: -2.3992 | EM78: 0 | EN78: -2.0367 | EO78: 0
A79: Phatr3_J50486 | B79: chr_30 | C79: 193677 | D79: 194198 | E79: + | F79: 522 | G79: pti:PHATRDRAFT_50486 | H79: hypothetical protein | N79: B7GE91 | W79: Phatr50486-30Phatr2 | X79: 100 | Y79: Predicted protein | AA79: Phaeodactylum tricornutum | AB79: 2850 | AJ79: 0 | AK79: other localisation | AL79: 0.0585 | AM79: 0.0228 | AN79: 0 | AO79: 0.0952 | AQ79: NS | AS79: 152 | AU79: 1.603710455 | AV79: 1.067431796 | AW79: 0.9686156571 | AX79: 1 | AY79: 1 | AZ79: 300.0976667 | BA79: 739.935 | BB79: 370.75 | BC79: 556.03 | BD79: 118.92 | BE79: 110.615 | BF79: 1073.31 | BG79: 61.145 | BH79: 33.755 | BI79: 392.95 | BJ79: 69.875 | BK79: 48.095 | BL79: 316.515 | BM79: 201.12 | BN79: 196.455 | BO79: 211.995 | BP79: 528.31 | BQ79: 951.56 | BR79: 461.79 | BS79: 279.71 | BT79: 711.64 | BU79: 400.42 | BV79: 134.81 | BW79: 103.03 | BX79: 135.85 | BY79: 85.38 | BZ79: 1349.41 | CA79: 797.21 | CB79: 61.02 | CC79: 61.27 | CD79: 24.86 | CE79: 42.65 | CF79: 453.38 | CG79: 332.52 | CH79: 45.1 | CI79: 94.65 | CJ79: 35.09 | CK79: 61.1 | CL79: 387.32 | CM79: 245.71 | CN79: 131.4 | CO79: 270.84 | CP79: 243.61 | CQ79: 149.3 | CR79: 204.1 | CS79: 219.89 | CT79: 2.6901 | CU79: 0 | CV79: 1.4162 | CW79: 1e-08 | CX79: 2.7974 | CY79: 0 | CZ79: 1.5385 | DA79: 1e-08 | DB79: -0.571 | DC79: 0.04878147 | DD79: -1.8542 | DE79: 0 | DF79: 3.3637 | DG79: 0 | DH79: 2.0593 | DI79: 0 | DJ79: 4.3089 | DK79: 0 | DL79: 3.0036 | DM79: 0 | DN79: 1.0141 | DO79: 4.732e-05 | DP79: -0.2875 | DQ79: 0.29043981 | DR79: 3.1706 | DS79: 0 | DT79: 1.8872 | DU79: 0 | DV79: 3.9101 | DW79: 0 | DX79: 2.6113 | DY79: 0 | DZ79: 1.262 | EA79: 3.66e-06 | EB79: -0.0372 | EC79: 0.9742492 | ED79: 1.6797 | EE79: 7.1e-07 | EF79: 0.4019 | EG79: 0.26497536 | EH79: 1.8361 | EI79: 0 | EJ79: 0.5546 | EK79: 0.07754361 | EL79: 1.8367 | EM79: 0 | EN79: 0.5381 | EO79: 0.02759839
A80: Phatr3_EG01882 | B80: chr_1 | C80: 81348 | D80: 82442 | E80: - | F80: 1095 | W80: contig_16979_1_465-NitzIllumina | X80: 47 | AB80: -25000 | AJ80: 0 | AK80: other localisation | AL80: 0.1245 | AM80: 0.0339 | AN80: 0 | AO80: 0.1076 | AQ80: NS | AS80: 190 | AT80: 24 | AU80: 1.569586951 | AV80: 1.178013365 | AW80: 0.847778128 | AX80: 1 | AY80: 1 | AZ80: 80.75066667 | BA80: 45.055 | BB80: 100.7 | BC80: 169.6 | BD80: 55.94 | BE80: 81.695 | BF80: 135.01 | BG80: 20.45 | BH80: 37.53 | BI80: 113.615 | BJ80: 31.99 | BK80: 59.215 | BL80: 106.195 | BM80: 79.065 | BN80: 83.035 | BO80: 92.165 | BP80: 48.3 | BQ80: 41.81 | BR80: 110.57 | BS80: 90.83 | BT80: 178.53 | BU80: 160.67 | BV80: 54.64 | BW80: 57.24 | BX80: 76.72 | BY80: 86.67 | BZ80: 137.86 | CA80: 132.16 | CB80: 19.95 | CC80: 20.95 | CD80: 39.43 | CE80: 35.63 | CF80: 111.16 | CG80: 116.07 | CH80: 29.7 | CI80: 34.28 | CJ80: 65.62 | CK80: 52.81 | CL80: 104.23 | CM80: 108.16 | CN80: 81.59 | CO80: 76.54 | CP80: 95.88 | CQ80: 70.19 | CR80: 82.81 | CS80: 101.52 | CT80: -0.2567 | CU80: 0.07612103 | CV80: 0.6256 | CW80: 0.00017667 | CX80: -0.8065 | CY80: 1e-08 | CZ80: 0.091 | DA80: 0.69750201 | DB80: -1.6154 | DC80: 0 | DD80: -0.7436 | DE80: 8.4e-07 | DF80: 0.9024 | DG80: 0.00010042 | DH80: 1.7557 | DI80: 0 | DJ80: 0.1272 | DK80: 0.45631912 | DL80: 0.9757 | DM80: 0 | DN80: -1.2359 | DO80: 0 | DP80: -0.3807 | DQ80: 0.02378868 | DR80: 0.2481 | DS80: 0.14684736 | DT80: 1.1233 | DU80: 0 | DV80: -0.44 | DW80: 0.0254909 | DX80: 0.4169 | DY80: 0.05516246 | DZ80: -1.2067 | EA80: 0 | EB80: -0.3477 | EC80: 0.04909024 | ED80: -0.9988 | EE80: 0 | EF80: -0.1178 | EG80: 0.53842983 | EH80: -0.9645 | EI80: 1.25e-06 | EJ80: -0.0878 | EK80: 0.77558411 | EL80: -1.0049 | EM80: 0 | EN80: -0.1468 | EO80: 0.4907275
A81: Phatr3_J34373 | B81: chr_5 | C81: 415071 | D81: 416435 | E81: + | F81: 1365 | G81: pti:PHATRDRAFT_34373 | H81: hypothetical protein; K11996 adenylyltransferase and sulfurtransferase | I81: pti04122 | J81: K11996 | K81: adenylyltransferase and sulfurtransferase | L81: Sulfur relay system | N81: B7FVV0 | O81: KOG2017 | P81: Molybdopterin synthase sulfurylase | Q81: Coenzyme transport and metabolism | R81: METABOLISM | W81: Phatr34373-5Phatr2 | X81: 97 | Y81: Predicted protein | Z81: CAM_CRCL_27064045 | AA81: Phaeodactylum tricornutum | AB81: 2850 | AC81: _GAP_||PF00899||PF05237||_GAP_||PF00581 | AD81: _GAP_||ThiF family||MoeZ/MoeB domain||_GAP_||Rhodanese-like domain | AJ81: 0 | AK81: other localisation | AL81: 0.0377 | AM81: 0.0197 | AN81: 0 | AO81: 0.139 | AQ81: NS | AS81: 188 | AT81: 52 | AU81: 1.476359092 | AV81: 1.244023455 | AW81: 0.8464379947 | AX81: 1 | AY81: 1 | AZ81: 26.14366667 | BA81: 28.515 | BB81: 33.675 | BC81: 41.725 | BD81: 15.78 | BE81: 20.58 | BF81: 42.735 | BG81: 6.285 | BH81: 11.275 | BI81: 36.21 | BJ81: 10.93 | BK81: 14.705 | BL81: 49.28 | BM81: 26.97 | BN81: 18.455 | BO81: 35.035 | BP81: 28.46 | BQ81: 28.57 | BR81: 31.77 | BS81: 35.58 | BT81: 48.14 | BU81: 35.31 | BV81: 11.94 | BW81: 19.62 | BX81: 17.56 | BY81: 23.6 | BZ81: 45.93 | CA81: 39.54 | CB81: 7.33 | CC81: 5.24 | CD81: 9.56 | CE81: 12.99 | CF81: 37.93 | CG81: 34.49 | CH81: 12.9 | CI81: 8.96 | CJ81: 13.8 | CK81: 15.61 | CL81: 41.14 | CM81: 57.42 | CN81: 25.23 | CO81: 28.71 | CP81: 17.15 | CQ81: 19.76 | CR81: 35.05 | CS81: 35.02 | CT81: 0.9082 | CU81: 2.431e-05 | CV81: 0.8625 | CW81: 7.825e-05 | CX81: 0.5213 | CY81: 0.00482301 | CZ81: 0.4885 | DA81: 0.0131967 | DB81: -0.6208 | DC81: 1.439e-05 | DD81: -0.6768 | DE81: 1.151e-05 | DF81: 1.966 | DG81: 0 | DH81: 1.8903 | DI81: 0 | DJ81: 1.1805 | DK81: 0 | DL81: 1.1021 | DM81: 0 | DN81: -0.2535 | DO81: 0.10012429 | DP81: -0.3278 | DQ81: 0.05520476 | DR81: 1.101 | DS81: 1e-07 | DT81: 1.0497 | DU81: 7.3e-07 | DV81: 0.9102 | DW81: 2.17e-06 | DX81: 0.8378 | DY81: 4.494e-05 | DZ81: -0.7705 | EA81: 5.659e-05 | EB81: -0.8398 | EC81: 2.859e-05 | ED81: -0.1131 | EE81: 0.58670828 | EF81: -0.1619 | EG81: 0.4128782 | EH81: 0.5544 | EI81: 0.00579483 | EJ81: 0.5004 | EK81: 0.01673474 | EL81: -0.27 | EM81: 0.09287577 | EN81: -0.3435 | EO81: 0.04729943
A82: Phatr3_J47062 | B82: chr_12 | C82: 309450 | D82: 310574 | E82: + | F82: 1125 | G82: pti:PHATRDRAFT_47062 | H82: hypothetical protein; K09562 hsp70-interacting protein | I82: pti04141 | J82: K09562 | K82: hsp70-interacting protein | L82: Protein processing in endoplasmic reticulum | N82: B7G2B4 | O82: KOG2160 | P82: Armadillo/beta-catenin-like repeat-containing protein | Q82: Posttranslational modification, protein turnover, chaperones | R82: CELLULAR PROCESSES AND SIGNALING | W82: Phatr47062-12Phatr2 | X82: 100 | Y82: Predicted protein | Z82: CAM_CRCL_4062044 | AA82: Phaeodactylum tricornutum | AB82: 2850 | AJ82: 0 | AK82: other localisation | AL82: 0.1945 | AM82: 0.0425 | AN82: 0 | AO82: 0.1232 | AQ82: NS | AS82: 15 | AT82: 95 | AU82: 1.261807071 | AV82: 1.345966432 | AW82: 0.9555236729 | AX82: 1 | AY82: 1 | AZ82: 29.648 | BA82: 40.125 | BB82: 46.655 | BC82: 46.705 | BD82: 34.87 | BE82: 35.47 | BF82: 23.24 | BG82: 10.57 | BH82: 11.69 | BI82: 34.23 | BJ82: 19.11 | BK82: 12.425 | BL82: 26.31 | BM82: 54.075 | BN82: 26.535 | BO82: 22.71 | BP82: 38.88 | BQ82: 41.37 | BR82: 40.73 | BS82: 52.58 | BT82: 42.97 | BU82: 50.44 | BV82: 30.3 | BW82: 39.44 | BX82: 39.43 | BY82: 31.51 | BZ82: 24.76 | CA82: 21.72 | CB82: 11.6 | CC82: 9.54 | CD82: 11.74 | CE82: 11.64 | CF82: 32.56 | CG82: 35.9 | CH82: 19.88 | CI82: 18.34 | CJ82: 10.89 | CK82: 13.96 | CL82: 21.56 | CM82: 31.06 | CN82: 50.38 | CO82: 57.77 | CP82: 27.06 | CQ82: 26.01 | CR82: 21.18 | CS82: 24.24 | CT82: 0.2529 | CU82: 0.15322084 | CV82: 0.1764 | CW82: 0.38166769 | CX82: 0.2199 | CY82: 0.19078161 | CZ82: 0.159 | DA82: 0.42887895 | DB82: 0.7496 | DC82: 1.13e-06 | DD82: 0.6671 | DE82: 0.00016853 | DF82: 1.6987 | DG82: 0 | DH82: 1.5952 | DI82: 2e-08 | DJ82: 1.633 | DK82: 0 | DL82: 1.523 | DM82: 0 | DN82: 0.322 | DO82: 0.04031467 | DP82: 0.2184 | DQ82: 0.25687472 | DR82: 0.8033 | DS82: 1.46e-06 | DT82: 0.7224 | DU82: 0.0001018 | DV82: 1.6444 | DW82: 0 | DX82: 1.5444 | DY82: 0 | DZ82: 0.6204 | EA82: 0.00261915 | EB82: 0.5243 | EC82: 0.02076522 | ED82: -0.6264 | EE82: 9.998e-05 | EF82: -0.7043 | EG82: 9.521e-05 | EH82: 0.5135 | EI82: 0.00659603 | EJ82: 0.4315 | EK82: 0.03808328 | EL82: 0.8398 | EM82: 5.5e-07 | EN82: 0.7394 | EO82: 9.539e-05
A83: Phatr3_J50128 | B83: chr_27 | C83: 137926 | D83: 138645 | E83: + | F83: 720 | G83: pti:PHATRDRAFT_50128 | H83: hypothetical protein | N83: B7GD21 | W83: Phatr50128-27Phatr2 | X83: 84 | Y83: Predicted protein | AA83: Phaeodactylum tricornutum | AB83: 2850 | AJ83: 0 | AK83: other localisation | AL83: 0.0809 | AM83: 0.0279 | AN83: 0 | AO83: 0.3816 | AQ83: NS | AS83: 188 | AU83: 1.510703 | AV83: 1.268933059 | AW83: 0.7743556248 | AX83: 1 | AY83: 1 | AZ83: 272.5253333 | BA83: 375.945 | BB83: 295.365 | BC83: 443.02 | BD83: 131.405 | BE83: 243.98 | BF83: 582.305 | BG83: 61.745 | BH83: 36.08 | BI83: 353.5 | BJ83: 121.97 | BK83: 142.215 | BL83: 493.595 | BM83: 276.09 | BN83: 235.025 | BO83: 295.64 | BP83: 375.07 | BQ83: 376.82 | BR83: 289.27 | BS83: 301.46 | BT83: 329.98 | BU83: 556.06 | BV83: 130.18 | BW83: 132.63 | BX83: 189.04 | BY83: 298.92 | BZ83: 579.56 | CA83: 585.05 | CB83: 53.93 | CC83: 69.56 | CD83: 32.88 | CE83: 39.28 | CF83: 355.62 | CG83: 351.38 | CH83: 133.67 | CI83: 110.27 | CJ83: 114.67 | CK83: 169.76 | CL83: 458.29 | CM83: 528.9 | CN83: 278.17 | CO83: 274.01 | CP83: 200.94 | CQ83: 269.11 | CR83: 299.84 | CS83: 291.44 | CT83: 1.567 | CU83: 0 | CV83: 0.9345 | CW83: 0 | CX83: 0.6699 | CY83: 0.00076807 | CZ83: 0.0522 | DA83: 0.8962297 | DB83: -0.6692 | DC83: 6e-08 | DD83: -1.308 | DE83: 0 | DF83: 2.3634 | DG83: 0 | DH83: 1.7035 | DI83: 0 | DJ83: 3.2303 | DK83: 0 | DL83: 2.567 | DM83: 0 | DN83: 0.1828 | DO83: 0.18291559 | DP83: -0.4758 | DQ83: 0.00157669 | DR83: 1.3605 | DS83: 0 | DT83: 0.7237 | DU83: 3.69e-06 | DV83: 1.3633 | DW83: 0 | DX83: 0.7057 | DY83: 0.00124834 | DZ83: -0.367 | EA83: 0.01091966 | EB83: -1.0221 | EC83: 0 | ED83: 0.2532 | EE83: 0.06447494 | EF83: -0.3801 | EG83: 0.01519712 | EH83: 0.6029 | EI83: 0.00211017 | EJ83: -0.0364 | EK83: 0.94302189 | EL83: 0.3762 | EM83: 0.00618988 | EN83: -0.2822 | EO83: 0.08791742
A84: Phatr3_J48596 | B84: chr_18;chr_18 | C84: 320714;320901 | D84: 320827;322205 | E84: -;- | F84: 1419 | G84: pti:PHATRDRAFT_48596 | H84: hypothetical protein | N84: B7G7T7 | W84: Phatr48596-18Phatr2 | X84: 100 | Y84: Predicted protein | Z84: CAM_CRCL_4016738 | AA84: Phaeodactylum tricornutum | AB84: 2850 | AC84: PF07690||_GAP_ | AD84: Major Facilitator Superfamily||_GAP_ | AG84: MFS | AI84: 2 | AJ84: 9 | AK84: signal anchor | AL84: 0.1768 | AM84: 0.5886 | AN84: 0 | AO84: 0 | AQ84: NS | AS84: 184 | AU84: 1.570272813 | AV84: 1.320844484 | AW84: 0.6191369606 | AX84: 1 | AY84: 1 | AZ84: 17.43666667 | BA84: 12.555 | BB84: 22.095 | BC84: 23.72 | BD84: 15.615 | BE84: 18.045 | BF84: 35.49 | BG84: 2.855 | BH84: 1.66 | BI84: 28.745 | BJ84: 7.36 | BK84: 8.515 | BL84: 25.76 | BM84: 13.96 | BN84: 15.495 | BO84: 29.68 | BP84: 12.26 | BQ84: 12.85 | BR84: 19.26 | BS84: 24.93 | BT84: 12.98 | BU84: 34.46 | BV84: 14.08 | BW84: 17.15 | BX84: 21.12 | BY84: 14.97 | BZ84: 35.27 | CA84: 35.71 | CB84: 1.71 | CC84: 4 | CD84: 2.05 | CE84: 1.27 | CF84: 28.76 | CG84: 28.73 | CH84: 7.2 | CI84: 7.52 | CJ84: 5.45 | CK84: 11.58 | CL84: 25.57 | CM84: 25.95 | CN84: 16.53 | CO84: 11.39 | CP84: 14.65 | CQ84: 16.34 | CR84: 28.9 | CS84: 30.46 | CT84: -0.2661 | CU84: 0.22460035 | CV84: 0.2529 | CW84: 0.24132352 | CX84: -0.4832 | CY84: 0.02703394 | CZ84: 0.0522 | DA84: 0.87948684 | DB84: -1.5421 | DC84: 0 | DD84: -1.0324 | DE84: 0 | DF84: 1.8397 | DG84: 1.62e-06 | DH84: 2.3351 | DI84: 0 | DJ84: 2.8207 | DK84: 0 | DL84: 3.3063 | DM84: 0 | DN84: -1.1058 | DO84: 0 | DP84: -0.6144 | DQ84: 0.00087253 | DR84: 0.5114 | DS84: 0.02688938 | DT84: 1.0255 | DU84: 4.16e-06 | DV84: 0.52 | DW84: 0.13333055 | DX84: 1.0174 | DY84: 0.00133783 | DZ84: -1.0147 | EA84: 5e-08 | EB84: -0.5187 | EC84: 0.01194862 | ED84: -0.3468 | EE84: 0.16661562 | EF84: 0.173 | EG84: 0.48975935 | EH84: -0.3808 | EI84: 0.10200731 | EJ84: 0.1326 | EK84: 0.62390871 | EL84: -1.2191 | EM84: 0 | EN84: -0.7262 | EO84: 0.00010971
A85: Phatr3_J13725 | B85: chr_12 | C85: 611327 | D85: 612913 | E85: - | F85: 1587 | G85: pti:PHATRDRAFT_13725 | H85: hypothetical protein | N85: B7G2N0 | W85: Phatr13725-12Phatr2 | X85: 95 | Y85: Predicted protein Fragment | Z85: CAM_CRCL_32372858 | AA85: Phaeodactylum tricornutum | AB85: 2850 | AC85: _GAP_||PF01546 | AD85: _GAP_||Peptidase family M20/M25/M40 | AE85: _GAP_||TIGR01891||_GAP_ | AF85: _GAP_||amidohydrolase||_GAP_ | AJ85: 0 | AK85: signal peptide | AL85: 0.6673 | AM85: 0.0608 | AN85: 0.0325 | AO85: 0 | AQ85: NS | AS85: 188 | AT85: 32 | AU85: 1.409335727 | AV85: 1.190153846 | AW85: 0.8654453569 | AX85: 1 | AY85: 1 | AZ85: 33.587 | BA85: 21.16 | BB85: 20.425 | BC85: 66.465 | BD85: 25.54 | BE85: 26.64 | BF85: 44.625 | BG85: 11.515 | BH85: 15.145 | BI85: 45.375 | BJ85: 17.96 | BK85: 18.465 | BL85: 48.985 | BM85: 45.36 | BN85: 46.53 | BO85: 49.615 | BP85: 21.79 | BQ85: 20.53 | BR85: 20.29 | BS85: 20.56 | BT85: 30.98 | BU85: 101.95 | BV85: 27.24 | BW85: 23.84 | BX85: 28.47 | BY85: 24.81 | BZ85: 46.46 | CA85: 42.79 | CB85: 10.7 | CC85: 12.33 | CD85: 15.91 | CE85: 14.38 | CF85: 46.58 | CG85: 44.17 | CH85: 17.1 | CI85: 18.82 | CJ85: 16.99 | CK85: 19.94 | CL85: 46.55 | CM85: 51.42 | CN85: 48.03 | CO85: 42.69 | CP85: 40.89 | CQ85: 52.17 | CR85: 46.15 | CS85: 53.08 | CT85: -0.2211 | CU85: 0.2019309 | CV85: -0.5549 | CW85: 0.00169852 | CX85: -0.2851 | CY85: 0.06962119 | CZ85: -0.6017 | DA85: 0.00033945 | DB85: -1.1108 | DC85: 0 | DD85: -1.4542 | DE85: 0 | DF85: 0.6351 | DG85: 0.01345584 | DH85: 0.2734 | DI85: 0.36258487 | DJ85: 0.3451 | DK85: 0.0357253 | DL85: -0.0215 | DM85: 0.96287426 | DN85: -1.0051 | DO85: 0 | DP85: -1.365 | DQ85: 0 | DR85: -0.0137 | DS85: 1 | DT85: -0.3535 | DU85: 0.05100235 | DV85: 0.1539 | DW85: 0.49463745 | DX85: -0.2046 | DY85: 0.3710322 | DZ85: -1.1854 | EA85: 0 | EB85: -1.5414 | EC85: 0 | ED85: -1.2897 | EE85: 0 | EF85: -1.6235 | EG85: 0 | EH85: -1.2091 | EI85: 0 | EJ85: -1.5491 | EK85: 0 | EL85: -1.2029 | EM85: 0 | EN85: -1.5609 | EO85: 0
A86: Phatr3_EG02336 | B86: chr_12;chr_12 | C86: 459816;461661 | D86: 461059;463818 | E86: -;- | F86: 3402 | G86: pti:PHATRDRAFT_37231 | H86: hypothetical protein | N86: B7G2H8 | W86: Phatr37231-12Phatr2 | X86: 96 | Y86: Predicted protein | Z86: CAM_CRCL_26892186 | AA86: Phaeodactylum tricornutum | AB86: 2850 | AC86: _GAP_||PF13843||_GAP_||PF05830||_GAP_ | AD86: _GAP_||PF13843||_GAP_||Nodulation protein Z (NodZ)||_GAP_ | AJ86: 0 | AK86: other localisation | AL86: 0.0622 | AM86: 0.0233 | AN86: 0 | AO86: 0.2079 | AQ86: NS | AS86: 188 | AU86: 1.374297021 | AV86: 1.058011916 | AW86: 0.9987699877 | AX86: 1 | AY86: 1 | AZ86: 11.36066667 | BA86: 15.785 | BB86: 17.18 | BC86: 20.25 | BD86: 7.53 | BE86: 10.055 | BF86: 14.305 | BG86: 3.755 | BH86: 4.46 | BI86: 15.345 | BJ86: 4.07 | BK86: 6.19 | BL86: 16.515 | BM86: 12.19 | BN86: 8.585 | BO86: 14.195 | BP86: 15.71 | BQ86: 15.86 | BR86: 16.84 | BS86: 17.52 | BT86: 19.38 | BU86: 21.12 | BV86: 7.25 | BW86: 7.81 | BX86: 9.05 | BY86: 11.06 | BZ86: 15.23 | CA86: 13.38 | CB86: 2.5 | CC86: 5.01 | CD86: 4.39 | CE86: 4.53 | CF86: 14.91 | CG86: 15.78 | CH86: 4.61 | CI86: 3.53 | CJ86: 6.98 | CK86: 5.4 | CL86: 16.62 | CM86: 16.41 | CN86: 13.05 | CO86: 11.33 | CP86: 7.5 | CQ86: 9.67 | CR86: 14.96 | CS86: 13.43 | CT86: 1.1176 | CU86: 0 | CV86: 0.9574 | CW86: 0 | CX86: 0.7001 | CY86: 8e-06 | CZ86: 0.5543 | DA86: 0.00143904 | DB86: 0.1052 | DC86: 0.52391575 | DD86: -0.0636 | DE86: 0.75487676 | DF86: 1.8053 | DG86: 0 | DH86: 1.6178 | DI86: 3e-08 | DJ86: 1.6768 | DK86: 0 | DL86: 1.4842 | DM86: 0 | DN86: 0.1346 | DO86: 0.39745279 | DP86: -0.0525 | DQ86: 0.82532358 | DR86: 1.6758 | DS86: 0 | DT86: 1.511 | DU86: 0 | DV86: 1.3032 | DW86: 0 | DX86: 1.1163 | DY86: 2e-07 | DZ86: -0.0392 | EA86: 0.88933981 | EB86: -0.2232 | EC86: 0.21588066 | ED86: 0.1805 | EE86: 0.27438831 | EF86: 0.0193 | EG86: 0.9920303 | EH86: 0.8091 | EI86: 3.507e-05 | EJ86: 0.6406 | EK86: 0.00197876 | EL86: 0.1845 | EM86: 0.25683463 | EN86: -0.0027 | EO86: 1
A87: Phatr3_J26921 | B87: chr_6;chr_6 | C87: 836399;836773 | D87: 836594;837908 | E87: +;+ | F87: 1332 | G87: pti:PHATRDRAFT_26921 | H87: beta chain succinyl-coa synthetase synthetase (EC:6.2.1.4); K01900 succinyl-CoA synthetase beta subunit [EC:6.2.1.4 6.2.1.5] | I87: pti01100||pti00640||pti00020||pti01110 | J87: K01900 | K87: succinyl-CoA synthetase beta subunit [EC:6.2.1.4 6.2.1.5] | L87: Citrate cycle (TCA cycle) || Propanoate metabolism | M87: 6.2.1.4||6.2.1.5 | N87: B7FXA2 | O87: KOG2799 | P87: Succinyl-CoA synthetase, beta subunit | Q87: Energy production and conversion | R87: METABOLISM | W87: Phatr26921-6Phatr2 | X87: 94 | Y87: Beta chain succinyl-coa synthetase synthetase (EC 6.2.1.4) | Z87: CAM_CRCL_14116558 | AA87: Phaeodactylum tricornutum | AB87: 2850 | AC87: PF08442||_GAP_||PF00549 | AD87: ATP-grasp domain||_GAP_||CoA-ligase | AE87: TIGR01016 | AF87: succinate-CoA ligase, beta subunit | AJ87: 0 | AK87: mitochondrion | AL87: 0.0918 | AM87: 0.0293 | AN87: 0 | AO87: 0.7179 | AQ87: NS | AS87: 190 | AT87: 69 | AU87: 1.314297581 | AV87: 1.291834218 | AW87: 0.7360071301 | AX87: 1 | AY87: 1 | AZ87: 76.05766667 | BA87: 86.735 | BB87: 73.505 | BC87: 79.8 | BD87: 85.475 | BE87: 99.38 | BF87: 138.425 | BG87: 16.51 | BH87: 41.915 | BI87: 89.185 | BJ87: 35.455 | BK87: 45.78 | BL87: 106.025 | BM87: 76.745 | BN87: 73.37 | BO87: 92.56 | BP87: 88.39 | BQ87: 85.08 | BR87: 63.85 | BS87: 83.16 | BT87: 53.98 | BU87: 105.62 | BV87: 79.84 | BW87: 91.11 | BX87: 96.3 | BY87: 102.46 | BZ87: 140.05 | CA87: 136.8 | CB87: 19.59 | CC87: 13.43 | CD87: 41.86 | CE87: 41.97 | CF87: 85.6 | CG87: 92.77 | CH87: 34.99 | CI87: 35.92 | CJ87: 48.33 | CK87: 43.23 | CL87: 107.41 | CM87: 104.64 | CN87: 68.54 | CO87: 84.95 | CP87: 64.14 | CQ87: 82.6 | CR87: 88.67 | CS87: 96.45 | CT87: 0.0731 | CU87: 0.64558038 | CV87: -0.4609 | CW87: 0.00432817 | CX87: -0.1484 | CY87: 0.30388234 | CZ87: -0.6672 | DA87: 4.472e-05 | DB87: -0.7118 | DC87: 1e-08 | DD87: -1.2498 | DE87: 0 | DF87: 2.1702 | DG87: 0 | DH87: 1.6092 | DI87: 0 | DJ87: 0.9059 | DK87: 0 | DL87: 0.3386 | DM87: 0.0295383 | DN87: 0.0542 | DO87: 0.77143312 | DP87: -0.5053 | DQ87: 0.00227281 | DR87: 1.0345 | DS87: 0 | DT87: 0.4952 | DU87: 0.0021795 | DV87: 0.8756 | DW87: 2.4e-07 | DX87: 0.3183 | DY87: 0.1147816 | DZ87: -0.2619 | EA87: 0.05997331 | EB87: -0.8184 | EC87: 7e-07 | ED87: -0.0188 | EE87: 0.99059829 | EF87: -0.5518 | EG87: 0.00330294 | EH87: 0.1673 | EI87: 0.43573161 | EJ87: -0.3709 | EK87: 0.08512622 | EL87: -0.0667 | EM87: 0.71652571 | EN87: -0.6249 | EO87: 0.00021695
A88: Phatr3_J46236 | B88: chr_9;chr_9 | C88: 684080;685158 | D88: 685061;686008 | E88: -;- | F88: 1833 | G88: pti:PHATRDRAFT_46236 | H88: hypothetical protein | N88: B7G0J3 | W88: Phatr46236-9Phatr2 | X88: 100 | Y88: Predicted protein | AA88: Phaeodactylum tricornutum | AB88: 2850 | AJ88: 0 | AK88: other localisation | AL88: 0.0625 | AM88: 0.0241 | AN88: 0 | AO88: 0.099 | AQ88: NS | AS88: 188 | AU88: 1.455189236 | AV88: 1.110483042 | AW88: 0.7712029301 | AX88: 1 | AY88: 1 | AZ88: 31.292 | BA88: 43.72 | BB88: 43.495 | BC88: 54.89 | BD88: 22.1 | BE88: 32.66 | BF88: 42.725 | BG88: 8.655 | BH88: 16.025 | BI88: 30.585 | BJ88: 13.42 | BK88: 28.515 | BL88: 41.65 | BM88: 30.265 | BN88: 31.65 | BO88: 29.025 | BP88: 42.84 | BQ88: 44.6 | BR88: 42.46 | BS88: 44.53 | BT88: 62.49 | BU88: 47.29 | BV88: 22.45 | BW88: 21.75 | BX88: 33.76 | BY88: 31.56 | BZ88: 42.65 | CA88: 42.8 | CB88: 9.27 | CC88: 8.04 | CD88: 14.12 | CE88: 17.93 | CF88: 29.33 | CG88: 31.84 | CH88: 13.3 | CI88: 13.54 | CJ88: 32.52 | CK88: 24.51 | CL88: 35.86 | CM88: 47.44 | CN88: 29.55 | CO88: 30.98 | CP88: 29.02 | CQ88: 34.28 | CR88: 26.62 | CS88: 31.43 | CT88: 1.0325 | CU88: 0 | CV88: 0.742 | CW88: 5.4e-07 | CX88: 0.4664 | CY88: 0.00048574 | CZ88: 0.1918 | DA88: 0.23573235 | DB88: -0.0062 | DC88: 1 | DD88: -0.3042 | DE88: 0.0307467 | DF88: 2.1084 | DG88: 0 | DH88: 1.7879 | DI88: 0 | DJ88: 1.2957 | DK88: 0 | DL88: 0.9739 | DM88: 0 | DN88: 0.6093 | DO88: 9.5e-06 | DP88: 0.2922 | DQ88: 0.06571533 | DR88: 1.4453 | DS88: 0 | DT88: 1.1493 | DU88: 0 | DV88: 0.5679 | DW88: 0.00453367 | DX88: 0.251 | DY88: 0.26086629 | DZ88: 0.0895 | EA88: 0.66440731 | EB88: -0.2237 | EC88: 0.27279705 | ED88: 0.3371 | EE88: 0.02223164 | EF88: 0.0455 | EG88: 0.85837639 | EH88: 0.3915 | EI88: 0.03106971 | EJ88: 0.0935 | EK88: 0.70023358 | EL88: 0.613 | EM88: 5.802e-05 | EN88: 0.2975 | EO88: 0.08451607
A89: Phatr3_J8461 | B89: chr_13 | C89: 294651 | D89: 295295 | E89: + | F89: 645 | G89: pti:PHATRDRAFT_47899 | H89: hypothetical protein | N89: B7G5A8 | O89: KOG0706 | P89: Predicted GTPase-activating protein | Q89: Signal transduction mechanisms | R89: CELLULAR PROCESSES AND SIGNALING | W89: fgenesh1_kg.27_#_26_#_1801_1_CCCI_CCOA_CCOB_CCOC_CFAP_CFAS-Psemu1_scaffold_27 | X89: 53 | Z89: CAM_CRCL_13348 | AA89: Pseudo-nitzschia multiseries | AB89: 37319 | AC89: _GAP_||PF01412||_GAP_ | AD89: _GAP_||Putative GTPase activating protein for Arf||_GAP_ | AJ89: 0 | AK89: other localisation | AL89: 0.057 | AM89: 0.0257 | AN89: 0 | AO89: 0.1008 | AQ89: NS | AS89: 3 | AU89: 1.340156996 | AV89: 1.135162397 | AW89: 0.7735689109 | AX89: 1 | AY89: 1 | AZ89: 58.027 | BA89: 115.73 | BB89: 102.82 | BC89: 108.505 | BD89: 40.235 | BE89: 33.555 | BF89: 58.835 | BG89: 21.435 | BH89: 24.71 | BI89: 54.45 | BJ89: 34.36 | BK89: 35.325 | BL89: 65.22 | BM89: 77.705 | BN89: 40.125 | BO89: 57.395 | BP89: 105.29 | BQ89: 126.17 | BR89: 98.41 | BS89: 107.23 | BT89: 82.76 | BU89: 134.25 | BV89: 40.84 | BW89: 39.63 | BX89: 32.74 | BY89: 34.37 | BZ89: 59.76 | CA89: 57.91 | CB89: 20.69 | CC89: 22.18 | CD89: 22.8 | CE89: 26.62 | CF89: 54.1 | CG89: 54.8 | CH89: 28.37 | CI89: 40.35 | CJ89: 38 | CK89: 32.65 | CL89: 68.41 | CM89: 62.03 | CN89: 86.58 | CO89: 68.83 | CP89: 37.81 | CQ89: 42.44 | CR89: 57.6 | CS89: 57.19 | CT89: 1.5704 | CU89: 0 | CV89: 1.1162 | CW89: 0 | CX89: 1.8317 | CY89: 0 | CZ89: 1.393 | DA89: 0 | DB89: 0.934 | DC89: 0 | DD89: 0.4734 | DE89: 0.00128707 | DF89: 2.1909 | DG89: 0 | DH89: 1.7074 | DI89: 0 | DJ89: 2.0731 | DK89: 0 | DL89: 1.5865 | DM89: 0 | DN89: 1.1786 | DO89: 0 | DP89: 0.6981 | DQ89: 7.63e-06 | DR89: 1.5128 | DS89: 0 | DT89: 1.0509 | DU89: 4e-08 | DV89: 1.6639 | DW89: 0 | DX89: 1.1836 | DY89: 0 | DZ89: 0.8554 | EA89: 2.1e-07 | EB89: 0.3776 | EC89: 0.03182942 | ED89: 0.3816 | EE89: 0.02324562 | EF89: -0.0738 | EG89: 0.74444087 | EH89: 1.4525 | EI89: 0 | EJ89: 0.9908 | EK89: 2.4e-07 | EL89: 1.0372 | EM89: 0 | EN89: 0.5574 | EO89: 0.00062793
A90: Phatr3_EG02607 | B90: chr_2;chr_2 | C90: 682145;682550 | D90: 682289;684069 | E90: -;- | F90: 1665 | G90: pti:PHATRDRAFT_43515 | H90: hypothetical protein | N90: B7FSH3 | W90: Phatr43515-2Phatr2 | X90: 90 | Y90: Predicted protein | Z90: CAM_CRCL_24146 | AA90: Phaeodactylum tricornutum | AB90: 2850 | AC90: _GAP_||PF01733||_GAP_ | AD90: _GAP_||Nucleoside transporter||_GAP_ | AG90: ENT | AI90: 2 | AJ90: 7 | AK90: signal anchor | AL90: 0.1182 | AM90: 0.5965 | AN90: 0 | AO90: 0 | AQ90: NS | AS90: 190 | AU90: 1.114081259 | AV90: 1.062519557 | AW90: 1.013114956 | AX90: 1 | AY90: 1 | AZ90: 44.30633333 | BA90: 44.55 | BB90: 52.165 | BC90: 65.82 | BD90: 29.71 | BE90: 44.81 | BF90: 56.605 | BG90: 18.725 | BH90: 26.65 | BI90: 60.125 | BJ90: 20.035 | BK90: 25.515 | BL90: 65.515 | BM90: 61.17 | BN90: 39.24 | BO90: 53.96 | BP90: 43.47 | BQ90: 45.63 | BR90: 50.95 | BS90: 53.38 | BT90: 46.61 | BU90: 85.03 | BV90: 28.41 | BW90: 31.01 | BX90: 43.64 | BY90: 45.98 | BZ90: 59.11 | CA90: 54.1 | CB90: 20.77 | CC90: 16.68 | CD90: 26.5 | CE90: 26.8 | CF90: 56.38 | CG90: 63.87 | CH90: 22.93 | CI90: 17.14 | CJ90: 22.08 | CK90: 28.95 | CL90: 57.78 | CM90: 73.25 | CN90: 64.62 | CO90: 57.72 | CP90: 34.35 | CQ90: 44.13 | CR90: 53.25 | CS90: 54.67 | CT90: 0.6336 | CU90: 2.14e-06 | CV90: 0.5792 | CW90: 7.827e-05 | CX90: 0.038 | CY90: 0.85825934 | CZ90: -0.0014 | DA90: 1 | DB90: -0.3845 | DC90: 0.00356075 | DD90: -0.4465 | DE90: 0.00141755 | DF90: 1.0186 | DG90: 6.12e-06 | DH90: 0.9334 | DI90: 6.001e-05 | DJ90: 0.5958 | DK90: 3.32e-06 | DL90: 0.5088 | DM90: 0.00026464 | DN90: -0.3395 | DO90: 0.01806918 | DP90: -0.4208 | DQ90: 0.00608361 | DR90: 0.88 | DS90: 1.8e-07 | DT90: 0.82 | DU90: 3.15e-06 | DV90: 0.7609 | DW90: 2.989e-05 | DX90: 0.68 | DY90: 0.00033595 | DZ90: -0.5351 | EA90: 0.00096913 | EB90: -0.613 | EC90: 0.00035185 | ED90: -0.65 | EE90: 1.98e-06 | EF90: -0.7056 | EG90: 1.84e-06 | EH90: 0.1097 | EI90: 0.63683784 | EJ90: 0.0468 | EK90: 0.9023247 | EL90: -0.2501 | EM90: 0.08966552 | EN90: -0.3306 | EO90: 0.0369204
A91: Phatr3_J33770 | B91: chr_4 | C91: 313001 | D91: 314146 | E91: + | F91: 1146 | G91: pti:PHATRDRAFT_33770 | H91: hypothetical protein | N91: B7FTT8 | W91: Phatr33770-4Phatr2 | X91: 100 | Y91: Predicted protein | Z91: CAM_CRCL_9565 | AA91: Phaeodactylum tricornutum | AB91: 2850 | AC91: _GAP_||PF05996 | AD91: _GAP_||Ferredoxin-dependent bilin reductase | AJ91: 0 | AK91: other localisation | AL91: 0.0637 | AM91: 0.0236 | AN91: 0 | AO91: 0.144 | AQ91: NS | AS91: 188 | AU91: 1.274655718 | AV91: 1.093435963 | AW91: 0.7788341496 | AX91: 1 | AY91: 1 | AZ91: 24.06333333 | BA91: 19.2 | BB91: 16.025 | BC91: 47.855 | BD91: 12.295 | BE91: 23.53 | BF91: 38.435 | BG91: 10.6 | BH91: 10.87 | BI91: 33.785 | BJ91: 15.895 | BK91: 15.115 | BL91: 37.18 | BM91: 36.17 | BN91: 16.58 | BO91: 27.415 | BP91: 19.08 | BQ91: 19.32 | BR91: 17.5 | BS91: 14.55 | BT91: 53.56 | BU91: 42.15 | BV91: 10.49 | BW91: 14.1 | BX91: 19.15 | BY91: 27.91 | BZ91: 33.46 | CA91: 43.41 | CB91: 11.65 | CC91: 9.55 | CD91: 9.26 | CE91: 12.48 | CF91: 31.61 | CG91: 35.96 | CH91: 12.95 | CI91: 18.84 | CJ91: 14.3 | CK91: 15.93 | CL91: 38.06 | CM91: 36.3 | CN91: 35.73 | CO91: 36.61 | CP91: 17.28 | CQ91: 15.88 | CR91: 30.28 | CS91: 24.55 | CT91: 0.6945 | CU91: 0.00122642 | CV91: 0.1726 | CW91: 0.58875495 | CX91: -0.2433 | CY91: 0.30716404 | CZ91: -0.7523 | DA91: 0.00204716 | DB91: -1.0433 | DC91: 0 | DD91: -1.5735 | DE91: 0 | DF91: 0.6297 | DG91: 0.04302202 | DH91: 0.0689 | DI91: 0.96323929 | DJ91: 0.6623 | DK91: 0.00126447 | DL91: 0.111 | DM91: 0.73506543 | DN91: -0.7214 | DO91: 2.04e-05 | DP91: -1.2655 | DQ91: 0 | DR91: 0.0344 | DS91: 1 | DT91: -0.501 | DU91: 0.05164882 | DV91: 0.2992 | DW91: 0.20466195 | DX91: -0.2488 | DY91: 0.36308155 | DZ91: -0.9265 | EA91: 1e-07 | EB91: -1.4688 | EC91: 0 | ED91: -1.108 | EE91: 0 | EF91: -1.6259 | EG91: 0 | EH91: 0.126 | EI91: 0.64547765 | EJ91: -0.4025 | EK91: 0.11522656 | EL91: -0.4789 | EM91: 0.01216069 | EN91: -1.0269 | EO91: 1.31e-06
A92: Phatr3_J43024 | B92: chr_1 | C92: 1825501 | D92: 1827354 | E92: + | F92: 1854 | G92: pti:PHATRDRAFT_43024 | H92: hypothetical protein | N92: B7FQD2 | O92: KOG1840 | P92: Kinesin light chain | Q92: Cytoskeleton | R92: CELLULAR PROCESSES AND SIGNALING | W92: Phatr43024-1Phatr2 | X92: 91 | Y92: Predicted protein | Z92: CAM_CRCL_26862458 | AA92: Phaeodactylum tricornutum | AB92: 2850 | AC92: _GAP_||PF13424||PF13414||PF13424||_GAP_ | AD92: _GAP_||PF13424||PF13414||PF13424||_GAP_ | AJ92: 0 | AK92: other localisation | AL92: 0.1814 | AM92: 0.0374 | AN92: 0 | AO92: 0.1197 | AQ92: NS | AS92: 102 | AU92: 1.123429608 | AV92: 0.8061386488 | AW92: 1.144494959 | AX92: 1 | AY92: 1 | AZ92: 16.57566667 | BA92: 6.905 | BB92: 10.545 | BC92: 60.29 | BD92: 8.61 | BE92: 10.03 | BF92: 8.12 | BG92: 16.92 | BH92: 10.415 | BI92: 9.7 | BJ92: 10.82 | BK92: 11.205 | BL92: 9.415 | BM92: 39.77 | BN92: 26.77 | BO92: 9.12 | BP92: 6.75 | BQ92: 7.06 | BR92: 11.55 | BS92: 9.54 | BT92: 38.61 | BU92: 81.97 | BV92: 9.44 | BW92: 7.78 | BX92: 11.34 | BY92: 8.72 | BZ92: 7.58 | CA92: 8.66 | CB92: 14.89 | CC92: 18.95 | CD92: 11.07 | CE92: 9.76 | CF92: 9.91 | CG92: 9.49 | CH92: 10.32 | CI92: 11.32 | CJ92: 12.04 | CK92: 10.37 | CL92: 9.73 | CM92: 9.1 | CN92: 41.92 | CO92: 37.62 | CP92: 24.89 | CQ92: 28.65 | CR92: 8.98 | CS92: 9.26 | CT92: -0.2746 | CU92: 0.29095118 | CV92: 0.0769 | CW92: 0.8730264 | CX92: -0.5007 | CY92: 0.02896552 | CZ92: -0.13 | DA92: 0.6448985 | DB92: -0.2797 | DC92: 0.23768529 | DD92: 0.0626 | DE92: 0.89911673 | DF92: -1.5386 | DG92: 1e-08 | DH92: -1.2198 | DI92: 5.57e-06 | DJ92: -0.7377 | DK92: 0.00018784 | DL92: -0.4146 | DM92: 0.0464925 | DN92: -0.4028 | DO92: 0.06380806 | DP92: -0.0743 | DQ92: 0.79669276 | DR92: -0.9052 | DS92: 1.704e-05 | DT92: -0.5571 | DU92: 0.01049752 | DV92: -0.7488 | DW92: 0.00200247 | DX92: -0.4236 | DY92: 0.09772481 | DZ92: -0.422 | EA92: 0.07980875 | EB92: -0.0943 | EC92: 0.76266333 | ED92: -2.7242 | EE92: 0 | EF92: -2.3617 | EG92: 0 | EH92: -2.0349 | EI92: 0 | EJ92: -1.6872 | EK92: 0 | EL92: -0.3799 | EM92: 0.10030012 | EN92: -0.0516 | EO92: 0.89810791
A93: Phatr3_J33111 | B93: chr_3 | C93: 72847 | D93: 74064 | E93: - | F93: 1218 | G93: pti:PHATR_33111 | H93: hypothetical protein | N93: B5Y4D6 | W93: Phatr33111-3Phatr2 | X93: 100 | Y93: Predicted protein | AA93: Phaeodactylum tricornutum | AB93: 2850 | AJ93: 1 | AK93: signal peptide | AL93: 0.5803 | AM93: 0.1607 | AN93: 0.298 | AO93: 0 | AQ93: NS | AS93: 102 | AU93: 1.427594628 | AV93: 0.9948542024 | AW93: 0.6147510296 | AX93: 1 | AY93: 1 | AZ93: 5.155666667 | BA93: 2.855 | BB93: 0.715 | BC93: 17.545 | BD93: 2.395 | BE93: 3.405 | BF93: 1.14 | BG93: 2.93 | BH93: 5.045 | BI93: 3.125 | BJ93: 4.625 | BK93: 8.865 | BL93: 3.525 | BM93: 8.73 | BN93: 9.695 | BO93: 2.74 | BP93: 3.44 | BQ93: 2.27 | BR93: 0.95 | BS93: 0.48 | BT93: 16.87 | BU93: 18.22 | BV93: 2.69 | BW93: 2.1 | BX93: 2.35 | BY93: 4.46 | BZ93: 1.27 | CA93: 1.01 | CB93: 4.48 | CC93: 1.38 | CD93: 5.04 | CE93: 5.05 | CF93: 3.1 | CG93: 3.15 | CH93: 3.34 | CI93: 5.91 | CJ93: 6.14 | CK93: 11.59 | CL93: 1.67 | CM93: 5.38 | CN93: 10.01 | CO93: 7.45 | CP93: 7.32 | CQ93: 12.07 | CR93: 2.88 | CS93: 2.6 | CT93: 0.3378 | CU93: 0.4668616 | CV93: -1.7979 | CW93: 3.99e-05 | CX93: -0.1587 | CY93: 0.74493591 | CZ93: -2.2891 | DA93: 1.29e-06 | DB93: 1.3312 | DC93: 0.00073894 | DD93: -0.8295 | DE93: 0.07500216 | DF93: -0.2107 | DG93: 0.79134887 | DH93: -2.4172 | DI93: 0.00046632 | DJ93: -0.9174 | DK93: 0.00117215 | DL93: -3.0813 | DM93: 0 | DN93: 0.0069 | DO93: 1 | DP93: -2.1603 | DQ93: 4e-08 | DR93: -0.888 | DS93: 0.0227745 | DT93: -3.0452 | DU93: 0 | DV93: -1.6429 | DW93: 2.313e-05 | DX93: -3.8136 | DY93: 0 | DZ93: -0.3044 | EA93: 0.67506152 | EB93: -2.4972 | EC93: 8.755e-05 | ED93: -1.7635 | EE93: 1e-08 | EF93: -3.8987 | EG93: 0 | EH93: -1.7916 | EI93: 8.4e-07 | EJ93: -3.9419 | EK93: 0 | EL93: 0.1337 | EM93: 0.84801744 | EN93: -2.033 | EO93: 9.8e-07
A94: Phatr3_J31436 | B94: chr_1;chr_1;chr_1 | C94: 92754;92968;93454 | D94: 92876;93355;93590 | E94: +;+;+ | F94: 648 | G94: pti:PHATRDRAFT_31436 | H94: hypothetical protein; K13347 peroxisomal membrane protein 2 | I94: pti04146 | J94: K13347 | K94: peroxisomal membrane protein 2 | L94: Peroxisome | N94: B7FRB9 | O94: KOG1944 | P94: Peroxisomal membrane protein MPV17 and related proteins | Q94: General function prediction only | R94: POORLY CHARACTERIZED | W94: Phatr31436-1Phatr2 | X94: 93 | Y94: Predicted protein | Z94: CAM_CRCL_4785657 | AA94: Phaeodactylum tricornutum | AB94: 2850 | AC94: _GAP_||PF04117 | AD94: _GAP_||Mpv17 / PMP22 family | AJ94: 2 | AK94: chloroplast | AL94: 0.8303 | AM94: 0.0504 | AN94: 0.6488 | AO94: 0 | AQ94: NS | AS94: 129 | AT94: 41 | AU94: 1.371314278 | AV94: 1.12326795 | AW94: 0.5424448839 | AX94: 1 | AY94: 1 | AZ94: 36.18866667 | BA94: 42.27 | BB94: 54.27 | BC94: 65.315 | BD94: 28.7 | BE94: 25.78 | BF94: 42.455 | BG94: 12.18 | BH94: 25.82 | BI94: 40.02 | BJ94: 24.875 | BK94: 32.795 | BL94: 31.925 | BM94: 43.39 | BN94: 38.035 | BO94: 35 | BP94: 34.07 | BQ94: 50.47 | BR94: 56.41 | BS94: 52.13 | BT94: 75.78 | BU94: 54.85 | BV94: 28.84 | BW94: 28.56 | BX94: 25.19 | BY94: 26.37 | BZ94: 43.71 | CA94: 41.2 | CB94: 15.92 | CC94: 8.44 | CD94: 24.64 | CE94: 27 | CF94: 38.03 | CG94: 42.01 | CH94: 20.14 | CI94: 29.61 | CJ94: 30.46 | CK94: 35.13 | CL94: 34.28 | CM94: 29.57 | CN94: 37.92 | CO94: 48.86 | CP94: 33.21 | CQ94: 42.86 | CR94: 31.64 | CS94: 38.36 | CT94: 0.5985 | CU94: 0.01004698 | CV94: 0.6954 | CW94: 0.00030962 | CX94: 0.7521 | CY94: 0.00112578 | CZ94: 0.8648 | DA94: 7e-06 | DB94: -0.0568 | DC94: 0.90106077 | DD94: 0.0346 | DE94: 0.94714202 | DF94: 1.5818 | DG94: 4.482e-05 | DH94: 1.644 | DI94: 2.29e-06 | DJ94: 0.5548 | DK94: 0.0130641 | DL94: 0.619 | DM94: 0.0006328 | DN94: 0.1631 | DO94: 0.50485525 | DP94: 0.2351 | DQ94: 0.25423659 | DR94: 0.5189 | DS94: 0.05751831 | DT94: 0.6068 | DU94: 0.00922436 | DV94: 0.3141 | DW94: 0.23917312 | DX94: 0.3821 | DY94: 0.09334658 | DZ94: 0.4292 | EA94: 0.08753263 | EB94: 0.5011 | EC94: 0.02103949 | ED94: -0.2398 | EE94: 0.40450932 | EF94: -0.1474 | EG94: 0.53853059 | EH94: 0.0745 | EI94: 0.85499539 | EJ94: 0.161 | EK94: 0.56023859 | EL94: 0.2856 | EM94: 0.25268829 | EN94: 0.353 | EO94: 0.1012207
A95: Phatr3_J49281 | B95: chr_21 | C95: 462358 | D95: 463089 | E95: + | F95: 732 | G95: pti:PHATRDRAFT_49281 | H95: hypothetical protein | N95: B7GA32 | W95: Phatr49281-21Phatr2 | X95: 100 | Y95: Predicted protein | AA95: Phaeodactylum tricornutum | AB95: 2850 | AJ95: 0 | AK95: other localisation | AL95: 0.1162 | AM95: 0.0322 | AN95: 0 | AO95: 0.4967 | AQ95: NS | AS95: 188 | AU95: 1.147622726 | AV95: 0.9765474327 | AW95: 0.8681268796 | AX95: 1 | AY95: 1 | AZ95: 581.5263333 | BA95: 749.71 | BB95: 876.255 | BC95: 962.665 | BD95: 306.33 | BE95: 440.905 | BF95: 1106.27 | BG95: 260.69 | BH95: 220.715 | BI95: 756.605 | BJ95: 299.205 | BK95: 199.975 | BL95: 784.865 | BM95: 758.175 | BN95: 247.32 | BO95: 753.21 | BP95: 675.13 | BQ95: 824.29 | BR95: 936.64 | BS95: 815.87 | BT95: 974.15 | BU95: 951.18 | BV95: 295.87 | BW95: 316.79 | BX95: 388.26 | BY95: 493.55 | BZ95: 1182.29 | CA95: 1030.25 | CB95: 197.69 | CC95: 323.69 | CD95: 202.31 | CE95: 239.12 | CF95: 814.37 | CG95: 698.84 | CH95: 333.33 | CI95: 265.08 | CJ95: 200.21 | CK95: 199.74 | CL95: 861.33 | CM95: 708.4 | CN95: 786.13 | CO95: 730.22 | CP95: 254.44 | CQ95: 240.2 | CR95: 892.67 | CS95: 613.75 | CT95: 1.3441 | CU95: 0 | CV95: 1.2875 | CW95: 0 | CX95: 0.8147 | CY95: 1.56e-06 | CZ95: 0.7724 | DA95: 3.65e-05 | DB95: -0.5983 | DC95: 5.85e-05 | DD95: -0.6622 | DE95: 1.418e-05 | DF95: 1.2932 | DG95: 1.6e-07 | DH95: 1.2069 | DI95: 2.97e-06 | DJ95: 1.6219 | DK95: 0 | DL95: 1.5329 | DM95: 0 | DN95: 0.0832 | DO95: 0.66229177 | DP95: -0.0007 | DQ95: 1 | DR95: 1.0663 | DS95: 0 | DT95: 1.0037 | DU95: 1e-08 | DV95: 1.863 | DW95: 0 | DX95: 1.7807 | DY95: 0 | DZ95: -0.0354 | EA95: 0.91123418 | EB95: -0.1166 | EC95: 0.57965817 | ED95: -0.2055 | EE95: 0.20247433 | EF95: -0.2638 | EG95: 0.13395094 | EH95: 1.5228 | EI95: 0 | EJ95: 1.4589 | EK95: 0 | EL95: 0.0286 | EM95: 0.96252361 | EN95: -0.0571 | EO95: 0.86231924
A96: Phatr3_EG00223 | B96: chr_25 | C96: 377652 | D96: 378332 | E96: - | F96: 681 | AJ96: 0 | AK96: other localisation | AL96: 0.0733 | AM96: 0.0253 | AN96: 0 | AO96: 0.1238 | AQ96: NS | AS96: 190 | AU96: 1.762838075 | AV96: 0.9343434343 | AW96: 0.2812269939 | AX96: 1 | AY96: 1 | AZ96: 29.831 | BA96: 5.61 | BB96: 31.8 | BC96: 66.955 | BD96: 24.31 | BE96: 24.715 | BF96: 49.875 | BG96: 4.22 | BH96: 5.45 | BI96: 58.735 | BJ96: 8.755 | BK96: 10.7 | BL96: 71.255 | BM96: 11.62 | BN96: 17.305 | BO96: 56.16 | BP96: 6.05 | BQ96: 5.17 | BR96: 33.37 | BS96: 30.23 | BT96: 98.59 | BU96: 35.32 | BV96: 26.85 | BW96: 21.77 | BX96: 25.86 | BY96: 23.57 | BZ96: 51.17 | CA96: 48.58 | CB96: 5.35 | CC96: 3.09 | CD96: 6.01 | CE96: 4.89 | CF96: 58.28 | CG96: 59.19 | CH96: 6.59 | CI96: 10.92 | CJ96: 11.75 | CK96: 9.65 | CL96: 65.54 | CM96: 76.97 | CN96: 11.21 | CO96: 12.03 | CP96: 13.82 | CQ96: 20.79 | CR96: 54.68 | CS96: 57.64 | CT96: -2.0496 | CU96: 0 | CV96: 0.1631 | CW96: 0.5810562 | CX96: -2.0735 | CY96: 0 | CZ96: 0.1562 | DA96: 0.55620139 | DB96: -3.1664 | DC96: 0 | DD96: -0.9641 | DE96: 3e-08 | DF96: 0.2298 | DG96: 0.86788528 | DH96: 2.4189 | DI96: 0 | DJ96: -0.0669 | DK96: 0.88599182 | DL96: 2.1148 | DM96: 0 | DN96: -3.2725 | DO96: 0 | DP96: -1.0849 | DQ96: 0 | DR96: -0.8514 | DS96: 0.01902655 | DT96: 1.3598 | DU96: 4.68e-06 | DV96: -0.9604 | DW96: 0.00382243 | DX96: 1.2273 | DY96: 8.58e-06 | DZ96: -3.6246 | EA96: 0 | EB96: -1.4341 | EC96: 0 | ED96: -1.2241 | EE96: 4.648e-05 | EF96: 0.9883 | EG96: 9.027e-05 | EH96: -1.6716 | EI96: 3.5e-07 | EJ96: 0.5377 | EK96: 0.07276058 | EL96: -3.2761 | EM96: 0 | EN96: -1.0873 | EO96: 0
A97: Phatr3_J17199 | B97: chr_1 | C97: 183185 | D97: 185389 | E97: - | F97: 2205 | O97: KOG1307 | P97: K+-dependent Ca2+/Na+ exchanger NCKX1 and related proteins | Q97: Inorganic ion transport and metabolism | R97: METABOLISM | W97: Phatr17199-1Phatr2 | X97: 95 | Y97: 2-phosphoglycolate phosphatase Fragment | Z97: CAM_CRCL_31834800 | AA97: Phaeodactylum tricornutum | AB97: 2850 | AC97: _GAP_||PF01699||_GAP_||PF13499||_GAP_||PF01699 | AD97: _GAP_||Sodium/calcium exchanger protein||_GAP_||PF13499||_GAP_||Sodium/calcium exchanger protein | AE97: _GAP_||TIGR00367 | AF97: _GAP_||K+-dependent Na+/Ca+ exchanger homolog | AG97: CaCA | AI97: 2 | AJ97: 11 | AK97: other localisation | AL97: 0.1247 | AM97: 0.3212 | AN97: 0 | AO97: 0.2636 | AQ97: NS | AS97: 179 | AT97: 79 | AU97: 1.434109692 | AV97: 0.9535497615 | AW97: 0.5574848619 | AX97: 1 | AY97: 1 | AZ97: 92.87433333 | BA97: 127.665 | BB97: 129.24 | BC97: 171.405 | BD97: 83.75 | BE97: 112.995 | BF97: 118.775 | BG97: 28.245 | BH97: 49.795 | BI97: 118.415 | BJ97: 44.965 | BK97: 60.235 | BL97: 105.735 | BM97: 79.72 | BN97: 61.58 | BO97: 100.595 | BP97: 127.38 | BQ97: 127.95 | BR97: 130.98 | BS97: 127.5 | BT97: 222.73 | BU97: 120.08 | BV97: 80.51 | BW97: 86.99 | BX97: 112.62 | BY97: 113.37 | BZ97: 118.16 | CA97: 119.39 | CB97: 28.62 | CC97: 27.87 | CD97: 49.97 | CE97: 49.62 | CF97: 117.9 | CG97: 118.93 | CH97: 41.96 | CI97: 47.97 | CJ97: 59.85 | CK97: 60.62 | CL97: 109.9 | CM97: 101.57 | CN97: 79.1 | CO97: 80.34 | CP97: 60.6 | CQ97: 62.56 | CR97: 102.56 | CS97: 98.63 | CT97: 0.6596 | CU97: 2.1e-07 | CV97: 0.3951 | CW97: 0.01227666 | CX97: 0.2239 | CY97: 0.10051995 | CZ97: -0.0254 | DA97: 0.95092465 | DB97: 0.0662 | DC97: 0.67406897 | DD97: -0.2055 | DE97: 0.16752576 | DF97: 1.9384 | DG97: 0 | DH97: 1.6446 | DI97: 0 | DJ97: 1.2149 | DK97: 0 | DL97: 0.9175 | DM97: 0 | DN97: 0.2024 | DO97: 0.13661495 | DP97: -0.0885 | DQ97: 0.64041346 | DR97: 1.2536 | DS97: 0 | DT97: 0.982 | DU97: 0 | DV97: 1.0389 | DW97: 0 | DX97: 0.7487 | DY97: 9.544e-05 | DZ97: 0.3004 | EA97: 0.02877932 | EB97: 0.0121 | EC97: 1 | ED97: 0.4868 | EE97: 0.00025688 | EF97: 0.221 | EG97: 0.18851096 | EH97: 0.9738 | EI97: 1e-08 | EJ97: 0.7024 | EK97: 0.00028526 | EL97: 0.3736 | EM97: 0.00655709 | EN97: 0.0827 | EO97: 0.68533836
A98: Phatr3_J33028 | B98: chr_2 | C98: 1355083 | D98: 1355805 | E98: + | F98: 723 | G98: pti:PHATRDRAFT_33028 | H98: hypothetical protein | N98: B7FTB4 | W98: Phatr33028-2Phatr2 | X98: 90 | Y98: Predicted protein | Z98: CAM_CRCL_4008617 | AA98: Phaeodactylum tricornutum | AB98: 2850 | AC98: _GAP_||PF00188 | AD98: _GAP_||Cysteine-rich secretory protein family | AJ98: 0 | AK98: other localisation | AL98: 0.0691 | AM98: 0.0252 | AN98: 0 | AO98: 0.2042 | AQ98: NS | AS98: 3 | AU98: 1.372261774 | AV98: 0.8094774424 | AW98: 0.7321507481 | AX98: 1 | AY98: 1 | AZ98: 77.849 | BA98: 463.345 | BB98: 103.3 | BC98: 123.155 | BD98: 35.39 | BE98: 37.655 | BF98: 85.82 | BG98: 22.925 | BH98: 18.815 | BI98: 50.79 | BJ98: 25.105 | BK98: 15.945 | BL98: 41.375 | BM98: 54.1 | BN98: 55.675 | BO98: 34.34 | BP98: 352.06 | BQ98: 574.63 | BR98: 127.99 | BS98: 78.61 | BT98: 184.66 | BU98: 61.65 | BV98: 36.98 | BW98: 33.8 | BX98: 38.26 | BY98: 37.05 | BZ98: 99.56 | CA98: 72.08 | CB98: 17.62 | CC98: 28.23 | CD98: 17.4 | CE98: 20.23 | CF98: 57.79 | CG98: 43.79 | CH98: 18.53 | CI98: 31.68 | CJ98: 13.03 | CK98: 18.86 | CL98: 46.09 | CM98: 36.66 | CN98: 45.57 | CO98: 62.63 | CP98: 73.68 | CQ98: 37.67 | CR98: 28.24 | CS98: 40.44 | CT98: 3.7635 | CU98: 0 | CV98: 1.3297 | CW98: 3e-08 | CX98: 3.6733 | CY98: 0 | CZ98: 1.2547 | DA98: 1.2e-07 | DB98: 2.3981 | DC98: 0 | DD98: -0.0462 | DE98: 0.904304 | DF98: 4.09 | DG98: 0 | DH98: 1.6231 | DI98: 1.9e-07 | DJ98: 4.4773 | DK98: 0 | DL98: 2.0121 | DM98: 0 | DN98: 3.2863 | DO98: 0 | DP98: 0.8235 | DQ98: 0.00081246 | DR98: 3.9759 | DS98: 0 | DT98: 1.5284 | DU98: 7e-08 | DV98: 4.8214 | DW98: 0 | DX98: 2.3607 | DY98: 0 | DZ98: 3.5233 | EA98: 0 | EB98: 1.0629 | EC98: 2.631e-05 | ED98: 2.9066 | EE98: 0 | EF98: 0.4678 | EG98: 0.08574363 | EH98: 2.973 | EI98: 0 | EJ98: 0.5273 | EK98: 0.12393066 | EL98: 3.7768 | EM98: 0 | EN98: 1.317 | EO98: 5.4e-07
A99: Phatr3_EG00296 | B99: chr_23;chr_23 | C99: 447313;447759 | D99: 447728;448173 | E99: +;+ | F99: 831 | AC99: _GAP_||PF00583||_GAP_ | AD99: _GAP_||Acetyltransferase (GNAT) family||_GAP_ | AJ99: 0 | AK99: signal peptide | AL99: 0.4878 | AM99: 0.0665 | AN99: 0.0367 | AO99: 0 | AQ99: NS | AS99: 152 | AU99: 1.25751634 | AV99: 0.962083143 | AW99: 0.5689381933 | AX99: 1 | AY99: 1 | AZ99: 7.511666667 | BA99: 26.86 | BB99: 10.655 | BC99: 12.46 | BD99: 2.92 | BE99: 4.025 | BF99: 20.725 | BG99: 2.84 | BH99: 0.9 | BI99: 3.125 | BJ99: 4.515 | BK99: 1.515 | BL99: 3.81 | BM99: 8.105 | BN99: 8.255 | BO99: 1.965 | BP99: 24.05 | BQ99: 29.67 | BR99: 16.95 | BS99: 4.36 | BT99: 19.13 | BU99: 5.79 | BV99: 2.15 | BW99: 3.69 | BX99: 6.1 | BY99: 1.95 | BZ99: 21.45 | CA99: 20 | CB99: 3.65 | CC99: 2.03 | CD99: 0.57 | CE99: 1.23 | CF99: 3.44 | CG99: 2.81 | CH99: 2.82 | CI99: 6.21 | CJ99: 1.86 | CK99: 1.17 | CL99: 3.92 | CM99: 3.7 | CN99: 7.28 | CO99: 8.93 | CP99: 13.1 | CQ99: 3.41 | CR99: 1.27 | CS99: 2.66 | CT99: 3.2438 | CU99: 0 | CV99: 1.6911 | CW99: 0.00705846 | CX99: 2.7507 | CY99: 0 | CZ99: 1.2241 | DA99: 0.0804139 | DB99: 0.3266 | DC99: 0.11124393 | DD99: -1.2317 | DE99: 0.00514804 | DF99: 3.053 | DG99: 0 | DH99: 1.4168 | DI99: 0.08035804 | DJ99: 4.6386 | DK99: 0 | DL99: 3.1064 | DM99: 1.63e-06 | DN99: 3.174 | DO99: 0 | DP99: 1.6016 | DQ99: 0.00615495 | DR99: 2.377 | DS99: 0 | DT99: 0.7658 | DU99: 0.27524887 | DV99: 4.0887 | DW99: 0 | DX99: 2.4984 | DY99: 0.00033876 | DZ99: 2.8397 | EA99: 0 | EB99: 1.2559 | EC99: 0.0412008 | ED99: 1.533 | EE99: 1e-08 | EF99: -0.0315 | EG99: 1 | EH99: 1.5833 | EI99: 0.00054952 | EJ99: 0.0224 | EK99: 1 | EL99: 3.7071 | EM99: 0 | EN99: 2.1692 | EO99: 0.00096214
A100: Phatr3_J48071 | B100: chr_16 | C100: 106205 | D100: 107059 | E100: + | F100: 855 | G100: pti:PHATRDRAFT_48071 | H100: hypothetical protein | N100: B7G5W4 | W100: Phatr48071-16Phatr2 | X100: 95 | Y100: Predicted protein | AA100: Phaeodactylum tricornutum | AB100: 2850 | AJ100: 0 | AK100: other localisation | AL100: 0.066 | AM100: 0.0242 | AN100: 0 | AO100: 0.1193 | AQ100: NS | AS100: 188 | AU100: 1.432745077 | AV100: 0.6930300307 | AW100: 0.6191638786 | AX100: 1 | AY100: 1 | AZ100: 124.3836667 | BA100: 149.985 | BB100: 228.59 | BC100: 319.005 | BD100: 64 | BE100: 71.63 | BF100: 165.035 | BG100: 52.715 | BH100: 50.705 | BI100: 135.79 | BJ100: 57.265 | BK100: 67.2 | BL100: 146.94 | BM100: 108.62 | BN100: 109.98 | BO100: 138.295 | BP100: 152.41 | BQ100: 147.56 | BR100: 219.77 | BS100: 237.41 | BT100: 351.4 | BU100: 286.61 | BV100: 65.1 | BW100: 62.9 | BX100: 61.69 | BY100: 81.57 | BZ100: 171.28 | CA100: 158.79 | CB100: 55.71 | CC100: 49.72 | CD100: 43.6 | CE100: 57.81 | CF100: 133.83 | CG100: 137.75 | CH100: 59.27 | CI100: 55.26 | CJ100: 52.81 | CK100: 81.59 | CL100: 159.83 | CM100: 134.05 | CN100: 112.23 | CO100: 105.01 | CP100: 88.44 | CQ100: 131.52 | CR100: 144.28 | CS100: 132.31 | CT100: 1.2785 | CU100: 0 | CV100: 1.6004 | CW100: 0 | CX100: 1.1155 | CY100: 0 | CZ100: 1.4525 | DA100: 0 | DB100: -0.1752 | DC100: 0.20285526 | DD100: 0.141 | DE100: 0.37341931 | DF100: 1.2731 | DG100: 0 | DH100: 1.5671 | DI100: 0 | DJ100: 1.4148 | DK100: 0 | DL100: 1.7064 | DM100: 0 | DN100: 0.2376 | DO100: 0.08083809 | DP100: 0.5337 | DQ100: 0.00032611 | DR100: 1.1274 | DS100: 0 | DT100: 1.4449 | DU100: 0 | DV100: 1.1188 | DW100: 2e-08 | DX100: 1.4165 | DY100: 0 | DZ100: 0.0606 | EA100: 0.7644086 | EB100: 0.3588 | EC100: 0.0357063 | ED100: 0.2739 | EE100: 0.04449948 | EF100: 0.5956 | EG100: 0.00010239 | EH100: 0.3751 | EI100: 0.08725687 | EJ100: 0.6907 | EK100: 0.00248103 | EL100: 0.1479 | EM100: 0.32687164 | EN100: 0.4438 | EO100: 0.00554318
A101: Phatr3_J43673 | B101: chr_2 | C101: 1153298 | D101: 1154212 | E101: + | F101: 915 | AQ101: NS | AS101: 190 | AU101: 0.8064257028 | AV101: 0.9274630097 | AW101: 1.008902077 | AX101: 1 | AY101: 1 | AZ101: 21.04933333 | BA101: 20.25 | BB101: 24.665 | BC101: 26.205 | BD101: 18.935 | BE101: 22.015 | BF101: 30.325 | BG101: 11.145 | BH101: 11.235 | BI101: 23.235 | BJ101: 10.02 | BK101: 18.05 | BL101: 24.55 | BM101: 30.42 | BN101: 20.945 | BO101: 23.745 | BP101: 17.41 | BQ101: 23.09 | BR101: 23.18 | BS101: 26.15 | BT101: 21.08 | BU101: 31.33 | BV101: 15.86 | BW101: 22.01 | BX101: 23.08 | BY101: 20.95 | BZ101: 29.33 | CA101: 31.32 | CB101: 8.95 | CC101: 13.34 | CD101: 9.88 | CE101: 12.59 | CF101: 24.03 | CG101: 22.44 | CH101: 7.85 | CI101: 12.19 | CJ101: 17.34 | CK101: 18.76 | CL101: 21.49 | CM101: 27.61 | CN101: 32.65 | CO101: 28.19 | CP101: 21.55 | CQ101: 20.34 | CR101: 23.46 | CS101: 24.03 | CT101: 0.1403 | CU101: 0.62850487 | CV101: 0.1458 | CW101: 0.5993553 | CX101: -0.0882 | CY101: 0.80898774 | CZ101: -0.066 | DA101: 0.83833761 | DB101: -0.6377 | DC101: 0.00144377 | DD101: -0.6379 | DE101: 0.00070516 | DF101: 0.6023 | DG101: 0.09063368 | DH101: 0.5737 | DI101: 0.08153088 | DJ101: 0.6853 | DK101: 0.00402531 | DL101: 0.6563 | DM101: 0.00221778 | DN101: -0.1194 | DO101: 0.68205597 | DP101: -0.1395 | DQ101: 0.58459411 | DR101: 0.777 | DS101: 0.00851913 | DT101: 0.7751 | DU101: 0.00514086 | DV101: 0.1109 | DW101: 0.73874657 | DX101: 0.0905 | DY101: 0.79046107 | DZ101: -0.271 | EA101: 0.33886161 | EB101: -0.2904 | EC101: 0.2644409 | ED101: -0.7915 | EE101: 0.00029431 | EF101: -0.7864 | EG101: 5.101e-05 | EH101: -0.1408 | EI101: 0.68228464 | EJ101: -0.1429 | EK101: 0.62352005 | EL101: -0.2154 | EM101: 0.40879223 | EN101: -0.2348 | EO101: 0.3104375
A102: Phatr3_J46763 | B102: chr_11 | C102: 394034 | D102: 394957 | E102: - | F102: 924 | G102: pti:PHATR_46763 | H102: hypothetical protein | N102: B5Y3Q0 | W102: Phatr46763-11Phatr2 | X102: 95 | Y102: Predicted protein | AA102: Phaeodactylum tricornutum | AB102: 2850 | AJ102: 0 | AK102: other localisation | AL102: 0.0733 | AM102: 0.0252 | AN102: 0 | AO102: 0.1193 | AQ102: NS | AS102: 188 | AU102: 1.314505917 | AV102: 0.7838500236 | AW102: 0.6237373993 | AX102: 1 | AY102: 1 | AZ102: 420.4336667 | BA102: 485.66 | BB102: 416 | BC102: 683.795 | BD102: 203.67 | BE102: 360.705 | BF102: 867.345 | BG102: 141.42 | BH102: 176.555 | BI102: 570.145 | BJ102: 169.805 | BK102: 277.3 | BL102: 590.47 | BM102: 323.72 | BN102: 505.2 | BO102: 534.715 | BP102: 447.5 | BQ102: 523.82 | BR102: 424.96 | BS102: 407.04 | BT102: 588.45 | BU102: 779.14 | BV102: 199.75 | BW102: 207.59 | BX102: 297.3 | BY102: 424.11 | BZ102: 773.25 | CA102: 961.44 | CB102: 160.55 | CC102: 122.29 | CD102: 169.89 | CE102: 183.22 | CF102: 566.48 | CG102: 573.81 | CH102: 162.97 | CI102: 176.64 | CJ102: 269.88 | CK102: 284.72 | CL102: 629.52 | CM102: 551.42 | CN102: 320.7 | CO102: 326.74 | CP102: 466.1 | CQ102: 544.3 | CR102: 623.46 | CS102: 445.97 | CT102: 1.3056 | CU102: 0 | CV102: 0.799 | CW102: 2.4e-07 | CX102: 0.4768 | CY102: 0.01159082 | CZ102: -0.0155 | DA102: 1 | DB102: -0.8742 | DC102: 1e-08 | DD102: -1.3882 | DE102: 0 | DF102: 1.5395 | DG102: 0 | DH102: 1.0032 | DI102: 2.58e-05 | DJ102: 1.317 | DK102: 0 | DL102: 0.7781 | DM102: 2.9e-07 | DN102: -0.1365 | DO102: 0.39204497 | DP102: -0.6693 | DQ102: 8.74e-06 | DR102: 1.2626 | DS102: 0 | DT102: 0.7499 | DU102: 2.5e-07 | DV102: 0.7655 | DW102: 2.03e-05 | DX102: 0.2334 | DY102: 0.27274734 | DZ102: -0.2522 | EA102: 0.10821955 | EB102: -0.7827 | EC102: 6.5e-07 | ED102: 0.3936 | EE102: 0.0077022 | EF102: -0.1143 | EG102: 0.54047787 | EH102: -0.1325 | EI102: 0.56350039 | EJ102: -0.6463 | EK102: 0.00169763 | EL102: -0.1044 | EM102: 0.63006775 | EN102: -0.6394 | EO102: 0.0009297
A103: Phatr3_J43694 | B103: chr_2;chr_2;chr_2 | C103: 1206315;1207902;1208302 | D103: 1207813;1208165;1208530 | E103: -;-;- | F103: 1992 | G103: pti:PHATRDRAFT_43694 | H103: hypothetical protein | N103: B7FT54 | O103: KOG4419 | P103: 5' nucleotidase | Q103: Nucleotide transport and metabolism | R103: METABOLISM | W103: Phatr43694-2Phatr2 | X103: 95 | Y103: Predicted protein | Z103: CAM_CRCL_7107394 | AA103: Phaeodactylum tricornutum | AB103: 2850 | AC103: _GAP_||PF00149||_GAP_||PF02872||_GAP_ | AD103: _GAP_||Calcineurin-like phosphoesterase||_GAP_||5'-nucleotidase, C-terminal domain||_GAP_ | AJ103: 0 | AK103: signal peptide | AL103: 0.8044 | AM103: 0.05 | AN103: 0.0516 | AO103: 0 | AQ103: NS | AS103: 107 | AT103: 6 | AU103: 1.833302256 | AV103: 0.4873096447 | AW103: 0.3595505618 | AX103: 1 | AY103: 1 | AZ103: 10.275 | BA103: 16.51 | BB103: 11.09 | BC103: 51.395 | BD103: 3.84 | BE103: 6.565 | BF103: 4.35 | BG103: 2.235 | BH103: 7.065 | BI103: 13.6 | BJ103: 2.555 | BK103: 5.81 | BL103: 8.425 | BM103: 3.675 | BN103: 6.455 | BO103: 10.555 | BP103: 14.77 | BQ103: 18.25 | BR103: 10.75 | BS103: 11.43 | BT103: 89.58 | BU103: 13.21 | BV103: 4.29 | BW103: 3.39 | BX103: 7.04 | BY103: 6.09 | BZ103: 4.93 | CA103: 3.77 | CB103: 1.83 | CC103: 2.64 | CD103: 6.28 | CE103: 7.85 | CF103: 11.91 | CG103: 15.29 | CH103: 3.12 | CI103: 1.99 | CJ103: 6.67 | CK103: 4.95 | CL103: 9 | CM103: 7.85 | CN103: 4.02 | CO103: 3.33 | CP103: 7.97 | CQ103: 4.94 | CR103: 9.72 | CS103: 11.39 | CT103: 2.1445 | CU103: 0 | CV103: 1.291 | CW103: 1.6e-07 | CX103: 1.3675 | CY103: 0 | CZ103: 0.5316 | DA103: 0.01481232 | DB103: 1.8866 | DC103: 0 | DD103: 1.0254 | DE103: 2.136e-05 | DF103: 2.6153 | DG103: 0 | DH103: 1.7332 | DI103: 1.1e-06 | DJ103: 1.0649 | DK103: 4e-08 | DL103: 0.1811 | DM103: 0.41631395 | DN103: 0.3706 | DO103: 0.07542974 | DP103: -0.5082 | DQ103: 0.01620285 | DR103: 2.3856 | DS103: 0 | DT103: 1.5299 | DU103: 5e-08 | DV103: 1.4555 | DW103: 1e-08 | DX103: 0.5756 | DY103: 0.03676943 | DZ103: 0.9988 | EA103: 2.01e-06 | EB103: 0.1217 | EC103: 0.69948095 | ED103: 1.9661 | EE103: 0 | EF103: 1.1121 | EG103: 5.11e-06 | EH103: 1.2499 | EI103: 2.43e-06 | EJ103: 0.3895 | EK103: 0.19228119 | EL103: 0.6597 | EM103: 0.00095765 | EN103: -0.2176 | EO103: 0.37538035
A104: Phatr3_J48667 | B104: chr_18;chr_18 | C104: 530388;530836 | D104: 530752;531592 | E104: +;+ | F104: 1122 | G104: pti:PHATRDRAFT_48667 | H104: hypothetical protein | N104: B7G820 | O104: KOG0627 | P104: Heat shock transcription factor | Q104: Transcription | R104: INFORMATION STORAGE AND PROCESSING | W104: Phatr48667-18Phatr2 | X104: 96 | Y104: Predicted protein | Z104: CAM_CRCL_27066256 | AA104: Phaeodactylum tricornutum | AB104: 2850 | AC104: _GAP_||PF00447||_GAP_ | AD104: _GAP_||HSF-type DNA-binding||_GAP_ | AJ104: 0 | AK104: other localisation | AL104: 0.0597 | AM104: 0.0232 | AN104: 0 | AO104: 0.1159 | AQ104: NS | AS104: 184 | AU104: 1.220948528 | AV104: 0.783005618 | AW104: 0.6490641711 | AX104: 1 | AY104: 1 | AZ104: 58.96966667 | BA104: 71.1 | BB104: 34.495 | BC104: 71.65 | BD104: 22.47 | BE104: 38.18 | BF104: 129.51 | BG104: 17.33 | BH104: 25.87 | BI104: 100.53 | BJ104: 20.21 | BK104: 39.355 | BL104: 122.64 | BM104: 39.63 | BN104: 39.53 | BO104: 112.045 | BP104: 70.12 | BQ104: 72.08 | BR104: 36.55 | BS104: 32.44 | BT104: 54.66 | BU104: 88.64 | BV104: 21.61 | BW104: 23.33 | BX104: 30.57 | BY104: 45.79 | BZ104: 124.77 | CA104: 134.25 | CB104: 19.47 | CC104: 15.19 | CD104: 21.17 | CE104: 30.57 | CF104: 107.49 | CG104: 93.57 | CH104: 18.4 | CI104: 22.02 | CJ104: 39.32 | CK104: 39.39 | CL104: 123.98 | CM104: 121.3 | CN104: 45.12 | CO104: 34.14 | CP104: 35.08 | CQ104: 43.98 | CR104: 118.07 | CS104: 106.02 | CT104: 1.7112 | CU104: 0 | CV104: 0.3986 | CW104: 0.03703231 | CX104: 0.9468 | CY104: 3.5e-07 | CZ104: -0.3562 | DA104: 0.11492572 | DB104: -0.9046 | DC104: 0 | DD104: -2.2258 | DE104: 0 | DF104: 1.8106 | DG104: 0 | DH104: 0.4582 | DI104: 0.12788144 | DJ104: 1.3052 | DK104: 0 | DL104: -0.04 | DM104: 0.92521422 | DN104: -0.4073 | DO104: 0.00320036 | DP104: -1.7465 | DQ104: 0 | DR104: 1.569 | DS104: 0 | DT104: 0.245 | DU104: 0.25417606 | DV104: 0.8077 | DW104: 1.57e-06 | DX104: -0.5329 | DY104: 0.00661613 | DZ104: -0.76 | EA104: 1e-08 | EB104: -2.096 | EC104: 0 | ED104: 0.6516 | EE104: 2.792e-05 | EF104: -0.6635 | EG104: 0.00034463 | EH104: 0.7748 | EI104: 2.352e-05 | EJ104: -0.5495 | EK104: 0.00882869 | EL104: -0.626 | EM104: 5.43e-06 | EN104: -1.9656 | EO104: 0
A105: Phatr3_J3686 | B105: chr_30;chr_30 | C105: 301768;302903 | D105: 302817;303424 | E105: +;+ | F105: 1572 | G105: pti:PHATRDRAFT_3686 | H105: hypothetical protein | N105: B7GED1 | O105: KOG0737 | P105: AAA+-type ATPase | Q105: Posttranslational modification, protein turnover, chaperones | R105: CELLULAR PROCESSES AND SIGNALING | W105: Phatr3686-30Phatr2 | X105: 99 | Y105: Predicted protein Fragment | Z105: CAM_CRCL_4137555 | AA105: Phaeodactylum tricornutum | AB105: 2850 | AC105: _GAP_||PF00004||_GAP_ | AD105: _GAP_||ATPase family associated with various cellular activities (AAA)||_GAP_ | AJ105: 0 | AK105: other localisation | AL105: 0.1019 | AM105: 0.0363 | AN105: 0 | AO105: 0.1311 | AQ105: NS | AS105: 188 | AT105: 9 | AU105: 1.005887894 | AV105: 0.9496734059 | AW105: 0.6755445209 | AX105: 1 | AY105: 1 | AZ105: 43.54966667 | BA105: 35.595 | BB105: 39.235 | BC105: 63.815 | BD105: 41.54 | BE105: 40.23 | BF105: 56.155 | BG105: 21.105 | BH105: 27.365 | BI105: 55.1 | BJ105: 29.34 | BK105: 29.71 | BL105: 53.61 | BM105: 59.27 | BN105: 49.695 | BO105: 51.48 | BP105: 37.34 | BQ105: 33.85 | BR105: 41.21 | BS105: 37.26 | BT105: 57 | BU105: 70.63 | BV105: 42.43 | BW105: 40.65 | BX105: 41.24 | BY105: 39.22 | BZ105: 57.43 | CA105: 54.88 | CB105: 17.18 | CC105: 25.03 | CD105: 25.52 | CE105: 29.21 | CF105: 55.04 | CG105: 55.16 | CH105: 27.71 | CI105: 30.97 | CJ105: 27.9 | CK105: 31.52 | CL105: 51.21 | CM105: 56.01 | CN105: 60.51 | CO105: 58.03 | CP105: 48.36 | CQ105: 51.03 | CR105: 49.6 | CS105: 53.36 | CT105: -0.1705 | CU105: 0.24599907 | CV105: -0.3069 | CW105: 0.05858818 | CX105: -0.1273 | CY105: 0.40150517 | CZ105: -0.2473 | DA105: 0.13849904 | DB105: -0.6921 | DC105: 6e-08 | DD105: -0.8375 | DE105: 0 | DF105: 0.5082 | DG105: 0.03323319 | DH105: 0.3425 | DI105: 0.18841302 | DJ105: 0.2347 | DK105: 0.10351507 | DL105: 0.0674 | DM105: 0.74935987 | DN105: -0.5341 | DO105: 6.494e-05 | DP105: -0.6968 | DQ105: 3.98e-06 | DR105: 0.0291 | DS105: 0.95150465 | DT105: -0.1141 | DU105: 0.52546111 | DV105: 0.2183 | DW105: 0.25208423 | DX105: 0.0562 | DY105: 0.86521398 | DZ105: -0.5648 | EA105: 0.00013479 | EB105: -0.724 | EC105: 1.358e-05 | ED105: -0.9253 | EE105: 0 | EF105: -1.0626 | EG105: 0 | EH105: -0.5578 | EI105: 0.00098689 | EJ105: -0.7012 | EK105: 0.00013267 | EL105: -0.5039 | EM105: 0.00049898 | EN105: -0.6653 | EO105: 4.005e-05
A106: Phatr3_J37283 | B106: chr_12;chr_12;chr_12;chr_12 | C106: 613568;613822;614025;616745 | D106: 613657;613931;616636;617034 | E106: +;+;+;+ | F106: 3102 | G106: pti:PHATRDRAFT_37283 | H106: hypothetical protein | N106: B7G2N1 | W106: Phatr37283-12Phatr2 | X106: 97 | Y106: Predicted protein | Z106: CAM_CRCL_32364051 | AA106: Phaeodactylum tricornutum | AB106: 2850 | AC106: _GAP_||PF13535||_GAP_ | AD106: _GAP_||PF13535||_GAP_ | AJ106: 0 | AK106: other localisation | AL106: 0.0704 | AM106: 0.0271 | AN106: 0 | AO106: 0.1081 | AQ106: NS | AS106: 129 | AT106: 32 | AU106: 1.221250962 | AV106: 0.9078320523 | AW106: 0.4793110919 | AX106: 1 | AY106: 1 | AZ106: 53.75133333 | BA106: 18.85 | BB106: 17.945 | BC106: 177.805 | BD106: 9.165 | BE106: 20.44 | BF106: 43.895 | BG106: 42.985 | BH106: 12.025 | BI106: 30.515 | BJ106: 70.195 | BK106: 56.14 | BL106: 37.885 | BM106: 114.445 | BN106: 126.85 | BO106: 27.13 | BP106: 20.14 | BQ106: 17.56 | BR106: 19.48 | BS106: 16.41 | BT106: 105.39 | BU106: 250.22 | BV106: 8.97 | BW106: 9.36 | BX106: 19.29 | BY106: 21.59 | BZ106: 41.12 | CA106: 46.67 | CB106: 39.71 | CC106: 46.26 | CD106: 8.8 | CE106: 15.25 | CF106: 28.86 | CG106: 32.17 | CH106: 68.06 | CI106: 72.33 | CJ106: 44.62 | CK106: 67.66 | CL106: 33.94 | CM106: 41.83 | CN106: 121.18 | CO106: 107.71 | CP106: 111.69 | CQ106: 142.01 | CR106: 25.9 | CS106: 28.36 | CT106: 1.0937 | CU106: 0 | CV106: 0.7496 | CW106: 2.735e-05 | CX106: -0.0655 | CY106: 0.71508831 | CZ106: -0.3943 | DA106: 0.02431556 | DB106: -1.2542 | DC106: 0 | DD106: -1.6085 | DE106: 0 | DF106: -1.4266 | DG106: 0 | DH106: -1.8015 | DI106: 0 | DJ106: 0.5003 | DK106: 0.02225096 | DL106: 0.1236 | DM106: 0.65855584 | DN106: -0.5977 | DO106: 2.052e-05 | DP106: -0.9685 | DQ106: 0 | DR106: -2.1479 | DS106: 0 | DT106: -2.4991 | DU106: 0 | DV106: -1.612 | DW106: 0 | DX106: -1.9836 | DY106: 0 | DZ106: -0.9819 | EA106: 0 | EB106: -1.3488 | EC106: 0 | ED106: -2.7897 | EE106: 0 | EF106: -3.1357 | EG106: 0 | EH106: -2.826 | EI106: 0 | EJ106: -3.1788 | EK106: 0 | EL106: -0.4963 | EM106: 0.00080192 | EN106: -0.8655 | EO106: 3.2e-07
A107: Phatr3_J44549 | B107: chr_4;chr_4;chr_4 | C107: 867281;867565;867961 | D107: 867452;867859;868825 | E107: -;-;- | F107: 1332 | G107: pti:PHATRDRAFT_44549 | H107: hypothetical protein | N107: B7FUG9 | O107: KOG2852 | P107: Possible oxidoreductase | Q107: General function prediction only | R107: POORLY CHARACTERIZED | W107: Phatr44549-4Phatr2 | X107: 93 | Y107: Predicted protein | Z107: CAM_CRCL_4006874 | AA107: Phaeodactylum tricornutum | AB107: 2850 | AC107: _GAP_||PF01266||_GAP_ | AD107: _GAP_||FAD dependent oxidoreductase||_GAP_ | AJ107: 0 | AK107: signal peptide | AL107: 0.7032 | AM107: 0.0566 | AN107: 0.3694 | AO107: 0 | AQ107: NS | AS107: 13 | AT107: 63 | AU107: 0.8293682997 | AV107: 0.997769408 | AW107: 0.7029343884 | AX107: 1 | AY107: 1 | AZ107: 59.78766667 | BA107: 65.775 | BB107: 64.435 | BC107: 82.805 | BD107: 68.055 | BE107: 56.765 | BF107: 50.79 | BG107: 34.26 | BH107: 45.085 | BI107: 49.535 | BJ107: 49.175 | BK107: 50.76 | BL107: 57.91 | BM107: 102.475 | BN107: 68.805 | BO107: 50.185 | BP107: 70.55 | BQ107: 61 | BR107: 62.47 | BS107: 66.4 | BT107: 44.81 | BU107: 120.8 | BV107: 68.72 | BW107: 67.39 | BX107: 55.45 | BY107: 58.08 | BZ107: 49.09 | CA107: 52.49 | CB107: 30.29 | CC107: 38.23 | CD107: 43.99 | CE107: 46.18 | CF107: 51.13 | CG107: 47.94 | CH107: 49.55 | CI107: 48.8 | CJ107: 53.17 | CK107: 48.35 | CL107: 56.61 | CM107: 59.21 | CN107: 102.22 | CO107: 102.73 | CP107: 67.46 | CQ107: 70.15 | CR107: 47.29 | CS107: 53.08 | CT107: 0.0035 | CU107: 1 | CV107: -0.3142 | CW107: 0.03349969 | CX107: 0.2627 | CY107: 0.06364919 | CZ107: -0.0388 | DA107: 0.88173424 | DB107: 0.3374 | DC107: 0.01335673 | DD107: 0.0119 | DE107: 1 | DF107: 0.699 | DG107: 0.00076363 | DH107: 0.3562 | DI107: 0.10843993 | DJ107: 0.4032 | DK107: 0.00182964 | DL107: 0.0534 | DM107: 0.7721703 | DN107: 0.5048 | DO107: 0.00022141 | DP107: 0.1613 | DQ107: 0.32780537 | DR107: 0.1641 | DS107: 0.26432034 | DT107: -0.1588 | DU107: 0.31362978 | DV107: 0.3287 | DW107: 0.07344487 | DX107: -0.0122 | DY107: 1 | DZ107: 0.211 | EA107: 0.17277167 | EB107: -0.1285 | EC107: 0.48692083 | ED107: -0.8302 | EE107: 0 | EF107: -1.1478 | EG107: 0 | EH107: -0.1419 | EI107: 0.47059883 | EJ107: -0.4639 | EK107: 0.01038391 | EL107: 0.4171 | EM107: 0.00564721 | EN107: 0.0757 | EO107: 0.70899737
A108: Phatr3_J14403 | B108: chr_15;chr_15 | C108: 16341;16545 | D108: 16442;18143 | E108: +;+ | F108: 1701 | O108: KOG1965 | P108: Sodium/hydrogen exchanger protein | Q108: Inorganic ion transport and metabolism | R108: METABOLISM | W108: Phatr14403-15Phatr2 | X108: 100 | Y108: Sodium/hydrogen exchanger Fragment | Z108: CAM_CRCL_14628757 | AA108: Phaeodactylum tricornutum | AB108: 2850 | AC108: PF00999||_GAP_ | AD108: Sodium/hydrogen exchanger family||_GAP_ | AG108: CPA1 | AH108: sodium ion:proton antiporter | AI108: 3 | AJ108: 10 | AK108: signal anchor | AL108: 0.1908 | AM108: 0.5722 | AN108: 0 | AO108: 0 | AQ108: NS | AS108: 127 | AU108: 1.462896315 | AV108: 0.5770715096 | AW108: 0.4323976859 | AX108: 1 | AY108: 1 | AZ108: 14.13433333 | BA108: 14.415 | BB108: 14.645 | BC108: 50.515 | BD108: 8.85 | BE108: 8.205 | BF108: 11.13 | BG108: 7.835 | BH108: 6.94 | BI108: 15.115 | BJ108: 9.145 | BK108: 9.87 | BL108: 12.365 | BM108: 14.19 | BN108: 14.01 | BO108: 14.785 | BP108: 13.23 | BQ108: 15.6 | BR108: 18.81 | BS108: 10.48 | BT108: 55.84 | BU108: 45.19 | BV108: 7.48 | BW108: 10.22 | BX108: 7.86 | BY108: 8.55 | BZ108: 10.92 | CA108: 11.34 | CB108: 7.13 | CC108: 8.54 | CD108: 6.89 | CE108: 6.99 | CF108: 17.28 | CG108: 12.95 | CH108: 8.77 | CI108: 9.52 | CJ108: 8.65 | CK108: 11.09 | CL108: 12.88 | CM108: 11.85 | CN108: 13.35 | CO108: 15.03 | CP108: 11.93 | CQ108: 16.09 | CR108: 14.78 | CS108: 14.79 | CT108: 0.7508 | CU108: 0.0006471 | CV108: 0.5296 | CW108: 0.10846881 | CX108: 0.8542 | CY108: 2.209e-05 | CZ108: 0.6492 | DA108: 0.03775222 | DB108: 0.3255 | DC108: 0.09137436 | DD108: 0.0952 | DE108: 0.83718428 | DF108: 0.6305 | DG108: 0.03150383 | DH108: 0.3724 | DI108: 0.37395748 | DJ108: 0.902 | DK108: 3.4e-06 | DL108: 0.6505 | DM108: 0.02798715 | DN108: 0.0146 | DO108: 1 | DP108: -0.2311 | DQ108: 0.46162169 | DR108: 0.3968 | DS108: 0.06317473 | DT108: 0.1676 | DU108: 0.67180423 | DV108: 0.4973 | DW108: 0.03693811 | DX108: 0.2483 | DY108: 0.51548046 | DZ108: 0.2454 | EA108: 0.2788099 | EB108: -0.0012 | EC108: 1 | ED108: -0.1768 | EE108: 0.46549788 | EF108: -0.4005 | EG108: 0.17145722 | EH108: -0.0317 | EI108: 0.9809908 | EJ108: -0.2675 | EK108: 0.41934696 | EL108: -0.0169 | EM108: 1 | EN108: -0.26 | EO108: 0.38706684
A109: Phatr3_J46233 | B109: chr_9;chr_9;chr_9;chr_9;chr_9 | C109: 677775;678176;678447;678868;679016 | D109: 678089;678353;678794;678931;679208 | E109: -;-;-;-;- | F109: 1098 | G109: pti:PHATRDRAFT_46233 | H109: hypothetical protein | N109: B7G0J0 | O109: KOG0192 | P109: Tyrosine kinase specific for activated (GTP-bound) p21cdc42Hs | Q109: Signal transduction mechanisms | R109: CELLULAR PROCESSES AND SIGNALING | W109: Phatr46233-9Phatr2 | X109: 100 | Y109: Predicted protein | Z109: CAM_CRCL_14203746 | AA109: Phaeodactylum tricornutum | AB109: 2850 | AC109: _GAP_||PF00069 | AD109: _GAP_||Protein kinase domain | AJ109: 0 | AK109: other localisation | AL109: 0.0634 | AM109: 0.0241 | AN109: 0 | AO109: 0.1298 | AQ109: NS | AS109: 184 | AU109: 1.704031901 | AV109: 0.3712991989 | AW109: 0.2907133244 | AX109: 1 | AY109: 1 | AZ109: 20.16566667 | BA109: 8.58 | BB109: 64.87 | BC109: 73.15 | BD109: 13.7 | BE109: 11.095 | BF109: 26.18 | BG109: 5.845 | BH109: 3.6 | BI109: 23.585 | BJ109: 6.35 | BK109: 6.955 | BL109: 20.215 | BM109: 8.51 | BN109: 7.525 | BO109: 22.325 | BP109: 7.19 | BQ109: 9.97 | BR109: 72.83 | BS109: 56.91 | BT109: 102.22 | BU109: 44.08 | BV109: 15.39 | BW109: 12.01 | BX109: 11.25 | BY109: 10.94 | BZ109: 29.35 | CA109: 23.01 | CB109: 2.49 | CC109: 9.2 | CD109: 3.58 | CE109: 3.62 | CF109: 22.44 | CG109: 24.73 | CH109: 6.04 | CI109: 6.66 | CJ109: 6.7 | CK109: 7.21 | CL109: 19.86 | CM109: 20.57 | CN109: 11.78 | CO109: 5.24 | CP109: 5.59 | CQ109: 9.46 | CR109: 24.26 | CS109: 20.39 | CT109: -0.6465 | CU109: 0.02726331 | CV109: 2.0185 | CW109: 0 | CX109: -0.3471 | CY109: 0.23662904 | CZ109: 2.3401 | DA109: 0 | DB109: -1.6694 | DC109: 0 | DD109: 0.9948 | DE109: 6e-08 | DF109: 0.2828 | DG109: 0.64267101 | DH109: 2.8745 | DI109: 0 | DJ109: 1.0852 | DK109: 9.957e-05 | DL109: 3.7223 | DM109: 0 | DN109: -1.3896 | DO109: 0 | DP109: 1.2584 | DQ109: 0 | DR109: 0.1644 | DS109: 0.65264383 | DT109: 2.8252 | DU109: 0 | DV109: 0.2404 | DW109: 0.49796004 | DX109: 2.8788 | DY109: 0 | DZ109: -1.2324 | EA109: 1.28e-06 | EB109: 1.4126 | EC109: 0 | ED109: -0.1833 | EE109: 0.75102307 | EF109: 2.4604 | EG109: 0 | EH109: 0.1232 | EI109: 0.84590225 | EJ109: 2.7812 | EK109: 0 | EL109: -1.3686 | EM109: 2e-08 | EN109: 1.2766 | EO109: 0
A110: Phatr3_EG02206 | B110: chr_31;chr_31;chr_31;chr_31 | C110: 35120;41231;41899;44180 | D110: 40711;41267;42054;45324 | E110: +;+;+;+ | F110: 6930 | G110: pti:PHATRDRAFT_41507 | H110: hypothetical protein | N110: B7GEE6 | O110: KOG2743 | P110: Cobalamin synthesis protein | Q110: Coenzyme transport and metabolism | R110: METABOLISM | W110: Phatr41507-31Phatr2 | X110: 98 | Y110: Predicted protein | Z110: CAM_CRCL_26826572 | AA110: Phaeodactylum tricornutum | AB110: 2850 | AC110: _GAP_||PF07727||_GAP_||PF02492||_GAP_||PF07683||_GAP_ | AD110: _GAP_||Reverse transcriptase (RNA-dependent DNA polymerase)||_GAP_||CobW/HypB/UreG, nucleotide-binding domain||_GAP_||Cobalamin synthesis protein cobW C-terminal domain||_GAP_ | AJ110: 0 | AK110: other localisation | AL110: 0.1583 | AM110: 0.0378 | AN110: 0 | AO110: 0.1304 | AQ110: NS | AS110: 49 | AT110: 88 | AU110: 1.314045006 | AV110: 0.5712306627 | AW110: 0.4752167148 | AX110: 1 | AY110: 1 | AZ110: 20.12733333 | BA110: 3.71 | BB110: 8.005 | BC110: 37.37 | BD110: 19.405 | BE110: 54.685 | BF110: 5.01 | BG110: 7.735 | BH110: 28.825 | BI110: 5.805 | BJ110: 8.575 | BK110: 27.985 | BL110: 3.365 | BM110: 13.92 | BN110: 72.545 | BO110: 4.97 | BP110: 3.34 | BQ110: 4.08 | BR110: 7.22 | BS110: 8.79 | BT110: 2.67 | BU110: 72.07 | BV110: 17 | BW110: 21.81 | BX110: 56.57 | BY110: 52.8 | BZ110: 5.25 | CA110: 4.77 | CB110: 8.67 | CC110: 6.8 | CD110: 31.27 | CE110: 26.38 | CF110: 7.46 | CG110: 4.15 | CH110: 9.29 | CI110: 7.86 | CJ110: 25.63 | CK110: 30.34 | CL110: 2.96 | CM110: 3.77 | CN110: 14.28 | CO110: 13.56 | CP110: 62.73 | CQ110: 82.36 | CR110: 4.68 | CS110: 5.26 | CT110: -2.3445 | CU110: 0 | CV110: -1.5178 | CW110: 0 | CX110: -3.846 | CY110: 0 | CZ110: -3.0035 | DA110: 0 | DB110: -0.4805 | DC110: 0.00690566 | DD110: 0.3388 | DE110: 0.04294773 | DF110: -1.3014 | DG110: 1.8e-07 | DH110: -0.5064 | DI110: 0.0386305 | DJ110: -3.1131 | DK110: 0 | DL110: -2.3192 | DM110: 0 | DN110: -0.5557 | DO110: 0.03438286 | DP110: 0.2388 | DQ110: 0.38740804 | DR110: -1.4806 | DS110: 0 | DT110: -0.6614 | DU110: 8.694e-05 | DV110: -2.9657 | DW110: 0 | DX110: -2.1657 | DY110: 0 | DZ110: 0.1523 | EA110: 0.54465854 | EB110: 0.9513 | EC110: 2.03e-06 | ED110: -2.1117 | EE110: 0 | EF110: -1.2858 | EG110: 0 | EH110: -4.3714 | EI110: 0 | EJ110: -3.5543 | EK110: 0 | EL110: -0.4067 | EM110: 0.04240638 | EN110: 0.392 | EO110: 0.03136962
A111: Phatr3_EG02538 | B111: bd_32x35;bd_32x35 | C111: 251558;251903 | D111: 251827;253507 | E111: +;+ | F111: 1875 | G111: pti:PHATRDRAFT_bd1743 | H111: hypothetical protein | N111: B7S4D4 | O111: KOG1172 | P111: Na+-independent Cl/HCO3 exchanger AE1 and related transporters (SLC4 family) | Q111: Inorganic ion transport and metabolism | R111: METABOLISM | W111: Phatrdraft1743-bd_32x35Phatr2_bd | X111: 90 | Y111: Predicted protein | Z111: CAM_CRCL_26939163 | AA111: Phaeodactylum tricornutum | AB111: 2850 | AC111: _GAP_||PF00955||_GAP_ | AD111: _GAP_||HCO3- transporter family||_GAP_ | AG111: AE | AI111: 2 | AJ111: 10 | AK111: other localisation | AL111: 0.1265 | AM111: 0.168 | AN111: 0 | AO111: 0.1838 | AQ111: NS | AS111: 190 | AT111: 26 | AU111: 1.190709339 | AV111: 0.6021389413 | AW111: 0.493841622 | AX111: 1 | AY111: 1 | AZ111: 388.1303333 | BA111: 227.625 | BB111: 229.875 | BC111: 766.54 | BD111: 216.79 | BE111: 339.385 | BF111: 837.135 | BG111: 194.425 | BH111: 211.445 | BI111: 451.115 | BJ111: 218.585 | BK111: 361.07 | BL111: 534.22 | BM111: 361.925 | BN111: 457.865 | BO111: 413.955 | BP111: 215.42 | BQ111: 239.83 | BR111: 255.06 | BS111: 204.69 | BT111: 692.95 | BU111: 840.13 | BV111: 193.59 | BW111: 239.99 | BX111: 318.84 | BY111: 359.93 | BZ111: 796.2 | CA111: 878.07 | CB111: 164.06 | CC111: 224.79 | CD111: 183.01 | CE111: 239.88 | CF111: 446.74 | CG111: 455.49 | CH111: 215.67 | CI111: 221.5 | CJ111: 352.96 | CK111: 369.18 | CL111: 505.34 | CM111: 563.1 | CN111: 357.88 | CO111: 365.97 | CP111: 432.77 | CQ111: 482.96 | CR111: 438.03 | CS111: 389.88 | CT111: 0.1241 | CU111: 0.46520774 | CV111: -0.1396 | CW111: 0.52466387 | CX111: -0.5282 | CY111: 0.00023556 | CZ111: -0.7775 | DA111: 2.239e-05 | DB111: -1.9165 | DC111: 0 | DD111: -2.1903 | DE111: 0 | DF111: -0.0062 | DG111: 1 | DH111: -0.3008 | DI111: 0.25481405 | DJ111: -0.0356 | DK111: 0.89941906 | DL111: -0.3322 | DM111: 0.0956494 | DN111: -0.8924 | DO111: 0 | DP111: -1.1835 | DQ111: 0 | DR111: -0.1967 | DS111: 0.12661411 | DT111: -0.4674 | DU111: 0.00549788 | DV111: -0.7091 | DW111: 5.635e-05 | DX111: -0.9993 | DY111: 2.91e-06 | DZ111: -1.2034 | EA111: 0 | EB111: -1.4913 | EC111: 0 | ED111: -0.8613 | EE111: 0 | EF111: -1.1274 | EG111: 0 | EH111: -1.0848 | EI111: 0 | EJ111: -1.3566 | EK111: 0 | EL111: -0.8315 | EM111: 0 | EN111: -1.123 | EO111: 0
A112: Phatr3_EG00054 | B112: chr_31;chr_31 | C112: 105015;105399 | D112: 105131;105515 | E112: -;- | F112: 234 | AJ112: 0 | AK112: other localisation | AL112: 0.0555 | AM112: 0.0223 | AN112: 0 | AO112: 0.1196 | AQ112: NS | AS112: 91 | AU112: 1.269321851 | AV112: 0.3542247545 | AW112: 0.6296547055 | AX112: 1 | AY112: 1 | AZ112: 15.56233333 | BA112: 12.275 | BB112: 15.24 | BC112: 75.93 | BD112: 9.29 | BE112: 6.9 | BF112: 4.455 | BG112: 16.97 | BH112: 9.34 | BI112: 8.395 | BJ112: 12.65 | BK112: 8.265 | BL112: 6.205 | BM112: 24.275 | BN112: 17.055 | BO112: 6.19 | BP112: 8.96 | BQ112: 15.59 | BR112: 14.99 | BS112: 15.49 | BT112: 62.07 | BU112: 89.79 | BV112: 7.22 | BW112: 11.36 | BX112: 5.91 | BY112: 7.89 | BZ112: 5.17 | CA112: 3.74 | CB112: 16.85 | CC112: 17.09 | CD112: 8.4 | CE112: 10.28 | CF112: 4.58 | CG112: 12.21 | CH112: 15.05 | CI112: 10.25 | CJ112: 7.17 | CK112: 9.36 | CL112: 4.35 | CM112: 8.06 | CN112: 23.47 | CO112: 25.08 | CP112: 10.49 | CQ112: 23.62 | CR112: 7.86 | CS112: 4.52 | CT112: 0.401 | CU112: 0.41382668 | CV112: 0.4881 | CW112: 0.26166961 | CX112: 0.829 | CY112: 0.0628051 | CZ112: 0.9403 | DA112: 0.02289547 | DB112: 1.3799 | DC112: 0.00157179 | DD112: 1.4574 | DE112: 0.00026108 | DF112: -0.7445 | DG112: 0.19989335 | DH112: -0.699 | DI112: 0.14565197 | DJ112: 0.1715 | DK112: 0.66802692 | DL112: 0.2301 | DM112: 0.54514787 | DN112: 0.6406 | DO112: 0.29280469 | DP112: 0.6838 | DQ112: 0.21671375 | DR112: -0.3816 | DS112: 0.52250837 | DT112: -0.3154 | DU112: 0.50648294 | DV112: 0.4697 | DW112: 0.36301198 | DX112: 0.5284 | DY112: 0.2569042 | DZ112: 0.8884 | EA112: 0.06167467 | EB112: 0.931 | EC112: 0.03024263 | ED112: -1.2289 | EE112: 0.0015443 | EF112: -1.14 | EG112: 0.00032644 | EH112: -0.5449 | EI112: 0.35365814 | EJ112: -0.4784 | EK112: 0.30608811 | EL112: 1.0194 | EM112: 0.03207709 | EN112: 1.0815 | EO112: 0.0135048
A113: Phatr3_J43824 | B113: chr_3;chr_3;chr_3 | C113: 145475;146237;146390 | D113: 146227;146350;146926 | E113: +;+;+ | F113: 1404 | G113: pti:PHATR_43824 | H113: hypothetical protein | N113: B5Y4F9 | W113: Phatr43824-3Phatr2 | X113: 97 | Y113: Predicted protein | Z113: CAM_CRCL_27039414 | AA113: Phaeodactylum tricornutum | AB113: 2850 | AJ113: 1 | AK113: signal peptide | AL113: 0.7073 | AM113: 0.1105 | AN113: 0.0362 | AO113: 0 | AQ113: NS | AS113: 184 | AU113: 1.294714774 | AV113: 0.6557308097 | AW113: 0.2509803922 | AX113: 1 | AY113: 1 | AZ113: 27.33333333 | BA113: 20.245 | BB113: 29.215 | BC113: 37.325 | BD113: 18.895 | BE113: 37.68 | BF113: 16.085 | BG113: 7.99 | BH113: 14.84 | BI113: 56.035 | BJ113: 12.265 | BK113: 14.76 | BL113: 48.63 | BM113: 15.785 | BN113: 23.625 | BO113: 56.625 | BP113: 21.05 | BQ113: 19.44 | BR113: 26.11 | BS113: 32.32 | BT113: 30.53 | BU113: 44.12 | BV113: 18.05 | BW113: 19.74 | BX113: 37.37 | BY113: 37.99 | BZ113: 17.15 | CA113: 15.02 | CB113: 8.64 | CC113: 7.34 | CD113: 13.16 | CE113: 16.52 | CF113: 60.65 | CG113: 51.42 | CH113: 14.02 | CI113: 10.51 | CJ113: 17.73 | CK113: 11.79 | CL113: 42.53 | CM113: 54.73 | CN113: 16.9 | CO113: 14.67 | CP113: 21.51 | CQ113: 25.74 | CR113: 63.47 | CS113: 49.78 | CT113: 0.1535 | CU113: 0.44522652 | CV113: 0.3828 | CW113: 0.03555872 | CX113: -0.8452 | CY113: 0 | CZ113: -0.6022 | DA113: 0.00026767 | DB113: 0.2993 | DC113: 0.10095335 | DD113: 0.5229 | DE113: 0.00488925 | DF113: 1.1141 | DG113: 0.000114 | DH113: 1.322 | DI113: 4.57e-06 | DJ113: 0.2988 | DK113: 0.10231721 | DL113: 0.4983 | DM113: 0.00638172 | DN113: -1.3727 | DO113: 0 | DP113: -1.17 | DQ113: 0 | DR113: 0.4497 | DS113: 0.03522535 | DT113: 0.6787 | DU113: 0.00130985 | DV113: 0.4079 | DW113: 0.1247262 | DX113: 0.618 | DY113: 0.01702646 | DZ113: -1.2415 | EA113: 0 | EB113: -1.0313 | EC113: 8e-08 | ED113: 0.1689 | EE113: 0.43038334 | EF113: 0.3995 | EG113: 0.04054987 | EH113: -0.2932 | EI113: 0.1706256 | EJ113: -0.067 | EK113: 0.84102087 | EL113: -1.4466 | EM113: 0 | EN113: -1.2435 | EO113: 0
A114: Phatr3_J42398 | B114: chr_31;chr_31 | C114: 103612;104627 | D114: 104433;104842 | E114: -;- | F114: 1038 | O114: KOG1494 | P114: NAD-dependent malate dehydrogenase | Q114: Energy production and conversion | R114: METABOLISM | W114: Phatr42398-31Phatr2 | X114: 100 | Y114: Predicted protein | Z114: CAM_CRCL_34063286 | AA114: Phaeodactylum tricornutum | AB114: 2850 | AC114: PF00056||PF02866 | AD114: lactate/malate dehydrogenase, NAD binding domain||lactate/malate dehydrogenase, alpha/beta C-terminal domain | AE114: TIGR01772 | AF114: malate dehydrogenase, NAD-dependent | AJ114: 0 | AK114: mitochondrion | AL114: 0.1755 | AM114: 0.0401 | AN114: 0 | AO114: 0.7514 | AQ114: NS | AS114: 168 | AT114: 12 | AU114: 1.056359172 | AV114: 0.5893770063 | AW114: 0.5516640428 | AX114: 1 | AY114: 1 | AZ114: 396.211 | BA114: 220.81 | BB114: 392.6 | BC114: 768.575 | BD114: 327.44 | BE114: 385.43 | BF114: 430.07 | BG114: 237.295 | BH114: 285.69 | BI114: 398.665 | BJ114: 247.24 | BK114: 338.55 | BL114: 384.6 | BM114: 435.585 | BN114: 709.865 | BO114: 380.75 | BP114: 226.17 | BQ114: 215.45 | BR114: 380.26 | BS114: 404.94 | BT114: 613.37 | BU114: 923.78 | BV114: 314.07 | BW114: 340.81 | BX114: 378.09 | BY114: 392.77 | BZ114: 444.71 | CA114: 415.43 | CB114: 215.1 | CC114: 259.49 | CD114: 272.46 | CE114: 298.92 | CF114: 414.27 | CG114: 383.06 | CH114: 248.5 | CI114: 245.98 | CJ114: 296.04 | CK114: 381.06 | CL114: 378.76 | CM114: 390.44 | CN114: 419.26 | CO114: 451.91 | CP114: 607.74 | CQ114: 811.99 | CR114: 388.02 | CS114: 373.48 | CT114: -0.517 | CU114: 5.03e-05 | CV114: 0.0281 | CW114: 0.93768598 | CX114: -0.7562 | CY114: 0 | CZ114: -0.1958 | DA114: 0.24558543 | DB114: -0.9993 | DC114: 0 | DD114: -0.4599 | DE114: 0.00119117 | DF114: -0.3414 | DG114: 0.10257416 | DH114: 0.1765 | DI114: 0.47872277 | DJ114: -0.5152 | DK114: 2.548e-05 | DL114: -0.0025 | DM114: 1 | DN114: -0.7581 | DO114: 0 | DP114: -0.2391 | DQ114: 0.13752914 | DR114: -0.4196 | DS114: 0.00029482 | DT114: 0.1198 | DU114: 0.45493456 | DV114: -0.6575 | DW114: 0.00031791 | DX114: -0.1373 | DY114: 0.57557087 | DZ114: -0.7735 | EA114: 0 | EB114: -0.2514 | EC114: 0.12075593 | ED114: -1.1742 | EE114: 0 | EF114: -0.6298 | EG114: 9.681e-05 | EH114: -1.7613 | EI114: 0 | EJ114: -1.2224 | EK114: 1e-08 | EL114: -0.7564 | EM114: 1e-08 | EN114: -0.2373 | EO114: 0.1620169
A115: Phatr3_J48069 | B115: chr_16 | C115: 102519 | D115: 103307 | E115: + | F115: 789 | G115: pti:PHATRDRAFT_48069 | H115: hypothetical protein | N115: B7G5W2 | W115: Phatr48069-16Phatr2 | X115: 92 | Y115: Predicted protein | AA115: Phaeodactylum tricornutum | AB115: 2850 | AJ115: 0 | AK115: other localisation | AL115: 0.0652 | AM115: 0.0239 | AN115: 0 | AO115: 0.1147 | AQ115: NS | AS115: 101 | AU115: 1.094099404 | AV115: 0.5569797977 | AW115: 0.5246187811 | AX115: 1 | AY115: 1 | AZ115: 73.567 | BA115: 50.82 | BB115: 81.345 | BC115: 236.95 | BD115: 48.125 | BE115: 46.165 | BF115: 48 | BG115: 69.375 | BH115: 48.93 | BI115: 27.065 | BJ115: 71.84 | BK115: 70.91 | BL115: 33.715 | BM115: 122.93 | BN115: 122.775 | BO115: 24.56 | BP115: 48.71 | BQ115: 52.93 | BR115: 84.96 | BS115: 77.73 | BT115: 248.68 | BU115: 225.22 | BV115: 41.95 | BW115: 54.3 | BX115: 38.92 | BY115: 53.41 | BZ115: 45.79 | CA115: 50.21 | CB115: 74.21 | CC115: 64.54 | CD115: 47.35 | CE115: 50.51 | CF115: 25.15 | CG115: 28.98 | CH115: 76.04 | CI115: 67.64 | CJ115: 63.44 | CK115: 78.38 | CL115: 36.16 | CM115: 31.27 | CN115: 136.83 | CO115: 109.03 | CP115: 102.68 | CQ115: 142.87 | CR115: 24.76 | CS115: 24.36 | CT115: 0.1282 | CU115: 0.51509138 | CV115: 0.5353 | CW115: 0.00234014 | CX115: 0.1865 | CY115: 0.37541867 | CZ115: 0.6057 | DA115: 0.002113 | DB115: 0.0385 | DC115: 0.86613663 | DD115: 0.437 | DE115: 0.00487576 | DF115: -0.6874 | DG115: 0.00194275 | DH115: -0.3145 | DI115: 0.18123852 | DJ115: -0.0953 | DK115: 0.60282907 | DL115: 0.2813 | DM115: 0.07419735 | DN115: 1.0032 | DO115: 0 | DP115: 1.3822 | DQ115: 0 | DR115: -0.7658 | DS115: 6.1e-07 | DT115: -0.364 | DU115: 0.02534273 | DV115: -0.5259 | DW115: 0.00508882 | DX115: -0.1467 | DY115: 0.50233461 | DZ115: 0.6232 | EA115: 0.00068376 | EB115: 1.0041 | EC115: 5e-08 | ED115: -1.468 | EE115: 0 | EF115: -1.0622 | EG115: 0 | EH115: -1.3475 | EI115: 0 | EJ115: -0.9518 | EK115: 4.42e-06 | EL115: 1.0738 | EM115: 0 | EN115: 1.4542 | EO115: 0
A116: Phatr3_J49836 | B116: chr_25 | C116: 37563 | D116: 39578 | E116: + | F116: 2016 | G116: pti:PHATRDRAFT_49836 | H116: hypothetical protein; K05292 phosphatidylinositol glycan, class T | I116: pti01100||pti00563 | J116: K05292 | K116: phosphatidylinositol glycan, class T | L116: Glycosylphosphatidylinositol(GPI)-anchor biosynthesis | N116: B7GC06 | O116: KOG2407 | P116: GPI transamidase complex, GPI16/PIG-T component, involved in glycosylphosphatidylinositol anchor biosynthesis | Q116: Cell wall/membrane/envelope biogenesis | R116: CELLULAR PROCESSES AND SIGNALING | W116: Phatr49836-25Phatr2 | X116: 97 | Y116: Predicted protein | Z116: CAM_CRCL_4010917 | AA116: Phaeodactylum tricornutum | AB116: 2850 | AC116: _GAP_||PF04113 | AD116: _GAP_||Gpi16 subunit, GPI transamidase component | AJ116: 1 | AK116: other localisation | AL116: 0.0667 | AM116: 0.0262 | AN116: 0 | AO116: 0.1037 | AQ116: NS | AS116: 191 | AT116: 91 | AU116: 0.5213916314 | AV116: 0.8389478542 | AW116: 0.7368983006 | AX116: 1 | AY116: 1 | AZ116: 25.16133333 | BA116: 18.775 | BB116: 12.345 | BC116: 26.815 | BD116: 24.865 | BE116: 24.08 | BF116: 34.35 | BG116: 15.725 | BH116: 22.095 | BI116: 26.595 | BJ116: 17.745 | BK116: 26.095 | BL116: 31.955 | BM116: 38.45 | BN116: 33.245 | BO116: 24.285 | BP116: 19.96 | BQ116: 17.59 | BR116: 11.74 | BS116: 12.95 | BT116: 27.43 | BU116: 26.2 | BV116: 25.74 | BW116: 23.99 | BX116: 25.25 | BY116: 22.91 | BZ116: 33.87 | CA116: 34.83 | CB116: 14.75 | CC116: 16.7 | CD116: 21.03 | CE116: 23.16 | CF116: 24.47 | CG116: 28.72 | CH116: 17.47 | CI116: 18.02 | CJ116: 25.08 | CK116: 27.11 | CL116: 29.98 | CM116: 33.93 | CN116: 42.47 | CO116: 34.43 | CP116: 28.17 | CQ116: 38.32 | CR116: 22.21 | CS116: 26.36 | CT116: -0.3509 | CU116: 0.02168997 | CV116: -1.2502 | CW116: 0 | CX116: -0.3078 | CY116: 0.03986924 | CZ116: -1.1909 | DA116: 0 | DB116: -0.9035 | DC116: 0 | DD116: -1.8147 | DE116: 0 | DF116: 0.0171 | DG116: 1 | DH116: -0.9054 | DI116: 0.00032365 | DJ116: -0.3759 | DK116: 0.01014536 | DL116: -1.3072 | DM116: 0 | DN116: -0.4027 | DO116: 0.01092157 | DP116: -1.3277 | DQ116: 0 | DR116: -0.1702 | DS116: 0.32737637 | DT116: -1.0748 | DU116: 0 | DV116: -0.5158 | DW116: 0.00401542 | DX116: -1.4377 | DY116: 0 | DZ116: -0.7402 | EA116: 5.16e-06 | EB116: -1.6605 | EC116: 0 | ED116: -1.2202 | EE116: 0 | EF116: -2.1192 | EG116: 0 | EH116: -0.8941 | EI116: 7.47e-06 | EJ116: -1.796 | EK116: 0 | EL116: -0.3445 | EM116: 0.04767269 | EN116: -1.2664 | EO116: 0
A117: Phatr3_J44347 | B117: chr_4;chr_4;chr_4 | C117: 290217;290708;290958 | D117: 290254;290823;292744 | E117: +;+;+ | F117: 1941 | G117: pti:PHATRDRAFT_44347 | H117: hypothetical protein | N117: B7FTS9 | W117: Phatr44347-4Phatr2 | X117: 91 | Y117: Predicted protein | Z117: CAM_CRCL_14438555 | AA117: Phaeodactylum tricornutum | AB117: 2850 | AJ117: 1 | AK117: other localisation | AL117: 0.0645 | AM117: 0.0253 | AN117: 0 | AO117: 0.108 | AQ117: NS | AS117: 49 | AT117: 32 | AU117: 1.091072083 | AV117: 0.6850203384 | AW117: 0.2518540492 | AX117: 1 | AY117: 1 | AZ117: 219.825 | BA117: 8.565 | BB117: 23.48 | BC117: 379.29 | BD117: 309.09 | BE117: 411.555 | BF117: 36.83 | BG117: 111.53 | BH117: 412.11 | BI117: 36.33 | BJ117: 176.79 | BK117: 374.725 | BL117: 9.665 | BM117: 227.73 | BN117: 754.48 | BO117: 25.205 | BP117: 5.47 | BQ117: 11.66 | BR117: 24.55 | BS117: 22.41 | BT117: 13.13 | BU117: 745.45 | BV117: 257.93 | BW117: 360.25 | BX117: 411.23 | BY117: 411.88 | BZ117: 38.09 | CA117: 35.57 | CB117: 123.32 | CC117: 99.74 | CD117: 460.5 | CE117: 363.72 | CF117: 46.78 | CG117: 25.88 | CH117: 189.48 | CI117: 164.1 | CJ117: 400.78 | CK117: 348.67 | CL117: 6.93 | CM117: 12.4 | CN117: 199.76 | CO117: 255.7 | CP117: 683.91 | CQ117: 825.05 | CR117: 16.16 | CS117: 34.25 | CT117: -5.1368 | CU117: 0 | CV117: -3.9382 | CW117: 0 | CX117: -5.5596 | CY117: 0 | CZ117: -4.3421 | DA117: 0 | DB117: -2.1655 | DC117: 0 | DD117: -0.9683 | DE117: 0 | DF117: -3.9586 | DG117: 0 | DH117: -2.797 | DI117: 0 | DJ117: -5.753 | DK117: 0 | DL117: -4.5868 | DM117: 0 | DN117: -1.9991 | DO117: 0 | DP117: -0.8408 | DQ117: 0.00061542 | DR117: -4.6471 | DS117: 0 | DT117: -3.451 | DU117: 0 | DV117: -5.5143 | DW117: 0 | DX117: -4.3457 | DY117: 0 | DZ117: -0.1657 | EA117: 0.77829232 | EB117: 0.9859 | EC117: 0.00021054 | ED117: -4.9468 | EE117: 0 | EF117: -3.7525 | EG117: 0 | EH117: -6.5523 | EI117: 0 | EJ117: -5.3664 | EK117: 0 | EL117: -1.5439 | EM117: 5.765e-05 | EN117: -0.3865 | EO117: 0.23251821
A118: Phatr3_J34631 | B118: chr_6 | C118: 9380 | D118: 10264 | E118: - | F118: 885 | G118: pti:PHATRDRAFT_34631 | H118: hypothetical protein | N118: B7FW88 | W118: Phatr34631-6Phatr2 | X118: 82 | Y118: Predicted protein | Z118: CAM_CRCL_27153237 | AA118: Phaeodactylum tricornutum | AB118: 2850 | AJ118: 3 | AK118: signal anchor | AL118: 0.1092 | AM118: 0.4925 | AN118: 0 | AO118: 0 | AQ118: NS | AS118: 133 | AU118: 1.008223274 | AV118: 0.7245633713 | AW118: 0.274174134 | AX118: 1 | AY118: 1 | AZ118: 18.51766667 | BA118: 21.08 | BB118: 29.405 | BC118: 30.18 | BD118: 18.22 | BE118: 13 | BF118: 16.03 | BG118: 9.95 | BH118: 13.545 | BI118: 21.195 | BJ118: 16.13 | BK118: 11.305 | BL118: 22.03 | BM118: 21.255 | BN118: 16.525 | BO118: 17.915 | BP118: 19.42 | BQ118: 22.74 | BR118: 27.52 | BS118: 31.29 | BT118: 38.95 | BU118: 21.41 | BV118: 18.53 | BW118: 17.91 | BX118: 12.82 | BY118: 13.18 | BZ118: 16.42 | CA118: 15.64 | CB118: 10.63 | CC118: 9.27 | CD118: 10.93 | CE118: 16.16 | CF118: 22.42 | CG118: 19.97 | CH118: 18.57 | CI118: 13.69 | CJ118: 10.5 | CK118: 12.11 | CL118: 20.73 | CM118: 23.33 | CN118: 23.24 | CO118: 19.27 | CP118: 15.53 | CQ118: 17.52 | CR118: 19.8 | CS118: 16.03 | CT118: 0.2508 | CU118: 0.27399687 | CV118: 0.4485 | CW118: 0.03353018 | CX118: 0.7367 | CY118: 0.00065824 | CZ118: 0.9502 | DA118: 5.78e-06 | DB118: 0.349 | DC118: 0.10387448 | DD118: 0.5391 | DE118: 0.00898219 | DF118: 0.8499 | DG118: 0.01085025 | DH118: 1.0178 | DI118: 0.00139723 | DJ118: 0.4751 | DK118: 0.04781593 | DL118: 0.6388 | DM118: 0.00492407 | DN118: 0.074 | DO118: 0.77060703 | DP118: 0.2451 | DQ118: 0.25111149 | DR118: 0.1052 | DS118: 0.72336924 | DT118: 0.2953 | DU118: 0.22220831 | DV118: 0.8477 | DW118: 0.00084089 | DX118: 1.0193 | DY118: 3.263e-05 | DZ118: -0.0507 | EA118: 0.94923086 | EB118: 0.1232 | EC118: 0.6405623 | ED118: -0.212 | EE118: 0.41338656 | EF118: -0.0158 | EG118: 1 | EH118: 0.2712 | EI118: 0.31723102 | EJ118: 0.4616 | EK118: 0.05758408 | EL118: 0.265 | EM118: 0.27609024 | EN118: 0.4359 | EO118: 0.06043811
A119: Phatr3_EG01702 | B119: chr_3 | C119: 1144428 | D119: 1145273 | E119: - | F119: 846 | G119: pti:PHATR_10261 | H119: hypothetical protein | N119: B5Y5J0 | O119: KOG1437 | P119: Fasciclin and related adhesion glycoproteins | Q119: Cell wall/membrane/envelope biogenesis | R119: CELLULAR PROCESSES AND SIGNALING | W119: Phatr10261-3Phatr2 | X119: 49 | Y119: Predicted protein Fragment | Z119: CAM_CRCL_32713963 | AA119: Phaeodactylum tricornutum | AB119: 2850 | AC119: _GAP_||PF02469 | AD119: _GAP_||Fasciclin domain | AJ119: 0 | AK119: signal peptide | AL119: 0.7173 | AM119: 0.059 | AN119: 0.024 | AO119: 0 | AQ119: NS | AS119: 3 | AU119: 1.28878549 | AV119: 0.3994570487 | AW119: 0.272961058 | AX119: 1 | AY119: 1 | AZ119: 36.27 | BA119: 4.46 | BB119: 12.375 | BC119: 95.42 | BD119: 58.3 | BE119: 46.45 | BF119: 39.52 | BG119: 20.635 | BH119: 31.515 | BI119: 28.735 | BJ119: 23.505 | BK119: 43.965 | BL119: 33.345 | BM119: 30.935 | BN119: 42.285 | BO119: 32.605 | BP119: 4.46 | BQ119: 4.46 | BR119: 14.3 | BS119: 10.45 | BT119: 120.75 | BU119: 70.09 | BV119: 47.11 | BW119: 69.49 | BX119: 44.04 | BY119: 48.86 | BZ119: 32.52 | CA119: 46.52 | CB119: 25.1 | CC119: 16.17 | CD119: 30.21 | CE119: 32.82 | CF119: 26.71 | CG119: 30.76 | CH119: 23.34 | CI119: 23.67 | CJ119: 48.64 | CK119: 39.29 | CL119: 30.96 | CM119: 35.73 | CN119: 31.9 | CO119: 29.97 | CP119: 34.53 | CQ119: 50.04 | CR119: 37.49 | CS119: 27.72 | CT119: -3.6532 | CU119: 0 | CV119: -2.4184 | CW119: 0 | CX119: -3.3327 | CY119: 0 | CZ119: -2.0762 | DA119: 0 | DB119: -3.1876 | DC119: 0 | DD119: -1.9718 | DE119: 0 | DF119: -2.4377 | DG119: 0 | DH119: -1.2571 | DI119: 0.00074774 | DJ119: -2.9677 | DK119: 0 | DL119: -1.7597 | DM119: 0 | DN119: -2.5926 | DO119: 0 | DP119: -1.3868 | DQ119: 0 | DR119: -2.6546 | DS119: 0 | DT119: -1.4307 | DU119: 1e-08 | DV119: -3.3474 | DW119: 0 | DX119: -2.1447 | DY119: 0 | DZ119: -2.8812 | EA119: 0 | EB119: -1.6732 | EC119: 0 | ED119: -2.9859 | EE119: 0 | EF119: -1.7534 | EG119: 0 | EH119: -3.3137 | EI119: 0 | EJ119: -2.0959 | EK119: 0 | EL119: -2.8324 | EM119: 0 | EN119: -1.6319 | EO119: 0
A120: Phatr3_J44784 | B120: chr_5 | C120: 235138 | D120: 235617 | E120: + | F120: 480 | G120: pti:PHATRDRAFT_44784 | H120: hypothetical protein; K12871 coiled-coil domain-containing protein 12 | I120: pti03040 | J120: K12871 | K120: coiled-coil domain-containing protein 12 | L120: Spliceosome | N120: B7FVM4 | O120: KOG3407 | P120: Uncharacterized conserved protein | Q120: Function unknown | R120: POORLY CHARACTERIZED | W120: Phatr44784-5Phatr2 | X120: 91 | Y120: Predicted protein | AA120: Phaeodactylum tricornutum | AB120: 2850 | AC120: PF08315 | AD120: cwf18 pre-mRNA splicing factor | AJ120: 0 | AK120: other localisation | AL120: 0.108 | AM120: 0.0313 | AN120: 0 | AO120: 0.1415 | AQ120: NS | AS120: 3 | AT120: 77 | AU120: 0.8741332707 | AV120: 0.69695321 | AW120: 0.3817417417 | AX120: 1 | AY120: 1 | AZ120: 22.49466667 | BA120: 48.39 | BB120: 24.115 | BC120: 30.57 | BD120: 14.625 | BE120: 19.9 | BF120: 24.22 | BG120: 11.975 | BH120: 17.015 | BI120: 25.04 | BJ120: 16.84 | BK120: 18.515 | BL120: 21.595 | BM120: 24.785 | BN120: 20.745 | BO120: 19.09 | BP120: 53.28 | BQ120: 43.5 | BR120: 26.18 | BS120: 22.05 | BT120: 29.23 | BU120: 31.91 | BV120: 12.42 | BW120: 16.83 | BX120: 16.71 | BY120: 23.09 | BZ120: 25.93 | CA120: 22.51 | CB120: 9.48 | CC120: 14.47 | CD120: 19.66 | CE120: 14.37 | CF120: 26.89 | CG120: 23.19 | CH120: 11.94 | CI120: 21.74 | CJ120: 13.44 | CK120: 23.59 | CL120: 22.72 | CM120: 20.47 | CN120: 32.96 | CO120: 16.61 | CP120: 17.05 | CQ120: 24.44 | CR120: 16.06 | CS120: 22.12 | CT120: 1.7838 | CU120: 0 | CV120: 0.5146 | CW120: 0.09139994 | CX120: 1.3431 | CY120: 1e-08 | CZ120: 0.0861 | DA120: 0.89944453 | DB120: 0.9716 | DC120: 2.86e-06 | DD120: -0.3113 | DE120: 0.23467842 | DF120: 1.7513 | DG120: 1.4e-07 | DH120: 0.4524 | DI120: 0.28673612 | DJ120: 1.3866 | DK120: 0 | DL120: 0.0786 | DM120: 0.90174307 | DN120: 1.0465 | DO120: 2.9e-07 | DP120: -0.2498 | DQ120: 0.37966535 | DR120: 1.3074 | DS120: 5.52e-06 | DT120: 0.0182 | DU120: 1 | DV120: 1.3461 | DW120: 2.23e-06 | DX120: 0.0488 | DY120: 1 | DZ120: 1.2029 | EA120: 1.6e-07 | EB120: -0.0934 | EC120: 0.79757979 | ED120: 0.7771 | EE120: 0.00812094 | EF120: -0.4958 | EG120: 0.16535242 | EH120: 1.168 | EI120: 9.41e-06 | EJ120: -0.114 | EK120: 0.74720517 | EL120: 1.3544 | EM120: 2e-08 | EN120: 0.0618 | EO120: 0.93874617
A121: Phatr3_J52260 | B121: chr_14;chr_14;chr_14;chr_14;chr_14;chr_14;chr_14;chr_14;chr_14;chr_14;chr_14;chr_14;chr_14;chr_14 | C121: 262903;263124;264376;264479;264997;265573;266028;266308;266440;266658;266867;267028;267223;267539 | D121: 263050;264210;264383;264925;265493;265960;266233;266363;266582;266794;266957;267138;267473;267838 | E121: +;+;+;+;+;+;+;+;+;+;+;+;+;+ | F121: 3870 | G121: pti:PHATRDRAFT_52260 | H121: hypothetical protein | N121: B7G499 | O121: KOG1041 | P121: Translation initiation factor 2C (eIF-2C) and related proteins | Q121: Translation, ribosomal structure and biogenesis | R121: INFORMATION STORAGE AND PROCESSING | W121: contig_25168_1_3759-ChaeIllumina | X121: 31 | Z121: CAM_CRCL_4002118 | AA121: Chaetoceros sp. RS-19 | AB121: 49237 | AC121: _GAP_||PF02171||_GAP_ | AD121: _GAP_||Piwi domain||_GAP_ | AJ121: 0 | AK121: other localisation | AL121: 0.0427 | AM121: 0.0205 | AN121: 0 | AO121: 0.089 | AQ121: NS | AS121: 3 | AT121: 53 | AU121: 0.8041782653 | AV121: 0.6856502378 | AW121: 0.4496698074 | AX121: 1 | AY121: 1 | AZ121: 95.48033333 | BA121: 47.365 | BB121: 53.695 | BC121: 127.18 | BD121: 94.885 | BE121: 104.645 | BF121: 141.84 | BG121: 54.235 | BH121: 84.84 | BI121: 108.72 | BJ121: 70.135 | BK121: 84.46 | BL121: 109.78 | BM121: 110.82 | BN121: 129.435 | BO121: 110.17 | BP121: 47.7 | BQ121: 47.03 | BR121: 58.35 | BS121: 49.04 | BT121: 95.93 | BU121: 158.43 | BV121: 88.32 | BW121: 101.45 | BX121: 111.49 | BY121: 97.8 | BZ121: 138.24 | CA121: 145.44 | CB121: 54.48 | CC121: 53.99 | CD121: 83.5 | CE121: 86.18 | CF121: 101.66 | CG121: 115.78 | CH121: 66.21 | CI121: 74.06 | CJ121: 90.97 | CK121: 77.95 | CL121: 107.78 | CM121: 111.78 | CN121: 114.5 | CO121: 107.14 | CP121: 135.67 | CQ121: 123.2 | CR121: 112.43 | CS121: 107.91 | CT121: -0.9504 | CU121: 0 | CV121: -1.0463 | CW121: 0 | CX121: -1.0954 | CY121: 0 | CZ121: -1.1762 | DA121: 0 | DB121: -1.6203 | DC121: 0 | DD121: -1.7258 | DE121: 0 | DF121: -0.4351 | DG121: 0.02980583 | DH121: -0.5621 | DI121: 0.01267451 | DJ121: -0.9846 | DK121: 0 | DL121: -1.1136 | DM121: 0 | DN121: -1.1054 | DO121: 0 | DP121: -1.2285 | DQ121: 0 | DR121: -0.8202 | DS121: 0 | DT121: -0.9234 | DU121: 1e-08 | DV121: -0.8821 | DW121: 1.09e-06 | DX121: -1.0049 | DY121: 2.96e-06 | DZ121: -1.1858 | EA121: 0 | EB121: -1.3056 | EC121: 0 | ED121: -1.4177 | EE121: 0 | EF121: -1.5155 | EG121: 0 | EH121: -1.5295 | EI121: 0 | EJ121: -1.6334 | EK121: 0 | EL121: -1.1882 | EM121: 0 | EN121: -1.3111 | EO121: 0
A122: Phatr3_J31968 | B122: chr_1 | C122: 1366887 | D122: 1367996 | E122: + | F122: 1110 | G122: pti:PHATRDRAFT_31968 | H122: hypothetical protein | N122: B7FPU7 | W122: Phatr31968-1Phatr2 | X122: 95 | Y122: Predicted protein | AA122: Phaeodactylum tricornutum | AB122: 2850 | AJ122: 0 | AK122: signal peptide | AL122: 0.8536 | AM122: 0.0465 | AN122: 0.036 | AO122: 0 | AQ122: NS | AS122: 3 | AU122: 0.9210656142 | AV122: 0.6258246937 | AW122: 0.3184466019 | AX122: 1 | AY122: 1 | AZ122: 16.25133333 | BA122: 32.6 | BB122: 14.185 | BC122: 29.605 | BD122: 11.62 | BE122: 7.735 | BF122: 11.14 | BG122: 10.935 | BH122: 9.625 | BI122: 17.36 | BJ122: 15.155 | BK122: 10.845 | BL122: 20.21 | BM122: 20.895 | BN122: 14.005 | BO122: 17.855 | BP122: 32.79 | BQ122: 32.41 | BR122: 16.61 | BS122: 11.76 | BT122: 35.06 | BU122: 24.15 | BV122: 8.78 | BW122: 14.46 | BX122: 7.98 | BY122: 7.49 | BZ122: 12.36 | CA122: 9.92 | CB122: 7.65 | CC122: 14.22 | CD122: 9.49 | CE122: 9.76 | CF122: 17.65 | CG122: 17.07 | CH122: 14 | CI122: 16.31 | CJ122: 9.3 | CK122: 12.39 | CL122: 18.73 | CM122: 21.69 | CN122: 22.14 | CO122: 19.65 | CP122: 12.83 | CQ122: 15.18 | CR122: 15.94 | CS122: 19.77 | CT122: 1.5432 | CU122: 0 | CV122: 0.0879 | CW122: 0.89041742 | CX122: 2.1193 | CY122: 0 | CZ122: 0.6857 | DA122: 0.01864993 | DB122: 1.5168 | DC122: 0 | DD122: 0.0494 | DE122: 0.97796265 | DF122: 1.3119 | DG122: 6.58e-06 | DH122: -0.1697 | DI122: 0.76493904 | DJ122: 1.6141 | DK122: 0 | DL122: 0.1327 | DM122: 0.71484881 | DN122: 1.0015 | DO122: 0 | DP122: -0.4735 | DQ122: 0.05639352 | DR122: 0.8578 | DS122: 1.98e-06 | DT122: -0.6038 | DU122: 0.02012617 | DV122: 1.5426 | DW122: 0 | DX122: 0.0632 | DY122: 0.95671364 | DZ122: 0.7073 | EA122: 0.00013915 | EB122: -0.7637 | EC122: 0.00358164 | ED122: 0.4491 | EE122: 0.01054026 | EF122: -0.9995 | EG122: 2.704e-05 | EH122: 1.1489 | EI122: 4e-08 | EJ122: -0.315 | EK122: 0.29796676 | EL122: 0.8852 | EM122: 1.74e-06 | EN122: -0.5872 | EO122: 0.02919815
A123: Phatr3_J9355 | B123: chr_1 | C123: 2298555 | D123: 2300447 | E123: + | F123: 1893 | G123: pti:PHATRDRAFT_9355 | H123: hypothetical protein; K15015 solute carrier family 32 (vesicular inhibitory amino acid transporter) | J123: K15015 | K123: solute carrier family 32 (vesicular inhibitory amino acid transporter) | L123: Synaptic vesicle cycle || Retrograde endocannabinoid signaling || GABAergic synapse || Morphine addiction || Nicotine addiction | N123: B7FQZ2 | O123: KOG1303 | P123: Amino acid transporters | Q123: Amino acid transport and metabolism | R123: METABOLISM | W123: Phatr9355-1Phatr2 | X123: 95 | Y123: Predicted protein Fragment | Z123: CAM_CRCL_31838503 | AA123: Phaeodactylum tricornutum | AB123: 2850 | AC123: _GAP_||PF01490 | AD123: _GAP_||Transmembrane amino acid transporter protein | AG123: AAAP | AI123: 3 | AJ123: 10 | AK123: other localisation | AL123: 0.0707 | AM123: 0.0253 | AN123: 0 | AO123: 0.159 | AQ123: NS | AS123: 83 | AT123: 26 | AU123: 1.069912041 | AV123: 0.4546771654 | AW123: 0.3293681631 | AX123: 1 | AY123: 1 | AZ123: 39.73966667 | BA123: 39.545 | BB123: 39.89 | BC123: 101.215 | BD123: 21.82 | BE123: 28.23 | BF123: 37.735 | BG123: 30.665 | BH123: 18.645 | BI123: 31.935 | BJ123: 34.935 | BK123: 40.375 | BL123: 35.745 | BM123: 48.71 | BN123: 55.79 | BO123: 30.86 | BP123: 39.42 | BQ123: 39.67 | BR123: 38.65 | BS123: 41.13 | BT123: 92.53 | BU123: 109.9 | BV123: 22.31 | BW123: 21.33 | BX123: 29.13 | BY123: 27.33 | BZ123: 35.68 | CA123: 39.79 | CB123: 32.21 | CC123: 29.12 | CD123: 19.32 | CE123: 17.97 | CF123: 32.21 | CG123: 31.66 | CH123: 35.85 | CI123: 34.02 | CJ123: 33.87 | CK123: 46.88 | CL123: 32.95 | CM123: 38.54 | CN123: 49.75 | CO123: 47.67 | CP123: 51.61 | CQ123: 59.97 | CR123: 29.34 | CS123: 32.38 | CT123: 0.9063 | CU123: 0 | CV123: 0.6342 | CW123: 2.337e-05 | CX123: 0.5322 | CY123: 5.983e-05 | CZ123: 0.2763 | DA123: 0.08052721 | DB123: 0.0279 | DC123: 0.91005268 | DD123: -0.2519 | DE123: 0.09871499 | DF123: 0.1297 | DG123: 0.62244361 | DH123: -0.1711 | DI123: 0.48071413 | DJ123: 0.9433 | DK123: 0 | DL123: 0.6382 | DM123: 1.055e-05 | DN123: 0.4014 | DO123: 0.00286628 | DP123: 0.1031 | DQ123: 0.5685144 | DR123: -0.0818 | DS123: 0.63172587 | DT123: -0.3589 | DU123: 0.0158879 | DV123: -0.071 | DW123: 0.80038849 | DX123: -0.3682 | DY123: 0.06841127 | DZ123: 0.167 | EA123: 0.31785216 | EB123: -0.1272 | EC123: 0.537936 | ED123: -0.4934 | EE123: 0.00027217 | EF123: -0.766 | EG123: 2e-07 | EH123: -0.5728 | EI123: 0.00095579 | EJ123: -0.8516 | EK123: 3.08e-06 | EL123: 0.3822 | EM123: 0.00951884 | EN123: 0.0853 | EO123: 0.66609626
A124: Phatr3_draftJ1540 | B124: bd_52x36 | C124: 44 | D124: 781 | E124: - | F124: 738 | G124: pti:PHATRDRAFT_bd1540 | H124: hypothetical protein | N124: B7S4K7 | O124: KOG2353 | P124: L-type voltage-dependent Ca2+ channel, alpha2/delta subunit | Q124: Inorganic ion transport and metabolism | R124: METABOLISM | W124: Phatrdraft1540-bd_52x36Phatr2_bd | X124: 100 | Y124: Putative uncharacterized protein Fragment | Z124: CAM_CRCL_14057221 | AA124: Phaeodactylum tricornutum | AB124: 2850 | AC124: _GAP_||PF13519 | AD124: _GAP_||PF13519 | AJ124: 0 | AK124: signal peptide | AL124: 0.5979 | AM124: 0.0618 | AN124: 0.0337 | AO124: 0 | AQ124: NS | AS124: 102 | AT124: 9 | AU124: 0.782369146 | AV124: 0.7022098594 | AW124: 0.3597840756 | AX124: 1 | AY124: 1 | AZ124: 29.245 | BA124: 38.415 | BB124: 20.535 | BC124: 47.975 | BD124: 15.385 | BE124: 17.24 | BF124: 22.595 | BG124: 20.995 | BH124: 22.165 | BI124: 10.55 | BJ124: 30.385 | BK124: 48.66 | BL124: 13.31 | BM124: 43.715 | BN124: 75.22 | BO124: 11.53 | BP124: 39.67 | BQ124: 37.16 | BR124: 11.99 | BS124: 29.08 | BT124: 35.42 | BU124: 60.53 | BV124: 13.87 | BW124: 16.9 | BX124: 16.49 | BY124: 17.99 | BZ124: 24.7 | CA124: 20.49 | CB124: 26.31 | CC124: 15.68 | CD124: 19.5 | CE124: 24.83 | CF124: 10.3 | CG124: 10.8 | CH124: 30.22 | CI124: 30.55 | CJ124: 37.93 | CK124: 59.39 | CL124: 15.19 | CM124: 11.43 | CN124: 39.72 | CO124: 47.71 | CP124: 61.65 | CQ124: 88.79 | CR124: 12.35 | CS124: 10.71 | CT124: 1.3729 | CU124: 0 | CV124: 0.141 | CW124: 0.77750661 | CX124: 1.2074 | CY124: 0 | CZ124: -0.0152 | DA124: 1 | DB124: 0.7335 | DC124: 6.928e-05 | DD124: -0.5012 | DE124: 0.21703846 | DF124: 0.6503 | DG124: 0.05327128 | DH124: -0.6114 | DI124: 0.24618437 | DJ124: 0.641 | DK124: 0.00044938 | DL124: -0.6204 | DM124: 0.09676362 | DN124: 1.9618 | DO124: 0 | DP124: 0.7038 | DQ124: 0.08752397 | DR124: 0.0826 | DS124: 0.73676593 | DT124: -1.1588 | DU124: 0.00097034 | DV124: -0.3799 | DW124: 0.11349209 | DX124: -1.6378 | DY124: 7.49e-06 | DZ124: 1.5785 | EA124: 0 | EB124: 0.3143 | EC124: 0.52085509 | ED124: -0.3778 | EE124: 0.05039477 | EF124: -1.6186 | EG124: 1.93e-06 | EH124: -1.0389 | EI124: 1.04e-06 | EJ124: -2.2859 | EK124: 0 | EL124: 1.7755 | EM124: 0 | EN124: 0.5139 | EO124: 0.23592969
A125: Phatr3_J36175 | B125: chr_9 | C125: 731552 | D125: 732322 | E125: + | F125: 771 | G125: pti:PHATRDRAFT_36175 | H125: hypothetical protein | N125: B7G0L3 | W125: Phatr36175-9Phatr2 | X125: 100 | Y125: Predicted protein | AA125: Phaeodactylum tricornutum | AB125: 2850 | AJ125: 2 | AK125: signal peptide | AL125: 0.8218 | AM125: 0.0767 | AN125: 0.1454 | AO125: 0 | AQ125: NS | AS125: 101 | AT125: 9 | AU125: 0.6747150469 | AV125: 0.6471134979 | AW125: 0.4980832954 | AX125: 1 | AY125: 1 | AZ125: 65.252 | BA125: 61.71 | BB125: 71.44 | BC125: 99.145 | BD125: 71.15 | BE125: 79.295 | BF125: 27.015 | BG125: 49.125 | BH125: 81.565 | BI125: 49.115 | BJ125: 57.79 | BK125: 72.4 | BL125: 42.825 | BM125: 96.12 | BN125: 76.675 | BO125: 43.41 | BP125: 61.26 | BQ125: 62.16 | BR125: 64.46 | BS125: 78.42 | BT125: 88.78 | BU125: 109.51 | BV125: 68.97 | BW125: 73.33 | BX125: 71.88 | BY125: 86.71 | BZ125: 29.14 | CA125: 24.89 | CB125: 60.59 | CC125: 37.66 | CD125: 78.85 | CE125: 84.28 | CF125: 51.02 | CG125: 47.21 | CH125: 55.07 | CI125: 60.51 | CJ125: 70.11 | CK125: 74.69 | CL125: 31.19 | CM125: 54.46 | CN125: 103.21 | CO125: 89.03 | CP125: 69.41 | CQ125: 83.94 | CR125: 46.48 | CS125: 40.34 | CT125: -0.1561 | CU125: 0.31746287 | CV125: -0.2386 | CW125: 0.15773001 | CX125: -0.3139 | CY125: 0.04657318 | CZ125: -0.3806 | DA125: 0.03209772 | DB125: 1.1562 | DC125: 0 | DD125: 1.0685 | DE125: 0 | DF125: 0.0947 | DG125: 0.85546909 | DH125: -0.0127 | DI125: 1 | DJ125: -0.5491 | DK125: 2.475e-05 | DL125: -0.6637 | DM125: 7.13e-06 | DN125: 0.4204 | DO125: 0.00410734 | DP125: 0.3128 | DQ125: 0.07198381 | DR125: -0.1593 | DS125: 0.32532496 | DT125: -0.2477 | DU125: 0.15141766 | DV125: -0.2757 | DW125: 0.1289519 | DX125: -0.3816 | DY125: 0.04672605 | DZ125: 0.5388 | EA125: 0.02813808 | EB125: 0.4389 | EC125: 0.09669426 | ED125: -0.8318 | EE125: 0 | EF125: -0.914 | EG125: 1e-08 | EH125: -0.3878 | EI125: 0.04005793 | EJ125: -0.475 | EK125: 0.01825043 | EL125: 0.5407 | EM125: 0.00071318 | EN125: 0.4326 | EO125: 0.01837768
A126: Phatr3_J47899 | B126: chr_15 | C126: 386424 | D126: 387020 | E126: + | F126: 597 | G126: pti:PHATRDRAFT_47899 | H126: hypothetical protein | N126: B7G5A8 | O126: KOG0704 | P126: ADP-ribosylation factor GTPase activator | Q126: Signal transduction mechanisms | R126: CELLULAR PROCESSES AND SIGNALING | W126: Phatr47899-15Phatr2 | X126: 94 | Y126: Predicted protein | Z126: CAM_CRCL_31571777 | AA126: Phaeodactylum tricornutum | AB126: 2850 | AC126: _GAP_||PF01412||_GAP_ | AD126: _GAP_||Putative GTPase activating protein for Arf||_GAP_ | AJ126: 0 | AK126: other localisation | AL126: 0.0945 | AM126: 0.0296 | AN126: 0 | AO126: 0.1023 | AQ126: NS | AS126: 197 | AT126: 83 | AU126: 0.9255436687 | AV126: 0.5659101536 | AW126: 0.321585473 | AX126: 1 | AY126: 1 | AZ126: 100.492 | BA126: 160.43 | BB126: 127.98 | BC126: 135.705 | BD126: 70.945 | BE126: 93.665 | BF126: 103.275 | BG126: 49.84 | BH126: 72.395 | BI126: 122.08 | BJ126: 64.47 | BK126: 90.935 | BL126: 136.255 | BM126: 89.175 | BN126: 82.595 | BO126: 107.635 | BP126: 156.94 | BQ126: 163.92 | BR126: 130.88 | BS126: 125.08 | BT126: 148.9 | BU126: 122.51 | BV126: 68.59 | BW126: 73.3 | BX126: 94.69 | BY126: 92.64 | BZ126: 108.4 | CA126: 98.15 | CB126: 36.59 | CC126: 63.09 | CD126: 71.53 | CE126: 73.26 | CF126: 128.01 | CG126: 116.15 | CH126: 65.46 | CI126: 63.48 | CJ126: 90.11 | CK126: 91.76 | CL126: 130.75 | CM126: 141.76 | CN126: 94.16 | CO126: 84.19 | CP126: 90.88 | CQ126: 74.31 | CR126: 105.52 | CS126: 109.75 | CT126: 1.2266 | CU126: 0 | CV126: 0.6239 | CW126: 4.136e-05 | CX126: 0.8226 | CY126: 0 | CZ126: 0.235 | DA126: 0.15499092 | DB126: 0.5974 | DC126: 3.81e-06 | DD126: -0.0141 | DE126: 0.99245197 | DF126: 1.4367 | DG126: 0 | DH126: 0.8033 | DI126: 0.00194189 | DJ126: 1.0024 | DK126: 0 | DL126: 0.3673 | DM126: 0.012637 | DN126: 0.4861 | DO126: 0.00028229 | DP126: -0.144 | DQ126: 0.4037879 | DR126: 1.0541 | DS126: 0 | DT126: 0.4454 | DU126: 0.0044332 | DV126: 0.7736 | DW126: 2.7e-06 | DX126: 0.1434 | DY126: 0.49608517 | DZ126: 0.259 | EA126: 0.0785795 | EB126: -0.3677 | EC126: 0.0266898 | ED126: 0.6545 | EE126: 1.9e-06 | EF126: 0.0501 | EG126: 0.8399387 | EH126: 0.8723 | EI126: 1.11e-06 | EJ126: 0.2608 | EK126: 0.20938808 | EL126: 0.602 | EM126: 1.452e-05 | EN126: -0.0272 | EO126: 0.94223754
A127: Phatr3_J45036 | B127: chr_6 | C127: 5656 | D127: 6540 | E127: - | F127: 885 | G127: pti:PHATRDRAFT_45036 | H127: hypothetical protein | N127: B7FW86 | W127: Phatr45036-6Phatr2 | X127: 82 | Y127: Predicted protein | Z127: CAM_CRCL_27153237 | AA127: Phaeodactylum tricornutum | AB127: 2850 | AJ127: 2 | AK127: other localisation | AL127: 0.1106 | AM127: 0.4103 | AN127: 0 | AO127: 0.2145 | AQ127: NS | AS127: 78 | AT127: 36 | AU127: 0.9360484685 | AV127: 0.6235575876 | AW127: 0.2437389442 | AX127: 1 | AY127: 1 | AZ127: 24.48 | BA127: 30.905 | BB127: 37.195 | BC127: 43.615 | BD127: 22.09 | BE127: 17.94 | BF127: 21.955 | BG127: 15.805 | BH127: 18.05 | BI127: 25.29 | BJ127: 23.58 | BK127: 13.58 | BL127: 23.765 | BM127: 30.125 | BN127: 20.48 | BO127: 22.825 | BP127: 30.4 | BQ127: 31.41 | BR127: 37.69 | BS127: 36.7 | BT127: 52.51 | BU127: 34.72 | BV127: 22.46 | BW127: 21.72 | BX127: 17.09 | BY127: 18.79 | BZ127: 21.82 | CA127: 22.09 | CB127: 17.82 | CC127: 13.79 | CD127: 15.29 | CE127: 20.81 | CF127: 27.21 | CG127: 23.37 | CH127: 26.29 | CI127: 20.87 | CJ127: 10.93 | CK127: 16.23 | CL127: 22.8 | CM127: 24.73 | CN127: 31.23 | CO127: 29.02 | CP127: 19.33 | CQ127: 21.63 | CR127: 21.88 | CS127: 23.77 | CT127: 0.5311 | CU127: 0.00356076 | CV127: 0.5237 | CW127: 0.00680038 | CX127: 0.832 | CY127: 4.42e-06 | CZ127: 0.8402 | DA127: 1.432e-05 | DB127: 0.4523 | DC127: 0.00909195 | DD127: 0.4352 | DE127: 0.01827675 | DF127: 0.7406 | DG127: 0.01291751 | DH127: 0.6996 | DI127: 0.02002024 | DJ127: 0.6186 | DK127: 0.00151661 | DL127: 0.5785 | DM127: 0.00373645 | DN127: 0.3769 | DO127: 0.03567082 | DP127: 0.3426 | DQ127: 0.08292224 | DR127: 0.1169 | DS127: 0.61632371 | DT127: 0.1028 | DU127: 0.68314432 | DV127: 1.1407 | DW127: 2.25e-06 | DX127: 1.1051 | DY127: 8.46e-06 | DZ127: 0.3981 | EA127: 0.04583421 | EB127: 0.3666 | EC127: 0.08929917 | ED127: -0.158 | EE127: 0.44926435 | EF127: -0.1663 | EG127: 0.40512296 | EH127: 0.5182 | EI127: 0.01784244 | EJ127: 0.5018 | EK127: 0.02688364 | EL127: 0.4583 | EM127: 0.01569122 | EN127: 0.4252 | EO127: 0.03614114
A128: Phatr3_J9327 | B128: chr_1;chr_1 | C128: 602747;605412 | D128: 605315;605659 | E128: -;- | F128: 2817 | G128: pti:PHATRDRAFT_9327 | H128: secA; nuclear-encoded-like protein of plastid sec; K03070 preprotein translocase subunit SecA | I128: pti03060 | J128: K03070 | K128: preprotein translocase subunit SecA | L128: Protein export || Bacterial secretion system | N128: B7FNY2 | W128: Phatr9327-1Phatr2 | X128: 100 | Y128: Protein translocase subunit secA | Z128: CAM_CRCL_32331481 | AA128: Phaeodactylum tricornutum | AB128: 2850 | AC128: PF07517||_GAP_||PF07516 | AD128: SecA DEAD-like domain||_GAP_||SecA Wing and Scaffold domain | AE128: _GAP_||TIGR00963 | AF128: _GAP_||preprotein translocase, SecA subunit | AG128: IISP | AI128: 2 | AJ128: 0 | AK128: other localisation | AL128: 0.0513 | AM128: 0.0215 | AN128: 0 | AO128: 0.0867 | AQ128: NS | AS128: 17 | AT128: 95 | AU128: 0.8988125968 | AV128: 0.5612141653 | AW128: 0.3402157165 | AX128: 1 | AY128: 1 | AZ128: 19.06133333 | BA128: 16.44 | BB128: 16.775 | BC128: 28.075 | BD128: 16.52 | BE128: 22.815 | BF128: 19.355 | BG128: 10.665 | BH128: 16.17 | BI128: 24.965 | BJ128: 13.465 | BK128: 19.98 | BL128: 19.73 | BM128: 18.985 | BN128: 19.635 | BO128: 22.345 | BP128: 17.56 | BQ128: 15.32 | BR128: 16.82 | BS128: 16.73 | BT128: 25.93 | BU128: 30.22 | BV128: 15 | BW128: 18.04 | BX128: 22.19 | BY128: 23.44 | BZ128: 18.05 | CA128: 20.66 | CB128: 8.18 | CC128: 13.15 | CD128: 16.22 | CE128: 16.12 | CF128: 22.91 | CG128: 27.02 | CH128: 12.33 | CI128: 14.6 | CJ128: 22.07 | CK128: 17.89 | CL128: 19.43 | CM128: 20.03 | CN128: 18.4 | CO128: 19.57 | CP128: 19.17 | CQ128: 20.1 | CR128: 21.34 | CS128: 23.35 | CT128: 0.0492 | CU128: 0.85396027 | CV128: -0.2043 | CW128: 0.24069479 | CX128: -0.4208 | CY128: 0.00278814 | CZ128: -0.6596 | DA128: 1.654e-05 | DB128: -0.2704 | DC128: 0.07188217 | DD128: -0.5349 | DE128: 0.00048077 | DF128: 0.3776 | DG128: 0.15927075 | DH128: 0.0966 | DI128: 0.78391656 | DJ128: -0.1148 | DK128: 0.45487848 | DL128: -0.4019 | DM128: 0.00614773 | DN128: -0.5042 | DO128: 0.00099944 | DP128: -0.7849 | DQ128: 1.06e-06 | DR128: 0.0427 | DS128: 0.91426189 | DT128: -0.2184 | DU128: 0.2115374 | DV128: -0.3272 | DW128: 0.10773593 | DX128: -0.6062 | DY128: 0.00255404 | DZ128: -0.2344 | EA128: 0.16384214 | EB128: -0.5116 | EC128: 0.00256476 | ED128: -0.3969 | EE128: 0.01139389 | EF128: -0.6522 | EG128: 5.099e-05 | EH128: -0.3318 | EI128: 0.07344418 | EJ128: -0.5918 | EK128: 0.00127832 | EL128: -0.4134 | EM128: 0.00766143 | EN128: -0.6926 | EO128: 1.736e-05
A129: Phatr3_J11311 | B129: chr_5 | C129: 952614 | D129: 954413 | E129: + | F129: 1800 | W129: Phatr11311-5Phatr2 | X129: 95 | Y129: Cell surface receptor protein Fragment | Z129: CAM_CRCL_26006434 | AA129: Phaeodactylum tricornutum | AB129: 2850 | AC129: _GAP_||PF03842 | AD129: _GAP_||Silicon transporter | AG129: Sit | AI129: 2 | AJ129: 9 | AK129: other localisation | AL129: 0.0636 | AM129: 0.0241 | AN129: 0 | AO129: 0.2262 | AQ129: NS | AS129: 3 | AU129: 0.5082052168 | AV129: 0.5973688485 | AW129: 0.666222074 | AX129: 1 | AY129: 1 | AZ129: 14.18966667 | BA129: 30.82 | BB129: 13.645 | BC129: 18.15 | BD129: 12.99 | BE129: 11.01 | BF129: 15.365 | BG129: 10.795 | BH129: 8.5 | BI129: 12.225 | BJ129: 10 | BK129: 8.965 | BL129: 12.845 | BM129: 19.99 | BN129: 14.12 | BO129: 13.425 | BP129: 35.09 | BQ129: 26.55 | BR129: 13.44 | BS129: 13.85 | BT129: 13.88 | BU129: 22.42 | BV129: 13.14 | BW129: 12.84 | BX129: 11.37 | BY129: 10.65 | BZ129: 15.58 | CA129: 15.15 | CB129: 12.47 | CC129: 9.12 | CD129: 9.44 | CE129: 7.56 | CF129: 12.92 | CG129: 11.53 | CH129: 9.74 | CI129: 10.26 | CJ129: 8.53 | CK129: 9.4 | CL129: 13.47 | CM129: 12.22 | CN129: 20.11 | CO129: 19.87 | CP129: 14.23 | CQ129: 14.01 | CR129: 15.58 | CS129: 11.27 | CT129: 1.3015 | CU129: 0 | CV129: -0.1608 | CW129: 0.46136427 | CX129: 1.536 | CY129: 0 | CZ129: 0.09 | DA129: 0.74354321 | DB129: 0.9731 | DC129: 0 | DD129: -0.5002 | DE129: 0.00568831 | DF129: 1.2876 | DG129: 1.65e-06 | DH129: -0.2019 | DI129: 0.5624589 | DJ129: 1.7289 | DK129: 0 | DL129: 0.2331 | DM129: 0.30673101 | DN129: 1.43 | DO129: 0 | DP129: -0.059 | DQ129: 0.86239402 | DR129: 1.3734 | DS129: 0 | DT129: -0.0946 | DU129: 0.71887582 | DV129: 1.7399 | DW129: 0 | DX129: 0.2542 | DY129: 0.31284011 | DZ129: 1.2984 | EA129: 0 | EB129: -0.1869 | EC129: 0.43863431 | ED129: 0.4374 | EE129: 0.01376185 | EF129: -1.0254 | EG129: 1e-08 | EH129: 1.0491 | EI129: 1.4e-07 | EJ129: -0.4175 | EK129: 0.0589876 | EL129: 1.2436 | EM129: 0 | EN129: -0.2455 | EO129: 0.31720568
A130: Phatr3_J46116 | B130: chr_9;chr_9 | C130: 306375;306596 | D130: 306482;307453 | E130: +;+ | F130: 966 | G130: pti:PHATRDRAFT_46116 | H130: hypothetical protein | N130: B7G041 | W130: Phatr46116-9Phatr2 | X130: 85 | Y130: Predicted protein | AA130: Phaeodactylum tricornutum | AB130: 2850 | AJ130: 0 | AK130: mitochondrion | AL130: 0.2084 | AM130: 0.0459 | AN130: 0 | AO130: 0.55 | AQ130: NS | AS130: 84 | AU130: 0.6728179408 | AV130: 0.5869764598 | AW130: 0.5089938723 | AX130: 1 | AY130: 1 | AZ130: 211.3123333 | BA130: 196.015 | BB130: 227.295 | BC130: 349.06 | BD130: 125.395 | BE130: 151.29 | BF130: 308.575 | BG130: 173.325 | BH130: 155.31 | BI130: 197.7 | BJ130: 188.575 | BK130: 229.515 | BL130: 179.775 | BM130: 317.325 | BN130: 195.435 | BO130: 175.095 | BP130: 183.43 | BQ130: 208.6 | BR130: 251.06 | BS130: 203.53 | BT130: 369.34 | BU130: 328.78 | BV130: 119.97 | BW130: 130.82 | BX130: 150.54 | BY130: 152.04 | BZ130: 311.35 | CA130: 305.8 | CB130: 141.01 | CC130: 205.64 | CD130: 151.27 | CE130: 159.35 | CF130: 208.71 | CG130: 186.69 | CH130: 191.55 | CI130: 185.6 | CJ130: 242.39 | CK130: 216.64 | CL130: 197.59 | CM130: 161.96 | CN130: 350.31 | CO130: 284.34 | CP130: 185.69 | CQ130: 205.18 | CR130: 193.55 | CS130: 156.64 | CT130: 0.6954 | CU130: 4e-07 | CV130: 0.6332 | CW130: 0.00031381 | CX130: 0.4213 | CY130: 0.00295863 | CZ130: 0.3739 | DA130: 0.0396359 | DB130: -0.6934 | DC130: 1.8e-07 | DD130: -0.7647 | DE130: 6.2e-07 | DF130: -0.0571 | DG130: 0.90282404 | DH130: -0.1511 | DI130: 0.62146923 | DJ130: 0.1915 | DK130: 0.16949513 | DL130: 0.0966 | DM130: 0.64377124 | DN130: 0.0815 | DO130: 0.63373772 | DP130: -0.0083 | DQ130: 1 | DR130: -0.2021 | DS130: 0.14712689 | DT130: -0.2703 | DU130: 0.11580823 | DV130: -0.2742 | DW130: 0.1655127 | DX130: -0.3638 | DY130: 0.10574753 | DZ130: 0.1551 | EA130: 0.36792724 | EB130: 0.067 | EC130: 0.81402812 | ED130: -0.8837 | EE130: 0 | EF130: -0.9483 | EG130: 1.6e-07 | EH130: -0.0725 | EI130: 0.7747966 | EJ130: -0.1436 | EK130: 0.56319844 | EL130: 0.1955 | EM130: 0.24750875 | EN130: 0.1042 | EO130: 0.66911799
A131: Phatr3_J44570 | B131: chr_4 | C131: 936559 | D131: 938298 | E131: - | F131: 1740 | G131: pti:PHATRDRAFT_44570 | H131: hypothetical protein | N131: B7FUJ3 | O131: KOG0627 | P131: Heat shock transcription factor | Q131: Transcription | R131: INFORMATION STORAGE AND PROCESSING | W131: Phatr44570-4Phatr2 | X131: 78 | Y131: Predicted protein Fragment | AA131: Phaeodactylum tricornutum | AB131: 2850 | AC131: _GAP_||PF00447||_GAP_ | AD131: _GAP_||HSF-type DNA-binding||_GAP_ | AJ131: 0 | AK131: other localisation | AL131: 0.0937 | AM131: 0.0292 | AN131: 0 | AO131: 0.1323 | AQ131: NS | AS131: 190 | AT131: 7 | AU131: =(BC131-BG131)/AVERAGE(BC131,BG131) -> 0.5998169695 | AV131: =(BM131-BG131)/(AVERAGE(BG131,BM131)) -> 0.6850021487 | AW131: =(BM131-BJ131)/AVERAGE(BM131,BJ131) -> 0.422912858 | AX131: =IF(BC131>BB131,1,0) -> 1 | AY131: =IF(AZ131>5,1,0) -> 1 | AZ131: =AVERAGE(BA131:BO131) -> 49.425 | BA131: =AVERAGE(BP131:BQ131) -> 50.835 | BB131: =AVERAGE(BR131:BS131) -> 45.855 | BC131: =AVERAGE(BT131:BU131) -> 49.715 | BD131: =AVERAGE(BV131:BW131) -> 54.1 | BE131: =AVERAGE(BX131:BY131) -> 46.85 | BF131: =AVERAGE(BZ131:CA131) -> 66.905 | BG131: =AVERAGE(CB131:CC131) -> 26.775 | BH131: =AVERAGE(CD131:CE131) -> 30.62 | BI131: =AVERAGE(CF131:CG131) -> 56.46 | BJ131: =AVERAGE(CH131:CI131) -> 35.585 | BK131: =AVERAGE(CJ131:CK131) -> 43.785 | BL131: =AVERAGE(CL131:CM131) -> 63.195 | BM131: =AVERAGE(CN131:CO131) -> 54.67 | BN131: =AVERAGE(CP131:CQ131) -> 56.665 | BO131: =AVERAGE(CR131:CS131) -> 59.36 | BP131: 54.61 | BQ131: 47.06 | BR131: 43.88 | BS131: 47.83 | BT131: 49.1 | BU131: 50.33 | BV131: 50.5 | BW131: 57.7 | BX131: 46.32 | BY131: 47.38 | BZ131: 63.91 | CA131: 69.9 | CB131: 29.12 | CC131: 24.43 | CD131: 29.88 | CE131: 31.36 | CF131: 59.84 | CG131: 53.08 | CH131: 35.12 | CI131: 36.05 | CJ131: 39.22 | CK131: 48.35 | CL131: 63.6 | CM131: 62.79 | CN131: 52.2 | CO131: 57.14 | CP131: 59.4 | CQ131: 53.93 | CR131: 53.48 | CS131: 65.24 | CT131: -0.0355 | CU131: 0.87307411 | CV131: -0.473 | CW131: 0.00121879 | CX131: 0.1678 | CY131: 0.25840938 | CZ131: -0.2543 | DA131: 0.10422817 | DB131: -0.4317 | DC131: 0.00129701 | DD131: -0.8776 | DE131: 0 | DF131: 0.6903 | DG131: 0.00145277 | DH131: 0.2268 | DI131: 0.37543667 | DJ131: 0.5895 | DK131: 4.4e-06 | DL131: 0.119 | DM131: 0.44159641 | DN131: -0.0558 | DO131: 0.76541675 | DP131: -0.5197 | DQ131: 0.00056552 | DR131: 0.2611 | DS131: 0.06148296 | DT131: -0.1827 | DU131: 0.23984333 | DV131: 0.1742 | DW131: 0.38441854 | DX131: -0.2869 | DY131: 0.13259914 | DZ131: -0.2845 | EA131: 0.04660562 | EB131: -0.7451 | EC131: 6.6e-07 | ED131: -0.2967 | EE131: 0.04940623 | EF131: -0.7345 | EG131: 2.24e-06 | EH131: -0.2365 | EI131: 0.20872683 | EJ131: -0.6784 | EK131: 0.00020141 | EL131: -0.1977 | EM131: 0.24659421 | EN131: -0.6587 | EO131: 7.861e-05
A132: Phatr3_J46656 | B132: chr_11 | C132: 104142 | D132: 105797 | E132: + | F132: 1656 | G132: pti:PHATR_46656 | H132: hypothetical protein; K03241 translation initiation factor eIF-2B subunit gamma | I132: pti03013 | J132: K03241 | K132: translation initiation factor eIF-2B subunit gamma | L132: RNA transport | N132: B5Y3C7 | O132: KOG1462 | P132: Translation initiation factor 2B, gamma subunit (eIF-2Bgamma/GCD1) | Q132: Translation, ribosomal structure and biogenesis | R132: INFORMATION STORAGE AND PROCESSING | W132: Phatr46656-11Phatr2 | X132: 94 | Y132: Predicted protein | Z132: CAM_CRCL_4011839 | AA132: Phaeodactylum tricornutum | AB132: 2850 | AC132: _GAP_||PF12804||_GAP_||PF00132||_GAP_ | AD132: _GAP_||PF12804||_GAP_||Bacterial transferase hexapeptide (three repeats)||_GAP_ | AJ132: 0 | AK132: other localisation | AL132: 0.2072 | AM132: 0.0453 | AN132: 0 | AO132: 0.4469 | AQ132: NS | AS132: 78 | AT132: 17 | AU132: 0.7247831386 | AV132: 0.6203366168 | AW132: 0.2494174046 | AX132: 1 | AY132: 1 | AZ132: 34.70933333 | BA132: 35.31 | BB132: 44.63 | BC132: 47.51 | BD132: 34.055 | BE132: 27.97 | BF132: 31.705 | BG132: 22.235 | BH132: 31.355 | BI132: 31.09 | BJ132: 32.865 | BK132: 33.765 | BL132: 34.315 | BM132: 42.23 | BN132: 40.84 | BO132: 30.765 | BP132: 34.39 | BQ132: 36.23 | BR132: 43.64 | BS132: 45.62 | BT132: 48.78 | BU132: 46.24 | BV132: 34.09 | BW132: 34.02 | BX132: 27.84 | BY132: 28.1 | BZ132: 31.04 | CA132: 32.37 | CB132: 23.63 | CC132: 20.84 | CD132: 30.01 | CE132: 32.7 | CF132: 31.21 | CG132: 30.97 | CH132: 34.81 | CI132: 30.92 | CJ132: 34.82 | CK132: 32.71 | CL132: 32.06 | CM132: 36.57 | CN132: 43.61 | CO132: 40.85 | CP132: 36.17 | CQ132: 45.51 | CR132: 29.47 | CS132: 32.06 | CT132: 0.0997 | CU132: 0.53888607 | CV132: 0.1562 | CW132: 0.34577538 | CX132: 0.3814 | CY132: 0.00691912 | CZ132: 0.4534 | DA132: 0.00304725 | DB132: 0.1142 | DC132: 0.44848978 | DD132: 0.1627 | DE132: 0.2937328 | DF132: 0.4318 | DG132: 0.06232831 | DH132: 0.4577 | DI132: 0.04954402 | DJ132: 0.0231 | DK132: 0.93020117 | DL132: 0.0476 | DM132: 0.81064436 | DN132: 0.2751 | DO132: 0.05678566 | DP132: 0.3049 | DQ132: 0.05158912 | DR132: -0.1615 | DS132: 0.33601266 | DT132: -0.1107 | DU132: 0.54582393 | DV132: 0.0173 | DW132: 1 | DX132: 0.0473 | DY132: 0.88455217 | DZ132: 0.0617 | EA132: 0.76895129 | EB132: 0.0947 | EC132: 0.64936302 | ED132: -0.4523 | EE132: 0.0014985 | EF132: -0.3968 | EG132: 0.00850744 | EH132: -0.2844 | EI132: 0.14757061 | EJ132: -0.2363 | EK132: 0.24934645 | EL132: 0.2222 | EM132: 0.16176159 | EN132: 0.253 | EO132: 0.13829333
A133: Phatr3_J12379 | B133: chr_8;chr_8 | C133: 485797;486272 | D133: 486210;486649 | E133: -;- | F133: 792 | G133: pti:PHATRDRAFT_12379 | H133: hypothetical protein; K13348 protein Mpv17 | I133: pti04146 | J133: K13348 | K133: protein Mpv17 | L133: Peroxisome | N133: B7FYY0 | O133: KOG1944 | P133: Peroxisomal membrane protein MPV17 and related proteins | Q133: General function prediction only | R133: POORLY CHARACTERIZED | W133: Phatr12379-8Phatr2 | X133: 100 | Y133: Predicted protein Fragment | Z133: CAM_CRCL_4785657 | AA133: Phaeodactylum tricornutum | AB133: 2850 | AC133: _GAP_||PF04117 | AD133: _GAP_||Mpv17 / PMP22 family | AJ133: 3 | AK133: chloroplast | AL133: 0.8251 | AM133: 0.0479 | AN133: 0.854 | AO133: 0 | AQ133: NS | AS133: 34 | AT133: 9 | AU133: 0.4378063613 | AV133: 0.7309566402 | AW133: 0.4256187633 | AX133: 1 | AY133: 1 | AZ133: 318.2226667 | BA133: 172.66 | BB133: 169.955 | BC133: 330.725 | BD133: 477.7 | BE133: 484.395 | BF133: 157.465 | BG133: 211.935 | BH133: 375.63 | BI133: 260.04 | BJ133: 296.025 | BK133: 371.97 | BL133: 186.105 | BM133: 456.08 | BN133: 613.97 | BO133: 208.685 | BP133: 172.21 | BQ133: 173.11 | BR133: 186.86 | BS133: 153.05 | BT133: 295.27 | BU133: 366.18 | BV133: 455.67 | BW133: 499.73 | BX133: 435.8 | BY133: 532.99 | BZ133: 162.74 | CA133: 152.19 | CB133: 227.52 | CC133: 196.35 | CD133: 376.45 | CE133: 374.81 | CF133: 235.3 | CG133: 284.78 | CH133: 284.36 | CI133: 307.69 | CJ133: 400.7 | CK133: 343.24 | CL133: 165.08 | CM133: 207.13 | CN133: 431.15 | CO133: 481.01 | CP133: 614.04 | CQ133: 613.9 | CR133: 191.94 | CS133: 225.43 | CT133: -1.4169 | CU133: 0 | CV133: -1.7143 | CW133: 0 | CX133: -1.4416 | CY133: 0 | CZ133: -1.7247 | DA133: 0 | DB133: 0.0951 | DC133: 0.52689124 | DD133: -0.2113 | DE133: 0.19947845 | DF133: -0.5365 | DG133: 0.00991034 | DH133: -0.8665 | DI133: 0.00018672 | DJ133: -1.2653 | DK133: 0 | DL133: -1.5956 | DM133: 0 | DN133: -0.4975 | DO133: 0.00071701 | DP133: -0.8223 | DQ133: 3.6e-06 | DR133: -1.0327 | DS133: 0 | DT133: -1.3367 | DU133: 0 | DV133: -1.1549 | DW133: 0 | DX133: -1.4798 | DY133: 0 | DZ133: -0.0851 | EA133: 0.67268998 | EB133: -0.4057 | EC133: 0.03848308 | ED133: -1.5962 | EE133: 0 | EF133: -1.8961 | EG133: 0 | EH133: -1.9087 | EI133: 0 | EJ133: -2.2146 | EK133: 0 | EL133: -0.2474 | EM133: 0.11690412 | EN133: -0.5704 | EO133: 0.00197946
A134: Phatr3_J14327 | B134: chr_14 | C134: 624883 | D134: 625872 | E134: - | F134: 990 | G134: pti:PHATRDRAFT_14327 | H134: hypothetical protein | N134: B7G4N2 | O134: KOG1605 | P134: TFIIF-interacting CTD phosphatase, including NLI-interacting factor (involved in RNA polymerase II regulation) | Q134: Transcription | R134: INFORMATION STORAGE AND PROCESSING | W134: Phatr14327-14Phatr2 | X134: 93 | Y134: Predicted protein Fragment | Z134: CAM_CRCL_5042132 | AA134: Phaeodactylum tricornutum | AB134: 2850 | AC134: _GAP_||PF03031||_GAP_ | AD134: _GAP_||NLI interacting factor-like phosphatase||_GAP_ | AJ134: 0 | AK134: mitochondrion | AL134: 0.0967 | AM134: 0.0303 | AN134: 0 | AO134: 0.7454 | AQ134: NS | AS134: 143 | AU134: 0.5196548418 | AV134: 0.6589285009 | AW134: 0.3894131839 | AX134: 1 | AY134: 1 | AZ134: 45.15866667 | BA134: 26.755 | BB134: 19.595 | BC134: 72.27 | BD134: 29.535 | BE134: 36.345 | BF134: 75.345 | BG134: 42.46 | BH134: 23.645 | BI134: 41.29 | BJ134: 56.745 | BK134: 23.895 | BL134: 50.55 | BM134: 84.185 | BN134: 51.87 | BO134: 42.895 | BP134: 28.23 | BQ134: 25.28 | BR134: 20 | BS134: 19.19 | BT134: 62.33 | BU134: 82.21 | BV134: 25.3 | BW134: 33.77 | BX134: 35.49 | BY134: 37.2 | BZ134: 68.9 | CA134: 81.79 | CB134: 41.98 | CC134: 42.94 | CD134: 20.5 | CE134: 26.79 | CF134: 39.89 | CG134: 42.69 | CH134: 62.98 | CI134: 50.51 | CJ134: 20.98 | CK134: 26.81 | CL134: 58.88 | CM134: 42.22 | CN134: 97.02 | CO134: 71.35 | CP134: 49.26 | CQ134: 54.48 | CR134: 44.52 | CS134: 41.27 | CT134: -0.0856 | CU134: 0.7329743 | CV134: -0.812 | CW134: 8.583e-05 | CX134: -0.3888 | CY134: 0.0164466 | CZ134: -1.0997 | DA134: 0 | DB134: -1.5272 | DC134: 0 | DD134: -2.2661 | DE134: 0 | DF134: -0.9017 | DG134: 5.532e-05 | DH134: -1.6593 | DI134: 0 | DJ134: 0.0307 | DK134: 0.93727622 | DL134: -0.7274 | DM134: 0.00028856 | DN134: -0.5261 | DO134: 0.00104254 | DP134: -1.2803 | DQ134: 0 | DR134: -1.3457 | DS134: 0 | DT134: -2.078 | DU134: 0 | DV134: 0.1231 | DW134: 0.65553433 | DX134: -0.63 | DY134: 0.00729355 | DZ134: -0.8785 | EA134: 8.51e-06 | EB134: -1.6318 | EC134: 0 | ED134: -1.8382 | EE134: 0 | EF134: -2.5661 | EG134: 0 | EH134: -1.0275 | EI134: 2e-08 | EJ134: -1.7615 | EK134: 0 | EL134: -0.6453 | EM134: 7.566e-05 | EN134: -1.3989 | EO134: 0
A135: Phatr3_J22819 | B135: chr_19 | C135: 543412 | D135: 544125 | E135: + | F135: 714 | G135: pti:PHATRDRAFT_22819 | H135: hypothetical protein; K13348 protein Mpv17 | I135: pti04146 | J135: K13348 | K135: protein Mpv17 | L135: Peroxisome | N135: B7G8P1 | O135: KOG1944 | P135: Peroxisomal membrane protein MPV17 and related proteins | Q135: General function prediction only | R135: POORLY CHARACTERIZED | W135: Phatr22819-19Phatr2 | X135: 100 | Y135: Predicted protein | Z135: CAM_CRCL_33538591 | AA135: Phaeodactylum tricornutum | AB135: 2850 | AC135: _GAP_||PF04117 | AD135: _GAP_||Mpv17 / PMP22 family | AJ135: 0 | AK135: other localisation | AL135: 0.0668 | AM135: 0.0256 | AN135: 0 | AO135: 0.1176 | AQ135: NS | AS135: 101 | AT135: 21 | AU135: 0.7224750211 | AV135: 0.5025187554 | AW135: 0.3092160658 | AX135: 1 | AY135: 1 | AZ135: 469.334 | BA135: 301.335 | BB135: 421.785 | BC135: 848.085 | BD135: 632.9 | BE135: 412.575 | BF135: 376.685 | BG135: 397.965 | BH135: 505.395 | BI135: 295.735 | BJ135: 486.95 | BK135: 459.9 | BL135: 355.08 | BM135: 665.06 | BN135: 570.805 | BO135: 309.755 | BP135: 288.39 | BQ135: 314.28 | BR135: 438.24 | BS135: 405.33 | BT135: 776.42 | BU135: 919.75 | BV135: 621.55 | BW135: 644.25 | BX135: 399.85 | BY135: 425.3 | BZ135: 381.58 | CA135: 371.79 | CB135: 359.45 | CC135: 436.48 | CD135: 478.16 | CE135: 532.63 | CF135: 277.8 | CG135: 313.67 | CH135: 494.03 | CI135: 479.87 | CJ135: 440.68 | CK135: 479.12 | CL135: 318.56 | CM135: 391.6 | CN135: 665.69 | CO135: 664.43 | CP135: 499.35 | CQ135: 642.26 | CR135: 317.58 | CS135: 301.93 | CT135: -1.0199 | CU135: 0 | CV135: -0.8155 | CW135: 2.2e-07 | CX135: -0.4057 | CY135: 0.00352719 | CZ135: -0.1862 | DA135: 0.29170837 | DB135: -0.3604 | DC135: 0.00639574 | DD135: -0.1631 | DE135: 0.29529519 | DF135: -0.6377 | DG135: 0.00170324 | DH135: -0.4631 | DI135: 0.03948771 | DJ135: -0.8897 | DK135: 0 | DL135: -0.7177 | DM135: 5.16e-06 | DN135: 0.1207 | DO135: 0.45342141 | DP135: 0.2987 | DQ135: 0.07669429 | DR135: -0.9497 | DS135: 0 | DT135: -0.7509 | DU135: 3.2e-07 | DV135: -0.6534 | DW135: 0.00017473 | DX135: -0.475 | DY135: 0.01853275 | DZ135: -0.2118 | EA135: 0.20507659 | EB135: -0.0306 | EC135: 0.94974022 | ED135: -1.3347 | EE135: 0 | EF135: -1.1316 | EG135: 0 | EH135: -0.9974 | EI135: 2e-07 | EJ135: -0.8009 | EK135: 0.00019703 | EL135: -0.0099 | EM135: 1 | EN135: 0.168 | EO135: 0.36167886
A136: Phatr3_J55230 | B136: chr_33;chr_33;chr_33 | C136: 41743;43903;44310 | D136: 43808;43963;44312 | E136: -;-;- | F136: 2130 | G136: pti:PHATRDRAFT_55230 | H136: hypothetical protein; K04079 molecular chaperone HtpG | I136: pti04141 | J136: K04079 | K136: molecular chaperone HtpG | L136: Protein processing in endoplasmic reticulum || PI3K-Akt signaling pathway || Antigen processing and presentation || NOD-like receptor signaling pathway || Plant-pathogen interaction || Progesterone-mediated oocyte maturation || Estrogen signaling pathway || Pathways in cancer || Prostate cancer | N136: B7GES3 | O136: KOG0019 | P136: Molecular chaperone (HSP90 family) | Q136: Posttranslational modification, protein turnover, chaperones | R136: CELLULAR PROCESSES AND SIGNALING | W136: Phatr55230-33Phatr2 | X136: 81 | Y136: Predicted protein | Z136: CAM_CRCL_32342087 | AA136: Phaeodactylum tricornutum | AB136: 2850 | AC136: PF02518||PF00183 | AD136: Histidine kinase-, DNA gyrase B-, and HSP90-like ATPase||Hsp90 protein | AJ136: 0 | AK136: other localisation | AL136: 0.0668 | AM136: 0.024 | AN136: 0 | AO136: 0.1072 | AQ136: NS | AS136: 78 | AT136: 89 | AU136: 0.6190600546 | AV136: 0.6770267783 | AW136: 0.2341418694 | AX136: 1 | AY136: 1 | AZ136: 631.8733333 | BA136: 969.62 | BB136: 321.94 | BC136: 1090.665 | BD136: 579.885 | BE136: 685.07 | BF136: 432.135 | BG136: 575.07 | BH136: 693.06 | BI136: 328.645 | BJ136: 919.745 | BK136: 528.615 | BL136: 361.445 | BM136: 1163.65 | BN136: 486.685 | BO136: 341.87 | BP136: 1044.71 | BQ136: 894.53 | BR136: 396.24 | BS136: 247.64 | BT136: 1276.08 | BU136: 905.25 | BV136: 578.76 | BW136: 581.01 | BX136: 643.55 | BY136: 726.59 | BZ136: 438.55 | CA136: 425.72 | CB136: 473.71 | CC136: 676.43 | CD136: 698.74 | CE136: 687.38 | CF136: 338.14 | CG136: 319.15 | CH136: 955.19 | CI136: 884.3 | CJ136: 605.3 | CK136: 451.93 | CL136: 322.61 | CM136: 400.28 | CN136: 1140.86 | CO136: 1186.44 | CP136: 500.44 | CQ136: 472.93 | CR136: 315.5 | CS136: 368.24 | CT136: 0.7909 | CU136: 0 | CV136: -1.0717 | CW136: 2.7e-06 | CX136: 0.5465 | CY136: 9.551e-05 | CZ136: -1.3001 | DA136: 2e-08 | DB136: 1.1274 | DC136: 0 | DD136: -0.7491 | DE136: 0.00032799 | DF136: 0.5193 | DG136: 0.02075626 | DH136: -1.3744 | DI136: 1.38e-06 | DJ136: 0.3395 | DK136: 0.00839867 | DL136: -1.556 | DM136: 0 | DN136: 1.6538 | DO136: 0 | DP136: -0.2368 | DQ136: 0.34411081 | DR136: -0.1821 | DS136: 0.16897118 | DT136: -2.0518 | DU136: 0 | DV136: 0.8237 | DW136: 7.801e-05 | DX136: -1.0647 | DY136: 0.00014332 | DZ136: 1.4481 | EA136: 0 | EB136: -0.4382 | EC136: 0.07714547 | ED136: -0.4582 | EE136: 0.00089286 | EF136: -2.3228 | EG136: 0 | EH136: 0.9141 | EI136: 3.8e-07 | EJ136: -0.9552 | EK136: 0.0002511 | EL136: 1.5301 | EM136: 0 | EN136: -0.3582 | EO136: 0.15433249
A137: Phatr3_J49613 | B137: chr_23 | C137: 204690 | D137: 205172 | E137: + | F137: 483 | G137: pti:PHATRDRAFT_49613 | H137: hypothetical protein | N137: B7GB79 | W137: Phatr49613-23Phatr2 | X137: 86 | Y137: Predicted protein | AA137: Phaeodactylum tricornutum | AB137: 2850 | AJ137: 0 | AK137: other localisation | AL137: 0.0629 | AM137: 0.0243 | AN137: 0 | AO137: 0.1368 | AQ137: NS | AS137: 102 | AU137: 0.8409388361 | AV137: 0.3277945619 | AW137: 0.3395748988 | AX137: 1 | AY137: 1 | AZ137: 18.14733333 | BA137: 12.31 | BB137: 16.4 | BC137: 40.7 | BD137: 17.72 | BE137: 17.65 | BF137: 6.71 | BG137: 16.605 | BH137: 13.93 | BI137: 4.63 | BJ137: 16.405 | BK137: 25.01 | BL137: 6.59 | BM137: 23.115 | BN137: 49.535 | BO137: 4.9 | BP137: 13.16 | BQ137: 11.46 | BR137: 21.69 | BS137: 11.11 | BT137: 47.66 | BU137: 33.74 | BV137: 18.93 | BW137: 16.51 | BX137: 15.46 | BY137: 19.84 | BZ137: 7.24 | CA137: 6.18 | CB137: 24.5 | CC137: 8.71 | CD137: 10.42 | CE137: 17.44 | CF137: 7.39 | CG137: 1.87 | CH137: 13.44 | CI137: 19.37 | CJ137: 15.49 | CK137: 34.53 | CL137: 5.27 | CM137: 7.91 | CN137: 22.16 | CO137: 24.07 | CP137: 36.26 | CQ137: 62.81 | CR137: 4.9 | CS137: 4.9 | CT137: -0.4657 | CU137: 0.10225373 | CV137: -0.2887 | CW137: 0.46744142 | CX137: -0.4543 | CY137: 0.10619715 | CZ137: -0.2646 | DA137: 0.50088393 | DB137: 0.8546 | DC137: 0.00390519 | DD137: 1.0125 | DE137: 0.01059142 | DF137: -0.6454 | DG137: 0.24191133 | DH137: -0.5265 | DI137: 0.41537571 | DJ137: -0.3337 | DK137: 0.33571082 | DL137: -0.182 | DM137: 0.68782603 | DN137: 1.4745 | DO137: 0.00634933 | DP137: 1.6097 | DQ137: 0.00809522 | DR137: -0.6368 | DS137: 0.03842855 | DT137: -0.4793 | DU137: 0.22813913 | DV137: -1.0526 | DW137: 0.00778719 | DX137: -0.9094 | DY137: 0.05178593 | DZ137: 0.8873 | EA137: 0.00902771 | EB137: 1.0517 | EC137: 0.02006731 | ED137: -1.0888 | EE137: 4.954e-05 | EF137: -0.9146 | EG137: 0.01008196 | EH137: -2.0649 | EI137: 0 | EJ137: -1.8987 | EK137: 3.6e-07 | EL137: 1.362 | EM137: 1.44e-05 | EN137: 1.5118 | EO137: 0.00034436
A138: Phatr3_J43237 | B138: chr_1 | C138: 2412805 | D138: 2413428 | E138: - | F138: 624 | G138: pti:PHATRDRAFT_43237 | H138: hypothetical protein | N138: B7FR33 | W138: Phatr43237-1Phatr2 | X138: 94 | Y138: Predicted protein | AA138: Phaeodactylum tricornutum | AB138: 2850 | AJ138: 0 | AK138: other localisation | AL138: 0.0648 | AM138: 0.0244 | AN138: 0 | AO138: 0.0946 | AQ138: NS | AS138: 102 | AU138: 0.6707433594 | AV138: 0.5701952724 | AW138: 0.2294731212 | AX138: 1 | AY138: 1 | AZ138: 20.14966667 | BA138: 26.975 | BB138: 16.875 | BC138: 34.94 | BD138: 19.88 | BE138: 12.96 | BF138: 4.865 | BG138: 17.39 | BH138: 29.39 | BI138: 8.29 | BJ138: 24.825 | BK138: 33.16 | BL138: 6.66 | BM138: 31.26 | BN138: 28.86 | BO138: 5.915 | BP138: 23.51 | BQ138: 30.44 | BR138: 19.81 | BS138: 13.94 | BT138: 40.14 | BU138: 29.74 | BV138: 19.11 | BW138: 20.65 | BX138: 12.41 | BY138: 13.51 | BZ138: 5.28 | CA138: 4.45 | CB138: 15.56 | CC138: 19.22 | CD138: 26.59 | CE138: 32.19 | CF138: 6.7 | CG138: 9.88 | CH138: 26.78 | CI138: 22.87 | CJ138: 31.01 | CK138: 35.31 | CL138: 4.41 | CM138: 8.91 | CN138: 30.58 | CO138: 31.94 | CP138: 28.98 | CQ138: 28.74 | CR138: 4.49 | CS138: 7.34 | CT138: 0.4787 | CU138: 0.0510637 | CV138: -0.4268 | CW138: 0.13431033 | CX138: 1.0952 | CY138: 1.001e-05 | CZ138: 0.2041 | DA138: 0.59857984 | DB138: 2.4264 | DC138: 0 | DD138: 1.501 | DE138: 2.07e-06 | DF138: 0.3805 | DG138: 0.29810365 | DH138: -0.5703 | DI138: 0.14003415 | DJ138: -0.2864 | DK138: 0.23821072 | DL138: -1.2182 | DM138: 5.4e-07 | DN138: 1.8014 | DO138: 0 | DP138: 0.8523 | DQ138: 0.01523306 | DR138: -0.1579 | DS138: 0.6359295 | DT138: -1.0714 | DU138: 9.589e-05 | DV138: -0.353 | DW138: 0.18706577 | DX138: -1.286 | DY138: 2.35e-06 | DZ138: 1.9882 | EA138: 2e-08 | EB138: 1.0425 | EC138: 0.01136976 | ED138: -0.4167 | EE138: 0.09165553 | EF138: -1.3241 | EG138: 3.5e-07 | EH138: -0.1879 | EI138: 0.54219977 | EJ138: -1.1035 | EK138: 6.216e-05 | EL138: 2.1705 | EM138: 0 | EN138: 1.2289 | EO138: 0.00082183
A139: Phatr3_J44700 | B139: chr_4 | C139: 1317287 | D139: 1318240 | E139: - | F139: 954 | G139: pti:PHATRDRAFT_44700 | H139: hypothetical protein | N139: B7FUZ2 | W139: Phatr44700-4Phatr2 | X139: 81 | Y139: Predicted protein | AA139: Phaeodactylum tricornutum | AB139: 2850 | AJ139: 0 | AK139: other localisation | AL139: 0.0648 | AM139: 0.0245 | AN139: 0 | AO139: 0.1094 | AQ139: NS | AS139: 188 | AT139: 26 | AU139: 0.8275120903 | AV139: 0.4084609774 | AW139: 0.2328412037 | AX139: 1 | AY139: 1 | AZ139: 25.89333333 | BA139: 19.795 | BB139: 11.54 | BC139: 39.465 | BD139: 11.445 | BE139: 19.23 | BF139: 31.585 | BG139: 16.365 | BH139: 12.085 | BI139: 47.12 | BJ139: 19.6 | BK139: 12.43 | BL139: 54.67 | BM139: 24.765 | BN139: 20.1 | BO139: 48.205 | BP139: 21.53 | BQ139: 18.06 | BR139: 10.92 | BS139: 12.16 | BT139: 42.91 | BU139: 36.02 | BV139: 12.92 | BW139: 9.97 | BX139: 18.37 | BY139: 20.09 | BZ139: 35.61 | CA139: 27.56 | CB139: 16.85 | CC139: 15.88 | CD139: 10.63 | CE139: 13.54 | CF139: 46.47 | CG139: 47.77 | CH139: 18.96 | CI139: 20.24 | CJ139: 13.12 | CK139: 11.74 | CL139: 59.39 | CM139: 49.95 | CN139: 26.44 | CO139: 23.09 | CP139: 22.82 | CQ139: 17.38 | CR139: 47.57 | CS139: 48.84 | CT139: 0.8434 | CU139: 0.00040691 | CV139: -0.2315 | CW139: 0.47200162 | CX139: 0.1 | CY139: 0.72824074 | CZ139: -0.9625 | DA139: 1.569e-05 | DB139: -0.6999 | DC139: 0.00031832 | DD139: -1.788 | DE139: 0 | DF139: 0.0445 | DG139: 1 | DH139: -1.0564 | DI139: 0.00091826 | DJ139: 0.5644 | DK139: 0.00864102 | DL139: -0.5421 | DM139: 0.02602841 | DN139: -1.1463 | DO139: 0 | DP139: -2.2551 | DQ139: 0 | DR139: -0.2316 | DS139: 0.28968036 | DT139: -1.3152 | DU139: 1e-08 | DV139: 0.6318 | DW139: 0.01231107 | DX139: -0.4675 | DY139: 0.09716407 | DZ139: -1.4246 | EA139: 0 | EB139: -2.5275 | EC139: 0 | ED139: -0.5071 | EE139: 0.01242645 | EF139: -1.5851 | EG139: 0 | EH139: -0.1079 | EI139: 0.75433471 | EJ139: -1.1856 | EK139: 1.054e-05 | EL139: -1.2467 | EM139: 0 | EN139: -2.3527 | EO139: 0
A140: Phatr3_J45050 | B140: chr_6 | C140: 58206 | D140: 59756 | E140: + | F140: 1551 | G140: pti:PHATRDRAFT_45050 | H140: hypothetical protein | N140: B7FWB0 | W140: Phatr45050-6Phatr2 | X140: 97 | Y140: Predicted protein | Z140: CAM_CRCL_6074446 | AA140: Phaeodactylum tricornutum | AB140: 2850 | AC140: _GAP_||PF13637||_GAP_ | AD140: _GAP_||PF13637||_GAP_ | AJ140: 0 | AK140: other localisation | AL140: 0.0611 | AM140: 0.023 | AN140: 0 | AO140: 0.1015 | AQ140: NS | AS140: 89 | AU140: 0.4118993135 | AV140: 0.6138603453 | AW140: 0.4284598105 | AX140: 1 | AY140: 1 | AZ140: 94.42833333 | BA140: 120.795 | BB140: 75.32 | BC140: 100.13 | BD140: 95.525 | BE140: 84.145 | BF140: 66.7 | BG140: 65.93 | BH140: 93.87 | BI140: 76.045 | BJ140: 80.455 | BK140: 115.31 | BL140: 85.26 | BM140: 124.325 | BN140: 167.85 | BO140: 64.765 | BP140: 118.97 | BQ140: 122.62 | BR140: 75.67 | BS140: 74.97 | BT140: 79.61 | BU140: 120.65 | BV140: 89.27 | BW140: 101.78 | BX140: 84.54 | BY140: 83.75 | BZ140: 62.72 | CA140: 70.68 | CB140: 72.57 | CC140: 59.29 | CD140: 87.98 | CE140: 99.76 | CF140: 76.84 | CG140: 75.25 | CH140: 72.92 | CI140: 87.99 | CJ140: 124.26 | CK140: 106.36 | CL140: 79.44 | CM140: 91.08 | CN140: 126.37 | CO140: 122.28 | CP140: 167.57 | CQ140: 168.13 | CR140: 64.51 | CS140: 65.02 | CT140: 0.3903 | CU140: 0.00354771 | CV140: -0.5723 | CW140: 0.00020033 | CX140: 0.5691 | CY140: 1.423e-05 | CZ140: -0.3784 | DA140: 0.01371169 | DB140: 0.8177 | DC140: 0 | DD140: -0.1531 | DE140: 0.32985771 | DF140: 0.6341 | DG140: 0.00324441 | DH140: -0.3588 | DI140: 0.11712823 | DJ140: 0.2194 | DK140: 0.09893557 | DL140: -0.7757 | DM140: 2.6e-07 | DN140: 0.7613 | DO140: 0 | DP140: -0.228 | DQ140: 0.14374921 | DR140: 0.3353 | DS140: 0.01128128 | DT140: -0.635 | DU140: 2.347e-05 | DV140: 0.0196 | DW140: 1 | DX140: -0.9697 | DY140: 1.18e-06 | DZ140: 0.5268 | EA140: 0.00021425 | EB140: -0.459 | EC140: 0.00508724 | ED140: -0.2337 | EE140: 0.09397709 | EF140: -1.1978 | EG140: 0 | EH140: -0.5529 | EI140: 0.00160137 | EJ140: -1.5233 | EK140: 0 | EL140: 0.9277 | EM140: 0 | EN140: -0.0611 | EO140: 0.76952799
A141: Phatr3_EG01120 | B141: chr_9;chr_9 | C141: 762324;762543 | D141: 762472;762660 | E141: -;- | F141: 267 | W141: contig_25204_107_599-NitzIllumina | X141: 69 | AB141: -25000 | AC141: PF00111 | AD141: 2Fe-2S iron-sulfur cluster binding domain | AJ141: 0 | AK141: other localisation | AL141: 0.1076 | AM141: 0.0314 | AN141: 0 | AO141: 0.1411 | AQ141: NS | AS141: 83 | AT141: 41 | AU141: 0.730946116 | AV141: 0.358713343 | AW141: 0.3497435293 | AX141: 1 | AY141: 1 | AZ141: 75.79566667 | BA141: 86.885 | BB141: 99.89 | BC141: 149.195 | BD141: 28.69 | BE141: 35.645 | BF141: 66.04 | BG141: 69.33 | BH141: 80.805 | BI141: 63.32 | BJ141: 69.975 | BK141: 96.17 | BL141: 74.84 | BM141: 99.635 | BN141: 63.91 | BO141: 52.605 | BP141: 86.62 | BQ141: 87.15 | BR141: 95.52 | BS141: 104.26 | BT141: 149.84 | BU141: 148.55 | BV141: 28.66 | BW141: 28.72 | BX141: 37.99 | BY141: 33.3 | BZ141: 63.49 | CA141: 68.59 | CB141: 69.31 | CC141: 69.35 | CD141: 83.95 | CE141: 77.66 | CF141: 69.74 | CG141: 56.9 | CH141: 68.53 | CI141: 71.42 | CJ141: 71.51 | CK141: 120.83 | CL141: 80.15 | CM141: 69.53 | CN141: 99.34 | CO141: 99.93 | CP141: 40.46 | CQ141: 87.36 | CR141: 46.6 | CS141: 58.61 | CT141: 1.6457 | CU141: 0 | CV141: 1.5613 | CW141: 0 | CX141: 1.3259 | CY141: 0 | CZ141: 1.2576 | DA141: 0 | DB141: 0.3545 | DC141: 0.05861925 | DD141: 0.2608 | DE141: 0.21342833 | DF141: 0.088 | DG141: 0.85013536 | DH141: -0.0251 | DI141: 1 | DJ141: -0.0372 | DK141: 0.92149781 | DL141: -0.155 | DM141: 0.43683135 | DN141: 0.5436 | DO141: 0.00527752 | DP141: 0.4323 | DQ141: 0.04063464 | DR141: 0.0554 | DS141: 0.86207786 | DT141: -0.0354 | DU141: 0.95194254 | DV141: -0.1864 | DW141: 0.55329591 | DX141: -0.296 | DY141: 0.29994317 | DZ141: 0.2487 | EA141: 0.27579067 | EB141: 0.14 | EC141: 0.6060218 | ED141: -0.3909 | EE141: 0.04144426 | EF141: -0.4768 | EG141: 0.0133107 | EH141: 0.3857 | EI141: 0.2924071 | EJ141: 0.2942 | EK141: 0.44402521 | EL141: 0.738 | EM141: 0.00055783 | EN141: 0.6295 | EO141: 0.00551991
A142: Phatr3_J10902 | B142: chr_4;chr_4 | C142: 1059200;1060188 | D142: 1060083;1061166 | E142: +;+ | F142: 1863 | G142: pti:PHATRDRAFT_10902 | H142: hypothetical protein; K14682 amino-acid N-acetyltransferase [EC:2.3.1.1] | I142: pti01100||pti00330||pti01110 | J142: K14682 | K142: amino-acid N-acetyltransferase [EC:2.3.1.1] | L142: Arginine and proline metabolism | M142: 2.3.1.1 | N142: B7FUP3 | O142: KOG2436 | P142: Acetylglutamate kinase/acetylglutamate synthase | Q142: Amino acid transport and metabolism | R142: METABOLISM | W142: Phatr10902-4Phatr2 | X142: 96 | Y142: Predicted protein Fragment | Z142: CAM_CRCL_4054606 | AA142: Phaeodactylum tricornutum | AB142: 2850 | AC142: _GAP_||PF00696||_GAP_||PF13508||_GAP_ | AD142: _GAP_||Amino acid kinase family||_GAP_||PF13508||_GAP_ | AE142: _GAP_||TIGR01890 | AF142: _GAP_||amino-acid N-acetyltransferase | AJ142: 0 | AK142: other localisation | AL142: 0.0503 | AM142: 0.0213 | AN142: 0 | AO142: 0.1371 | AQ142: NS | AS142: 143 | AT142: 24 | AU142: 0.7766635653 | AV142: 0.3492211114 | AW142: 0.2033233024 | AX142: 1 | AY142: 1 | AZ142: 120.8506667 | BA142: 121.19 | BB142: 143.2 | BC142: 201.44 | BD142: 68.8 | BE142: 116.32 | BF142: 173.41 | BG142: 88.75 | BH142: 53.86 | BI142: 125.525 | BJ142: 102.99 | BK142: 76.685 | BL142: 158.715 | BM142: 126.3 | BN142: 128.38 | BO142: 127.195 | BP142: 123.28 | BQ142: 119.1 | BR142: 138.92 | BS142: 147.48 | BT142: 158.15 | BU142: 244.73 | BV142: 62.85 | BW142: 74.75 | BX142: 120.77 | BY142: 111.87 | BZ142: 171.41 | CA142: 175.41 | CB142: 76.86 | CC142: 100.64 | CD142: 55.43 | CE142: 52.29 | CF142: 118.6 | CG142: 132.45 | CH142: 104.66 | CI142: 101.32 | CJ142: 68.42 | CK142: 84.95 | CL142: 153.49 | CM142: 163.94 | CN142: 128.04 | CO142: 124.56 | CP142: 125.4 | CQ142: 131.36 | CR142: 124.82 | CS142: 129.57 | CT142: 0.8692 | CU142: 0 | CV142: 0.8254 | CW142: 1.2e-07 | CX142: 0.1069 | CY142: 0.47870932 | CZ142: 0.0781 | DA142: 0.69071598 | DB142: -0.5547 | DC142: 8.46e-06 | DD142: -0.6052 | DE142: 1.311e-05 | DF142: 0.2123 | DG142: 0.3542189 | DH142: 0.1408 | DI142: 0.60076036 | DJ142: 1.0272 | DK142: 0 | DL142: 0.9497 | DM142: 0 | DN142: 0.043 | DO142: 0.83720958 | DP142: -0.0271 | DQ142: 0.94595901 | DR142: -0.0226 | DS142: 0.94169446 | DT142: -0.0723 | DU142: 0.68950404 | DV142: 0.6184 | DW142: 0.00052755 | DX142: 0.5493 | DY142: 0.00581926 | DZ142: -0.3628 | EA142: 0.00761224 | EB142: -0.4298 | EC142: 0.00618661 | ED142: -0.2517 | EE142: 0.06384394 | EF142: -0.2966 | EG142: 0.06451 | EH142: -0.1613 | EI142: 0.41210238 | EJ142: -0.2118 | EK142: 0.31879678 | EL142: -0.0413 | EM142: 0.84612713 | EN142: -0.1111 | EO142: 0.55724546
